Workbook

Sheet 表紙・留意事項
A5: 地域少子化・働き方指標 （第４版）【データファイル】

Sheet １．（２）少子化関係指標
B5: ■都道府県別少子化関係指標（合計特殊出生率、未婚率と有配偶出生率、平均初婚年齢、出生順位ごとの母の平均年齢の状況）
AE7: ・・・上位10位を網掛け
AE8: ・・・下位10位を網掛け
E9: 合計特殊出生率（R1） | N9: 未婚率と有配偶出生率（H27） | U9: 平均初婚年齢（R1） | Z9: 出生順位ごとの母の平均年齢（R1）
E10: 合計特殊 | G10: 出生順位別内訳（R1） | N10: 未婚率（25～39歳、H27） | R10: 有配偶 | U10: 男性 | W10: 女性 | Z10: 総数 | AB10: 第１子 | AD10: 第２子 | AF10: 第３子
E11: 出生率 | G11: 第１子 | I11: 第２子 | K11: 第３子以降 | N11: 男性 | P11: 女性 | R11: 出生率
R12: （15～49歳）
F13: （順位） | H13: （順位） | J13: （順位） | L13: （順位） | O13: （順位） | Q13: （順位） | R13: （H27） | S13: （順位） | V13: （順位） | X13: （順位） | AA13: （順位） | AC13: （順位） | AE13: （順位） | AG13: （順位）
F14: （降順） | H14: （降順） | J14: （降順） | L14: （降順） | N14: （％） | O14: （昇順） | P14: （％） | Q14: （昇順） | R14: （対1000人） | S14: （降順） | U14: （歳） | V14: （昇順） | W14: （歳） | X14: （昇順） | Z14: （歳） | AA14: （昇順） | AB14: （歳） | AC14: （昇順） | AD14: （歳） | AE14: （昇順） | AF14: （歳） | AG14: （昇順）
B15: （合計特殊出生率との相関係数） | E15: 1 | G15: 0.7655703538 | I15: 0.935015879 | K15: 0.909755478 | N15: -0.7304354021 | P15: -0.5784543751 | R15: 0.8019836599 | U15: -0.7384019071 | W15: -0.616406069 | Z15: -0.577262811 | AB15: -0.6926081501 | AD15: -0.6868714906 | AF15: -0.5899336978
B16: （単純平均） | E16: 1.454893617 | G16: 0.6402477027 | I16: 0.5317480529 | K16: 0.2828978614 | N16: 0.4890045457 | P16: 0.3702444913 | R16: 81.15070408 | U16: 30.8787234 | W16: 29.30851064 | Z16: 31.73829787 | AB16: 30.24468085 | AD16: 32.36382979 | AF16: 33.65531915
B17: （標準偏差） | E17: 0.1391290896 | G17: 0.03527183963 | I17: 0.04508930686 | K17: 0.0769072555 | N17: 0.02362654207 | P17: 0.02337841061 | R17: 8.025914901 | U17: 0.4380499195 | W17: 0.3247452601 | Z17: 0.3716284987 | AB17: 0.4725703868 | AD17: 0.484845021 | AF17: 0.4201360016
B18: （変動係数） | E18: 0.09562835934 | G18: 0.05509092727 | I18: 0.08479449358 | K18: 0.2718552029 | N18: 0.04831558782 | P18: 0.06314316934 | R18: 0.0989013588 | U18: 0.01418614085 | W18: 0.01108023755 | Z18: 0.01170915026 | AB18: 0.01562490903 | AD18: 0.01498107685 | AF18: 0.0124834948
B19: 全 国 | E19: 1.36 | G19: 0.6302243889 | I19: 0.4962440204 | K19: 0.2335315907 | N19: 0.5011569938 | P19: 0.3854176908 | R19: 78.54932615 | U19: 31.2 | W19: 29.6 | Z19: 32 | AB19: 30.7 | AD19: 32.7 | AF19: 33.8
B20: 1 | C20: 北海道 | E20: 1.24 | F20: 45 | G20: 0.5818601801 | H20: 44 | I20: 0.4489786165 | J20: 46 | K20: 0.2091612034 | L20: 41 | N20: 0.4942383577 | O20: 27 | P20: 0.3933623379 | Q20: 41 | R20: 73.13494781 | S20: 45 | U20: 30.8 | V20: 20 | W20: 29.5 | X20: 41 | Z20: 31.6 | AA20: 16 | AB20: 30.2 | AC20: 23 | AD20: 32.4 | AE20: 24 | AF20: 33.5 | AG20: 19
B21: 2 | C21: 青森県 | E21: 1.38 | F21: 35 | G21: 0.6246520569 | H21: 38 | I21: 0.488650519 | J21: 39 | K21: 0.2666974241 | L21: 22 | N21: 0.511087571 | O21: 39 | P21: 0.3752822346 | Q21: 34 | R21: 75.7104398 | S21: 39 | U21: 30.8 | V21: 20 | W21: 29 | X21: 14 | Z21: 31.5 | AA21: 8 | AB21: 29.9 | AC21: 9 | AD21: 32.2 | AE21: 16 | AF21: 33.6 | AG21: 20
B22: 3 | C22: 岩手県 | E22: 1.35 | F22: 37 | G22: 0.5680105056 | H22: 46 | I22: 0.4979842416 | J22: 36 | K22: 0.2840052528 | L22: 17 | N22: 0.4908883937 | O22: 25 | P22: 0.3532334557 | Q22: 11 | R22: 77.90150996 | S22: 27 | U22: 31 | V22: 33 | W22: 29.1 | X22: 17 | Z22: 31.5 | AA22: 8 | AB22: 29.9 | AC22: 9 | AD22: 32 | AE22: 12 | AF22: 33.3 | AG22: 10
B23: 4 | C23: 宮城県 | E23: 1.23 | F23: 46 | G23: 0.5620017272 | H23: 47 | I23: 0.4527425822 | J23: 45 | K23: 0.2152556906 | L23: 40 | N23: 0.4952426394 | O23: 28 | P23: 0.3880680294 | Q23: 36 | R23: 78.05294204 | S23: 25 | U23: 30.9 | V23: 28 | W23: 29.4 | X23: 36 | Z23: 31.8 | AA23: 28 | AB23: 30.6 | AC23: 39 | AD23: 32.4 | AE23: 24 | AF23: 33.7 | AG23: 23
B24: 5 | C24: 秋田県 | E24: 1.33 | F24: 38 | G24: 0.6000833333 | H24: 41 | I24: 0.4955833333 | J24: 38 | K24: 0.2343333333 | L24: 35 | N24: 0.5020088098 | O24: 34 | P24: 0.3633817335 | Q24: 23 | R24: 69.12569772 | S24: 47 | U24: 31.1 | V24: 39 | W24: 29.3 | X24: 30 | Z24: 31.8 | AA24: 28 | AB24: 30.4 | AC24: 34 | AD24: 32.5 | AE24: 30 | AF24: 33.7 | AG24: 23
B25: 6 | C25: 山形県 | E25: 1.4 | F25: 31 | G25: 0.6314355371 | H25: 32 | I25: 0.5210096085 | J25: 31 | K25: 0.2475548544 | L25: 29 | N25: 0.477358745 | O25: 14 | P25: 0.3394800362 | Q25: 3 | R25: 76.72298096 | S25: 33 | U25: 30.8 | V25: 20 | W25: 29.2 | X25: 25 | Z25: 31.7 | AA25: 20 | AB25: 30.2 | AC25: 23 | AD25: 32.3 | AE25: 19 | AF25: 33.9 | AG25: 34
B26: 7 | C26: 福島県 | E26: 1.47 | F26: 16 | G26: 0.6464705882 | H26: 23 | I26: 0.5348235294 | J26: 26 | K26: 0.2887058824 | L26: 15 | N26: 0.4977191931 | O26: 31 | P26: 0.346026158 | Q26: 5 | R26: 82.07540127 | S26: 16 | U26: 30.6 | V26: 16 | W26: 28.8 | X26: 3 | Z26: 31.2 | AA26: 1 | AB26: 29.7 | AC26: 4 | AD26: 31.7 | AE26: 2 | AF26: 33.1 | AG26: 4
B27: 8 | C27: 茨城県 | E27: 1.39 | F27: 33 | G27: 0.6246674928 | H27: 37 | I27: 0.5142167493 | J27: 35 | K27: 0.251115758 | L27: 28 | N27: 0.5198286006 | O27: 43 | P27: 0.3632699776 | Q27: 22 | R27: 76.39802569 | S27: 37 | U27: 31.1 | V27: 39 | W27: 29.1 | X27: 17 | Z27: 31.6 | AA27: 16 | AB27: 30.1 | AC27: 18 | AD27: 32.3 | AE27: 19 | AF27: 33.4 | AG27: 14
B28: 9 | C28: 栃木県 | E28: 1.39 | F28: 33 | G28: 0.6293367914 | H28: 33 | I28: 0.5290137088 | J28: 28 | K28: 0.2316494998 | L28: 37 | N28: 0.5119942604 | O28: 40 | P28: 0.3549134558 | Q28: 13 | R28: 77.31435256 | S28: 29 | U28: 31 | V28: 33 | W28: 29.3 | X28: 30 | Z28: 31.7 | AA28: 20 | AB28: 30.1 | AC28: 18 | AD28: 32.5 | AE28: 30 | AF28: 33.7 | AG28: 23
B29: 10 | C29: 群馬県 | E29: 1.4 | F29: 31 | G29: 0.6417118093 | H29: 25 | I29: 0.5204767064 | J29: 32 | K29: 0.2378114843 | L29: 33 | N29: 0.5103736892 | O29: 38 | P29: 0.3615792823 | Q29: 20 | R29: 75.29096934 | S29: 40 | U29: 30.9 | V29: 28 | W29: 29.1 | X29: 17 | Z29: 31.7 | AA29: 20 | AB29: 30.2 | AC29: 23 | AD29: 32.4 | AE29: 24 | AF29: 33.8 | AG29: 29
B30: 11 | C30: 埼玉県 | E30: 1.27 | F30: 43 | G30: 0.5951583693 | H30: 42 | I30: 0.4850641088 | J30: 40 | K30: 0.1897775219 | L30: 45 | N30: 0.5219620164 | O30: 44 | P30: 0.3888872545 | Q30: 38 | R30: 73.39872386 | S30: 42 | U30: 31.5 | V30: 44 | W30: 29.6 | X30: 43 | Z30: 32.1 | AA30: 42 | AB30: 30.8 | AC30: 43 | AD30: 32.9 | AE30: 43 | AF30: 34 | AG30: 37
B31: 12 | C31: 千葉県 | E31: 1.28 | F31: 41 | G31: 0.6085632661 | H31: 40 | I31: 0.4788646208 | J31: 42 | K31: 0.1925721132 | L31: 44 | N31: 0.5186132274 | O31: 42 | P31: 0.390050835 | Q31: 39 | R31: 72.55662727 | S31: 46 | U31: 31.4 | V31: 43 | W31: 29.6 | X31: 43 | Z31: 32.2 | AA31: 44 | AB31: 30.8 | AC31: 43 | AD31: 33 | AE31: 44 | AF31: 34.1 | AG31: 41
B32: 13 | C32: 東京都 | E32: 1.15 | F32: 47 | G32: 0.611845077 | H32: 39 | I32: 0.4129160056 | J32: 47 | K32: 0.1252389174 | L32: 47 | N32: 0.5399787197 | O32: 47 | P32: 0.4447947926 | Q32: 47 | R32: 75.89505633 | S32: 38 | U32: 32.3 | V32: 47 | W32: 30.4 | X32: 47 | Z32: 33.3 | AA32: 47 | AB32: 32.2 | AC32: 47 | AD32: 34.2 | AE32: 47 | AF32: 35 | AG32: 47
B33: 14 | C33: 神奈川県 | E33: 1.28 | F33: 41 | G33: 0.6275776696 | H33: 36 | I33: 0.4824517757 | J33: 41 | K33: 0.1699705547 | L33: 46 | N33: 0.5292464135 | O33: 46 | P33: 0.3966122022 | Q33: 42 | R33: 73.35403513 | S33: 43 | U33: 31.8 | V33: 46 | W33: 29.9 | X33: 45 | Z33: 32.6 | AA33: 46 | AB33: 31.4 | AC33: 46 | AD33: 33.5 | AE33: 46 | AF33: 34.5 | AG33: 46
B34: 15 | C34: 新潟県 | E34: 1.38 | F34: 35 | G34: 0.6315528293 | H34: 31 | I34: 0.5142780343 | J34: 34 | K34: 0.2341691364 | L34: 36 | N34: 0.5001213385 | O34: 32 | P34: 0.3680266762 | Q34: 27 | R34: 76.48035332 | S34: 36 | U34: 30.9 | V34: 28 | W34: 29.2 | X34: 25 | Z34: 31.9 | AA34: 35 | AB34: 30.3 | AC34: 26 | AD34: 32.6 | AE34: 33 | AF34: 34.2 | AG34: 43
B35: 16 | C35: 富山県 | E35: 1.53 | F35: 13 | G35: 0.6975065732 | H35: 3 | I35: 0.5792813322 | J35: 11 | K35: 0.2532120947 | L35: 24 | N35: 0.5066202148 | O35: 37 | P35: 0.3615281263 | Q35: 19 | R35: 73.32865549 | S35: 44 | U35: 31 | V35: 33 | W35: 29.3 | X35: 30 | Z35: 31.9 | AA35: 35 | AB35: 30.5 | AC35: 36 | AD35: 32.5 | AE35: 30 | AF35: 34.2 | AG35: 43
B36: 17 | C36: 石川県 | E36: 1.46 | F36: 21 | G36: 0.6673836583 | H36: 12 | I36: 0.5409283407 | J36: 23 | K36: 0.251688001 | L36: 26 | N36: 0.4783623149 | O36: 16 | P36: 0.3597103219 | Q36: 17 | R36: 77.31033013 | S36: 30 | U36: 30.5 | V36: 13 | W36: 29.2 | X36: 25 | Z36: 31.8 | AA36: 28 | AB36: 30.3 | AC36: 26 | AD36: 32.4 | AE36: 24 | AF36: 33.9 | AG36: 34
B37: 18 | C37: 福井県 | E37: 1.56 | F37: 11 | G37: 0.6846755922 | H37: 7 | I37: 0.5805149331 | J37: 6 | K37: 0.2948094748 | L37: 12 | N37: 0.4842658747 | O37: 20 | P37: 0.3472280785 | Q37: 8 | R37: 81.15540007 | S37: 19 | U37: 30.5 | V37: 13 | W37: 28.9 | X37: 9 | Z37: 31.8 | AA37: 28 | AB37: 30.3 | AC37: 26 | AD37: 32.3 | AE37: 19 | AF37: 33.7 | AG37: 23
B38: 19 | C38: 山梨県 | E38: 1.44 | F38: 27 | G38: 0.6655723542 | H38: 13 | I38: 0.5365010799 | J38: 24 | K38: 0.2379265659 | L38: 32 | N38: 0.5179812633 | O38: 41 | P38: 0.3675553418 | Q38: 26 | R38: 77.22260649 | S38: 31 | U38: 31.1 | V38: 39 | W38: 29.3 | X38: 30 | Z38: 31.8 | AA38: 28 | AB38: 30.3 | AC38: 26 | AD38: 32.6 | AE38: 33 | AF38: 34 | AG38: 37
B39: 20 | C39: 長野県 | E39: 1.57 | F39: 10 | G39: 0.711392414 | H39: 1 | I39: 0.5795628878 | J39: 9 | K39: 0.2790446983 | L39: 18 | N39: 0.496016034 | O39: 29 | P39: 0.3570567065 | Q39: 16 | R39: 78.65305403 | S39: 23 | U39: 31.3 | V39: 42 | W39: 29.4 | X39: 36 | Z39: 32 | AA39: 40 | AB39: 30.5 | AC39: 36 | AD39: 32.7 | AE39: 39 | AF39: 34 | AG39: 37
B40: 21 | C40: 岐阜県 | E40: 1.45 | F40: 25 | G40: 0.6346392128 | H40: 29 | I40: 0.5637244898 | J40: 14 | K40: 0.2516362974 | L40: 27 | N40: 0.4878749886 | O40: 23 | P40: 0.347966321 | Q40: 9 | R40: 76.77514241 | S40: 32 | U40: 30.9 | V40: 28 | W40: 28.9 | X40: 9 | Z40: 31.7 | AA40: 20 | AB40: 30.1 | AC40: 18 | AD40: 32.4 | AE40: 24 | AF40: 33.8 | AG40: 29
B41: 22 | C41: 静岡県 | E41: 1.44 | F41: 27 | G41: 0.6569514131 | H41: 21 | I41: 0.5440012702 | J41: 22 | K41: 0.2390473166 | L41: 31 | N41: 0.4972946862 | O41: 30 | P41: 0.3463621738 | Q41: 6 | R41: 77.55249691 | S41: 28 | U41: 31 | V41: 33 | W41: 29.1 | X41: 17 | Z41: 31.8 | AA41: 28 | AB41: 30.3 | AC41: 26 | AD41: 32.6 | AE41: 33 | AF41: 33.8 | AG41: 29
B42: 23 | C42: 愛知県 | E42: 1.45 | F42: 25 | G42: 0.6836289401 | H42: 8 | I42: 0.5486460885 | J42: 20 | K42: 0.2177249714 | L42: 39 | N42: 0.5021937574 | O42: 35 | P42: 0.3492280902 | Q42: 10 | R42: 79.84925852 | S42: 20 | U42: 30.9 | V42: 28 | W42: 28.9 | X42: 9 | Z42: 31.8 | AA42: 28 | AB42: 30.4 | AC42: 34 | AD42: 32.6 | AE42: 33 | AF42: 33.8 | AG42: 29
B43: 24 | C43: 三重県 | E43: 1.47 | F43: 16 | G43: 0.6627968526 | H43: 16 | I43: 0.5541416309 | J43: 16 | K43: 0.2530615165 | L43: 25 | N43: 0.4855738023 | O43: 21 | P43: 0.3471625096 | Q43: 7 | R43: 76.59177829 | S43: 35 | U43: 30.7 | V43: 18 | W43: 28.8 | X43: 3 | Z43: 31.5 | AA43: 8 | AB43: 30 | AC43: 14 | AD43: 32.3 | AE43: 19 | AF43: 33.4 | AG43: 14
B44: 25 | C44: 滋賀県 | E44: 1.47 | F44: 16 | G44: 0.6574202643 | H44: 19 | I44: 0.5680546256 | J44: 13 | K44: 0.2445251101 | L44: 30 | N44: 0.4766213138 | O44: 12 | P44: 0.3439255988 | Q44: 4 | R44: 81.48885489 | S44: 18 | U44: 30.8 | V44: 20 | W44: 29.2 | X44: 25 | Z44: 31.9 | AA44: 35 | AB44: 30.5 | AC44: 36 | AD44: 32.6 | AE44: 33 | AF44: 33.8 | AG44: 29
B45: 26 | C45: 京都府 | E45: 1.25 | F45: 44 | G45: 0.5753392149 | H45: 45 | I45: 0.4655480485 | J45: 44 | K45: 0.2091127366 | L45: 42 | N45: 0.5232724058 | O45: 45 | P45: 0.4298026728 | Q45: 46 | R45: 78.23536303 | S45: 24 | U45: 31.5 | V45: 44 | W45: 30 | X45: 46 | Z45: 32.4 | AA45: 45 | AB45: 31 | AC45: 45 | AD45: 33.1 | AE45: 45 | AF45: 34.3 | AG45: 45
B46: 27 | C46: 大阪府 | E46: 1.31 | F46: 39 | G46: 0.6284381016 | H46: 35 | I46: 0.4746513156 | J46: 43 | K46: 0.2069105828 | L46: 43 | N46: 0.4874019777 | O46: 22 | P46: 0.4083867207 | Q46: 44 | R46: 76.67349705 | S46: 34 | U46: 31 | V46: 33 | W46: 29.5 | X46: 41 | Z46: 31.9 | AA46: 35 | AB46: 30.6 | AC46: 39 | AD46: 32.7 | AE46: 39 | AF46: 33.7 | AG46: 23
B47: 28 | C47: 兵庫県 | E47: 1.41 | F47: 30 | G47: 0.6487427291 | H47: 22 | I47: 0.5262158487 | J47: 29 | K47: 0.2350414222 | L47: 34 | N47: 0.4828299545 | O47: 19 | P47: 0.3921237522 | Q47: 40 | R47: 77.93928923 | S47: 26 | U47: 30.8 | V47: 20 | W47: 29.4 | X47: 36 | Z47: 32 | AA47: 40 | AB47: 30.6 | AC47: 39 | AD47: 32.7 | AE47: 39 | AF47: 33.9 | AG47: 34
B48: 29 | C48: 奈良県 | E48: 1.31 | F48: 39 | G48: 0.5824499832 | H48: 43 | I48: 0.4959170672 | J48: 37 | K48: 0.2316329496 | L48: 38 | N48: 0.5023760174 | O48: 36 | P48: 0.4158676793 | Q48: 45 | R48: 74.39948218 | S48: 41 | U48: 31 | V48: 33 | W48: 29.4 | X48: 36 | Z48: 32.1 | AA48: 42 | AB48: 30.6 | AC48: 39 | AD48: 32.8 | AE48: 42 | AF48: 34.1 | AG48: 41
B49: 30 | C49: 和歌山県 | E49: 1.46 | F49: 21 | G49: 0.645815486 | H49: 24 | I49: 0.5517693575 | J49: 17 | K49: 0.2624151565 | L49: 23 | N49: 0.4821752113 | O49: 18 | P49: 0.3727560124 | Q49: 31 | R49: 79.55342017 | S49: 22 | U49: 30.3 | V49: 7 | W49: 28.9 | X49: 9 | Z49: 31.3 | AA49: 4 | AB49: 29.8 | AC49: 6 | AD49: 31.8 | AE49: 5 | AF49: 33.2 | AG49: 6
B50: 31 | C50: 鳥取県 | E50: 1.63 | F50: 6 | G50: 0.6590023866 | H50: 17 | I50: 0.6053174224 | J50: 2 | K50: 0.3656801909 | L50: 8 | N50: 0.4881597768 | O50: 24 | P50: 0.363533232 | Q50: 24 | R50: 89.31395419 | S50: 9 | U50: 30.8 | V50: 20 | W50: 29.2 | X50: 25 | Z50: 31.7 | AA50: 20 | AB50: 29.8 | AC50: 6 | AD50: 32.6 | AE50: 33 | AF50: 33.6 | AG50: 20
B51: 32 | C51: 島根県 | E51: 1.68 | F51: 3 | G51: 0.69475752 | H51: 4 | I51: 0.605033763 | J51: 3 | K51: 0.380208717 | L51: 7 | N51: 0.4663223739 | O51: 7 | P51: 0.339372797 | Q51: 2 | R51: 91.51743079 | S51: 6 | U51: 30.6 | V51: 16 | W51: 29.1 | X51: 17 | Z51: 31.7 | AA51: 20 | AB51: 30 | AC51: 14 | AD51: 31.9 | AE51: 8 | AF51: 33.7 | AG51: 23
B52: 33 | C52: 岡山県 | E52: 1.47 | F52: 16 | G52: 0.6581256472 | H52: 18 | I52: 0.5349237142 | J52: 25 | K52: 0.2769506386 | L52: 20 | N52: 0.4801442623 | O52: 17 | P52: 0.3712300655 | Q52: 30 | R52: 83.90936933 | S52: 11 | U52: 30.1 | V52: 3 | W52: 28.7 | X52: 1 | Z52: 31.4 | AA52: 7 | AB52: 29.9 | AC52: 9 | AD52: 31.9 | AE52: 8 | AF52: 33.2 | AG52: 6
B53: 34 | C53: 広島県 | E53: 1.49 | F53: 15 | G53: 0.6653840753 | H53: 14 | I53: 0.5491859758 | J53: 18 | K53: 0.275429949 | L53: 21 | N53: 0.4671302157 | O53: 8 | P53: 0.3557351515 | Q53: 15 | R53: 82.54924858 | S53: 13 | U53: 30.3 | V53: 7 | W53: 29 | X53: 14 | Z53: 31.5 | AA53: 8 | AB53: 30.1 | AC53: 18 | AD53: 32.2 | AE53: 16 | AF53: 33.4 | AG53: 14
B54: 35 | C54: 山口県 | E54: 1.56 | F54: 11 | G54: 0.6759363525 | H54: 9 | I54: 0.5572048515 | J54: 15 | K54: 0.326858796 | L54: 9 | N54: 0.478192513 | O54: 15 | P54: 0.3552555076 | Q54: 14 | R54: 82.14397037 | S54: 15 | U54: 30.2 | V54: 4 | W54: 28.8 | X54: 3 | Z54: 31.2 | AA54: 1 | AB54: 29.6 | AC54: 1 | AD54: 31.7 | AE54: 2 | AF54: 33 | AG54: 1
B55: 36 | C55: 徳島県 | E55: 1.46 | F55: 21 | G55: 0.6330172069 | H55: 30 | I55: 0.548887555 | J55: 19 | K55: 0.2780952381 | L55: 19 | N55: 0.5002530397 | O55: 33 | P55: 0.3826978388 | Q55: 35 | R55: 82.33069832 | S55: 14 | U55: 30.7 | V55: 18 | W55: 29.3 | X55: 30 | Z55: 31.7 | AA55: 20 | AB55: 30.3 | AC55: 26 | AD55: 32.3 | AE55: 19 | AF55: 33.3 | AG55: 10
B56: 37 | C56: 香川県 | E56: 1.59 | F56: 9 | G56: 0.6902522105 | H56: 6 | I56: 0.6077446007 | J56: 1 | K56: 0.2920031889 | L56: 13 | N56: 0.4679006372 | O56: 9 | P56: 0.3532496463 | Q56: 12 | R56: 82.07524637 | S56: 17 | U56: 30.5 | V56: 13 | W56: 28.8 | X56: 3 | Z56: 31.5 | AA56: 8 | AB56: 30.1 | AC56: 18 | AD56: 31.9 | AE56: 8 | AF56: 33.4 | AG56: 14
B57: 38 | C57: 愛媛県 | E57: 1.46 | F57: 21 | G57: 0.637204716 | H57: 27 | I57: 0.5337684887 | J57: 27 | K57: 0.2890267953 | L57: 14 | N57: 0.4628954573 | O57: 6 | P57: 0.361108454 | Q57: 18 | R57: 79.76768584 | S57: 21 | U57: 30.2 | V57: 4 | W57: 28.8 | X57: 3 | Z57: 31.2 | AA57: 1 | AB57: 29.8 | AC57: 6 | AD57: 31.8 | AE57: 5 | AF57: 33 | AG57: 1
B58: 39 | C58: 高知県 | E58: 1.47 | F58: 16 | G58: 0.6287563062 | H58: 34 | I58: 0.5236411494 | J58: 30 | K58: 0.3176025444 | L58: 11 | N58: 0.4941593784 | O58: 26 | P58: 0.3887999726 | Q58: 37 | R58: 82.93993934 | S58: 12 | U58: 30.8 | V58: 20 | W58: 29.4 | X58: 36 | Z58: 31.9 | AA58: 35 | AB58: 30.3 | AC58: 26 | AD58: 32.2 | AE58: 16 | AF58: 34 | AG58: 37
B59: 40 | C59: 福岡県 | E59: 1.44 | F59: 27 | G59: 0.6398895448 | H59: 26 | I59: 0.5142906113 | J59: 33 | K59: 0.2858198438 | L59: 16 | N59: 0.4710170066 | O59: 10 | P59: 0.4015781801 | Q59: 43 | R59: 89.4283716 | S59: 8 | U59: 30.8 | V59: 20 | W59: 29.3 | X59: 30 | Z59: 31.7 | AA59: 20 | AB59: 30.3 | AC59: 26 | AD59: 32.4 | AE59: 24 | AF59: 33.6 | AG59: 20
B60: 41 | C60: 佐賀県 | E60: 1.64 | F60: 5 | G60: 0.6708064269 | H60: 10 | I60: 0.5827207345 | J60: 5 | K60: 0.3864728386 | L60: 5 | N60: 0.4605485245 | O60: 5 | P60: 0.3686234918 | Q60: 29 | R60: 91.78698329 | S60: 5 | U60: 30.2 | V60: 4 | W60: 28.9 | X60: 9 | Z60: 31.3 | AA60: 4 | AB60: 29.6 | AC60: 1 | AD60: 31.7 | AE60: 2 | AF60: 33.2 | AG60: 6
B61: 42 | C61: 長崎県 | E61: 1.66 | F61: 4 | G61: 0.670551554 | H61: 11 | I61: 0.5803038974 | J61: 7 | K61: 0.4091445486 | L61: 3 | N61: 0.4545787272 | O61: 3 | P61: 0.3747394977 | Q61: 32 | R61: 91.17859288 | S61: 7 | U61: 30.3 | V61: 7 | W61: 29.1 | X61: 17 | Z61: 31.5 | AA61: 8 | AB61: 29.9 | AC61: 9 | AD61: 31.8 | AE61: 5 | AF61: 33.3 | AG61: 10
B62: 43 | C62: 熊本県 | E62: 1.6 | F62: 8 | G62: 0.6367107195 | H62: 28 | I62: 0.5793161317 | J62: 10 | K62: 0.3839731487 | L62: 6 | N62: 0.4563583932 | O62: 4 | P62: 0.3671827743 | Q62: 25 | R62: 95.28861649 | S62: 3 | U62: 30.4 | V62: 10 | W62: 29.1 | X62: 17 | Z62: 31.5 | AA62: 8 | AB62: 30 | AC62: 14 | AD62: 32 | AE62: 12 | AF62: 33.1 | AG62: 4
B63: 44 | C63: 大分県 | E63: 1.53 | F63: 13 | G63: 0.6573402439 | H63: 20 | I63: 0.5459487805 | J63: 21 | K63: 0.3267109756 | L63: 10 | N63: 0.4725199474 | O63: 11 | P63: 0.3681092999 | Q63: 28 | R63: 86.3258087 | S63: 10 | U63: 30.4 | V63: 10 | W63: 29 | X63: 14 | Z63: 31.5 | AA63: 8 | AB63: 29.9 | AC63: 9 | AD63: 32.1 | AE63: 14 | AF63: 33.4 | AG63: 14
B64: 45 | C64: 宮崎県 | E64: 1.73 | F64: 2 | G64: 0.7006971781 | H64: 2 | I64: 0.5921875741 | J64: 4 | K64: 0.4371152478 | L64: 2 | N64: 0.4262332055 | O64: 1 | P64: 0.3390553145 | Q64: 1 | R64: 92.30376389 | S64: 4 | U64: 29.7 | V64: 1 | W64: 28.7 | X64: 1 | Z64: 31.3 | AA64: 4 | AB64: 29.6 | AC64: 1 | AD64: 31.6 | AE64: 1 | AF64: 33 | AG64: 1
B65: 46 | C65: 鹿児島県 | E65: 1.63 | F65: 6 | G65: 0.6642790985 | H65: 15 | I65: 0.5702987033 | J65: 12 | K65: 0.3954221982 | L65: 4 | N65: 0.4285177577 | O65: 2 | P65: 0.3623643605 | Q65: 21 | R65: 96.10007074 | S65: 2 | U65: 30.4 | V65: 10 | W65: 29.1 | X65: 17 | Z65: 31.6 | AA65: 16 | AB65: 30 | AC65: 14 | AD65: 32.1 | AE65: 14 | AF65: 33.3 | AG65: 10
B66: 47 | C66: 沖縄県 | E66: 1.82 | F66: 1 | G66: 0.6936638698 | H66: 5 | I66: 0.5801741673 | J66: 8 | K66: 0.5461619629 | L66: 1 | N66: 0.4767606387 | O66: 13 | P66: 0.3752269409 | Q66: 33 | R66: 114.9826493 | S66: 1 | U66: 30 | V66: 2 | W66: 28.8 | X66: 3 | Z66: 31.6 | AA66: 16 | AB66: 29.7 | AC66: 4 | AD66: 31.9 | AE66: 8 | AF66: 33.2 | AG66: 6
B67: 資料等
B68: ○ 合計特殊出生率は、厚生労働省「人口動態統計(確定数）」（令和元年）。 出生順位別内訳は、合計特殊出生率を厚生労働省「人口動態統計(確定数）」（令和元年）の出生順位別出生数で按分して作成。
B69: ○ 未婚率は、総務省「国勢調査」（平成27年）による、日本人未婚者数の日本人人口（配偶関係不詳除く。）に対する割合（性別・年齢階級別）と、総務省による国籍不詳及び年齢不詳按分後の日本人の基準人口（性別・年齢階級別）を用いて作成。
B70: ○ 有配偶出生率は、厚生労働省「人口動態統計（確定数）」（平成27年）による出生数（母の年齢計）の、総務省「国勢調査」（平成27年）から作成した日本人女性有配偶者数（15～49歳）に対する比率。
B71: ○ 日本人女性有配偶者数は、総務省「国勢調査」（平成27年）による日本人有配偶者数の日本人人口（配偶関係不詳除く）に対する割合（性別・年齢階級別）と、日本人の基準人口（性別・年齢階級別）を用いて作成。
B72: ○ 平均初婚年齢、出生順位ごとの母の平均年齢は、厚生労働省「人口動態統計(確定数）」（令和元年）。
B73: ○ 合計特殊出生率との相関係数、単純平均、標準偏差は都道府県別データから機械的に計算。変動係数は、標準偏差／単純平均で機械的に計算。

Sheet その他（１）
B2: その他関連データ
B4: １．（１）②に用いたデータ | G4: １．（１）③に用いたデータ
D6: 未婚率（25-39女性） | E6: 有配偶出生率（15-49） | I6: 未婚率（25-39女性） | J6: 有配偶出生率（15-49）
B8: 13100 | C8: 東京都区部 | D8: 0.4550976957 | E8: 77.2007256 | H8: （都道府県の単純平均） | I8: 0.1339754209 | J8: 76.07566957
B9: 1100 | C9: 札幌市 | D9: 0.44921433 | E9: 73.20499643 | G9: 1 | H9: 北海道 | I9: 0.1569317713 | J9: 69.9792446
B10: 4100 | C10: 仙台市 | D10: 0.425377805 | E10: 79.25663165 | G10: 2 | H10: 青森県 | I10: 0.1266166435 | J10: 76.25070152
B11: 11100 | C11: さいたま市 | D11: 0.3809058757 | E11: 73.42121859 | G11: 3 | H11: 岩手県 | I11: 0.1356980626 | J11: 76.05603069
B12: 12100 | C12: 千葉市 | D12: 0.3914027068 | E12: 69.11397676 | G12: 4 | H12: 宮城県 | I12: 0.1386785079 | J12: 79.72030948
B13: 14100 | C13: 横浜市 | D13: 0.4016584624 | E13: 72.22181681 | G13: 5 | H13: 秋田県 | I13: 0.1199927555 | J13: 67.55151838
B14: 14130 | C14: 川崎市 | D14: 0.3982086755 | E14: 80.942938 | G14: 6 | H14: 山形県 | I14: 0.1182298883 | J14: 77.16744945
B15: 14150 | C15: 相模原市 | D15: 0.40008617 | E15: 71.48859213 | G15: 7 | H15: 福島県 | I15: 0.1333854093 | J15: 85.89116764
B16: 15100 | C16: 新潟市 | D16: 0.3929891447 | E16: 76.78073595 | G16: 8 | H16: 茨城県 | I16: 0.1109232865 | J16: 74.50751499
B17: 22100 | C17: 静岡市 | D17: 0.3837322977 | E17: 75.42038686 | G17: 9 | H17: 栃木県 | I17: 0.1206654958 | J17: 78.92740892
B18: 22130 | C18: 浜松市 | D18: 0.3378102764 | E18: 81.91147516 | G18: 10 | H18: 群馬県 | I18: 0.136692716 | J18: 75.27671465
B19: 23100 | C19: 名古屋市 | D19: 0.3989322684 | E19: 80.78431821 | G19: 11 | H19: 埼玉県 | I19: 0.1209833336 | J19: 64.34508376
B20: 26100 | C20: 京都市 | D20: 0.4740256204 | E20: 80.12996296 | G20: 12 | H20: 千葉県 | I20: 0.1227721043 | J20: 66.624192
B21: 27100 | C21: 大阪市 | D21: 0.4447585642 | E21: 80.31462894 | G21: 13 | H21: 東京都 | I21: 0.2469969682 | J21: 71.32023645
B22: 27140 | C22: 堺市 | D22: 0.3724850443 | E22: 78.7510468 | G22: 14 | H22: 神奈川県 | I22: 0.1458583532 | J22: 68.13948085
B23: 28100 | C23: 神戸市 | D23: 0.4326438597 | E23: 79.3022198 | G23: 15 | H23: 新潟県 | I23: 0.1249034051 | J23: 75.84945147
B24: 33100 | C24: 岡山市 | D24: 0.3846704972 | E24: 85.43179747 | G24: 16 | H24: 富山県 | I24: 0.08599727042 | J24: 64.64349686
B25: 34100 | C25: 広島市 | D25: 0.3740157813 | E25: 81.05807707 | G25: 17 | H25: 石川県 | I25: 0.0933525106 | J25: 70.24940555
B26: 40100 | C26: 北九州市 | D26: 0.380688417 | E26: 88.84640054 | G26: 18 | H26: 福井県 | I26: 0.08422968708 | J26: 77.18439019
B27: 40130 | C27: 福岡市 | D27: 0.4555663509 | E27: 87.32397432 | G27: 19 | H27: 山梨県 | I27: 0.1502612245 | J27: 80.07799133
B28: 43100 | C28: 熊本市 | D28: 0.3977231433 | E28: 93.71878446 | G28: 20 | H28: 長野県 | I28: 0.1450638318 | J28: 75.99709893
G29: 21 | H29: 岐阜県 | I29: 0.1003323662 | J29: 70.99294896
G30: 22 | H30: 静岡県 | I30: 0.1247411443 | J30: 74.37637906
G31: 23 | H31: 愛知県 | I31: 0.1085367653 | J31: 72.47153468
G32: 24 | H32: 三重県 | I32: 0.09966550923 | J32: 68.97841239
G33: 25 | H33: 滋賀県 | I33: 0.09455605899 | J33: 78.02840005
G34: 26 | H34: 京都府 | I34: 0.1585948869 | J34: 71.29847428
G35: 27 | H35: 大阪府 | I35: 0.1574656129 | J35: 70.02070492
G36: 28 | H36: 兵庫県 | I36: 0.1431591263 | J36: 71.88317621
G37: 29 | H37: 奈良県 | I37: 0.1206065076 | J37: 66.21209238
G38: 30 | H38: 和歌山県 | I38: 0.1277408578 | J38: 71.05064285
G39: 31 | H39: 鳥取県 | I39: 0.1207915893 | J39: 80.78281866
G40: 32 | H40: 島根県 | I40: 0.1185060785 | J40: 78.00363842
G41: 33 | H41: 岡山県 | I41: 0.1076349592 | J41: 74.37802998
G42: 34 | H42: 広島県 | I42: 0.1168303286 | J42: 72.5690084
G43: 35 | H43: 山口県 | I43: 0.1273838404 | J43: 70.73103667
G44: 36 | H44: 徳島県 | I44: 0.1202824359 | J44: 74.50563934
G45: 37 | H45: 香川県 | I45: 0.1079699224 | J45: 70.7711665
G46: 38 | H46: 愛媛県 | I46: 0.1436613581 | J46: 74.93451479
G47: 39 | H47: 高知県 | I47: 0.1631418897 | J47: 76.00197546
G48: 40 | H48: 福岡県 | I48: 0.1754566002 | J48: 79.51855699
G49: 41 | H49: 佐賀県 | I49: 0.1577945163 | J49: 89.51909817
G50: 42 | H50: 長崎県 | I50: 0.1747610499 | J50: 86.27343513
G51: 43 | H51: 熊本県 | I51: 0.1627172012 | J51: 83.75664947
G52: 44 | H52: 大分県 | I52: 0.1398008786 | J52: 74.64780346
G53: 45 | H53: 宮崎県 | I53: 0.1453245419 | J53: 83.73968665
G54: 46 | H54: 鹿児島県 | I54: 0.1627151627 | J54: 90.77368906
G55: 47 | H55: 沖縄県 | I55: 0.198440367 | J55: 123.578069

Sheet ２．（２）働き方関係等指標－その１－
B5: ■働き方関係等指標（働き方関係、仕事と育児の両立関係、経済関係、世帯関係、その他の状況）
Q7: ・・・上位10位を網掛け
Q8: ・・・下位10位を網掛け
E9: 働き方関係 | I9: 仕事と育児の両立関係 | M9: 経済関係 | O9: 世帯関係 | Q9: （参考）その他
E10: 週60時間以上 | G10: １日当たりの | I10: 女性の有業率と | K10: 0～5歳人口に | M10: パート・アルバイト | O10: 三世代同居率 | Q10: （参考）最近の合計特殊
E11: 働く雇用者の割合 | G11: 通勤等の時間 | I11: 育児をしている | K11: 対する保育所等 | M11: 割合（25～39歳、 | O11: （H27） | Q11: 出生率の上昇率
E12: （H29） | G12: （H28） | I12: 女性の有業率 | K12: 定員数の比 | M12: 男性、H29） | Q12: （最低値→最高値）
F13: （順位） | H13: （順位） | I13: の差（25～44歳、H29） | J13: （順位） | K13: （R１） | L13: （順位） | N13: （順位） | P13: （順位） | R13: （順位）
E14: （％） | F14: （昇順） | G14: （分） | H14: （昇順） | I14: （％ポイント） | J14: （昇順） | K14: （％） | L14: （降順） | M14: （％） | N14: （昇順） | O14: （％） | P14: （降順） | Q14: （％） | R14: （降順）
B15: （合計特殊出生率との相関係数） | E15: -0.5171295421 | G15: -0.599659657 | I15: -0.4219091121 | K15: 0.324735403 | M15: -0.07441328961 | O15: 0.1422121232 | Q15: -0.02600110794
B16: （単純平均） | E16: 0.08889361702 | G16: 67.59574468 | I16: 0.09015023826 | K16: 0.5331191751 | M16: 0.05669526229 | O16: 0.07821276596 | Q16: 0.164056217
B17: （標準偏差） | E17: 0.01050275352 | G17: 11.16159749 | I17: 0.03434749791 | K17: 0.1227839706 | M17: 0.01138377177 | O17: 0.03669189497 | Q17: 0.03064022416
B18: （変動係数） | E18: 0.1181496926 | G18: 0.1651227831 | I18: 0.3810028522 | K18: 0.230312426 | M18: 0.2007887662 | O18: 0.4691292338 | Q18: 0.186766614
B19: 全 国 | E19: 0.095 | G19: 77 | I19: 0.1163594895 | K19: 0.4679722059 | M19: 0.05942216098 | O19: 0.05668333283 | Q19: 0.1507936508
B20: 1 | C20: 北海道 | E20: 0.106 | F20: 47 | G20: 61 | H20: 13 | I20: 0.1147112818 | J20: 35 | K20: 0.3779346782 | L20: 45 | M20: 0.06366128541 | N20: 33 | O20: 0.032 | P20: 43 | Q20: 0.1391304348 | R20: 37
B21: 2 | C21: 青森県 | E21: 0.075 | F21: 5 | G21: 58 | H21: 5 | I21: 0.0317738755 | J21: 1 | K21: 0.7071721311 | L21: 7 | M21: 0.06332453826 | N21: 32 | O21: 0.11 | P21: 12 | Q21: 0.1746031746 | R21: 16
B22: 3 | C22: 岩手県 | E22: 0.08 | F22: 10 | G22: 61 | H22: 13 | I22: 0.05240306222 | J22: 10 | K22: 0.6164634146 | L22: 12 | M22: 0.04691358025 | N22: 13 | O22: 0.122 | P22: 6 | Q22: 0.1555555556 | R22: 32
B23: 4 | C23: 宮城県 | E23: 0.096 | F23: 30 | G23: 67 | H23: 29 | I23: 0.09887596504 | J23: 25 | K23: 0.3882387476 | L23: 44 | M23: 0.07893242476 | N23: 46 | O23: 0.091 | P23: 17 | Q23: 0.1300813008 | R23: 40
B24: 5 | C24: 秋田県 | E24: 0.068 | F24: 2 | G24: 57 | H24: 1 | I24: 0.03800623436 | J24: 3 | K24: 0.7484730539 | L24: 4 | M24: 0.04347826087 | N24: 6 | O24: 0.134 | P24: 4 | Q24: 0.1240310078 | R24: 43
B25: 6 | C25: 山形県 | E25: 0.078 | F25: 6 | G25: 58 | H25: 5 | I25: 0.0478988765 | J25: 7 | K25: 0.5889819005 | L25: 14 | M25: 0.04055944056 | N25: 2 | O25: 0.178 | P25: 1 | Q25: 0.1654676259 | R25: 21
B26: 7 | C26: 福島県 | E26: 0.09 | F26: 24 | G26: 64 | H26: 26 | I26: 0.06421905165 | J26: 15 | K26: 0.4102791878 | L26: 40 | M26: 0.04513618677 | N26: 9 | O26: 0.12 | P26: 7 | Q26: 0.170212766 | R26: 17
B27: 8 | C27: 茨城県 | E27: 0.096 | F27: 30 | G27: 76 | H27: 38 | I27: 0.1300882724 | J27: 43 | K27: 0.4736248013 | L27: 28 | M27: 0.04896421846 | N27: 16 | O27: 0.094 | P27: 16 | Q27: 0.1212121212 | R27: 44
B28: 9 | C28: 栃木県 | E28: 0.099 | F28: 40 | G28: 68 | H28: 31 | I28: 0.09204830574 | J28: 23 | K28: 0.4708545035 | L28: 31 | M28: 0.04237867396 | N28: 5 | O28: 0.097 | P28: 14 | Q28: 0.08759124088 | R28: 47
B29: 10 | C29: 群馬県 | E29: 0.097 | F29: 35 | G29: 67 | H29: 29 | I29: 0.08036379733 | J29: 21 | K29: 0.5610308057 | L29: 18 | M29: 0.06398274623 | N29: 34 | O29: 0.076 | P29: 23 | Q29: 0.1185185185 | R29: 46
B30: 11 | C30: 埼玉県 | E30: 0.105 | F30: 46 | G30: 93 | H30: 45 | I30: 0.1439982961 | J30: 45 | K30: 0.3536077844 | L30: 47 | M30: 0.06891651865 | N30: 43 | O30: 0.047 | P30: 33 | Q30: 0.1583333333 | R30: 27
B31: 12 | C31: 千葉県 | E31: 0.102 | F31: 43 | G31: 97 | H31: 46 | I31: 0.1271571883 | J31: 42 | K31: 0.3950035689 | L31: 42 | M31: 0.06140540541 | N31: 29 | O31: 0.047 | P31: 33 | Q31: 0.15 | R31: 34
B32: 13 | C32: 東京都 | E32: 0.104 | F32: 44 | G32: 91 | H32: 44 | I32: 0.1644062745 | J32: 47 | K32: 0.4535483871 | L32: 33 | M32: 0.06812996617 | N32: 41 | O32: 0.018 | P32: 47 | Q32: 0.24 | R32: 1
B33: 14 | C33: 神奈川県 | E33: 0.1 | F33: 41 | G33: 101 | H33: 47 | I33: 0.1491639921 | J33: 46 | K33: 0.3652644116 | L33: 46 | M33: 0.06195403844 | N33: 30 | O33: 0.03 | P33: 44 | Q33: 0.1680672269 | R33: 19
B34: 15 | C34: 新潟県 | E34: 0.08 | F34: 10 | G34: 63 | H34: 22 | I34: 0.0540347057 | J34: 11 | K34: 0.7335357918 | L34: 5 | M34: 0.0438538206 | N34: 7 | O34: 0.138 | P34: 3 | Q34: 0.1268656716 | R34: 42
B35: 16 | C35: 富山県 | E35: 0.078 | F35: 6 | G35: 61 | H35: 13 | I35: 0.05902339705 | J35: 12 | K35: 0.7521461187 | L35: 3 | M35: 0.03081232493 | N35: 1 | O35: 0.132 | P35: 5 | Q35: 0.1567164179 | R35: 31
B36: 17 | C36: 石川県 | E36: 0.093 | F36: 28 | G36: 61 | H36: 13 | I36: 0.06221648351 | J36: 14 | K36: 0.7183969466 | L36: 6 | M36: 0.04494382022 | N36: 8 | O36: 0.088 | P36: 18 | Q36: 0.1407407407 | R36: 35
B37: 18 | C37: 福井県 | E37: 0.084 | F37: 15 | G37: 58 | H37: 5 | I37: 0.04371590525 | J37: 4 | K37: 0.7911016949 | L37: 1 | M37: 0.05321100917 | N37: 18 | O37: 0.149 | P37: 2 | Q37: 0.1517241379 | R37: 33
B38: 19 | C38: 山梨県 | E38: 0.098 | F38: 37 | G38: 61 | H38: 13 | I38: 0.106324447 | J38: 29 | K38: 0.6525284091 | L38: 11 | M38: 0.05703422053 | N38: 23 | O38: 0.079 | P38: 21 | Q38: 0.1679389313 | R38: 20
B39: 20 | C39: 長野県 | E39: 0.096 | F39: 30 | G39: 61 | H39: 13 | I39: 0.1171784847 | J39: 36 | K39: 0.6719094923 | L39: 10 | M39: 0.05720653789 | N39: 24 | O39: 0.099 | P39: 13 | Q39: 0.1197183099 | R39: 45
B40: 21 | C40: 岐阜県 | E40: 0.086 | F40: 18 | G40: 68 | H40: 31 | I40: 0.09928142522 | J40: 26 | K40: 0.4856277533 | L40: 26 | M40: 0.0457957958 | N40: 10 | O40: 0.111 | P40: 11 | Q40: 0.1908396947 | R40: 9
B41: 22 | C41: 静岡県 | E41: 0.088 | F41: 22 | G41: 66 | H41: 28 | I41: 0.1240906492 | J41: 40 | K41: 0.4095980512 | L41: 41 | M41: 0.04778028593 | N41: 14 | O41: 0.097 | P41: 14 | Q41: 0.1313868613 | R41: 39
B42: 23 | C42: 愛知県 | E42: 0.098 | F42: 37 | G42: 76 | H42: 38 | I42: 0.1434435317 | J42: 44 | K42: 0.4748765756 | L42: 27 | M42: 0.04150943396 | N42: 4 | O42: 0.061 | P42: 30 | Q42: 0.1893939394 | R42: 11
B43: 24 | C43: 三重県 | E43: 0.08 | F43: 10 | G43: 69 | H43: 33 | I43: 0.1246145636 | J43: 41 | K43: 0.5614949749 | L43: 17 | M43: 0.05595523581 | N43: 22 | O43: 0.075 | P43: 24 | Q43: 0.1641791045 | R43: 24
B44: 25 | C44: 滋賀県 | E44: 0.095 | F44: 29 | G44: 71 | H44: 36 | I44: 0.1136727154 | J44: 34 | K44: 0.4656284153 | L44: 32 | M44: 0.0412371134 | N44: 3 | O44: 0.088 | P44: 18 | Q44: 0.1582733813 | R44: 29
B45: 26 | C45: 京都府 | E45: 0.1 | F45: 41 | G45: 76 | H45: 38 | I45: 0.0765297332 | J45: 19 | K45: 0.5157589286 | L45: 21 | M45: 0.06964892412 | N45: 44 | O45: 0.041 | P45: 42 | Q45: 0.1842105263 | R45: 12
B46: 27 | C46: 大阪府 | E46: 0.097 | F46: 35 | G46: 83 | H46: 42 | I46: 0.1238450282 | J46: 39 | K46: 0.417249499 | L46: 37 | M46: 0.06861951772 | N46: 42 | O46: 0.029 | P46: 45 | Q46: 0.1583333333 | R46: 27
B47: 28 | C47: 兵庫県 | E47: 0.088 | F47: 22 | G47: 79 | H47: 41 | I47: 0.1053214021 | J47: 28 | K47: 0.392519685 | L47: 43 | M47: 0.05357643759 | N47: 21 | O47: 0.046 | P47: 36 | Q47: 0.2016129032 | R47: 8
B48: 29 | C48: 奈良県 | E48: 0.096 | F48: 30 | G48: 90 | H48: 43 | I48: 0.1223686786 | J48: 37 | K48: 0.4164930556 | L48: 38 | M48: 0.0626566416 | N48: 31 | O48: 0.065 | P48: 27 | Q48: 0.1896551724 | R48: 10
B49: 30 | C49: 和歌山県 | E49: 0.086 | F49: 18 | G49: 63 | H49: 22 | I49: 0.1050147435 | J49: 27 | K49: 0.509744898 | L49: 22 | M49: 0.07037037037 | N49: 45 | O49: 0.062 | P49: 29 | Q49: 0.2109375 | R49: 4
B50: 31 | C50: 鳥取県 | E50: 0.079 | F50: 9 | G50: 57 | H50: 1 | I50: 0.06656911412 | J50: 16 | K50: 0.6763157895 | L50: 9 | M50: 0.06128133705 | N50: 28 | O50: 0.118 | P50: 9 | Q50: 0.1608391608 | R50: 26
B51: 32 | C51: 島根県 | E51: 0.071 | F51: 4 | G51: 57 | H51: 1 | I51: 0.04738864801 | J51: 6 | K51: 0.6993987342 | L51: 8 | M51: 0.04672897196 | N51: 12 | O51: 0.116 | P51: 10 | Q51: 0.2027027027 | R51: 7
B52: 33 | C52: 岡山県 | E52: 0.092 | F52: 26 | G52: 69 | H52: 33 | I52: 0.1064976954 | J52: 30 | K52: 0.5064142539 | L52: 23 | M52: 0.05324074074 | N52: 19 | O52: 0.071 | P52: 25 | Q52: 0.1386861314 | R52: 38
B53: 34 | C53: 広島県 | E53: 0.098 | F53: 37 | G53: 69 | H53: 33 | I53: 0.1230363538 | J53: 38 | K53: 0.4720386905 | L53: 29 | M53: 0.06437346437 | N53: 35 | O53: 0.045 | P53: 38 | Q53: 0.2030075188 | R53: 6
B54: 35 | C54: 山口県 | E54: 0.084 | F54: 15 | G54: 61 | H54: 13 | I54: 0.1065225519 | J54: 31 | K54: 0.4148976109 | L54: 39 | M54: 0.05854800937 | N54: 26 | O54: 0.047 | P54: 33 | Q54: 0.1764705882 | R54: 15
B55: 36 | C55: 徳島県 | E55: 0.078 | F55: 6 | G55: 63 | H55: 22 | I55: 0.04450757576 | J55: 5 | K55: 0.5888815789 | L55: 15 | M55: 0.06726457399 | N55: 39 | O55: 0.079 | P55: 21 | Q55: 0.2142857143 | R55: 3
B56: 37 | C56: 香川県 | E56: 0.09 | F56: 24 | G56: 60 | H56: 10 | I56: 0.09616864791 | J56: 24 | K56: 0.4968493151 | L56: 25 | M56: 0.06491499227 | N56: 37 | O56: 0.066 | P56: 26 | Q56: 0.161971831 | R56: 25
B57: 38 | C57: 愛媛県 | E57: 0.087 | F57: 20 | G57: 60 | H57: 10 | I57: 0.07507347296 | J57: 18 | K57: 0.4245408163 | L57: 36 | M57: 0.04784130688 | N57: 15 | O57: 0.048 | P57: 32 | Q57: 0.1654135338 | R57: 22
B58: 39 | C58: 高知県 | E58: 0.07 | F58: 3 | G58: 61 | H58: 13 | I58: 0.03791108254 | J58: 2 | K58: 0.7799315068 | L58: 2 | M58: 0.06801007557 | N58: 40 | O58: 0.045 | P58: 38 | Q58: 0.2093023256 | R58: 5
B59: 40 | C59: 福岡県 | E59: 0.104 | F59: 44 | G59: 72 | H59: 37 | I59: 0.1136362858 | J59: 33 | K59: 0.4470122418 | L59: 34 | M59: 0.06584948689 | N59: 38 | O59: 0.045 | P59: 38 | Q59: 0.216 | R59: 2
B60: 41 | C60: 佐賀県 | E60: 0.087 | F60: 20 | G60: 60 | H60: 10 | I60: 0.07055774071 | J60: 17 | K60: 0.5861594203 | L60: 16 | M60: 0.05353728489 | N60: 20 | O60: 0.12 | P60: 7 | Q60: 0.1283783784 | R60: 41
B61: 42 | C61: 長崎県 | E61: 0.096 | F61: 30 | G61: 65 | H61: 27 | I61: 0.08008535768 | J61: 20 | K61: 0.5185917722 | L61: 20 | M61: 0.06467661692 | N61: 36 | O61: 0.065 | P61: 27 | Q61: 0.1793103448 | R61: 13
B62: 43 | C62: 熊本県 | E62: 0.092 | F62: 26 | G62: 61 | H62: 13 | I62: 0.04878121651 | J62: 9 | K62: 0.602713964 | L62: 13 | M62: 0.05840071878 | N62: 25 | O62: 0.08 | P62: 20 | Q62: 0.1575342466 | R62: 30
B63: 44 | C63: 大分県 | E63: 0.082 | F63: 13 | G63: 57 | H63: 1 | I63: 0.1124141924 | J63: 32 | K63: 0.446770428 | L63: 35 | M63: 0.05248618785 | N63: 17 | O63: 0.058 | P63: 31 | Q63: 0.1785714286 | R63: 14
B64: 45 | C64: 宮崎県 | E64: 0.085 | F64: 17 | G64: 58 | H64: 5 | I64: 0.08285722337 | J64: 22 | K64: 0.504330855 | L64: 24 | M64: 0.0462962963 | N64: 11 | O64: 0.046 | P64: 36 | Q64: 0.1689189189 | R64: 18
B65: 46 | C65: 鹿児島県 | E65: 0.083 | F65: 14 | G65: 59 | H65: 9 | I65: 0.06070863998 | J65: 13 | K65: 0.4709452736 | L65: 30 | M65: 0.05906735751 | N65: 27 | O65: 0.026 | P65: 46 | Q65: 0.1643835616 | R65: 23
B66: 47 | C66: 沖縄県 | E66: 0.061 | F66: 1 | G66: 63 | H66: 22 | I66: 0.04855503197 | J66: 8 | K66: 0.5417213115 | L66: 19 | M66: 0.09021113244 | N66: 47 | O66: 0.045 | P66: 38 | Q66: 0.1395348837 | R66: 36
B67: 資料等
B68: ○ 合計特殊出生率は、厚生労働省「人口動態統計(確定数）」（令和元年）。
B69: ○ 週60時間以上働く雇用者の割合、女性の有業率と育児をしている女性の有業率の差（25～44歳）、パート・アルバイト割合（25～39歳、男性）は、総務省「就業構造基本調査」（平成29年）
B70: ○ １日当たりの通勤等の時間は、総務省「社会生活基本調査」（平成28年）「行動者平均時間 (分)」の「通勤・通学」である。
B71: ○ ０～５歳人口に対する保育所等定員数の比は、厚生労働省「福祉行政報告例」（令和元年10月分概数）、総務省「人口推計（2019年10月１日現在）」。０～５歳人口は０～４歳人口＋５～９歳人口／５で推計。
B72: ○ 三世代同居率は、総務省「国勢調査」（平成27年）。一般世帯の世帯数に対する三世代同居世帯の世帯数の比率。
B73: ○ （参考）最近の合計特殊出生率の上昇率（最低値→最高値）は、2001年以降の最低値から、その後の最高値への上昇率をみたもの。
B74: ○ 合計特殊出生率との相関、単純平均、標準偏差は都道府県別データから機械的に計算。変動係数は、標準偏差／単純平均で機械的に計算。

Sheet ２．（２）働き方関係等指標－その１－【順位順】
B5: ■働き方関係等指標（働き方関係、仕事と育児の両立関係、経済関係、世帯関係、その他の状況） 【順位順】
AD7: ・・・上位10位を網掛け
AD8: ・・・下位10位を網掛け
B9: 働き方関係 | L9: 仕事と育児の両立関係 | V9: 経済関係 | AA9: 世帯関係 | AF9: （参考）その他
C10: 週60時間以上 | G10: 平日１日当たりの | L10: 女性の有業率と | R10: 0～5歳人口に | W10: パート・アルバイト | AB10: 三世代同居率 | AG10: （参考）最近の合計特殊
C11: 働く雇用者の割合 | G11: 通勤等の時間 | L11: 育児をしている | R11: 対する保育所等 | W11: 割合（25～39歳、 | AB11: （H27） | AG11: 出生率の上昇率
C12: （H29） | G12: （H28） | L12: 女性の有業率 | R12: 定員数の比 | W12: 男性、H29） | AG12: （最低値→最高値）
E13: （順位） | J13: （順位） | L13: の差（25～44歳、H29） | O13: （順位） | R13: （R１） | T13: （順位） | Y13: （順位） | AD13: （順位） | AI13: （順位）
D14: （％） | E14: （昇順） | I14: （分） | J14: （昇順） | N14: （％ポイント） | O14: （昇順） | S14: （％） | T14: （降順） | X14: （％） | Y14: （昇順） | AC14: （％） | AD14: （降順） | AH14: （％） | AI14: （降順）
B15: （合計特殊出生率との相関係数） | D15: -0.5171295421 | G15: （合計特殊出生率との相関係数） | I15: -0.599659657 | L15: （合計特殊出生率との相関係数） | N15: -0.4219091121 | Q15: （合計特殊出生率との相関係数） | S15: 0.324735403 | V15: （合計特殊出生率との相関係数） | X15: -0.07441328961 | AA15: （合計特殊出生率との相関係数） | AC15: 0.1422121232 | AF15: （合計特殊出生率との相関係数） | AH15: -0.02600110794
B16: （単純平均） | D16: 0.08889361702 | G16: （単純平均） | I16: 67.59574468 | L16: （単純平均） | N16: 0.09015023826 | Q16: （単純平均） | S16: 0.5331191751 | V16: （単純平均） | X16: 0.05669526229 | AA16: （単純平均） | AC16: 0.07821276596 | AF16: （単純平均） | AH16: 0.164056217
B17: （標準偏差） | D17: 0.01050275352 | G17: （標準偏差） | I17: 11.16159749 | L17: （標準偏差） | N17: 0.03434749791 | Q17: （標準偏差） | S17: 0.1227839706 | V17: （標準偏差） | X17: 0.01138377177 | AA17: （標準偏差） | AC17: 0.03669189497 | AF17: （標準偏差） | AH17: 0.03064022416
B18: （変動係数） | D18: 0.1181496926 | G18: （変動係数） | I18: 0.1651227831 | L18: （変動係数） | N18: 0.3810028522 | Q18: （変動係数） | S18: 0.230312426 | V18: （変動係数） | X18: 0.2007887662 | AA18: （変動係数） | AC18: 0.4691292338 | AF18: （変動係数） | AH18: 0.186766614
B19: 全 国 | D19: 0.095 | G19: 全 国 | I19: 77 | L19: 全 国 | N19: 0.1163594895 | Q19: 全 国 | S19: 0.4679722059 | V19: 全 国 | X19: 0.05942216098 | AA19: 全 国 | AC19: 0.05668333283 | AF19: 全 国 | AH19: 0.1507936508
B20: 47 | C20: 沖縄県 | D20: 0.061 | E20: 1 | G20: 5 | H20: 秋田県 | I20: 57 | J20: 1 | L20: 2 | M20: 青森県 | N20: 0.0317738755 | O20: 1 | Q20: 18 | R20: 福井県 | S20: 0.7911016949 | T20: 1 | V20: 16 | W20: 富山県 | X20: 0.03081232493 | Y20: 1 | AA20: 6 | AB20: 山形県 | AC20: 0.178 | AD20: 1 | AF20: 13 | AG20: 東京都 | AH20: 0.24 | AI20: 1
B21: 5 | C21: 秋田県 | D21: 0.068 | E21: 2 | G21: 32 | H21: 島根県 | I21: 57 | J21: 1 | L21: 39 | M21: 高知県 | N21: 0.03791108254 | O21: 2 | Q21: 39 | R21: 高知県 | S21: 0.7799315068 | T21: 2 | V21: 6 | W21: 山形県 | X21: 0.04055944056 | Y21: 2 | AA21: 18 | AB21: 福井県 | AC21: 0.149 | AD21: 2 | AF21: 40 | AG21: 福岡県 | AH21: 0.216 | AI21: 2
B22: 39 | C22: 高知県 | D22: 0.07 | E22: 3 | G22: 31 | H22: 鳥取県 | I22: 57 | J22: 1 | L22: 5 | M22: 秋田県 | N22: 0.03800623436 | O22: 3 | Q22: 16 | R22: 富山県 | S22: 0.7521461187 | T22: 3 | V22: 25 | W22: 滋賀県 | X22: 0.0412371134 | Y22: 3 | AA22: 15 | AB22: 新潟県 | AC22: 0.138 | AD22: 3 | AF22: 36 | AG22: 徳島県 | AH22: 0.2142857143 | AI22: 3
B23: 32 | C23: 島根県 | D23: 0.071 | E23: 4 | G23: 44 | H23: 大分県 | I23: 57 | J23: 1 | L23: 18 | M23: 福井県 | N23: 0.04371590525 | O23: 4 | Q23: 5 | R23: 秋田県 | S23: 0.7484730539 | T23: 4 | V23: 23 | W23: 愛知県 | X23: 0.04150943396 | Y23: 4 | AA23: 5 | AB23: 秋田県 | AC23: 0.134 | AD23: 4 | AF23: 30 | AG23: 和歌山県 | AH23: 0.2109375 | AI23: 4
B24: 2 | C24: 青森県 | D24: 0.075 | E24: 5 | G24: 2 | H24: 青森県 | I24: 58 | J24: 5 | L24: 36 | M24: 徳島県 | N24: 0.04450757576 | O24: 5 | Q24: 15 | R24: 新潟県 | S24: 0.7335357918 | T24: 5 | V24: 9 | W24: 栃木県 | X24: 0.04237867396 | Y24: 5 | AA24: 16 | AB24: 富山県 | AC24: 0.132 | AD24: 5 | AF24: 39 | AG24: 高知県 | AH24: 0.2093023256 | AI24: 5
B25: 6 | C25: 山形県 | D25: 0.078 | E25: 6 | G25: 6 | H25: 山形県 | I25: 58 | J25: 5 | L25: 32 | M25: 島根県 | N25: 0.04738864801 | O25: 6 | Q25: 17 | R25: 石川県 | S25: 0.7183969466 | T25: 6 | V25: 5 | W25: 秋田県 | X25: 0.04347826087 | Y25: 6 | AA25: 3 | AB25: 岩手県 | AC25: 0.122 | AD25: 6 | AF25: 34 | AG25: 広島県 | AH25: 0.2030075188 | AI25: 6
B26: 16 | C26: 富山県 | D26: 0.078 | E26: 6 | G26: 18 | H26: 福井県 | I26: 58 | J26: 5 | L26: 6 | M26: 山形県 | N26: 0.0478988765 | O26: 7 | Q26: 2 | R26: 青森県 | S26: 0.7071721311 | T26: 7 | V26: 15 | W26: 新潟県 | X26: 0.0438538206 | Y26: 7 | AA26: 7 | AB26: 福島県 | AC26: 0.12 | AD26: 7 | AF26: 32 | AG26: 島根県 | AH26: 0.2027027027 | AI26: 7
B27: 36 | C27: 徳島県 | D27: 0.078 | E27: 6 | G27: 45 | H27: 宮崎県 | I27: 58 | J27: 5 | L27: 47 | M27: 沖縄県 | N27: 0.04855503197 | O27: 8 | Q27: 32 | R27: 島根県 | S27: 0.6993987342 | T27: 8 | V27: 17 | W27: 石川県 | X27: 0.04494382022 | Y27: 8 | AA27: 41 | AB27: 佐賀県 | AC27: 0.12 | AD27: 7 | AF27: 28 | AG27: 兵庫県 | AH27: 0.2016129032 | AI27: 8
B28: 31 | C28: 鳥取県 | D28: 0.079 | E28: 9 | G28: 46 | H28: 鹿児島県 | I28: 59 | J28: 9 | L28: 43 | M28: 熊本県 | N28: 0.04878121651 | O28: 9 | Q28: 31 | R28: 鳥取県 | S28: 0.6763157895 | T28: 9 | V28: 7 | W28: 福島県 | X28: 0.04513618677 | Y28: 9 | AA28: 31 | AB28: 鳥取県 | AC28: 0.118 | AD28: 9 | AF28: 21 | AG28: 岐阜県 | AH28: 0.1908396947 | AI28: 9
B29: 3 | C29: 岩手県 | D29: 0.08 | E29: 10 | G29: 38 | H29: 愛媛県 | I29: 60 | J29: 10 | L29: 3 | M29: 岩手県 | N29: 0.05240306222 | O29: 10 | Q29: 20 | R29: 長野県 | S29: 0.6719094923 | T29: 10 | V29: 21 | W29: 岐阜県 | X29: 0.0457957958 | Y29: 10 | AA29: 32 | AB29: 島根県 | AC29: 0.116 | AD29: 10 | AF29: 29 | AG29: 奈良県 | AH29: 0.1896551724 | AI29: 10
B30: 15 | C30: 新潟県 | D30: 0.08 | E30: 10 | G30: 41 | H30: 佐賀県 | I30: 60 | J30: 10 | L30: 15 | M30: 新潟県 | N30: 0.0540347057 | O30: 11 | Q30: 19 | R30: 山梨県 | S30: 0.6525284091 | T30: 11 | V30: 45 | W30: 宮崎県 | X30: 0.0462962963 | Y30: 11 | AA30: 21 | AB30: 岐阜県 | AC30: 0.111 | AD30: 11 | AF30: 23 | AG30: 愛知県 | AH30: 0.1893939394 | AI30: 11
B31: 24 | C31: 三重県 | D31: 0.08 | E31: 10 | G31: 37 | H31: 香川県 | I31: 60 | J31: 10 | L31: 16 | M31: 富山県 | N31: 0.05902339705 | O31: 12 | Q31: 3 | R31: 岩手県 | S31: 0.6164634146 | T31: 12 | V31: 32 | W31: 島根県 | X31: 0.04672897196 | Y31: 12 | AA31: 2 | AB31: 青森県 | AC31: 0.11 | AD31: 12 | AF31: 26 | AG31: 京都府 | AH31: 0.1842105263 | AI31: 12
B32: 44 | C32: 大分県 | D32: 0.082 | E32: 13 | G32: 39 | H32: 高知県 | I32: 61 | J32: 13 | L32: 46 | M32: 鹿児島県 | N32: 0.06070863998 | O32: 13 | Q32: 43 | R32: 熊本県 | S32: 0.602713964 | T32: 13 | V32: 3 | W32: 岩手県 | X32: 0.04691358025 | Y32: 13 | AA32: 20 | AB32: 長野県 | AC32: 0.099 | AD32: 13 | AF32: 42 | AG32: 長崎県 | AH32: 0.1793103448 | AI32: 13
B33: 46 | C33: 鹿児島県 | D33: 0.083 | E33: 14 | G33: 16 | H33: 富山県 | I33: 61 | J33: 13 | L33: 17 | M33: 石川県 | N33: 0.06221648351 | O33: 14 | Q33: 6 | R33: 山形県 | S33: 0.5889819005 | T33: 14 | V33: 22 | W33: 静岡県 | X33: 0.04778028593 | Y33: 14 | AA33: 9 | AB33: 栃木県 | AC33: 0.097 | AD33: 14 | AF33: 44 | AG33: 大分県 | AH33: 0.1785714286 | AI33: 14
B34: 18 | C34: 福井県 | D34: 0.084 | E34: 15 | G34: 3 | H34: 岩手県 | I34: 61 | J34: 13 | L34: 7 | M34: 福島県 | N34: 0.06421905165 | O34: 15 | Q34: 36 | R34: 徳島県 | S34: 0.5888815789 | T34: 15 | V34: 38 | W34: 愛媛県 | X34: 0.04784130688 | Y34: 15 | AA34: 22 | AB34: 静岡県 | AC34: 0.097 | AD34: 14 | AF34: 35 | AG34: 山口県 | AH34: 0.1764705882 | AI34: 15
B35: 35 | C35: 山口県 | D35: 0.084 | E35: 15 | G35: 35 | H35: 山口県 | I35: 61 | J35: 13 | L35: 31 | M35: 鳥取県 | N35: 0.06656911412 | O35: 16 | Q35: 41 | R35: 佐賀県 | S35: 0.5861594203 | T35: 16 | V35: 8 | W35: 茨城県 | X35: 0.04896421846 | Y35: 16 | AA35: 8 | AB35: 茨城県 | AC35: 0.094 | AD35: 16 | AF35: 2 | AG35: 青森県 | AH35: 0.1746031746 | AI35: 16
B36: 45 | C36: 宮崎県 | D36: 0.085 | E36: 17 | G36: 43 | H36: 熊本県 | I36: 61 | J36: 13 | L36: 41 | M36: 佐賀県 | N36: 0.07055774071 | O36: 17 | Q36: 24 | R36: 三重県 | S36: 0.5614949749 | T36: 17 | V36: 44 | W36: 大分県 | X36: 0.05248618785 | Y36: 17 | AA36: 4 | AB36: 宮城県 | AC36: 0.091 | AD36: 17 | AF36: 7 | AG36: 福島県 | AH36: 0.170212766 | AI36: 17
B37: 21 | C37: 岐阜県 | D37: 0.086 | E37: 18 | G37: 17 | H37: 石川県 | I37: 61 | J37: 13 | L37: 38 | M37: 愛媛県 | N37: 0.07507347296 | O37: 18 | Q37: 10 | R37: 群馬県 | S37: 0.5610308057 | T37: 18 | V37: 18 | W37: 福井県 | X37: 0.05321100917 | Y37: 18 | AA37: 17 | AB37: 石川県 | AC37: 0.088 | AD37: 18 | AF37: 45 | AG37: 宮崎県 | AH37: 0.1689189189 | AI37: 18
B38: 30 | C38: 和歌山県 | D38: 0.086 | E38: 18 | G38: 20 | H38: 長野県 | I38: 61 | J38: 13 | L38: 26 | M38: 京都府 | N38: 0.0765297332 | O38: 19 | Q38: 47 | R38: 沖縄県 | S38: 0.5417213115 | T38: 19 | V38: 33 | W38: 岡山県 | X38: 0.05324074074 | Y38: 19 | AA38: 25 | AB38: 滋賀県 | AC38: 0.088 | AD38: 18 | AF38: 14 | AG38: 神奈川県 | AH38: 0.1680672269 | AI38: 19
B39: 38 | C39: 愛媛県 | D39: 0.087 | E39: 20 | G39: 19 | H39: 山梨県 | I39: 61 | J39: 13 | L39: 42 | M39: 長崎県 | N39: 0.08008535768 | O39: 20 | Q39: 42 | R39: 長崎県 | S39: 0.5185917722 | T39: 20 | V39: 41 | W39: 佐賀県 | X39: 0.05353728489 | Y39: 20 | AA39: 43 | AB39: 熊本県 | AC39: 0.08 | AD39: 20 | AF39: 19 | AG39: 山梨県 | AH39: 0.1679389313 | AI39: 20
B40: 41 | C40: 佐賀県 | D40: 0.087 | E40: 20 | G40: 1 | H40: 北海道 | I40: 61 | J40: 13 | L40: 10 | M40: 群馬県 | N40: 0.08036379733 | O40: 21 | Q40: 26 | R40: 京都府 | S40: 0.5157589286 | T40: 21 | V40: 28 | W40: 兵庫県 | X40: 0.05357643759 | Y40: 21 | AA40: 19 | AB40: 山梨県 | AC40: 0.079 | AD40: 21 | AF40: 6 | AG40: 山形県 | AH40: 0.1654676259 | AI40: 21
B41: 22 | C41: 静岡県 | D41: 0.088 | E41: 22 | G41: 47 | H41: 沖縄県 | I41: 63 | J41: 22 | L41: 45 | M41: 宮崎県 | N41: 0.08285722337 | O41: 22 | Q41: 30 | R41: 和歌山県 | S41: 0.509744898 | T41: 22 | V41: 24 | W41: 三重県 | X41: 0.05595523581 | Y41: 22 | AA41: 36 | AB41: 徳島県 | AC41: 0.079 | AD41: 21 | AF41: 38 | AG41: 愛媛県 | AH41: 0.1654135338 | AI41: 22
B42: 28 | C42: 兵庫県 | D42: 0.088 | E42: 22 | G42: 36 | H42: 徳島県 | I42: 63 | J42: 22 | L42: 9 | M42: 栃木県 | N42: 0.09204830574 | O42: 23 | Q42: 33 | R42: 岡山県 | S42: 0.5064142539 | T42: 23 | V42: 19 | W42: 山梨県 | X42: 0.05703422053 | Y42: 23 | AA42: 10 | AB42: 群馬県 | AC42: 0.076 | AD42: 23 | AF42: 46 | AG42: 鹿児島県 | AH42: 0.1643835616 | AI42: 23
B43: 7 | C43: 福島県 | D43: 0.09 | E43: 24 | G43: 15 | H43: 新潟県 | I43: 63 | J43: 22 | L43: 37 | M43: 香川県 | N43: 0.09616864791 | O43: 24 | Q43: 45 | R43: 宮崎県 | S43: 0.504330855 | T43: 24 | V43: 20 | W43: 長野県 | X43: 0.05720653789 | Y43: 24 | AA43: 24 | AB43: 三重県 | AC43: 0.075 | AD43: 24 | AF43: 24 | AG43: 三重県 | AH43: 0.1641791045 | AI43: 24
B44: 37 | C44: 香川県 | D44: 0.09 | E44: 24 | G44: 30 | H44: 和歌山県 | I44: 63 | J44: 22 | L44: 4 | M44: 宮城県 | N44: 0.09887596504 | O44: 25 | Q44: 37 | R44: 香川県 | S44: 0.4968493151 | T44: 25 | V44: 43 | W44: 熊本県 | X44: 0.05840071878 | Y44: 25 | AA44: 33 | AB44: 岡山県 | AC44: 0.071 | AD44: 25 | AF44: 37 | AG44: 香川県 | AH44: 0.161971831 | AI44: 25
B45: 33 | C45: 岡山県 | D45: 0.092 | E45: 26 | G45: 7 | H45: 福島県 | I45: 64 | J45: 26 | L45: 21 | M45: 岐阜県 | N45: 0.09928142522 | O45: 26 | Q45: 21 | R45: 岐阜県 | S45: 0.4856277533 | T45: 26 | V45: 35 | W45: 山口県 | X45: 0.05854800937 | Y45: 26 | AA45: 37 | AB45: 香川県 | AC45: 0.066 | AD45: 26 | AF45: 31 | AG45: 鳥取県 | AH45: 0.1608391608 | AI45: 26
B46: 43 | C46: 熊本県 | D46: 0.092 | E46: 26 | G46: 42 | H46: 長崎県 | I46: 65 | J46: 27 | L46: 30 | M46: 和歌山県 | N46: 0.1050147435 | O46: 27 | Q46: 23 | R46: 愛知県 | S46: 0.4748765756 | T46: 27 | V46: 46 | W46: 鹿児島県 | X46: 0.05906735751 | Y46: 27 | AA46: 29 | AB46: 奈良県 | AC46: 0.065 | AD46: 27 | AF46: 11 | AG46: 埼玉県 | AH46: 0.1583333333 | AI46: 27
B47: 17 | C47: 石川県 | D47: 0.093 | E47: 28 | G47: 22 | H47: 静岡県 | I47: 66 | J47: 28 | L47: 28 | M47: 兵庫県 | N47: 0.1053214021 | O47: 28 | Q47: 8 | R47: 茨城県 | S47: 0.4736248013 | T47: 28 | V47: 31 | W47: 鳥取県 | X47: 0.06128133705 | Y47: 28 | AA47: 42 | AB47: 長崎県 | AC47: 0.065 | AD47: 27 | AF47: 27 | AG47: 大阪府 | AH47: 0.1583333333 | AI47: 27
B48: 25 | C48: 滋賀県 | D48: 0.095 | E48: 29 | G48: 4 | H48: 宮城県 | I48: 67 | J48: 29 | L48: 19 | M48: 山梨県 | N48: 0.106324447 | O48: 29 | Q48: 34 | R48: 広島県 | S48: 0.4720386905 | T48: 29 | V48: 12 | W48: 千葉県 | X48: 0.06140540541 | Y48: 29 | AA48: 30 | AB48: 和歌山県 | AC48: 0.062 | AD48: 29 | AF48: 25 | AG48: 滋賀県 | AH48: 0.1582733813 | AI48: 29
B49: 4 | C49: 宮城県 | D49: 0.096 | E49: 30 | G49: 10 | H49: 群馬県 | I49: 67 | J49: 29 | L49: 33 | M49: 岡山県 | N49: 0.1064976954 | O49: 30 | Q49: 46 | R49: 鹿児島県 | S49: 0.4709452736 | T49: 30 | V49: 14 | W49: 神奈川県 | X49: 0.06195403844 | Y49: 30 | AA49: 23 | AB49: 愛知県 | AC49: 0.061 | AD49: 30 | AF49: 43 | AG49: 熊本県 | AH49: 0.1575342466 | AI49: 30
B50: 8 | C50: 茨城県 | D50: 0.096 | E50: 30 | G50: 21 | H50: 岐阜県 | I50: 68 | J50: 31 | L50: 35 | M50: 山口県 | N50: 0.1065225519 | O50: 31 | Q50: 9 | R50: 栃木県 | S50: 0.4708545035 | T50: 31 | V50: 29 | W50: 奈良県 | X50: 0.0626566416 | Y50: 31 | AA50: 44 | AB50: 大分県 | AC50: 0.058 | AD50: 31 | AF50: 16 | AG50: 富山県 | AH50: 0.1567164179 | AI50: 31
B51: 20 | C51: 長野県 | D51: 0.096 | E51: 30 | G51: 9 | H51: 栃木県 | I51: 68 | J51: 31 | L51: 44 | M51: 大分県 | N51: 0.1124141924 | O51: 32 | Q51: 25 | R51: 滋賀県 | S51: 0.4656284153 | T51: 32 | V51: 2 | W51: 青森県 | X51: 0.06332453826 | Y51: 32 | AA51: 38 | AB51: 愛媛県 | AC51: 0.048 | AD51: 32 | AF51: 3 | AG51: 岩手県 | AH51: 0.1555555556 | AI51: 32
B52: 29 | C52: 奈良県 | D52: 0.096 | E52: 30 | G52: 24 | H52: 三重県 | I52: 69 | J52: 33 | L52: 40 | M52: 福岡県 | N52: 0.1136362858 | O52: 33 | Q52: 13 | R52: 東京都 | S52: 0.4535483871 | T52: 33 | V52: 1 | W52: 北海道 | X52: 0.06366128541 | Y52: 33 | AA52: 11 | AB52: 埼玉県 | AC52: 0.047 | AD52: 33 | AF52: 18 | AG52: 福井県 | AH52: 0.1517241379 | AI52: 33
B53: 42 | C53: 長崎県 | D53: 0.096 | E53: 30 | G53: 33 | H53: 岡山県 | I53: 69 | J53: 33 | L53: 25 | M53: 滋賀県 | N53: 0.1136727154 | O53: 34 | Q53: 40 | R53: 福岡県 | S53: 0.4470122418 | T53: 34 | V53: 10 | W53: 群馬県 | X53: 0.06398274623 | Y53: 34 | AA53: 12 | AB53: 千葉県 | AC53: 0.047 | AD53: 33 | AF53: 12 | AG53: 千葉県 | AH53: 0.15 | AI53: 34
B54: 10 | C54: 群馬県 | D54: 0.097 | E54: 35 | G54: 34 | H54: 広島県 | I54: 69 | J54: 33 | L54: 1 | M54: 北海道 | N54: 0.1147112818 | O54: 35 | Q54: 44 | R54: 大分県 | S54: 0.446770428 | T54: 35 | V54: 34 | W54: 広島県 | X54: 0.06437346437 | Y54: 35 | AA54: 35 | AB54: 山口県 | AC54: 0.047 | AD54: 33 | AF54: 17 | AG54: 石川県 | AH54: 0.1407407407 | AI54: 35
B55: 27 | C55: 大阪府 | D55: 0.097 | E55: 35 | G55: 25 | H55: 滋賀県 | I55: 71 | J55: 36 | L55: 20 | M55: 長野県 | N55: 0.1171784847 | O55: 36 | Q55: 38 | R55: 愛媛県 | S55: 0.4245408163 | T55: 36 | V55: 42 | W55: 長崎県 | X55: 0.06467661692 | Y55: 36 | AA55: 28 | AB55: 兵庫県 | AC55: 0.046 | AD55: 36 | AF55: 47 | AG55: 沖縄県 | AH55: 0.1395348837 | AI55: 36
B56: 19 | C56: 山梨県 | D56: 0.098 | E56: 37 | G56: 40 | H56: 福岡県 | I56: 72 | J56: 37 | L56: 29 | M56: 奈良県 | N56: 0.1223686786 | O56: 37 | Q56: 27 | R56: 大阪府 | S56: 0.417249499 | T56: 37 | V56: 37 | W56: 香川県 | X56: 0.06491499227 | Y56: 37 | AA56: 45 | AB56: 宮崎県 | AC56: 0.046 | AD56: 36 | AF56: 1 | AG56: 北海道 | AH56: 0.1391304348 | AI56: 37
B57: 23 | C57: 愛知県 | D57: 0.098 | E57: 37 | G57: 8 | H57: 茨城県 | I57: 76 | J57: 38 | L57: 34 | M57: 広島県 | N57: 0.1230363538 | O57: 38 | Q57: 29 | R57: 奈良県 | S57: 0.4164930556 | T57: 38 | V57: 40 | W57: 福岡県 | X57: 0.06584948689 | Y57: 38 | AA57: 34 | AB57: 広島県 | AC57: 0.045 | AD57: 38 | AF57: 33 | AG57: 岡山県 | AH57: 0.1386861314 | AI57: 38
B58: 34 | C58: 広島県 | D58: 0.098 | E58: 37 | G58: 23 | H58: 愛知県 | I58: 76 | J58: 38 | L58: 27 | M58: 大阪府 | N58: 0.1238450282 | O58: 39 | Q58: 35 | R58: 山口県 | S58: 0.4148976109 | T58: 39 | V58: 36 | W58: 徳島県 | X58: 0.06726457399 | Y58: 39 | AA58: 39 | AB58: 高知県 | AC58: 0.045 | AD58: 38 | AF58: 22 | AG58: 静岡県 | AH58: 0.1313868613 | AI58: 39
B59: 9 | C59: 栃木県 | D59: 0.099 | E59: 40 | G59: 26 | H59: 京都府 | I59: 76 | J59: 38 | L59: 22 | M59: 静岡県 | N59: 0.1240906492 | O59: 40 | Q59: 7 | R59: 福島県 | S59: 0.4102791878 | T59: 40 | V59: 39 | W59: 高知県 | X59: 0.06801007557 | Y59: 40 | AA59: 40 | AB59: 福岡県 | AC59: 0.045 | AD59: 38 | AF59: 4 | AG59: 宮城県 | AH59: 0.1300813008 | AI59: 40
B60: 14 | C60: 神奈川県 | D60: 0.1 | E60: 41 | G60: 28 | H60: 兵庫県 | I60: 79 | J60: 41 | L60: 24 | M60: 三重県 | N60: 0.1246145636 | O60: 41 | Q60: 22 | R60: 静岡県 | S60: 0.4095980512 | T60: 41 | V60: 13 | W60: 東京都 | X60: 0.06812996617 | Y60: 41 | AA60: 47 | AB60: 沖縄県 | AC60: 0.045 | AD60: 38 | AF60: 41 | AG60: 佐賀県 | AH60: 0.1283783784 | AI60: 41
B61: 26 | C61: 京都府 | D61: 0.1 | E61: 41 | G61: 27 | H61: 大阪府 | I61: 83 | J61: 42 | L61: 12 | M61: 千葉県 | N61: 0.1271571883 | O61: 42 | Q61: 12 | R61: 千葉県 | S61: 0.3950035689 | T61: 42 | V61: 27 | W61: 大阪府 | X61: 0.06861951772 | Y61: 42 | AA61: 26 | AB61: 京都府 | AC61: 0.041 | AD61: 42 | AF61: 15 | AG61: 新潟県 | AH61: 0.1268656716 | AI61: 42
B62: 12 | C62: 千葉県 | D62: 0.102 | E62: 43 | G62: 29 | H62: 奈良県 | I62: 90 | J62: 43 | L62: 8 | M62: 茨城県 | N62: 0.1300882724 | O62: 43 | Q62: 28 | R62: 兵庫県 | S62: 0.392519685 | T62: 43 | V62: 11 | W62: 埼玉県 | X62: 0.06891651865 | Y62: 43 | AA62: 1 | AB62: 北海道 | AC62: 0.032 | AD62: 43 | AF62: 5 | AG62: 秋田県 | AH62: 0.1240310078 | AI62: 43
B63: 13 | C63: 東京都 | D63: 0.104 | E63: 44 | G63: 13 | H63: 東京都 | I63: 91 | J63: 44 | L63: 23 | M63: 愛知県 | N63: 0.1434435317 | O63: 44 | Q63: 4 | R63: 宮城県 | S63: 0.3882387476 | T63: 44 | V63: 26 | W63: 京都府 | X63: 0.06964892412 | Y63: 44 | AA63: 14 | AB63: 神奈川県 | AC63: 0.03 | AD63: 44 | AF63: 8 | AG63: 茨城県 | AH63: 0.1212121212 | AI63: 44
B64: 40 | C64: 福岡県 | D64: 0.104 | E64: 44 | G64: 11 | H64: 埼玉県 | I64: 93 | J64: 45 | L64: 11 | M64: 埼玉県 | N64: 0.1439982961 | O64: 45 | Q64: 1 | R64: 北海道 | S64: 0.3779346782 | T64: 45 | V64: 30 | W64: 和歌山県 | X64: 0.07037037037 | Y64: 45 | AA64: 27 | AB64: 大阪府 | AC64: 0.029 | AD64: 45 | AF64: 20 | AG64: 長野県 | AH64: 0.1197183099 | AI64: 45
B65: 11 | C65: 埼玉県 | D65: 0.105 | E65: 46 | G65: 12 | H65: 千葉県 | I65: 97 | J65: 46 | L65: 14 | M65: 神奈川県 | N65: 0.1491639921 | O65: 46 | Q65: 14 | R65: 神奈川県 | S65: 0.3652644116 | T65: 46 | V65: 4 | W65: 宮城県 | X65: 0.07893242476 | Y65: 46 | AA65: 46 | AB65: 鹿児島県 | AC65: 0.026 | AD65: 46 | AF65: 10 | AG65: 群馬県 | AH65: 0.1185185185 | AI65: 46
B66: 1 | C66: 北海道 | D66: 0.106 | E66: 47 | G66: 14 | H66: 神奈川県 | I66: 101 | J66: 47 | L66: 13 | M66: 東京都 | N66: 0.1644062745 | O66: 47 | Q66: 11 | R66: 埼玉県 | S66: 0.3536077844 | T66: 47 | V66: 47 | W66: 沖縄県 | X66: 0.09021113244 | Y66: 47 | AA66: 13 | AB66: 東京都 | AC66: 0.018 | AD66: 47 | AF66: 9 | AG66: 栃木県 | AH66: 0.08759124088 | AI66: 47
B67: 資料等
B68: ○ 合計特殊出生率は、厚生労働省「人口動態統計(確定数）」（令和元年）。
B69: ○ 週60時間以上働く雇用者の割合、女性の有業率と育児をしている女性の有業率の差（25～44歳）、パート・アルバイト割合（25～39歳、男性）は、総務省「就業構造基本調査」（平成29年）
B70: ○ １日当たりの通勤等の時間は、総務省「社会生活基本調査」（平成28年）「行動者平均時間 (分)」の「通勤・通学」である。
B71: ○ ０～５歳人口に対する保育所等定員数の比は、厚生労働省「福祉行政報告例」（令和元年10月分概数）、総務省「人口推計（2019年10月１日現在）」。０～５歳人口は０～４歳人口＋５～９歳人口／５で推計。
B72: ○ 三世代同居率は、総務省「国勢調査」（平成27年）。一般世帯の世帯数に対する三世代同居世帯の世帯数の比率。
B73: ○ （参考）最近の合計特殊出生率の上昇率（最低値→最高値）は、2001年以降の最低値から、その後の最高値への上昇率をみたもの。
B74: ○ 合計特殊出生率との相関、単純平均、標準偏差は都道府県別データから機械的に計算。変動係数は、標準偏差／単純平均で機械的に計算。

Sheet その他（２）
B2: その他関連データ
B4: ２．（１）⑧に用いたデータ（少子化関連指標、働き方等関連指標で示されているものを除く）
D6: 1970年の合計特殊出生率 | E6: 1985年の合計特殊出生率 | F6: 最も低い合計特殊出生率 | G6: 最近では最も高い合計特殊出生率 | H6: 2019年の合計特殊出生率（確定数）
C8: 全国 | D8: 2.13 | E8: 1.76 | F8: 1.26 | G8: 1.45 | H8: 1.36
B9: 1 | C9: 北海道 | D9: 1.93 | E9: 1.61 | F9: 1.15 | G9: 1.31 | H9: 1.24
B10: 2 | C10: 青森県 | D10: 2.25 | E10: 1.8 | F10: 1.26 | G10: 1.48 | H10: 1.38
B11: 3 | C11: 岩手県 | D11: 2.11 | E11: 1.88 | F11: 1.35 | G11: 1.56 | H11: 1.35
B12: 4 | C12: 宮城県 | D12: 2.06 | E12: 1.8 | F12: 1.23 | G12: 1.39 | H12: 1.23
B13: 5 | C13: 秋田県 | D13: 1.88 | E13: 1.69 | F13: 1.29 | G13: 1.45 | H13: 1.33
B14: 6 | C14: 山形県 | D14: 1.98 | E14: 1.87 | F14: 1.39 | G14: 1.62 | H14: 1.4
B15: 7 | C15: 福島県 | D15: 2.16 | E15: 1.98 | F15: 1.41 | G15: 1.65 | H15: 1.47
B16: 8 | C16: 茨城県 | D16: 2.3 | E16: 1.86 | F16: 1.32 | G16: 1.48 | H16: 1.39
B17: 9 | C17: 栃木県 | D17: 2.21 | E17: 1.9 | F17: 1.37 | G17: 1.49 | H17: 1.39
B18: 10 | C18: 群馬県 | D18: 2.16 | E18: 1.85 | F18: 1.35 | G18: 1.51 | H18: 1.4
B19: 11 | C19: 埼玉県 | D19: 2.35 | E19: 1.72 | F19: 1.2 | G19: 1.39 | H19: 1.27
B20: 12 | C20: 千葉県 | D20: 2.28 | E20: 1.75 | F20: 1.2 | G20: 1.38 | H20: 1.28
B21: 13 | C21: 東京都 | D21: 1.96 | E21: 1.44 | F21: 1 | G21: 1.24 | H21: 1.15
B22: 14 | C22: 神奈川県 | D22: 2.23 | E22: 1.68 | F22: 1.19 | G22: 1.39 | H22: 1.28
B23: 15 | C23: 新潟県 | D23: 2.1 | E23: 1.88 | F23: 1.34 | G23: 1.51 | H23: 1.38
B24: 16 | C24: 富山県 | D24: 1.94 | E24: 1.79 | F24: 1.34 | G24: 1.55 | H24: 1.53
B25: 17 | C25: 石川県 | D25: 2.07 | E25: 1.79 | F25: 1.35 | G25: 1.54 | H25: 1.46
B26: 18 | C26: 福井県 | D26: 2.1 | E26: 1.93 | F26: 1.45 | G26: 1.67 | H26: 1.56
B27: 19 | C27: 山梨県 | D27: 2.2 | E27: 1.85 | F27: 1.31 | G27: 1.53 | H27: 1.44
B28: 20 | C28: 長野県 | D28: 2.09 | E28: 1.85 | F28: 1.42 | G28: 1.59 | H28: 1.57
B29: 21 | C29: 岐阜県 | D29: 2.12 | E29: 1.81 | F29: 1.31 | G29: 1.56 | H29: 1.45
B30: 22 | C30: 静岡県 | D30: 2.12 | E30: 1.85 | F30: 1.37 | G30: 1.55 | H30: 1.44
B31: 23 | C31: 愛知県 | D31: 2.19 | E31: 1.82 | F31: 1.32 | G31: 1.57 | H31: 1.45
B32: 24 | C32: 三重県 | D32: 2.04 | E32: 1.8 | F32: 1.34 | G32: 1.56 | H32: 1.47
B33: 25 | C33: 滋賀県 | D33: 2.19 | E33: 1.97 | F33: 1.39 | G33: 1.61 | H33: 1.47
B34: 26 | C34: 京都府 | D34: 2.02 | E34: 1.68 | F34: 1.14 | G34: 1.35 | H34: 1.25
B35: 27 | C35: 大阪府 | D35: 2.17 | E35: 1.69 | F35: 1.2 | G35: 1.39 | H35: 1.31
B36: 28 | C36: 兵庫県 | D36: 2.12 | E36: 1.75 | F36: 1.24 | G36: 1.49 | H36: 1.41
B37: 29 | C37: 奈良県 | D37: 2.08 | E37: 1.69 | F37: 1.16 | G37: 1.38 | H37: 1.31
B38: 30 | C38: 和歌山県 | D38: 2.1 | E38: 1.79 | F38: 1.28 | G38: 1.55 | H38: 1.46
B39: 31 | C39: 鳥取県 | D39: 1.96 | E39: 1.93 | F39: 1.43 | G39: 1.66 | H39: 1.63
B40: 32 | C40: 島根県 | D40: 2.02 | E40: 2.01 | F40: 1.48 | G40: 1.78 | H40: 1.68
B41: 33 | C41: 岡山県 | D41: 2.03 | E41: 1.89 | F41: 1.37 | G41: 1.56 | H41: 1.47
B42: 34 | C42: 広島県 | D42: 2.07 | E42: 1.83 | F42: 1.33 | G42: 1.6 | H42: 1.49
B43: 35 | C43: 山口県 | D43: 1.98 | E43: 1.82 | F43: 1.36 | G43: 1.6 | H43: 1.56
B44: 36 | C44: 徳島県 | D44: 1.97 | E44: 1.8 | F44: 1.26 | G44: 1.53 | H44: 1.46
B45: 37 | C45: 香川県 | D45: 1.97 | E45: 1.81 | F45: 1.42 | G45: 1.65 | H45: 1.59
B46: 38 | C46: 愛媛県 | D46: 2.02 | E46: 1.78 | F46: 1.33 | G46: 1.55 | H46: 1.46
B47: 39 | C47: 高知県 | D47: 1.97 | E47: 1.81 | F47: 1.29 | G47: 1.56 | H47: 1.47
B48: 40 | C48: 福岡県 | D48: 1.95 | E48: 1.75 | F48: 1.25 | G48: 1.52 | H48: 1.44
B49: 41 | C49: 佐賀県 | D49: 2.13 | E49: 1.95 | F49: 1.48 | G49: 1.67 | H49: 1.64
B50: 42 | C50: 長崎県 | D50: 2.33 | E50: 1.87 | F50: 1.45 | G50: 1.71 | H50: 1.66
B51: 43 | C51: 熊本県 | D51: 1.98 | E51: 1.85 | F51: 1.46 | G51: 1.69 | H51: 1.6
B52: 44 | C52: 大分県 | D52: 1.97 | E52: 1.78 | F52: 1.4 | G52: 1.65 | H52: 1.53
B53: 45 | C53: 宮崎県 | D53: 2.15 | E53: 1.9 | F53: 1.48 | G53: 1.73 | H53: 1.73
B54: 46 | C54: 鹿児島県 | D54: 2.21 | E54: 1.93 | F54: 1.46 | G54: 1.7 | H54: 1.63
B55: 47 | C55: 沖縄県 | E55: 2.31 | F55: 1.72 | G55: 1.96 | H55: 1.82

Sheet ３．（２）性比、移動
B5: ■性比（女性人口100人当たりの男性人口）、1995年の10～14歳人口を1としたときの2015年の30～34歳人口
S7: ・・・上位10位を網掛け
S8: ・・・下位10位を網掛け
E9: 女性人口100人当たりの男性人口（H27） | P9: 1995年の10～14歳人口を1としたときの 2015年の30～34歳人口
E10: 25～29歳 | G10: 30～34歳 | I10: 35～39歳 | K10: 40～44歳 | M10: 45～49歳 | P10: 男性 | R10: 女性
F13: （順位） | H13: （順位） | J13: （順位） | L13: （順位） | N13: （順位） | Q13: （順位） | S13: （順位）
F14: （昇順） | H14: （昇順） | J14: （昇順） | L14: （昇順） | N14: （昇順） | Q14: （降順） | S14: （降順）
B15: （合計特殊出生率との相関係数） | E15: -0.2209019623 | G15: -0.2731871243 | I15: -0.2515692204 | K15: -0.2353427487 | M15: -0.3622889137 | P15: -0.5172289697 | R15: -0.497861802
B16: （単純平均） | E16: =AVERAGE(E$20:E$66) -> 103.9451138 | G16: =AVERAGE(G$20:G$66) -> 101.9783746 | I16: =AVERAGE(I$20:I$66) -> 102.2190974 | K16: =AVERAGE(K$20:K$66) -> 101.7054645 | M16: =AVERAGE(M$20:M$66) -> 99.42537026 | P16: =AVERAGE(P$20:P$66) -> 0.8502492265 | R16: =AVERAGE(R$20:R$66) -> 0.8728608556
B17: （標準偏差） | E17: =STDEVP(E$20:E$66) -> 5.75229738 | G17: =STDEVP(G$20:G$66) -> 4.824518613 | I17: =STDEVP(I$20:I$66) -> 4.26260215 | K17: =STDEVP(K$20:K$66) -> 4.286052058 | M17: =STDEVP(M$20:M$66) -> 5.340980536 | P17: =STDEVP(P$20:P$66) -> 0.1996838461 | R17: =STDEVP(R$20:R$66) -> 0.1914132159
B18: （変動係数） | E18: =E17/E16 -> 0.05533975737 | G18: =G17/G16 -> 0.04730923231 | I18: =I17/I16 -> 0.0417006436 | K18: =K17/K16 -> 0.04214180704 | M18: =M17/M16 -> 0.05371848777 | P18: =P17/P16 -> 0.2348533111 | R18: =R17/R16 -> 0.2192940773
B19: 全 国 | E19: 104.1918775 | G19: 102.9116856 | I19: 102.8811824 | K19: 102.6497858 | M19: 101.8038427 | P19: 0.9788886968 | R19: 0.997783304
B20: 1 | C20: 北海道 | E20: 99.23283468 | F20: 12 | G20: 97.58976881 | H20: 13 | I20: 97.72627846 | J20: 9 | K20: 97.74163045 | L20: 12 | M20: 93.51980456 | N20: 8 | P20: 0.8102689815 | Q20: 24 | R20: 0.8677649253 | S20: 18
B21: 2 | C21: 青森県 | E21: 104.1120291 | F21: 21 | G21: 101.4846464 | H21: 22 | I21: 100.9817525 | J21: 17 | K21: 98.40105385 | L21: 16 | M21: 95.15013161 | N21: 14 | P21: 0.6579811471 | Q21: 45 | R21: 0.6821939206 | S21: 44
B22: 3 | C22: 岩手県 | E22: 107.0013507 | F22: 34 | G22: 103.7669309 | H22: 27 | I22: 104.8153017 | J22: 33 | K22: 106.8087408 | L22: 42 | M22: 102.3853731 | N22: 32 | P22: 0.7103542209 | Q22: 38 | R22: 0.7163580179 | S22: 42
B23: 4 | C23: 宮城県 | E23: 104.8659042 | F23: 25 | G23: 100.5009773 | H23: 18 | I23: 102.6583268 | J23: 25 | K23: 103.9787065 | L23: 33 | M23: 103.9691667 | N23: 37 | P23: 0.893155902 | Q23: 13 | R23: 0.9275309109 | S23: 12
B24: 5 | C24: 秋田県 | E24: 104.202264 | F24: 22 | G24: 103.9158811 | H24: 30 | I24: 104.5444967 | J24: 32 | K24: 100.1868981 | L24: 18 | M24: 97.72355553 | N24: 18 | P24: 0.6421658095 | Q24: 46 | R24: 0.6479129091 | S24: 47
B25: 6 | C25: 山形県 | E25: 104.6390246 | F25: 24 | G25: 103.8207845 | H25: 29 | I25: 105.5649345 | J25: 36 | K25: 102.0473923 | L25: 25 | M25: 99.57643904 | N25: 25 | P25: 0.7346714889 | Q25: 33 | R25: 0.7428023631 | S25: 41
B26: 7 | C26: 福島県 | E26: 111.8098598 | F26: 43 | G26: 109.7390184 | H26: 45 | I26: 110.2051638 | J26: 47 | K26: 109.8302967 | L26: 46 | M26: 106.4562132 | N26: 41 | P26: 0.7175681898 | Q26: 37 | R26: 0.6818765827 | S26: 46
B27: 8 | C27: 茨城県 | E27: 115.4499404 | F27: 47 | G27: 109.5056166 | H27: 44 | I27: 109.0144631 | J27: 45 | K27: 108.918148 | L27: 45 | M27: 107.3753152 | N27: 44 | P27: 0.8743020313 | Q27: 16 | R27: 0.8323995292 | S27: 22
B28: 9 | C28: 栃木県 | E28: 113.6277363 | F28: 46 | G28: 112.0830768 | H28: 47 | I28: 109.7649556 | J28: 46 | K28: 109.884187 | L28: 47 | M28: 106.8070496 | N28: 42 | P28: 0.9332391187 | Q28: 10 | R28: 0.8762928014 | S28: 15
B29: 10 | C29: 群馬県 | E29: 113.1542668 | F29: 44 | G29: 108.043064 | H29: 43 | I29: 107.0658037 | J29: 41 | K29: 105.8524034 | L29: 38 | M29: 105.0380695 | N29: 38 | P29: 0.868483928 | Q29: 18 | R29: 0.8460057898 | S29: 20
B30: 11 | C30: 埼玉県 | E30: 106.4939389 | F30: 32 | G30: 105.6400386 | H30: 38 | I30: 107.6584237 | J30: 43 | K30: 108.6868646 | L30: 44 | M30: 107.8626468 | N30: 45 | P30: 1.074924818 | Q30: 4 | R30: 1.071429757 | S30: 5
B31: 12 | C31: 千葉県 | E31: 106.4413993 | F31: 31 | G31: 105.6228611 | H31: 37 | I31: 105.6200052 | J31: 37 | K31: 106.6199249 | L31: 41 | M31: 107.343767 | N31: 43 | P31: 1.0524524 | Q31: 5 | R31: 1.051340471 | S31: 6
B32: 13 | C32: 東京都 | E32: 103.1352261 | F32: 19 | G32: 105.4314377 | H32: 36 | I32: 105.197561 | J32: 34 | K32: 103.4646968 | L32: 30 | M32: 105.7655171 | N32: 40 | P32: 1.825337725 | Q32: 1 | R32: 1.816770334 | S32: 1
B33: 14 | C33: 神奈川県 | E33: 109.6382027 | F33: 39 | G33: 106.9635743 | H33: 40 | I33: 106.631594 | J33: 39 | K33: 105.9118405 | L33: 39 | M33: 108.8475637 | N33: 47 | P33: 1.285681378 | Q33: 2 | R33: 1.259846394 | S33: 2
B34: 15 | C34: 新潟県 | E34: 106.1481715 | F34: 28 | G34: 105.3291697 | H34: 35 | I34: 105.2314608 | J34: 35 | K34: 103.2033622 | L34: 29 | M34: 103.2491433 | N34: 36 | P34: 0.7813259585 | Q34: 28 | R34: 0.7779776162 | S34: 31
B35: 16 | C35: 富山県 | E35: 109.7866501 | F35: 41 | G35: 107.3393444 | H35: 41 | I35: 107.2058869 | J35: 42 | K35: 105.2768015 | L35: 36 | M35: 102.5595815 | N35: 33 | P35: 0.8439428303 | Q35: 21 | R35: 0.8301036062 | S35: 23
B36: 17 | C36: 石川県 | E36: 107.297439 | F36: 36 | G36: 103.2532766 | H36: 26 | I36: 102.9986207 | J36: 26 | K36: 102.6269145 | L36: 27 | M36: 99.79193342 | N36: 26 | P36: 0.8582294352 | Q36: 20 | R36: 0.868200353 | S36: 17
B37: 18 | C37: 福井県 | E37: 106.1919678 | F37: 29 | G37: 101.853754 | H37: 23 | I37: 103.6145596 | J37: 29 | K37: 102.8535078 | L37: 28 | M37: 99.05096948 | N37: 22 | P37: 0.79002066 | Q37: 27 | R37: 0.8076402535 | S37: 29
B38: 19 | C38: 山梨県 | E38: 108.2428784 | F38: 38 | G38: 105.2338094 | H38: 34 | I38: 103.4222907 | J38: 28 | K38: 105.5783972 | L38: 37 | M38: 102.5705574 | N38: 34 | P38: 0.8007753607 | Q38: 26 | R38: 0.7898824911 | S38: 30
B39: 20 | C39: 長野県 | E39: 107.1116741 | F39: 35 | G39: 104.4515753 | H39: 32 | I39: 104.2933754 | J39: 30 | K39: 104.7128819 | L39: 35 | M39: 102.9448051 | N39: 35 | P39: 0.8047434524 | Q39: 25 | R39: 0.8089432058 | S39: 28
B40: 21 | C40: 岐阜県 | E40: 104.0855533 | F40: 20 | G40: 102.6645679 | H40: 25 | I40: 103.3956956 | J40: 27 | K40: 102.0827777 | L40: 26 | M40: 99.47813568 | N40: 23 | P40: 0.810877231 | Q40: 23 | R40: 0.8243511943 | S40: 25
B41: 22 | C41: 静岡県 | E41: 110.895286 | F41: 42 | G41: 107.7738587 | H41: 42 | I41: 106.7392468 | J41: 40 | K41: 106.1613674 | L41: 40 | M41: 105.5725272 | N41: 39 | P41: 0.901799783 | Q41: 12 | R41: 0.8735783225 | S41: 16
B42: 23 | C42: 愛知県 | E42: 113.2802065 | F42: 45 | G42: 110.5151414 | H42: 46 | I42: 108.3287094 | J42: 44 | K42: 107.6172689 | L42: 43 | M42: 108.0824706 | N42: 46 | P42: 1.201080079 | Q42: 3 | R42: 1.141784173 | S42: 3
B43: 24 | C43: 三重県 | E43: 107.4238071 | F43: 37 | G43: 106.3974057 | H43: 39 | I43: 104.514571 | J43: 31 | K43: 103.9730201 | L43: 32 | M43: 102.1366881 | N43: 30 | P43: 0.8776930004 | Q43: 15 | R43: 0.8613367261 | S43: 19
B44: 25 | C44: 滋賀県 | E44: 109.7048524 | F44: 40 | G44: 104.7415382 | H44: 33 | I44: 101.4869734 | J44: 21 | K44: 103.4648314 | L44: 31 | M44: 101.4293674 | N44: 29 | P44: 0.9672391485 | Q44: 7 | R44: 0.9847034502 | S44: 9
B45: 26 | C45: 京都府 | E45: 99.72246973 | F45: 13 | G45: 96.21923542 | H45: 5 | I45: 97.99130157 | J45: 11 | K45: 97.48147856 | L45: 10 | M45: 97.10363113 | N45: 17 | P45: 0.9358314956 | Q45: 8 | R45: 1.038467928 | S45: 7
B46: 27 | C46: 大阪府 | E46: 97.28748113 | F46: 7 | G46: 97.55964152 | H46: 12 | I46: 97.08956127 | J46: 7 | K46: 98.07838241 | L46: 13 | M46: 98.3747921 | N46: 20 | P46: 1.046500154 | Q46: 6 | R46: 1.129875386 | S46: 4
B47: 28 | C47: 兵庫県 | E47: 99.14541397 | F47: 11 | G47: 96.55707999 | H47: 7 | I47: 95.7061285 | J47: 3 | K47: 96.71923237 | L47: 7 | M47: 95.81857268 | N47: 15 | P47: 0.8868606824 | Q47: 14 | R47: 0.9576950771 | S47: 10
B48: 29 | C48: 奈良県 | E48: 93.63374702 | F48: 2 | G48: 93.41055776 | H48: 2 | I48: 93.32085343 | J48: 1 | K48: 93.31701771 | L48: 1 | M48: 90.38806219 | N48: 1 | P48: 0.734540747 | Q48: 34 | R48: 0.8240064295 | S48: 26
B49: 30 | C49: 和歌山県 | E49: 100.2082052 | F49: 15 | G49: 96.2745098 | H49: 6 | I49: 97.84007854 | J49: 10 | K49: 97.08433665 | L49: 9 | M49: 91.3379713 | N49: 4 | P49: 0.6818742794 | Q49: 42 | R49: 0.7433186215 | S49: 39
B50: 31 | C50: 鳥取県 | E50: 103.0250784 | F50: 18 | G50: 101.3289689 | H50: 21 | I50: 102.6562858 | J50: 24 | K50: 101.4579088 | L50: 22 | M50: 98.66041929 | N50: 21 | P50: 0.7442468619 | Q50: 32 | R50: 0.771977747 | S50: 33
B51: 32 | C51: 島根県 | E51: 105.4327938 | F51: 26 | G51: 104.043943 | H51: 31 | I51: 106.1675817 | J51: 38 | K51: 104.3888864 | L51: 34 | M51: 102.3286101 | N51: 31 | P51: 0.7041737473 | Q51: 41 | R51: 0.709098178 | S51: 43
B52: 33 | C52: 岡山県 | E52: 100.2380654 | F52: 16 | G52: 99.72198419 | H52: 16 | I52: 101.4066322 | J52: 19 | K52: 101.2951786 | L52: 20 | M52: 98.12893664 | N52: 19 | P52: 0.8587812369 | Q52: 19 | R52: 0.9017226753 | S52: 14
B53: 34 | C53: 広島県 | E53: 106.3774003 | F53: 30 | G53: 103.7776495 | H53: 28 | I53: 101.7999668 | J53: 23 | K53: 101.5419027 | L53: 23 | M53: 100.204444 | N53: 27 | P53: 0.9096862716 | Q53: 11 | R53: 0.9241825254 | S53: 13
B54: 35 | C54: 山口県 | E54: 106.785996 | F54: 33 | G54: 101.0629411 | H54: 20 | I54: 100.5247857 | J54: 16 | K54: 101.3094917 | L54: 21 | M54: 94.01401075 | N54: 10 | P54: 0.7342221835 | Q54: 35 | R54: 0.7533943349 | S54: 36
B55: 36 | C55: 徳島県 | E55: 102.2432612 | F55: 17 | G55: 100.9779196 | H55: 19 | I55: 100.3934192 | J55: 15 | K55: 96.60103941 | L55: 6 | M55: 95.83080786 | N55: 16 | P55: 0.7478968196 | Q55: 31 | R55: 0.7711262978 | S55: 34
B56: 37 | C56: 香川県 | E56: 105.8653757 | F56: 27 | G56: 102.3350454 | H56: 24 | I56: 101.6199908 | J56: 22 | K56: 101.7517964 | L56: 24 | M56: 100.6269802 | N56: 28 | P56: 0.8176623767 | Q56: 22 | R56: 0.841538688 | S56: 21
B57: 38 | C57: 愛媛県 | E57: 99.85190061 | F57: 14 | G57: 99.239405 | H57: 15 | I57: 99.73319232 | J57: 14 | K57: 98.3952841 | L57: 15 | M57: 94.09659694 | N57: 11 | P57: 0.7317861154 | Q57: 36 | R57: 0.773923208 | S57: 32
B58: 39 | C58: 高知県 | E58: 98.87826027 | F58: 8 | G58: 98.71744828 | H58: 14 | I58: 101.4524191 | J58: 20 | K58: 98.24610025 | L58: 14 | M58: 94.33936151 | N58: 12 | P58: 0.7089152154 | Q58: 39 | R58: 0.7434699112 | S58: 38
B59: 40 | C59: 福岡県 | E59: 93.85537326 | F59: 3 | G59: 94.81275689 | H59: 4 | I59: 96.04786846 | J59: 4 | K59: 96.91432619 | L59: 8 | M59: 93.72444043 | N59: 9 | P59: 0.9357861539 | Q59: 9 | R59: 1.03264928 | S59: 8
B60: 41 | C60: 佐賀県 | E60: 95.73857919 | F60: 5 | G60: 96.71135407 | H60: 9 | I60: 98.42677233 | J60: 13 | K60: 97.64619345 | L60: 11 | M60: 93.17052 | N60: 7 | P60: 0.7069863953 | Q60: 40 | R60: 0.77102263 | S60: 35
B61: 42 | C61: 長崎県 | E61: 98.96555187 | F61: 9 | G61: 96.90788729 | H61: 11 | I61: 96.89740483 | J61: 6 | K61: 96.35083227 | L61: 5 | M61: 92.04342894 | N61: 5 | P61: 0.6233610111 | Q61: 47 | R61: 0.6818850934 | S61: 45
B62: 43 | C62: 熊本県 | E62: 96.06072473 | F62: 6 | G62: 96.89015519 | H62: 10 | I62: 97.11867525 | J62: 8 | K62: 96.33921653 | L62: 4 | M62: 90.90074205 | N62: 2 | P62: 0.7580202463 | Q62: 30 | R62: 0.8252717167 | S62: 24
B63: 44 | C63: 大分県 | E63: 104.2375812 | F63: 23 | G63: 100.3393591 | H63: 17 | I63: 101.0167868 | J63: 18 | K63: 98.45398835 | L63: 17 | M63: 94.64527076 | N63: 13 | P63: 0.7735132553 | Q63: 29 | R63: 0.8114128749 | S63: 27
B64: 45 | C64: 宮崎県 | E64: 94.41450269 | F64: 4 | G64: 93.96875419 | H64: 3 | I64: 96.14859247 | J64: 5 | K64: 95.63452618 | L64: 3 | M64: 92.05653623 | N64: 6 | P64: 0.6748354758 | Q64: 43 | R64: 0.743168937 | S64: 40
B65: 46 | C65: 鹿児島県 | E65: 90.41813682 | F65: 1 | G65: 91.82222028 | H65: 1 | I65: 94.19552757 | J65: 2 | K65: 94.3725369 | L65: 2 | M65: 91.00406504 | N65: 3 | P65: 0.6589627195 | Q65: 44 | R65: 0.7510224562 | S65: 37
B66: 47 | C66: 沖縄県 | E66: 99.06198819 | F66: 10 | G66: 96.6436712 | H66: 8 | I66: 98.0633019 | J66: 12 | K66: 100.8932593 | L66: 19 | M66: 99.50741026 | N66: 24 | P66: 0.8689561255 | Q66: 17 | R66: 0.9352041197 | S66: 11
B67: 資料等
B68: ○ 総務省「国勢調査」（平成7年および平成27年）より作成。ただし、「国勢調査」（平成7年）については既知の男女別・年齢別人口の分布に応じて年齢不詳人口を按分し、
B69: 「国勢調査」（平成27年）については総務省が年齢・国籍不詳を按分した値を用いた。
B70: ○ 合計特殊出生率との相関係数、単純平均、標準偏差は都道府県別データから機械的に計算。変動係数は、標準偏差／単純平均で機械的に計算。

Sheet ３．（２）転入超過数（移動者男女計）
B5: ■転入超過数 移動者：男女計
E7: 【実数値】 | S7: ・・・上位10位を網掛け
S8: ・・・下位10位を網掛け
E9: 転入超過数 男女計（R1）
E10: 総数
G11: 15～19歳 | I11: 20～24歳 | K11: 25～29歳 | M11: 30～34歳 | O11: 35～39歳 | Q11: 40～44歳 | S11: 45～49歳
G12: （再掲） | I12: （再掲） | K12: （再掲） | M12: （再掲） | O12: （再掲） | Q12: （再掲） | S12: （再掲）
F13: （順位） | H13: （順位） | J13: （順位） | L13: （順位） | N13: （順位） | P13: （順位） | R13: （順位） | T13: （順位）
E14: （人） | F14: （降順） | G14: （人） | H14: （降順） | I14: （人） | J14: （降順） | K14: （人） | L14: （降順） | M14: （人） | N14: （降順） | O14: （人） | P14: （降順） | Q14: （人） | R14: （降順） | S14: （人） | T14: （降順）
B15: （合計特殊出生率との相関係数） | E15: -0.4181673548 | G15: -0.5424948627 | I15: -0.3913643798 | K15: -0.3102491195 | M15: -0.2351788156 | O15: -0.1026257042 | Q15: -0.1741840578 | S15: -0.3184105921
B16: （単純平均） | E16: 0 | G16: 0 | I16: 0 | K16: 0 | M16: 0 | O16: 0 | Q16: 0 | S16: 0
B17: （標準偏差） | E17: 14175.18051 | G17: 2586.531877 | I17: 9033.49076 | K17: 3394.151309 | M17: 893.8257482 | O17: 381.3574857 | Q17: 265.38162 | S17: 246.8075312
B18: （変動係数） | E18: … | G18: … | I18: … | K18: … | M18: … | O18: … | Q18: … | S18: …
B19: 全 国 | E19: 0 | G19: 0 | I19: 0 | K19: 0 | M19: 0 | O19: 0 | Q19: 0 | S19: 0
B20: 1 | C20: 北海道 | E20: -5568 | F20: 36 | G20: -573 | H20: 26 | I20: -3504 | J20: 42 | K20: -1300 | L20: 39 | M20: -106 | N20: 21 | O20: -118 | P20: 37 | Q20: -63 | R20: 28 | S20: -142 | T20: 39
B21: 2 | C21: 青森県 | E21: -6044 | F21: 39 | G21: -1874 | H21: 45 | I21: -2877 | J21: 39 | K21: -457 | L21: 20 | M21: -159 | N21: 24 | O21: -103 | P21: 33 | Q21: -211 | R21: 43 | S21: -108 | T21: 33
B22: 3 | C22: 岩手県 | E22: -4526 | F22: 35 | G22: -1584 | H22: 40 | I22: -2293 | J22: 30 | K22: -339 | L22: 16 | M22: -113 | N22: 22 | O22: -64 | P22: 25 | Q22: 107 | R22: 8 | S22: -31 | T22: 23
B23: 4 | C23: 宮城県 | E23: -1983 | F23: 14 | G23: 386 | H23: 10 | I23: -796 | J23: 7 | K23: -814 | L23: 33 | M23: -227 | N23: 31 | O23: -47 | P23: 19 | Q23: -192 | R23: 42 | S23: -178 | T23: 43
B24: 5 | C24: 秋田県 | E24: -3898 | F24: 28 | G24: -1504 | H24: 38 | I24: -1882 | J24: 23 | K24: -228 | L24: 13 | M24: -57 | N24: 18 | O24: -36 | P24: 17 | Q24: -29 | R24: 23 | S24: -105 | T24: 32
B25: 6 | C25: 山形県 | E25: -4151 | F25: 32 | G25: -848 | H25: 30 | I25: -2140 | J25: 29 | K25: -446 | L25: 19 | M25: -36 | N25: 16 | O25: -105 | P25: 34 | Q25: -97 | R25: 33 | S25: -128 | T25: 37
B26: 7 | C26: 福島県 | E26: -6785 | F26: 43 | G26: -1380 | H26: 37 | I26: -3792 | J26: 44 | K26: -789 | L26: 32 | M26: -163 | N26: 25 | O26: -106 | P26: 35 | Q26: 28 | R26: 13 | S26: -176 | T26: 42
B27: 8 | C27: 茨城県 | E27: -7495 | F27: 46 | G27: -893 | H27: 32 | I27: -4925 | J27: 47 | K27: -2319 | L27: 47 | M27: -868 | N27: 45 | O27: -175 | P27: 39 | Q27: 39 | R27: 12 | S27: -112 | T27: 34
B28: 9 | C28: 栃木県 | E28: -5775 | F28: 37 | G28: -969 | H28: 33 | I28: -2476 | J28: 34 | K28: -1121 | L28: 38 | M28: -685 | N28: 44 | O28: -312 | P28: 41 | Q28: -187 | R28: 41 | S28: -30 | T28: 22
B29: 10 | C29: 群馬県 | E29: -2208 | F29: 15 | G29: 40 | H29: 14 | I29: -2352 | J29: 32 | K29: -701 | L29: 29 | M29: -158 | N29: 23 | O29: -102 | P29: 31 | Q29: -106 | R29: 35 | S29: -102 | T29: 31
B30: 11 | C30: 埼玉県 | E30: 26654 | F30: 3 | G30: 3529 | H30: 3 | I30: 7042 | J30: 3 | K30: 3294 | L30: 3 | M30: 3698 | N30: 1 | O30: 1665 | P30: 1 | Q30: 1086 | R30: 1 | S30: 456 | T30: 3
B31: 12 | C31: 千葉県 | E31: 9538 | F31: 4 | G31: 874 | H31: 8 | I31: 904 | J31: 6 | K31: -1528 | L31: 40 | M31: 652 | N31: 5 | O31: 931 | P31: 2 | Q31: 829 | R31: 2 | S31: 846 | T31: 2
B32: 13 | C32: 東京都 | E32: 82982 | F32: 1 | G32: 14369 | H32: 1 | I32: 57197 | J32: 1 | K32: 21470 | L32: 1 | M32: 3642 | N32: 2 | O32: 155 | P32: 8 | Q32: 78 | R32: 9 | S32: 969 | T32: 1
B33: 14 | C33: 神奈川県 | E33: 29609 | F33: 2 | G33: 5713 | H33: 2 | I33: 14821 | J33: 2 | K33: 4848 | L33: 2 | M33: 1588 | N33: 3 | O33: 842 | P33: 3 | Q33: 313 | R33: 4 | S33: 370 | T33: 5
B34: 15 | C34: 新潟県 | E34: -7225 | F34: 44 | G34: -1142 | H34: 35 | I34: -4074 | J34: 45 | K34: -895 | L34: 35 | M34: -422 | N34: 37 | O34: -71 | P34: 26 | Q34: -138 | R34: 38 | S34: -232 | T34: 45
B35: 16 | C35: 富山県 | E35: -2326 | F35: 16 | G35: -402 | H35: 20 | I35: -1253 | J35: 14 | K35: -769 | L35: 31 | M35: -85 | N35: 20 | O35: -60 | P35: 24 | Q35: 9 | R35: 18 | S35: -18 | T35: 17
B36: 17 | C36: 石川県 | E36: -2602 | F36: 18 | G36: 591 | H36: 9 | I36: -1886 | J36: 24 | K36: -600 | L36: 25 | M36: -175 | N36: 26 | O36: -42 | P36: 18 | Q36: -66 | R36: 30 | S36: -159 | T36: 40
B37: 18 | C37: 福井県 | E37: -3336 | F37: 23 | G37: -421 | H37: 21 | I37: -1415 | J37: 20 | K37: -478 | L37: 21 | M37: -263 | N37: 33 | O37: -156 | P37: 38 | Q37: -84 | R37: 32 | S37: -117 | T37: 35
B38: 19 | C38: 山梨県 | E38: -2933 | F38: 21 | G38: 110 | H38: 13 | I38: -2296 | J38: 31 | K38: -594 | L38: 24 | M38: -204 | N38: 29 | O38: -72 | P38: 27 | Q38: -11 | R38: 21 | S38: -5 | T38: 14
B39: 20 | C39: 長野県 | E39: -4306 | F39: 34 | G39: -1601 | H39: 42 | I39: -3092 | J39: 40 | K39: -607 | L39: 26 | M39: -32 | N39: 15 | O39: 244 | P39: 7 | Q39: 128 | R39: 6 | S39: 23 | T39: 9
B40: 21 | C40: 岐阜県 | E40: -6765 | F40: 42 | G40: -1181 | H40: 36 | I40: -3321 | J40: 41 | K40: -1765 | L40: 44 | M40: -608 | N40: 42 | O40: -16 | P40: 14 | Q40: -42 | R40: 25 | S40: -84 | T40: 29
B41: 22 | C41: 静岡県 | E41: -6129 | F41: 40 | G41: -1592 | H41: 41 | I41: -2591 | J41: 37 | K41: -815 | L41: 34 | M41: -500 | N41: 40 | O41: -336 | P41: 42 | Q41: -275 | R41: 44 | S41: -128 | T41: 37
B42: 23 | C42: 愛知県 | E42: -1931 | F42: 12 | G42: 1346 | H42: 7 | I42: 3058 | J42: 5 | K42: -121 | L42: 9 | M42: -1327 | N42: 47 | O42: -681 | P42: 47 | Q42: -514 | R42: 47 | S42: -409 | T42: 47
B43: 24 | C43: 三重県 | E43: -6321 | F43: 41 | G43: -720 | H43: 29 | I43: -2006 | J43: 26 | K43: -940 | L43: 37 | M43: -499 | N43: 39 | O43: -412 | P43: 44 | Q43: -386 | R43: 46 | S43: -316 | T43: 46
B44: 25 | C44: 滋賀県 | E44: 1079 | F44: 7 | G44: 263 | H44: 11 | I44: -1012 | J44: 10 | K44: 76 | L44: 6 | M44: 487 | N44: 6 | O44: 430 | P44: 5 | Q44: 112 | R44: 7 | S44: 12 | T44: 10
B45: 26 | C45: 京都府 | E45: -2688 | F45: 20 | G45: 2125 | H45: 5 | I45: -805 | J45: 8 | K45: -2276 | L45: 46 | M45: -968 | N45: 46 | O45: -481 | P45: 45 | Q45: -132 | R45: 37 | S45: 97 | T45: 8
B46: 27 | C46: 大阪府 | E46: 8064 | F46: 5 | G46: 2344 | H46: 4 | I46: 6783 | J46: 4 | K46: 2327 | L46: 4 | M46: -567 | N46: 41 | O46: -583 | P46: 46 | Q46: -63 | R46: 28 | S46: 130 | T46: 7
B47: 28 | C47: 兵庫県 | E47: -6038 | F47: 38 | G47: 30 | H47: 15 | I47: -4336 | J47: 46 | K47: -1927 | L47: 45 | M47: -327 | N47: 35 | O47: -47 | P47: 19 | Q47: -106 | R47: 35 | S47: -180 | T47: 44
B48: 29 | C48: 奈良県 | E48: -3435 | F48: 26 | G48: 179 | H48: 12 | I48: -2485 | J48: 35 | K48: -1546 | L48: 41 | M48: -342 | N48: 36 | O48: -21 | P48: 15 | Q48: 16 | R48: 15 | S48: -15 | T48: 16
B49: 30 | C49: 和歌山県 | E49: -3376 | F49: 25 | G49: -595 | H49: 27 | I49: -1673 | J49: 21 | K49: -567 | L49: 23 | M49: -181 | N49: 27 | O49: -51 | P49: 21 | Q49: -39 | R49: 24 | S49: -29 | T49: 21
B50: 31 | C50: 鳥取県 | E50: -1516 | F50: 9 | G50: -381 | H50: 18 | I50: -977 | J50: 9 | K50: -98 | L50: 8 | M50: 35 | N50: 10 | O50: -51 | P50: 21 | Q50: -102 | R50: 34 | S50: 5 | T50: 13
B51: 32 | C51: 島根県 | E51: -1971 | F51: 13 | G51: -313 | H51: 17 | I51: -1132 | J51: 13 | K51: -163 | L51: 11 | M51: -2 | N51: 14 | O51: -100 | P51: 29 | Q51: -57 | R51: 27 | S51: -101 | T51: 30
B52: 33 | C52: 岡山県 | E52: -4014 | F52: 30 | G52: -511 | H52: 24 | I52: -2059 | J52: 27 | K52: -929 | L52: 36 | M52: -496 | N52: 38 | O52: -56 | P52: 23 | Q52: 18 | R52: 14 | S52: 10 | T52: 11
B53: 34 | C53: 広島県 | E53: -8018 | F53: 47 | G53: -502 | H53: 23 | I53: -3767 | J53: 43 | K53: -1588 | L53: 43 | M53: -625 | N53: 43 | O53: -351 | P53: 43 | Q53: -291 | R53: 45 | S53: -54 | T53: 26
B54: 35 | C54: 山口県 | E54: -3659 | F54: 27 | G54: -384 | H54: 19 | I54: -2352 | J54: 32 | K54: -386 | L54: 17 | M54: -47 | N54: 17 | O54: -32 | P54: 16 | Q54: -56 | R54: 26 | S54: -26 | T54: 19
B55: 36 | C55: 徳島県 | E55: -3357 | F55: 24 | G55: -568 | H55: 25 | I55: -1404 | J55: 18 | K55: -565 | L55: 22 | M55: -257 | N55: 32 | O55: -102 | P55: 31 | Q55: -175 | R55: 40 | S55: -120 | T55: 36
B56: 37 | C56: 香川県 | E56: -1677 | F56: 10 | G56: -309 | H56: 16 | I56: -1066 | J56: 11 | K56: -276 | L56: 14 | M56: 5 | N56: 13 | O56: -100 | P56: 29 | Q56: 52 | R56: 10 | S56: -50 | T56: 25
B57: 38 | C57: 愛媛県 | E57: -4305 | F57: 33 | G57: -1103 | H57: 34 | I57: -2538 | J57: 36 | K57: -668 | L57: 28 | M57: -200 | N57: 28 | O57: -4 | P57: 13 | Q57: 4 | R57: 19 | S57: -63 | T57: 27
B58: 39 | C58: 高知県 | E58: -2458 | F58: 17 | G58: -635 | H58: 28 | I58: -1411 | J58: 19 | K58: -160 | L58: 10 | M58: 23 | N58: 12 | O58: -78 | P58: 28 | Q58: -77 | R58: 31 | S58: -27 | T58: 20
B59: 40 | C59: 福岡県 | E59: 2925 | F59: 6 | G59: 1428 | H59: 6 | I59: -1370 | J59: 17 | K59: -1578 | L59: 42 | M59: 34 | N59: 11 | O59: 393 | P59: 6 | Q59: 637 | R59: 3 | S59: 389 | T59: 4
B60: 41 | C60: 佐賀県 | E60: -1754 | F60: 11 | G60: -874 | H60: 31 | I60: -1347 | J60: 15 | K60: -409 | L60: 18 | M60: 53 | N60: 9 | O60: 144 | P60: 9 | Q60: 10 | R60: 16 | S60: -11 | T60: 15
B61: 42 | C61: 長崎県 | E61: -7309 | F61: 45 | G61: -2160 | H61: 46 | I61: -2850 | J61: 38 | K61: -742 | L61: 30 | M61: -283 | N61: 34 | O61: -248 | P61: 40 | Q61: -158 | R61: 39 | S61: -160 | T61: 41
B62: 43 | C62: 熊本県 | E62: -3900 | F62: 29 | G62: -1603 | H62: 43 | I62: -2060 | J62: 28 | K62: -643 | L62: 27 | M62: -69 | N62: 19 | O62: 24 | P62: 12 | Q62: -20 | R62: 22 | S62: -67 | T62: 28
B63: 44 | C63: 大分県 | E63: -3024 | F63: 22 | G63: -457 | H63: 22 | I63: -1892 | J63: 25 | K63: -320 | L63: 15 | M63: -224 | N63: 30 | O63: -109 | P63: 36 | Q63: 50 | R63: 11 | S63: -19 | T63: 18
B64: 45 | C64: 宮崎県 | E64: -2635 | F64: 19 | G64: -1646 | H64: 44 | I64: -1352 | J64: 16 | K64: -95 | L64: 7 | M64: 79 | N64: 8 | O64: 29 | P64: 11 | Q64: 10 | R64: 16 | S64: -42 | T64: 24
B65: 46 | C65: 鹿児島県 | E65: -4105 | F65: 31 | G65: -3079 | H65: 47 | I65: -1847 | J65: 22 | K65: -175 | L65: 12 | M65: 171 | N65: 7 | O65: 81 | P65: 10 | Q65: -5 | R65: 20 | S65: 6 | T65: 12
B66: 47 | C66: 沖縄県 | E66: 695 | F66: 8 | G66: -1523 | H66: 39 | I66: -1099 | J66: 12 | K66: 722 | L66: 5 | M66: 808 | N66: 4 | O66: 490 | P66: 4 | Q66: 156 | R66: 5 | S66: 231 | T66: 6
B67: 資料等
B68: ○ 総務省「住民基本台帳人口移動報告」（令和元年）の移動者（外国人含む）の値。
B69: ○ 合計特殊出生率との相関係数、単純平均、標準偏差は都道府県別データから機械的に計算。変動係数は、標準偏差／単純平均で機械的に計算。

Sheet ３．（２）転入超過数（日本人移動者男女計）
B5: ■転入超過数 日本人移動者：男女計
E7: 【実数値】 | S7: ・・・上位10位を網掛け
S8: ・・・下位10位を網掛け
E9: 転入超過数 男女計（R1）
E10: 総数
G11: 15～19歳 | I11: 20～24歳 | K11: 25～29歳 | M11: 30～34歳 | O11: 35～39歳 | Q11: 40～44歳 | S11: 45～49歳
G12: （再掲） | I12: （再掲） | K12: （再掲） | M12: （再掲） | O12: （再掲） | Q12: （再掲） | S12: （再掲）
F13: （順位） | H13: （順位） | J13: （順位） | L13: （順位） | N13: （順位） | P13: （順位） | R13: （順位） | T13: （順位）
E14: （人） | F14: （降順） | G14: （人） | H14: （降順） | I14: （人） | J14: （降順） | K14: （人） | L14: （降順） | M14: （人） | N14: （降順） | O14: （人） | P14: （降順） | Q14: （人） | R14: （降順） | S14: （人） | T14: （降順）
B15: （合計特殊出生率との相関係数） | E15: -0.4126724002 | G15: -0.5468159066 | I15: -0.383861871 | K15: -0.3024283204 | M15: -0.2378028168 | O15: -0.05032699924 | Q15: -0.148661818 | S15: -0.2991291936
B16: （単純平均） | E16: 0 | G16: 0 | I16: 0 | K16: 0 | M16: 0 | O16: 0 | Q16: 0 | S16: 0
B17: （標準偏差） | E17: 14338.04953 | G17: 2631.534962 | I17: 9375.173644 | K17: 3451.205025 | M17: 718.6969888 | O17: 326.5351957 | Q17: 248.5007813 | S17: 235.3291945
B18: （変動係数） | E18: … | G18: … | I18: … | K18: … | M18: … | O18: … | Q18: … | S18: …
B19: 全 国 | E19: 0 | G19: 0 | I19: 0 | K19: 0 | M19: 0 | O19: 0 | Q19: 0 | S19: 0
B20: 1 | C20: 北海道 | E20: -7730 | F20: 46 | G20: -901 | H20: 31 | I20: -4476 | J20: 45 | K20: -1659 | L20: 45 | M20: -376 | N20: 40 | O20: -227 | P20: 40 | Q20: -163 | R20: 39 | S20: -152 | T20: 39
B21: 2 | C21: 青森県 | E21: -6347 | F21: 41 | G21: -1985 | H21: 45 | I21: -2976 | J21: 38 | K21: -498 | L21: 23 | M21: -213 | N21: 28 | O21: -111 | P21: 38 | Q21: -215 | R21: 43 | S21: -111 | T21: 34
B22: 3 | C22: 岩手県 | E22: -4668 | F22: 36 | G22: -1585 | H22: 39 | I22: -2367 | J22: 32 | K22: -386 | L22: 16 | M22: -111 | N22: 20 | O22: -78 | P22: 25 | Q22: 79 | R22: 9 | S22: -39 | T22: 23
B23: 4 | C23: 宮城県 | E23: -3083 | F23: 20 | G23: 128 | H23: 10 | I23: -1456 | J23: 17 | K23: -942 | L23: 36 | M23: -266 | N23: 35 | O23: -90 | P23: 30 | Q23: -190 | R23: 42 | S23: -171 | T23: 43
B24: 5 | C24: 秋田県 | E24: -4194 | F24: 29 | G24: -1582 | H24: 38 | I24: -2023 | J24: 26 | K24: -293 | L24: 13 | M24: -62 | N24: 19 | O24: -47 | P24: 18 | Q24: -32 | R24: 25 | S24: -111 | T24: 34
B25: 6 | C25: 山形県 | E25: -4543 | F25: 35 | G25: -951 | H25: 32 | I25: -2362 | J25: 31 | K25: -525 | L25: 25 | M25: -46 | N25: 18 | O25: -98 | P25: 33 | Q25: -99 | R25: 33 | S25: -116 | T25: 36
B26: 7 | C26: 福島県 | E26: -6925 | F26: 42 | G26: -1528 | H26: 37 | I26: -3992 | J26: 44 | K26: -736 | L26: 34 | M26: -114 | N26: 21 | O26: -96 | P26: 31 | Q26: 49 | R26: 11 | S26: -153 | T26: 40
B27: 8 | C27: 茨城県 | E27: -4505 | F27: 34 | G27: -735 | H27: 28 | I27: -3892 | J27: 43 | K27: -1285 | L27: 42 | M27: -366 | N27: 38 | O27: 31 | P27: 11 | Q27: 98 | R27: 7 | S27: -53 | T27: 25
B28: 9 | C28: 栃木県 | E28: -3518 | F28: 25 | G28: -798 | H28: 30 | I28: -1820 | J28: 21 | K28: -443 | L28: 21 | M28: -247 | N28: 33 | O28: -98 | P28: 33 | Q28: -173 | R28: 41 | S28: -16 | T28: 16
B29: 10 | C29: 群馬県 | E29: -4084 | F29: 28 | G29: -335 | H29: 17 | I29: -3414 | J29: 42 | K29: -1066 | L29: 38 | M29: -237 | N29: 30 | O29: -102 | P29: 36 | Q29: -106 | R29: 35 | S29: -86 | T29: 32
B30: 11 | C30: 埼玉県 | E30: 17963 | F30: 3 | G30: 2659 | H30: 5 | I30: 4066 | J30: 6 | K30: 759 | L30: 4 | M30: 2343 | N30: 2 | O30: 1313 | P30: 1 | Q30: 899 | R30: 1 | S30: 295 | T30: 4
B31: 12 | C31: 千葉県 | E31: 17187 | F31: 4 | G31: 2979 | H31: 3 | I31: 4364 | J31: 5 | K31: 34 | L31: 7 | M31: 1417 | N31: 3 | O31: 1074 | P31: 2 | Q31: 823 | R31: 2 | S31: 803 | T31: 2
B32: 13 | C32: 東京都 | E32: 86575 | F32: 1 | G32: 14440 | H32: 1 | I32: 59936 | J32: 1 | K32: 22601 | L32: 1 | M32: 3316 | N32: 1 | O32: -99 | P32: 35 | Q32: 93 | R32: 8 | S32: 997 | T32: 1
B33: 14 | C33: 神奈川県 | E33: 23851 | F33: 2 | G33: 5293 | H33: 2 | I33: 12619 | J33: 2 | K33: 2798 | L33: 2 | M33: 893 | N33: 4 | O33: 615 | P33: 3 | Q33: 330 | R33: 4 | S33: 291 | T33: 5
B34: 15 | C34: 新潟県 | E34: -8162 | F34: 47 | G34: -1318 | H34: 36 | I34: -4603 | J34: 46 | K34: -1079 | L34: 39 | M34: -465 | N34: 44 | O34: -104 | P34: 37 | Q34: -135 | R34: 37 | S34: -232 | T34: 46
B35: 16 | C35: 富山県 | E35: -2006 | F35: 12 | G35: -424 | H35: 21 | I35: -1177 | J35: 10 | K35: -573 | L35: 28 | M35: 22 | N35: 10 | O35: -53 | P35: 20 | Q35: 3 | R35: 19 | S35: -24 | T35: 19
B36: 17 | C36: 石川県 | E36: -2556 | F36: 16 | G36: 562 | H36: 9 | I36: -2000 | J36: 25 | K36: -500 | L36: 24 | M36: -130 | N36: 23 | O36: -58 | P36: 21 | Q36: -64 | R36: 29 | S36: -149 | T36: 38
B37: 18 | C37: 福井県 | E37: -2832 | F37: 18 | G37: -376 | H37: 18 | I37: -1437 | J37: 15 | K37: -415 | L37: 18 | M37: -138 | N37: 24 | O37: -84 | P37: 27 | Q37: -27 | R37: 23 | S37: -67 | T37: 31
B38: 19 | C38: 山梨県 | E38: -2353 | F38: 15 | G38: 102 | H38: 12 | I38: -2088 | J38: 28 | K38: -425 | L38: 20 | M38: -129 | N38: 22 | O38: -43 | P38: 17 | Q38: 34 | R38: 14 | S38: 19 | T38: 10
B39: 20 | C39: 長野県 | E39: -4327 | F39: 32 | G39: -1629 | H39: 41 | I39: -3179 | J39: 40 | K39: -655 | L39: 30 | M39: -18 | N39: 14 | O39: 230 | P39: 7 | Q39: 102 | R39: 6 | S39: 55 | T39: 9
B40: 21 | C40: 岐阜県 | E40: -6233 | F40: 39 | G40: -1090 | H40: 34 | I40: -3249 | J40: 41 | K40: -1541 | L40: 43 | M40: -420 | N40: 41 | O40: 27 | P40: 13 | Q40: -57 | R40: 28 | S40: -123 | T40: 37
B41: 22 | C41: 静岡県 | E41: -7398 | F41: 45 | G41: -1862 | H41: 44 | I41: -3088 | J41: 39 | K41: -1210 | L41: 41 | M41: -535 | N41: 45 | O41: -369 | P41: 44 | Q41: -325 | R41: 45 | S41: -162 | T41: 42
B42: 23 | C42: 愛知県 | E42: 969 | F42: 7 | G42: 1831 | H42: 8 | I42: 4372 | J42: 4 | K42: 308 | L42: 6 | M42: -950 | N42: 46 | O42: -535 | P42: 47 | Q42: -405 | R42: 47 | S42: -384 | T42: 47
B43: 24 | C43: 三重県 | E43: -6251 | F43: 40 | G43: -772 | H43: 29 | I43: -2060 | J43: 27 | K43: -1142 | L43: 40 | M43: -464 | N43: 43 | O43: -298 | P43: 43 | Q43: -352 | R43: 46 | S43: -224 | T43: 45
B44: 25 | C44: 滋賀県 | E44: -411 | F44: 9 | G44: 49 | H44: 14 | I44: -1501 | J44: 19 | K44: -197 | L44: 10 | M44: 299 | N44: 7 | O44: 271 | P44: 6 | Q44: 29 | R44: 16 | S44: 8 | T44: 11
B45: 26 | C45: 京都府 | E45: -3443 | F45: 24 | G45: 2013 | H45: 6 | I45: -1424 | J45: 14 | K45: -2280 | L45: 47 | M45: -1019 | N45: 47 | O45: -480 | P45: 46 | Q45: -130 | R45: 36 | S45: 83 | T45: 8
B46: 27 | C46: 大阪府 | E46: 10693 | F46: 5 | G46: 2853 | H46: 4 | I46: 8129 | J46: 3 | K46: 2740 | L46: 3 | M46: -252 | N46: 34 | O46: -398 | P46: 45 | Q46: -48 | R46: 27 | S46: 139 | T46: 7
B47: 28 | C47: 兵庫県 | E47: -7260 | F47: 44 | G47: -136 | H47: 15 | I47: -5053 | J47: 47 | K47: -2045 | L47: 46 | M47: -429 | N47: 42 | O47: -113 | P47: 39 | Q47: -102 | R47: 34 | S47: -206 | T47: 44
B48: 29 | C48: 奈良県 | E48: -3847 | F48: 26 | G48: 110 | H48: 11 | I48: -2631 | J48: 35 | K48: -1630 | L48: 44 | M48: -374 | N48: 39 | O48: -77 | P48: 23 | Q48: -1 | R48: 21 | S48: -20 | T48: 18
B49: 30 | C49: 和歌山県 | E49: -3868 | F49: 27 | G49: -667 | H49: 27 | I49: -1857 | J49: 23 | K49: -707 | L49: 32 | M49: -241 | N49: 31 | O49: -79 | P49: 26 | Q49: -40 | R49: 26 | S49: -30 | T49: 20
B50: 31 | C50: 鳥取県 | E50: -1735 | F50: 11 | G50: -434 | H50: 22 | I50: -1058 | J50: 8 | K50: -130 | L50: 8 | M50: -24 | N50: 16 | O50: -52 | P50: 19 | Q50: -92 | R50: 32 | S50: 5 | T50: 13
B51: 32 | C51: 島根県 | E51: -1624 | F51: 10 | G51: -385 | H51: 19 | I51: -1227 | J51: 12 | K51: -151 | L51: 9 | M51: 85 | N51: 8 | O51: -4 | P51: 15 | Q51: 39 | R51: 12 | S51: -40 | T51: 24
B52: 33 | C52: 岡山県 | E52: -3266 | F52: 22 | G52: -285 | H52: 16 | I52: -1843 | J52: 22 | K52: -839 | L52: 35 | M52: -332 | N52: 36 | O52: -4 | P52: 15 | Q52: 32 | R52: 15 | S52: 2 | T52: 14
B53: 34 | C53: 広島県 | E53: -5318 | F53: 38 | G53: 73 | H53: 13 | I53: -2587 | J53: 34 | K53: -978 | L53: 37 | M53: -357 | N53: 37 | O53: -238 | P53: 42 | Q53: -291 | R53: 44 | S53: -62 | T53: 29
B54: 35 | C54: 山口県 | E54: -4430 | F54: 33 | G54: -518 | H54: 24 | I54: -2633 | J54: 36 | K54: -532 | L54: 27 | M54: -191 | N54: 26 | O54: -96 | P54: 31 | Q54: -79 | R54: 30 | S54: -33 | T54: 21
B55: 36 | C55: 徳島県 | E55: -2963 | F55: 19 | G55: -466 | H55: 23 | I55: -1294 | J55: 13 | K55: -525 | L55: 25 | M55: -183 | N55: 25 | O55: -73 | P55: 22 | Q55: -160 | R55: 38 | S55: -110 | T55: 33
B56: 37 | C56: 香川県 | E56: -2013 | F56: 13 | G56: -411 | H56: 20 | I56: -1222 | J56: 11 | K56: -328 | L56: 14 | M56: -19 | N56: 15 | O56: -86 | P56: 28 | Q56: 36 | R56: 13 | S56: -59 | T56: 28
B57: 38 | C57: 愛媛県 | E57: -4234 | F57: 30 | G57: -1132 | H57: 35 | I57: -2497 | J57: 33 | K57: -609 | L57: 29 | M57: -194 | N57: 27 | O57: 4 | P57: 14 | Q57: 11 | R57: 18 | S57: -57 | T57: 27
B58: 39 | C58: 高知県 | E58: -2583 | F58: 17 | G58: -544 | H58: 26 | I58: -1476 | J58: 18 | K58: -231 | L58: 11 | M58: -33 | N58: 17 | O58: -87 | P58: 29 | Q58: -80 | R58: 31 | S58: -33 | T58: 21
B59: 40 | C59: 福岡県 | E59: 6324 | F59: 6 | G59: 1938 | H59: 7 | I59: -94 | J59: 7 | K59: -367 | L59: 15 | M59: 330 | N59: 6 | O59: 458 | P59: 4 | Q59: 682 | R59: 3 | S59: 412 | T59: 3
B60: 41 | C60: 佐賀県 | E60: -2042 | F60: 14 | G60: -998 | H60: 33 | I60: -1443 | J60: 16 | K60: -451 | L60: 22 | M60: 10 | N60: 11 | O60: 140 | P60: 8 | Q60: 1 | R60: 20 | S60: 6 | T60: 12
B61: 42 | C61: 長崎県 | E61: -7020 | F61: 43 | G61: -2168 | H61: 46 | I61: -2664 | J61: 37 | K61: -672 | L61: 31 | M61: -245 | N61: 32 | O61: -234 | P61: 41 | Q61: -167 | R61: 40 | S61: -161 | T61: 41
B62: 43 | C62: 熊本県 | E62: -4254 | F62: 31 | G62: -1758 | H62: 42 | I62: -2312 | J62: 30 | K62: -707 | L62: 32 | M62: -10 | N62: 13 | O62: 42 | P62: 10 | Q62: -21 | R62: 22 | S62: -64 | T62: 30
B63: 44 | C63: 大分県 | E63: -3094 | F63: 21 | G63: -518 | H63: 24 | I63: -1898 | J63: 24 | K63: -405 | L63: 17 | M63: -227 | N63: 29 | O63: -77 | P63: 23 | Q63: 77 | R63: 10 | S63: -18 | T63: 17
B64: 45 | C64: 宮崎県 | E64: -3440 | F64: 23 | G64: -1816 | H64: 43 | I64: -1756 | J64: 20 | K64: -256 | L64: 12 | M64: -1 | N64: 12 | O64: 29 | P64: 12 | Q64: 21 | R64: 17 | S64: -56 | T64: 26
B65: 46 | C65: 鹿児島県 | E65: -5168 | F65: 37 | G65: -3326 | H65: 47 | I65: -2242 | J65: 29 | K65: -415 | L65: 18 | M65: 35 | N65: 9 | O65: 49 | P65: 9 | Q65: -28 | R65: 24 | S65: -1 | T65: 15
B66: 47 | C66: 沖縄県 | E66: 166 | F66: 8 | G66: -1597 | H66: 40 | I66: -1115 | J66: 9 | K66: 588 | L66: 5 | M66: 668 | N66: 5 | O66: 405 | P66: 5 | Q66: 144 | R66: 5 | S66: 208 | T66: 6
B67: 資料等
B68: ○ 総務省「住民基本台帳人口移動報告」（令和元年）の日本人移動者の値。
B69: ○ 合計特殊出生率との相関係数、単純平均、標準偏差は都道府県別データから機械的に計算。変動係数は、標準偏差／単純平均で機械的に計算。

Sheet ３．（２）転入超過数（移動者男性）
B5: ■転入超過数 移動者：男性
E7: 【実数値】 | S7: ・・・上位10位を網掛け
S8: ・・・下位10位を網掛け
E9: 転入超過数 男性（R1）
E10: 総数
G11: 15～19歳 | I11: 20～24歳 | K11: 25～29歳 | M11: 30～34歳 | O11: 35～39歳 | Q11: 40～44歳 | S11: 45～49歳
G12: （再掲） | I12: （再掲） | K12: （再掲） | M12: （再掲） | O12: （再掲） | Q12: （再掲） | S12: （再掲）
F13: （順位） | H13: （順位） | J13: （順位） | L13: （順位） | N13: （順位） | P13: （順位） | R13: （順位） | T13: （順位）
E14: （人） | F14: （降順） | G14: （人） | H14: （降順） | I14: （人） | J14: （降順） | K14: （人） | L14: （降順） | M14: （人） | N14: （降順） | O14: （人） | P14: （降順） | Q14: （人） | R14: （降順） | S14: （人） | T14: （降順）
B15: （合計特殊出生率との相関係数） | E15: -0.4085846789 | G15: -0.556481783 | I15: -0.3748050777 | K15: -0.3067451806 | M15: -0.2332798077 | O15: -0.0160526206 | Q15: 0.01142170622 | S15: -0.02016692808
B16: （単純平均） | E16: 0 | G16: 0 | I16: 0 | K16: 0 | M16: 0 | O16: 0 | Q16: 0 | S16: 0
B17: （標準偏差） | E17: 6206.902335 | G17: 1329.483502 | I17: 4066.701722 | K17: 1757.269884 | M17: 479.6279587 | O17: 222.6368095 | Q17: 184.7703578 | S17: 114.807517
B18: （変動係数） | E18: … | G18: … | I18: … | K18: … | M18: … | O18: … | Q18: … | S18: …
B19: 全 国 | E19: 0 | G19: 0 | I19: 0 | K19: 0 | M19: 0 | O19: 0 | Q19: 0 | S19: 0
B20: 1 | C20: 北海道 | E20: -1940 | F20: 36 | G20: -206 | H20: 22 | I20: -1764 | J20: 44 | K20: -606 | L20: 38 | M20: 147 | N20: 8 | O20: 15 | P20: 15 | Q20: -31 | R20: 29 | S20: 6 | T20: 21
B21: 2 | C21: 青森県 | E21: -2674 | F21: 39 | G21: -975 | H21: 43 | I21: -1104 | J21: 35 | K21: -350 | L21: 27 | M21: -105 | N21: 30 | O21: -87 | P21: 37 | Q21: -100 | R21: 41 | S21: -29 | T21: 29
B22: 3 | C22: 岩手県 | E22: -1434 | F22: 24 | G22: -769 | H22: 38 | I22: -783 | J22: 27 | K22: -79 | L22: 12 | M22: 15 | N22: 13 | O22: 28 | P22: 12 | Q22: 90 | R22: 7 | S22: 11 | T22: 19
B23: 4 | C23: 宮城県 | E23: -1258 | F23: 19 | G23: 208 | H23: 11 | I23: -517 | J23: 11 | K23: -447 | L23: 34 | M23: -124 | N23: 33 | O23: -2 | P23: 18 | Q23: -46 | R23: 33 | S23: -124 | T23: 45
B24: 5 | C24: 秋田県 | E24: -1610 | F24: 29 | G24: -807 | H24: 39 | I24: -820 | J24: 28 | K24: -49 | L24: 8 | M24: -24 | N24: 19 | O24: -10 | P24: 19 | Q24: 6 | R24: 19 | S24: -6 | T24: 25
B25: 6 | C25: 山形県 | E25: -1724 | F25: 31 | G25: -371 | H25: 28 | I25: -882 | J25: 31 | K25: -235 | L25: 21 | M25: 8 | N25: 14 | O25: -56 | P25: 31 | Q25: -28 | R25: 27 | S25: -54 | T25: 34
B26: 7 | C26: 福島県 | E26: -2680 | F26: 40 | G26: -663 | H26: 37 | I26: -1382 | J26: 40 | K26: -377 | L26: 29 | M26: -70 | N26: 25 | O26: -66 | P26: 32 | Q26: -20 | R26: 24 | S26: -96 | T26: 42
B27: 8 | C27: 茨城県 | E27: -3636 | F27: 47 | G27: -427 | H27: 31 | I27: -2247 | J27: 46 | K27: -1326 | L27: 46 | M27: -633 | N27: 46 | O27: -76 | P27: 34 | Q27: 68 | R27: 8 | S27: -29 | T27: 29
B28: 9 | C28: 栃木県 | E28: -2774 | F28: 42 | G28: -503 | H28: 32 | I28: -702 | J28: 23 | K28: -757 | L28: 41 | M28: -539 | N28: 45 | O28: -231 | P28: 43 | Q28: -133 | R28: 43 | S28: 12 | T28: 17
B29: 10 | C29: 群馬県 | E29: -75 | F29: 9 | G29: 180 | H29: 12 | I29: -510 | J29: 9 | K29: -229 | L29: 20 | M29: -53 | N29: 24 | O29: -91 | P29: 38 | Q29: -88 | R29: 38 | S29: -72 | T29: 39
B30: 11 | C30: 埼玉県 | E30: 13474 | F30: 3 | G30: 1933 | H30: 3 | I30: 3426 | J30: 3 | K30: 2127 | L30: 3 | M30: 2025 | N30: 1 | O30: 999 | P30: 1 | Q30: 634 | R30: 1 | S30: 125 | T30: 5
B31: 12 | C31: 千葉県 | E31: 2511 | F31: 4 | G31: 397 | H31: 9 | I31: -683 | J31: 21 | K31: -1447 | L31: 47 | M31: 164 | N31: 6 | O31: 330 | P31: 4 | Q31: 547 | R31: 2 | S31: 542 | T31: 1
B32: 13 | C32: 東京都 | E32: 35340 | F32: 1 | G32: 6898 | H32: 1 | I32: 25512 | J32: 1 | K32: 10915 | L32: 1 | M32: 1759 | N32: 2 | O32: -266 | P32: 45 | Q32: -586 | R32: 47 | S32: 135 | T32: 4
B33: 14 | C33: 神奈川県 | E33: 14689 | F33: 2 | G33: 3449 | H33: 2 | I33: 7741 | J33: 2 | K33: 2856 | L33: 2 | M33: 874 | N33: 3 | O33: 459 | P33: 2 | Q33: 235 | R33: 4 | S33: -121 | T33: 44
B34: 15 | C34: 新潟県 | E34: -3160 | F34: 43 | G34: -604 | H34: 34 | I34: -1686 | J34: 43 | K34: -486 | L34: 36 | M34: -208 | N34: 38 | O34: -23 | P34: 23 | Q34: -81 | R34: 36 | S34: -102 | T34: 43
B35: 16 | C35: 富山県 | E35: -1054 | F35: 17 | G35: -208 | H35: 23 | I35: -467 | J35: 7 | K35: -421 | L35: 32 | M35: -50 | N35: 21 | O35: -55 | P35: 30 | Q35: 11 | R35: 18 | S35: -2 | T35: 22
B36: 17 | C36: 石川県 | E36: -991 | F36: 15 | G36: 537 | H36: 8 | I36: -873 | J36: 30 | K36: -339 | L36: 26 | M36: -93 | N36: 28 | O36: -1 | P36: 17 | Q36: -24 | R36: 26 | S36: -64 | T36: 37
B37: 18 | C37: 福井県 | E37: -1416 | F37: 23 | G37: -214 | H37: 24 | I37: -637 | J37: 19 | K37: -164 | L37: 16 | M37: -107 | N37: 31 | O37: -67 | P37: 33 | Q37: -16 | R37: 23 | S37: -55 | T37: 35
B38: 19 | C38: 山梨県 | E38: -1461 | F38: 25 | G38: 34 | H38: 13 | I38: -1087 | J38: 34 | K38: -391 | L38: 31 | M38: -122 | N38: 32 | O38: -82 | P38: 36 | Q38: 14 | R38: 17 | S38: 18 | T38: 16
B39: 20 | C39: 長野県 | E39: -1745 | F39: 32 | G39: -870 | H39: 42 | I39: -1230 | J39: 37 | K39: -225 | L39: 19 | M39: -50 | N39: 21 | O39: 103 | P39: 8 | Q39: 53 | R39: 9 | S39: 22 | T39: 13
B40: 21 | C40: 岐阜県 | E40: -2704 | F40: 41 | G40: -596 | H40: 33 | I40: -1392 | J40: 41 | K40: -656 | L40: 39 | M40: -332 | N40: 42 | O40: 20 | P40: 13 | Q40: -4 | R40: 21 | S40: -46 | T40: 31
B41: 22 | C41: 静岡県 | E41: -2400 | F41: 37 | G41: -808 | H41: 40 | I41: -657 | J41: 20 | K41: -485 | L41: 35 | M41: -378 | N41: 43 | O41: -156 | P41: 40 | Q41: -132 | R41: 42 | S41: -58 | T41: 36
B42: 23 | C42: 愛知県 | E42: -1301 | F42: 20 | G42: 1352 | H42: 4 | I42: 2168 | J42: 4 | K42: -499 | L42: 37 | M42: -987 | N42: 47 | O42: -495 | P42: 47 | Q42: -320 | R42: 46 | S42: -301 | T42: 47
B43: 24 | C43: 三重県 | E43: -2507 | F43: 38 | G43: -348 | H43: 27 | I43: -575 | J43: 16 | K43: -304 | L43: 25 | M43: -286 | N43: 41 | O43: -201 | P43: 42 | Q43: -199 | R43: 45 | S43: -142 | T43: 46
B44: 25 | C44: 滋賀県 | E44: 874 | F44: 7 | G44: 241 | H44: 10 | I44: -366 | J44: 6 | K44: 178 | L44: 6 | M44: 248 | N44: 5 | O44: 179 | P44: 6 | Q44: 97 | R44: 6 | S44: 8 | T44: 20
B45: 26 | C45: 京都府 | E45: -1341 | F45: 21 | G45: 1127 | H45: 5 | I45: -602 | J45: 17 | K45: -1025 | L45: 44 | M45: -395 | N45: 44 | O45: -260 | P45: 44 | Q45: -98 | R45: 40 | S45: 39 | T45: 10
B46: 27 | C46: 大阪府 | E46: 1245 | F46: 5 | G46: 910 | H46: 6 | I46: 1168 | J46: 5 | K46: 978 | L46: 4 | M46: -256 | N46: 39 | O46: -320 | P46: 46 | Q46: -68 | R46: 35 | S46: -81 | T46: 41
B47: 28 | C47: 兵庫県 | E47: -3485 | F47: 45 | G47: -74 | H47: 16 | I47: -2661 | J47: 47 | K47: -1142 | L47: 45 | M47: -52 | N47: 23 | O47: 177 | P47: 7 | Q47: -36 | R47: 31 | S47: -74 | T47: 40
B48: 29 | C48: 奈良県 | E48: -1777 | F48: 33 | G48: -36 | H48: 15 | I48: -1353 | J48: 39 | K48: -666 | L48: 40 | M48: -133 | N48: 35 | O48: -26 | P48: 24 | Q48: 24 | R48: 14 | S48: -5 | T48: 24
B49: 30 | C49: 和歌山県 | E49: -1488 | F49: 26 | G49: -390 | H49: 29 | I49: -702 | J49: 23 | K49: -272 | L49: 23 | M49: -79 | N49: 26 | O49: -52 | P49: 29 | Q49: -12 | R49: 22 | S49: 24 | T49: 12
B50: 31 | C50: 鳥取県 | E50: -758 | F50: 11 | G50: -194 | H50: 21 | I50: -510 | J50: 9 | K50: -74 | L50: 11 | M50: 6 | N50: 15 | O50: -17 | P50: 22 | Q50: -63 | R50: 34 | S50: 19 | T50: 15
B51: 32 | C51: 島根県 | E51: -841 | F51: 12 | G51: -114 | H51: 17 | I51: -534 | J51: 12 | K51: -69 | L51: 10 | M51: -36 | N51: 20 | O51: -42 | P51: 27 | Q51: -28 | R51: 27 | S51: -53 | T51: 33
B52: 33 | C52: 岡山県 | E52: -1488 | F52: 26 | G52: -219 | H52: 25 | I52: -898 | J52: 32 | K52: -440 | L52: 33 | M52: -207 | N52: 37 | O52: 15 | P52: 15 | Q52: 42 | R52: 10 | S52: 68 | T52: 8
B53: 34 | C53: 広島県 | E53: -3501 | F53: 46 | G53: 15 | H53: 14 | I53: -1772 | J53: 45 | K53: -826 | L53: 42 | M53: -266 | N53: 40 | O53: -165 | P53: 41 | Q53: -159 | R53: 44 | S53: 73 | T53: 7
B54: 35 | C54: 山口県 | E54: -1166 | F54: 18 | G54: -130 | H54: 18 | I54: -966 | J54: 33 | K54: -179 | L54: 17 | M54: 5 | N54: 16 | O54: 49 | P54: 10 | Q54: -21 | R54: 25 | S54: 52 | T54: 9
B55: 36 | C55: 徳島県 | E55: -1682 | F55: 30 | G55: -273 | H55: 26 | I55: -686 | J55: 22 | K55: -352 | L55: 28 | M55: -124 | N55: 33 | O55: -79 | P55: 35 | Q55: -89 | R55: 39 | S55: -67 | T55: 38
B56: 37 | C56: 香川県 | E56: -719 | F56: 10 | G56: -163 | H56: 19 | I56: -483 | J56: 8 | K56: -149 | L56: 14 | M56: -17 | N56: 17 | O56: -39 | P56: 26 | Q56: 17 | R56: 16 | S56: -9 | T56: 27
B57: 38 | C57: 愛媛県 | E57: -1904 | F57: 35 | G57: -661 | H57: 36 | I57: -1163 | J57: 36 | K57: -302 | L57: 24 | M57: -88 | N57: 27 | O57: -15 | P57: 21 | Q57: 29 | R57: 13 | S57: -3 | T57: 23
B58: 39 | C58: 高知県 | E58: -1028 | F58: 16 | G58: -397 | H58: 30 | I58: -611 | J58: 18 | K58: -64 | L58: 9 | M58: 34 | N58: 11 | O58: -28 | P58: 25 | Q58: -44 | R58: 32 | S58: 30 | T58: 11
B59: 40 | C59: 福岡県 | E59: 1077 | F59: 6 | G59: 606 | H59: 7 | I59: -1419 | J59: 42 | K59: -886 | L59: 43 | M59: 135 | N59: 9 | O59: 360 | P59: 3 | Q59: 418 | R59: 3 | S59: 144 | T59: 3
B60: 41 | C60: 佐賀県 | E60: -930 | F60: 13 | G60: -647 | H60: 35 | I60: -553 | J60: 14 | K60: -187 | L60: 18 | M60: 55 | N60: 10 | O60: 32 | P60: 11 | Q60: 30 | R60: 12 | S60: 12 | T60: 17
B61: 42 | C61: 長崎県 | E61: -3479 | F61: 44 | G61: -1244 | H61: 46 | I61: -1329 | J61: 38 | K61: -377 | L61: 29 | M61: -141 | N61: 36 | O61: -104 | P61: 39 | Q61: -87 | R61: 37 | S61: -49 | T61: 32
B62: 43 | C62: 熊本県 | E62: -1822 | F62: 34 | G62: -1014 | H62: 44 | I62: -870 | J62: 29 | K62: -260 | L62: 22 | M62: -20 | N62: 18 | O62: -14 | P62: 20 | Q62: -33 | R62: 30 | S62: -13 | T62: 28
B63: 44 | C63: 大分県 | E63: -939 | F63: 14 | G63: -184 | H63: 20 | I63: -726 | J63: 26 | K63: -89 | L63: 13 | M63: -96 | N63: 29 | O63: -46 | P63: 28 | Q63: 39 | R63: 11 | S63: 22 | T63: 13
B64: 45 | C64: 宮崎県 | E64: -1368 | F64: 22 | G64: -1060 | H64: 45 | I64: -543 | J64: 13 | K64: -150 | L64: 15 | M64: 34 | N64: 11 | O64: 19 | P64: 14 | Q64: 21 | R64: 15 | S64: -8 | T64: 26
B65: 46 | C65: 鹿児島県 | E65: -1527 | F65: 28 | G65: -1898 | H65: 47 | I65: -716 | J65: 25 | K65: 13 | L65: 7 | M65: 164 | N65: 6 | O65: 80 | P65: 9 | Q65: 6 | R65: 19 | S65: 111 | T65: 6
B66: 47 | C66: 沖縄県 | E66: 577 | F66: 8 | G66: -820 | H66: 41 | I66: -554 | J66: 15 | K66: 314 | L66: 5 | M66: 398 | N66: 4 | O66: 307 | P66: 5 | Q66: 165 | R66: 5 | S66: 190 | T66: 2
B67: 資料等
B68: ○ 総務省「住民基本台帳人口移動報告」（令和元年）の移動者（外国人含む）の値。
B69: ○ 合計特殊出生率との相関係数、単純平均、標準偏差は都道府県別データから機械的に計算。変動係数は、標準偏差／単純平均で機械的に計算。

Sheet ３．（２）転入超過数（日本人移動者男性）
B5: ■転入超過数 日本人移動者：男性
E7: 【実数値】 | S7: ・・・上位10位を網掛け
S8: ・・・下位10位を網掛け
E9: 転入超過数 男性（R1）
E10: 総数
G11: 15～19歳 | I11: 20～24歳 | K11: 25～29歳 | M11: 30～34歳 | O11: 35～39歳 | Q11: 40～44歳 | S11: 45～49歳
G12: （再掲） | I12: （再掲） | K12: （再掲） | M12: （再掲） | O12: （再掲） | Q12: （再掲） | S12: （再掲）
F13: （順位） | H13: （順位） | J13: （順位） | L13: （順位） | N13: （順位） | P13: （順位） | R13: （順位） | T13: （順位）
E14: （人） | F14: （降順） | G14: （人） | H14: （降順） | I14: （人） | J14: （降順） | K14: （人） | L14: （降順） | M14: （人） | N14: （降順） | O14: （人） | P14: （降順） | Q14: （人） | R14: （降順） | S14: （人） | T14: （降順）
B15: （合計特殊出生率との相関係数） | E15: -0.4050445151 | G15: -0.5641634863 | I15: -0.3673326401 | K15: -0.2995188787 | M15: -0.2406314907 | O15: 0.05530320085 | Q15: 0.0611183852 | S15: 0.02652948977
B16: （単純平均） | E16: 0 | G16: 0 | I16: 0 | K16: 0 | M16: 0 | O16: 0 | Q16: 0 | S16: 0
B17: （標準偏差） | E17: 6257.251654 | G17: 1338.813273 | I17: 4279.85642 | K17: 1801.36153 | M17: 350.961597 | O17: 181.5661183 | Q17: 172.197561 | S17: 110.8497162
B18: （変動係数） | E18: … | G18: … | I18: … | K18: … | M18: … | O18: … | Q18: … | S18: …
B19: 全 国 | E19: 0 | G19: 0 | I19: 0 | K19: 0 | M19: 0 | O19: 0 | Q19: 0 | S19: 0
B20: 1 | C20: 北海道 | E20: -2912 | F20: 43 | G20: -337 | H20: 28 | I20: -2217 | J20: 46 | K20: -786 | L20: 45 | M20: -1 | N20: 16 | O20: -26 | P20: 24 | Q20: -45 | R20: 32 | S20: 8 | T20: 20
B21: 2 | C21: 青森県 | E21: -2811 | F21: 41 | G21: -999 | H21: 43 | I21: -1180 | J21: 37 | K21: -371 | L21: 34 | M21: -127 | N21: 34 | O21: -93 | P21: 39 | Q21: -98 | R21: 41 | S21: -25 | T21: 32
B22: 3 | C22: 岩手県 | E22: -1611 | F22: 24 | G22: -791 | H22: 38 | I22: -856 | J22: 24 | K22: -115 | L22: 12 | M22: 0 | N22: 15 | O22: 8 | P22: 16 | Q22: 71 | R22: 6 | S22: 5 | T22: 22
B23: 4 | C23: 宮城県 | E23: -1797 | F23: 31 | G23: 109 | H23: 11 | I23: -848 | J23: 23 | K23: -493 | L23: 36 | M23: -155 | N23: 38 | O23: -37 | P23: 29 | Q23: -50 | R23: 34 | S23: -122 | T23: 45
B24: 5 | C24: 秋田県 | E24: -1796 | F24: 30 | G24: -833 | H24: 39 | I24: -916 | J24: 28 | K24: -99 | L24: 10 | M24: -22 | N24: 18 | O24: -19 | P24: 21 | Q24: 0 | R24: 22 | S24: -10 | T24: 27
B25: 6 | C25: 山形県 | E25: -1912 | F25: 34 | G25: -426 | H25: 32 | I25: -987 | J25: 30 | K25: -287 | L25: 26 | M25: 19 | N25: 11 | O25: -41 | P25: 32 | Q25: -30 | R25: 28 | S25: -47 | T25: 33
B26: 7 | C26: 福島県 | E26: -2909 | F26: 42 | G26: -750 | H26: 37 | I26: -1568 | J26: 44 | K26: -394 | L26: 35 | M26: -76 | N26: 28 | O26: -61 | P26: 35 | Q26: -6 | R26: 24 | S26: -85 | T26: 42
B27: 8 | C27: 茨城県 | E27: -1710 | F27: 27 | G27: -328 | H27: 26 | I27: -1562 | J27: 43 | K27: -619 | L27: 42 | M27: -249 | N27: 44 | O27: 36 | P27: 11 | Q27: 61 | R27: 7 | S27: -17 | T27: 29
B28: 9 | C28: 栃木県 | E28: -1171 | F28: 17 | G28: -418 | H28: 31 | I28: -317 | J28: 7 | K28: -229 | L28: 19 | M28: -183 | N28: 40 | O28: -35 | P28: 27 | Q28: -109 | R28: 42 | S28: 27 | T28: 14
B29: 10 | C29: 群馬県 | E29: -1650 | F29: 25 | G29: -75 | H29: 15 | I29: -1414 | J29: 40 | K29: -559 | L29: 39 | M29: -143 | N29: 37 | O29: -88 | P29: 38 | Q29: -71 | R29: 37 | S29: -76 | T29: 40
B30: 11 | C30: 埼玉県 | E30: 7786 | F30: 4 | G30: 1327 | H30: 5 | I30: 1386 | J30: 6 | K30: 445 | L30: 4 | M30: 1164 | N30: 2 | O30: 776 | P30: 1 | Q30: 535 | R30: 1 | S30: 60 | T30: 6
B31: 12 | C31: 千葉県 | E31: 7927 | F31: 3 | G31: 1830 | H31: 3 | I31: 1744 | J31: 5 | K31: -370 | L31: 33 | M31: 670 | N31: 3 | O31: 427 | P31: 2 | Q31: 535 | R31: 1 | S31: 534 | T31: 1
B32: 13 | C32: 東京都 | E32: 37941 | F32: 1 | G32: 6907 | H32: 1 | I32: 27376 | J32: 1 | K32: 11854 | L32: 1 | M32: 1567 | N32: 1 | O32: -392 | P32: 47 | Q32: -591 | R32: 47 | S32: 120 | T32: 4
B33: 14 | C33: 神奈川県 | E33: 9997 | F33: 2 | G33: 3075 | H33: 2 | I33: 6099 | J33: 2 | K33: 1333 | L33: 2 | M33: 238 | N33: 6 | O33: 159 | P33: 5 | Q33: 129 | R33: 5 | S33: -151 | T33: 46
B34: 15 | C34: 新潟県 | E34: -3614 | F34: 46 | G34: -684 | H34: 35 | I34: -1947 | J34: 45 | K34: -578 | L34: 41 | M34: -233 | N34: 42 | O34: -38 | P34: 30 | Q34: -63 | R34: 35 | S34: -110 | T34: 44
B35: 16 | C35: 富山県 | E35: -767 | F35: 11 | G35: -205 | H35: 21 | I35: -405 | J35: 8 | K35: -265 | L35: 24 | M35: 15 | N35: 13 | O35: -40 | P35: 31 | Q35: 13 | R35: 19 | S35: -3 | T35: 23
B36: 17 | C36: 石川県 | E36: -1186 | F36: 18 | G36: 493 | H36: 9 | I36: -1096 | J36: 33 | K36: -319 | L36: 29 | M36: -54 | N36: 22 | O36: -6 | P36: 20 | Q36: -21 | R36: 27 | S36: -68 | T36: 36
B37: 18 | C37: 福井県 | E37: -1218 | F37: 20 | G37: -213 | H37: 23 | I37: -668 | J37: 15 | K37: -160 | L37: 13 | M37: -55 | N37: 23 | O37: -33 | P37: 26 | Q37: 25 | R37: 15 | S37: -22 | T37: 31
B38: 19 | C38: 山梨県 | E38: -1007 | F38: 15 | G38: 36 | H38: 13 | I38: -915 | J38: 27 | K38: -255 | L38: 22 | M38: -60 | N38: 24 | O38: -67 | P38: 36 | Q38: 42 | R38: 10 | S38: 32 | T38: 11
B39: 20 | C39: 長野県 | E39: -1727 | F39: 28 | G39: -851 | H39: 40 | I39: -1210 | J39: 38 | K39: -277 | L39: 25 | M39: -65 | N39: 25 | O39: 82 | P39: 8 | Q39: 46 | R39: 9 | S39: 35 | T39: 10
B40: 21 | C40: 岐阜県 | E40: -2638 | F40: 40 | G40: -616 | H40: 33 | I40: -1514 | J40: 42 | K40: -552 | L40: 38 | M40: -187 | N40: 41 | O40: 38 | P40: 10 | Q40: -18 | R40: 26 | S40: -67 | T40: 35
B41: 22 | C41: 静岡県 | E41: -2937 | F41: 44 | G41: -872 | H41: 41 | I41: -930 | J41: 29 | K41: -668 | L41: 43 | M41: -364 | N41: 45 | O41: -175 | P41: 43 | Q41: -157 | R41: 43 | S41: -73 | T41: 39
B42: 23 | C42: 愛知県 | E42: 779 | F42: 7 | G42: 1566 | H42: 4 | I42: 3191 | J42: 3 | K42: -249 | L42: 20 | M42: -677 | N42: 47 | O42: -344 | P42: 46 | Q42: -215 | R42: 46 | S42: -281 | T42: 47
B43: 24 | C43: 三重県 | E43: -2618 | F43: 39 | G43: -384 | H43: 29 | I43: -676 | J43: 17 | K43: -494 | L43: 37 | M43: -248 | N43: 43 | O43: -131 | P43: 42 | Q43: -181 | R43: 44 | S43: -78 | T43: 41
B44: 25 | C44: 滋賀県 | E44: -25 | F44: 9 | G44: 108 | H44: 12 | I44: -676 | J44: 17 | K44: -18 | L44: 6 | M44: 137 | N44: 7 | O44: 119 | P44: 6 | Q44: 54 | R44: 8 | S44: 14 | T44: 19
B45: 26 | C45: 京都府 | E45: -1959 | F45: 36 | G45: 1124 | H45: 7 | I45: -1056 | J45: 32 | K45: -1122 | L45: 46 | M45: -464 | N45: 46 | O45: -250 | P45: 45 | Q45: -94 | R45: 40 | S45: 28 | T45: 13
B46: 27 | C46: 大阪府 | E46: 3372 | F46: 5 | G46: 1240 | H46: 6 | I46: 2294 | J46: 4 | K46: 1331 | L46: 3 | M46: -33 | N46: 20 | O46: -184 | P46: 44 | Q46: -46 | R46: 33 | S46: -72 | T46: 38
B47: 28 | C47: 兵庫県 | E47: -4193 | F47: 47 | G47: -165 | H47: 17 | I47: -3053 | J47: 47 | K47: -1155 | L47: 47 | M47: -156 | N47: 39 | O47: 109 | P47: 7 | Q47: -30 | R47: 28 | S47: -100 | T47: 43
B48: 29 | C48: 奈良県 | E48: -1983 | F48: 37 | G48: -71 | H48: 14 | I48: -1428 | J48: 41 | K48: -729 | L48: 44 | M48: -141 | N48: 36 | O48: -45 | P48: 33 | Q48: 11 | R48: 20 | S48: -5 | T48: 24
B49: 30 | C49: 和歌山県 | E49: -1761 | F49: 29 | G49: -412 | H49: 30 | I49: -820 | J49: 21 | K49: -348 | L49: 31 | M49: -117 | N49: 31 | O49: -69 | P49: 37 | Q49: -4 | R49: 23 | S49: 23 | T49: 15
B50: 31 | C50: 鳥取県 | E50: -866 | F50: 12 | G50: -209 | H50: 22 | I50: -546 | J50: 9 | K50: -91 | L50: 9 | M50: -22 | N50: 18 | O50: -23 | P50: 23 | Q50: -63 | R50: 35 | S50: 20 | T50: 16
B51: 32 | C51: 島根県 | E51: -601 | F51: 10 | G51: -139 | H51: 16 | I51: -602 | J51: 13 | K51: -59 | L51: 7 | M51: 12 | N51: 14 | O51: 8 | P51: 16 | Q51: 38 | R51: 12 | S51: -15 | T51: 28
B52: 33 | C52: 岡山県 | E52: -1313 | F52: 21 | G52: -203 | H52: 20 | I52: -891 | J52: 26 | K52: -365 | L52: 32 | M52: -122 | N52: 32 | O52: 36 | P52: 11 | Q52: 38 | R52: 12 | S52: 46 | T52: 8
B53: 34 | C53: 広島県 | E53: -2248 | F53: 38 | G53: 241 | H53: 10 | I53: -1124 | J53: 35 | K53: -563 | L53: 40 | M53: -139 | N53: 35 | O53: -119 | P53: 41 | Q53: -182 | R53: 45 | S53: 60 | T53: 6
B54: 35 | C54: 山口県 | E54: -1656 | F54: 26 | G54: -191 | H54: 18 | I54: -1154 | J54: 36 | K54: -296 | L54: 27 | M54: -70 | N54: 27 | O54: 0 | P54: 18 | Q54: -37 | R54: 30 | S54: 45 | T54: 9
B55: 36 | C55: 徳島県 | E55: -1421 | F55: 22 | G55: -238 | H55: 24 | I55: -607 | J55: 14 | K55: -298 | L55: 28 | M55: -69 | N55: 26 | O55: -53 | P55: 34 | Q55: -80 | R55: 38 | S55: -69 | T55: 37
B56: 37 | C56: 香川県 | E56: -923 | F56: 13 | G56: -194 | H56: 19 | I56: -584 | J56: 12 | K56: -201 | L56: 17 | M56: -37 | N56: 21 | O56: -20 | P56: 22 | Q56: 14 | R56: 18 | S56: -17 | T56: 29
B57: 38 | C57: 愛媛県 | E57: -1827 | F57: 32 | G57: -689 | H57: 36 | I57: -1110 | J57: 34 | K57: -251 | L57: 21 | M57: -80 | N57: 29 | O57: -1 | P57: 19 | Q57: 18 | R57: 16 | S57: 6 | T57: 21
B58: 39 | C58: 高知県 | E58: -1123 | F58: 16 | G58: -330 | H58: 27 | I58: -675 | J58: 16 | K58: -113 | L58: 11 | M58: -8 | N58: 17 | O58: -35 | P58: 27 | Q58: -43 | R58: 31 | S58: 30 | T58: 12
B59: 40 | C59: 福岡県 | E59: 2807 | F59: 6 | G59: 679 | H59: 8 | I59: -717 | J59: 20 | K59: -162 | L59: 14 | M59: 305 | N59: 4 | O59: 387 | P59: 3 | Q59: 448 | R59: 3 | S59: 158 | T59: 3
B60: 41 | C60: 佐賀県 | E60: -984 | F60: 14 | G60: -663 | H60: 34 | I60: -575 | J60: 11 | K60: -200 | L60: 16 | M60: 36 | N60: 9 | O60: 33 | P60: 13 | Q60: 37 | R60: 14 | S60: 16 | T60: 18
B61: 42 | C61: 長崎県 | E61: -3346 | F61: 45 | G61: -1253 | H61: 46 | I61: -1248 | J61: 39 | K61: -334 | L61: 30 | M61: -122 | N61: 32 | O61: -104 | P61: 40 | Q61: -90 | R61: 39 | S61: -50 | T61: 34
B62: 43 | C62: 熊本県 | E62: -1892 | F62: 33 | G62: -1056 | H62: 45 | I62: -1013 | J62: 31 | K62: -262 | L62: 23 | M62: 17 | N62: 12 | O62: 15 | P62: 14 | Q62: -13 | R62: 25 | S62: -9 | T62: 25
B63: 44 | C63: 大分県 | E63: -1206 | F63: 19 | G63: -263 | H63: 25 | I63: -841 | J63: 22 | K63: -173 | L63: 15 | M63: -110 | N63: 30 | O63: -31 | P63: 25 | Q63: 42 | R63: 10 | S63: 20 | T63: 16
B64: 45 | C64: 宮崎県 | E64: -1554 | F64: 23 | G64: -1037 | H64: 44 | I64: -694 | J64: 19 | K64: -206 | L64: 18 | M64: 33 | N64: 10 | O64: 12 | P64: 15 | Q64: 15 | R64: 17 | S64: -9 | T64: 25
B65: 46 | C65: 鹿児島県 | E65: -1919 | F65: 35 | G65: -1958 | H65: 47 | I65: -880 | J65: 25 | K65: -90 | L65: 8 | M65: 98 | N65: 8 | O65: 74 | P65: 9 | Q65: 10 | R65: 21 | S65: 110 | T65: 5
B66: 47 | C66: 沖縄県 | E66: 182 | F66: 8 | G66: -882 | H66: 42 | I66: -570 | J66: 10 | K66: 212 | L66: 5 | M66: 278 | N66: 5 | O66: 241 | P66: 4 | Q66: 155 | R66: 4 | S66: 184 | T66: 2
B67: 資料等
B68: ○ 総務省「住民基本台帳人口移動報告」（令和元年）の日本人移動者の値。
B69: ○ 合計特殊出生率との相関係数、単純平均、標準偏差は都道府県別データから機械的に計算。変動係数は、標準偏差／単純平均で機械的に計算。

Sheet ３．（２）転入超過数（移動者女性）
B5: ■転入超過数 移動者：女性
E7: 【実数値】 | S7: ・・・上位10位を網掛け
S8: ・・・下位10位を網掛け
E9: 転入超過数 女性（R1）
E10: 総数
G11: 15～19歳 | I11: 20～24歳 | K11: 25～29歳 | M11: 30～34歳 | O11: 35～39歳 | Q11: 40～44歳 | S11: 45～49歳
G12: （再掲） | I12: （再掲） | K12: （再掲） | M12: （再掲） | O12: （再掲） | Q12: （再掲） | S12: （再掲）
F13: （順位） | H13: （順位） | J13: （順位） | L13: （順位） | N13: （順位） | P13: （順位） | R13: （順位） | T13: （順位）
E14: （人） | F14: （降順） | G14: （人） | H14: （降順） | I14: （人） | J14: （降順） | K14: （人） | L14: （降順） | M14: （人） | N14: （降順） | O14: （人） | P14: （降順） | Q14: （人） | R14: （降順） | S14: （人） | T14: （降順）
B15: （合計特殊出生率との相関係数） | E15: -0.4225248754 | G15: -0.5173540736 | I15: -0.4014174299 | K15: -0.3107691531 | M15: -0.2285002504 | O15: -0.1878132913 | Q15: -0.3344716445 | S15: -0.4306394446
B16: （単純平均） | E16: 0 | G16: 0 | I16: 0 | K16: 0 | M16: 0 | O16: 0 | Q16: 0 | S16: 0
B17: （標準偏差） | E17: 8026.870689 | G17: 1282.191326 | I17: 5010.161254 | K17: 1653.95562 | M17: 430.2899567 | O17: 189.3538846 | Q17: 144.5134169 | S17: 177.1106158
B18: （変動係数） | E18: … | G18: … | I18: … | K18: … | M18: … | O18: … | Q18: … | S18: …
B19: 全 国 | E19: 0 | G19: 0 | I19: 0 | K19: 0 | M19: 0 | O19: 0 | Q19: 0 | S19: 0
B20: 1 | C20: 北海道 | E20: -3628 | F20: 39 | G20: -367 | H20: 28 | I20: -1740 | J20: 37 | K20: -694 | L20: 41 | M20: -253 | N20: 40 | O20: -133 | P20: 39 | Q20: -32 | R20: 27 | S20: -148 | T20: 46
B21: 2 | C21: 青森県 | E21: -3370 | F21: 38 | G21: -899 | H21: 45 | I21: -1773 | J21: 38 | K21: -107 | L21: 13 | M21: -54 | N21: 20 | O21: -16 | P21: 19 | Q21: -111 | R21: 42 | S21: -79 | T21: 35
B22: 3 | C22: 岩手県 | E22: -3092 | F22: 37 | G22: -815 | H22: 44 | I22: -1510 | J22: 34 | K22: -260 | L22: 23 | M22: -128 | N22: 30 | O22: -92 | P22: 37 | Q22: 17 | R22: 9 | S22: -42 | T22: 21
B23: 4 | C23: 宮城県 | E23: -725 | F23: 10 | G23: 178 | H23: 9 | I23: -279 | J23: 9 | K23: -367 | L23: 32 | M23: -103 | N23: 26 | O23: -45 | P23: 26 | Q23: -146 | R23: 45 | S23: -54 | T23: 26
B24: 5 | C24: 秋田県 | E24: -2288 | F24: 28 | G24: -697 | H24: 39 | I24: -1062 | J24: 23 | K24: -179 | L24: 15 | M24: -33 | N24: 15 | O24: -26 | P24: 21 | Q24: -35 | R24: 30 | S24: -99 | T24: 39
B25: 6 | C25: 山形県 | E25: -2427 | F25: 30 | G25: -477 | H25: 33 | I25: -1258 | J25: 30 | K25: -211 | L25: 19 | M25: -44 | N25: 17 | O25: -49 | P25: 28 | Q25: -69 | R25: 38 | S25: -74 | T25: 33
B26: 7 | C26: 福島県 | E26: -4105 | F26: 46 | G26: -717 | H26: 41 | I26: -2410 | J26: 46 | K26: -412 | L26: 36 | M26: -93 | N26: 23 | O26: -40 | P26: 24 | Q26: 48 | R26: 7 | S26: -80 | T26: 36
B27: 8 | C27: 茨城県 | E27: -3859 | F27: 43 | G27: -466 | H27: 31 | I27: -2678 | J27: 47 | K27: -993 | L27: 45 | M27: -235 | N27: 39 | O27: -99 | P27: 38 | Q27: -29 | R27: 25 | S27: -83 | T27: 37
B28: 9 | C28: 栃木県 | E28: -3001 | F28: 36 | G28: -466 | H28: 31 | I28: -1774 | J28: 39 | K28: -364 | L28: 29 | M28: -146 | N28: 34 | O28: -81 | P28: 34 | Q28: -54 | R28: 35 | S28: -42 | T28: 21
B29: 10 | C29: 群馬県 | E29: -2133 | F29: 27 | G29: -140 | H29: 15 | I29: -1842 | J29: 40 | K29: -472 | L29: 37 | M29: -105 | N29: 27 | O29: -11 | P29: 18 | Q29: -18 | R29: 19 | S29: -30 | T29: 16
B30: 11 | C30: 埼玉県 | E30: 13180 | F30: 3 | G30: 1596 | H30: 3 | I30: 3616 | J30: 4 | K30: 1167 | L30: 4 | M30: 1673 | N30: 2 | O30: 666 | P30: 1 | Q30: 452 | R30: 2 | S30: 331 | T30: 3
B31: 12 | C31: 千葉県 | E31: 7027 | F31: 4 | G31: 477 | H31: 7 | I31: 1587 | J31: 5 | K31: -81 | L31: 9 | M31: 488 | N31: 4 | O31: 601 | P31: 2 | Q31: 282 | R31: 3 | S31: 304 | T31: 4
B32: 13 | C32: 東京都 | E32: 47642 | F32: 1 | G32: 7471 | H32: 1 | I32: 31685 | J32: 1 | K32: 10555 | L32: 1 | M32: 1883 | N32: 1 | O32: 421 | P32: 3 | Q32: 664 | R32: 1 | S32: 834 | T32: 1
B33: 14 | C33: 神奈川県 | E33: 14920 | F33: 2 | G33: 2264 | H33: 2 | I33: 7080 | J33: 2 | K33: 1992 | L33: 2 | M33: 714 | N33: 3 | O33: 383 | P33: 4 | Q33: 78 | R33: 5 | S33: 491 | T33: 2
B34: 15 | C34: 新潟県 | E34: -4065 | F34: 45 | G34: -538 | H34: 35 | I34: -2388 | J34: 45 | K34: -409 | L34: 35 | M34: -214 | N34: 38 | O34: -48 | P34: 27 | Q34: -57 | R34: 36 | S34: -130 | T34: 45
B35: 16 | C35: 富山県 | E35: -1272 | F35: 16 | G35: -194 | H35: 18 | I35: -786 | J35: 17 | K35: -348 | L35: 28 | M35: -35 | N35: 16 | O35: -5 | P35: 17 | Q35: -2 | R35: 14 | S35: -16 | T35: 13
B36: 17 | C36: 石川県 | E36: -1611 | F36: 20 | G36: 54 | H36: 12 | I36: -1013 | J36: 22 | K36: -261 | L36: 24 | M36: -82 | N36: 21 | O36: -41 | P36: 25 | Q36: -42 | R36: 34 | S36: -95 | T36: 38
B37: 18 | C37: 福井県 | E37: -1920 | F37: 24 | G37: -207 | H37: 21 | I37: -778 | J37: 16 | K37: -314 | L37: 26 | M37: -156 | N37: 35 | O37: -89 | P37: 36 | Q37: -68 | R37: 37 | S37: -62 | T37: 31
B38: 19 | C38: 山梨県 | E38: -1472 | F38: 19 | G38: 76 | H38: 11 | I38: -1209 | J38: 29 | K38: -203 | L38: 17 | M38: -82 | N38: 21 | O38: 10 | P38: 12 | Q38: -25 | R38: 22 | S38: -23 | T38: 14
B39: 20 | C39: 長野県 | E39: -2561 | F39: 34 | G39: -731 | H39: 42 | I39: -1862 | J39: 41 | K39: -382 | L39: 33 | M39: 18 | N39: 11 | O39: 141 | P39: 7 | Q39: 75 | R39: 6 | S39: 1 | T39: 10
B40: 21 | C40: 岐阜県 | E40: -4061 | F40: 44 | G40: -585 | H40: 36 | I40: -1929 | J40: 42 | K40: -1109 | L40: 46 | M40: -276 | N40: 42 | O40: -36 | P40: 23 | Q40: -38 | R40: 32 | S40: -38 | T40: 18
B41: 22 | C41: 静岡県 | E41: -3729 | F41: 40 | G41: -784 | H41: 43 | I41: -1934 | J41: 43 | K41: -330 | L41: 27 | M41: -122 | N41: 29 | O41: -180 | P41: 41 | Q41: -143 | R41: 44 | S41: -70 | T41: 32
B42: 23 | C42: 愛知県 | E42: -630 | F42: 9 | G42: -6 | H42: 14 | I42: 890 | J42: 6 | K42: 378 | L42: 6 | M42: -340 | N42: 45 | O42: -186 | P42: 42 | Q42: -194 | R42: 47 | S42: -108 | T42: 42
B43: 24 | C43: 三重県 | E43: -3814 | F43: 41 | G43: -372 | H43: 29 | I43: -1431 | J43: 33 | K43: -636 | L43: 39 | M43: -213 | N43: 37 | O43: -211 | P43: 44 | Q43: -187 | R43: 46 | S43: -174 | T43: 47
B44: 25 | C44: 滋賀県 | E44: 205 | F44: 7 | G44: 22 | H44: 13 | I44: -646 | J44: 14 | K44: -102 | L44: 12 | M44: 239 | N44: 6 | O44: 251 | P44: 5 | Q44: 15 | R44: 10 | S44: 4 | T44: 9
B45: 26 | C45: 京都府 | E45: -1347 | F45: 17 | G45: 998 | H45: 5 | I45: -203 | J45: 8 | K45: -1251 | L45: 47 | M45: -573 | N45: 47 | O45: -221 | P45: 45 | Q45: -34 | R45: 29 | S45: 58 | T45: 7
B46: 27 | C46: 大阪府 | E46: 6819 | F46: 5 | G46: 1434 | H46: 4 | I46: 5615 | J46: 3 | K46: 1349 | L46: 3 | M46: -311 | N46: 44 | O46: -263 | P46: 47 | Q46: 5 | R46: 13 | S46: 211 | T46: 6
B47: 28 | C47: 兵庫県 | E47: -2553 | F47: 33 | G47: 104 | H47: 10 | I47: -1675 | J47: 36 | K47: -785 | L47: 43 | M47: -275 | N47: 41 | O47: -224 | P47: 46 | Q47: -70 | R47: 39 | S47: -106 | T47: 41
B48: 29 | C48: 奈良県 | E48: -1658 | F48: 21 | G48: 215 | H48: 8 | I48: -1132 | J48: 25 | K48: -880 | L48: 44 | M48: -209 | N48: 36 | O48: 5 | P48: 14 | Q48: -8 | R48: 15 | S48: -10 | T48: 11
B49: 30 | C49: 和歌山県 | E49: -1888 | F49: 23 | G49: -205 | H49: 20 | I49: -971 | J49: 21 | K49: -295 | L49: 25 | M49: -102 | N49: 25 | O49: 1 | P49: 15 | Q49: -27 | R49: 24 | S49: -53 | T49: 24
B50: 31 | C50: 鳥取県 | E50: -758 | F50: 11 | G50: -187 | H50: 17 | I50: -467 | J50: 10 | K50: -24 | L50: 8 | M50: 29 | N50: 9 | O50: -34 | P50: 22 | Q50: -39 | R50: 33 | S50: -14 | T50: 12
B51: 32 | C51: 島根県 | E51: -1130 | F51: 14 | G51: -199 | H51: 19 | I51: -598 | J51: 13 | K51: -94 | L51: 10 | M51: 34 | N51: 8 | O51: -58 | P51: 30 | Q51: -29 | R51: 25 | S51: -48 | T51: 23
B52: 33 | C52: 岡山県 | E52: -2526 | F52: 32 | G52: -292 | H52: 26 | I52: -1161 | J52: 26 | K52: -489 | L52: 38 | M52: -289 | N52: 43 | O52: -71 | P52: 33 | Q52: -24 | R52: 21 | S52: -58 | T52: 29
B53: 34 | C53: 広島県 | E53: -4517 | F53: 47 | G53: -517 | H53: 34 | I53: -1995 | J53: 44 | K53: -762 | L53: 42 | M53: -359 | N53: 46 | O53: -186 | P53: 42 | Q53: -132 | R53: 43 | S53: -127 | T53: 44
B54: 35 | C54: 山口県 | E54: -2493 | F54: 31 | G54: -254 | H54: 24 | I54: -1386 | J54: 32 | K54: -207 | L54: 18 | M54: -52 | N54: 19 | O54: -81 | P54: 34 | Q54: -35 | R54: 30 | S54: -78 | T54: 34
B55: 36 | C55: 徳島県 | E55: -1675 | F55: 22 | G55: -295 | H55: 27 | I55: -718 | J55: 15 | K55: -213 | L55: 20 | M55: -133 | N55: 32 | O55: -23 | P55: 20 | Q55: -86 | R55: 41 | S55: -53 | T55: 24
B56: 37 | C56: 香川県 | E56: -958 | F56: 13 | G56: -146 | H56: 16 | I56: -583 | J56: 12 | K56: -127 | L56: 14 | M56: 22 | N56: 10 | O56: -61 | P56: 31 | Q56: 35 | R56: 8 | S56: -41 | T56: 19
B57: 38 | C57: 愛媛県 | E57: -2401 | F57: 29 | G57: -442 | H57: 30 | I57: -1375 | J57: 31 | K57: -366 | L57: 31 | M57: -112 | N57: 28 | O57: 11 | P57: 11 | Q57: -25 | R57: 22 | S57: -60 | T57: 30
B58: 39 | C58: 高知県 | E58: -1430 | F58: 18 | G58: -238 | H58: 23 | I58: -800 | J58: 19 | K58: -96 | L58: 11 | M58: -11 | N58: 14 | O58: -50 | P58: 29 | Q58: -33 | R58: 28 | S58: -57 | T58: 28
B59: 40 | C59: 福岡県 | E59: 1848 | F59: 6 | G59: 822 | H59: 6 | I59: 49 | J59: 7 | K59: -692 | L59: 40 | M59: -101 | N59: 24 | O59: 33 | P59: 10 | Q59: 219 | R59: 4 | S59: 245 | T59: 5
B60: 41 | C60: 佐賀県 | E60: -824 | F60: 12 | G60: -227 | H60: 22 | I60: -794 | J60: 18 | K60: -222 | L60: 21 | M60: -2 | N60: 13 | O60: 112 | P60: 8 | Q60: -20 | R60: 20 | S60: -23 | T60: 14
B61: 42 | C61: 長崎県 | E61: -3830 | F61: 42 | G61: -916 | H61: 46 | I61: -1521 | J61: 35 | K61: -365 | L61: 30 | M61: -142 | N61: 33 | O61: -144 | P61: 40 | Q61: -71 | R61: 40 | S61: -111 | T61: 43
B62: 43 | C62: 熊本県 | E62: -2078 | F62: 25 | G62: -589 | H62: 38 | I62: -1190 | J62: 28 | K62: -383 | L62: 34 | M62: -49 | N62: 18 | O62: 38 | P62: 9 | Q62: 13 | R62: 11 | S62: -54 | T62: 26
B63: 44 | C63: 大分県 | E63: -2085 | F63: 26 | G63: -273 | H63: 25 | I63: -1166 | J63: 27 | K63: -231 | L63: 22 | M63: -128 | N63: 30 | O63: -63 | P63: 32 | Q63: 11 | R63: 12 | S63: -41 | T63: 19
B64: 45 | C64: 宮崎県 | E64: -1267 | F64: 15 | G64: -586 | H64: 37 | I64: -809 | J64: 20 | K64: 55 | L64: 7 | M64: 45 | N64: 7 | O64: 10 | P64: 12 | Q64: -11 | R64: 17 | S64: -34 | T64: 17
B65: 46 | C65: 鹿児島県 | E65: -2578 | F65: 35 | G65: -1181 | H65: 47 | I65: -1131 | J65: 24 | K65: -188 | L65: 16 | M65: 7 | N65: 12 | O65: 1 | P65: 15 | Q65: -11 | R65: 17 | S65: -105 | T65: 40
B66: 47 | C66: 沖縄県 | E66: 118 | F66: 8 | G66: -703 | H66: 40 | I66: -545 | J66: 11 | K66: 408 | L66: 5 | M66: 410 | N66: 5 | O66: 183 | P66: 6 | Q66: -9 | R66: 16 | S66: 41 | T66: 8
B67: 資料等
B68: ○ 総務省「住民基本台帳人口移動報告」（令和元年）の移動者（外国人含む）の値。
B69: ○ 合計特殊出生率との相関係数、単純平均、標準偏差は都道府県別データから機械的に計算。変動係数は、標準偏差／単純平均で機械的に計算。

Sheet ３．（２）転入超過数（日本人移動者女性）
B5: ■転入超過数 日本人移動者：女性
E7: 【実数値】 | S7: ・・・上位10位を網掛け
S8: ・・・下位10位を網掛け
E9: 転入超過数 女性（R1）
E10: 総数
G11: 15～19歳 | I11: 20～24歳 | K11: 25～29歳 | M11: 30～34歳 | O11: 35～39歳 | Q11: 40～44歳 | S11: 45～49歳
G12: （再掲） | I12: （再掲） | K12: （再掲） | M12: （再掲） | O12: （再掲） | Q12: （再掲） | S12: （再掲）
F13: （順位） | H13: （順位） | J13: （順位） | L13: （順位） | N13: （順位） | P13: （順位） | R13: （順位） | T13: （順位）
E14: （人） | F14: （降順） | G14: （人） | H14: （降順） | I14: （人） | J14: （降順） | K14: （人） | L14: （降順） | M14: （人） | N14: （降順） | O14: （人） | P14: （降順） | Q14: （人） | R14: （降順） | S14: （人） | T14: （降順）
B15: （合計特殊出生率との相関係数） | E15: -0.4178115482 | G15: -0.5201663548 | I15: -0.3955822902 | K15: -0.3043169302 | M15: -0.2277318826 | O15: -0.149940984 | Q15: -0.3269178582 | S15: -0.4229170852
B16: （単純平均） | E16: 0 | G16: 0 | I16: 0 | K16: 0 | M16: 0 | O16: 0 | Q16: 0 | S16: 0
B17: （標準偏差） | E17: 8095.639927 | G17: 1314.30187 | I17: 5123.183693 | K17: 1656.826497 | M17: 379.6383497 | O17: 176.5676291 | Q17: 145.1955395 | S17: 173.4018822
B18: （変動係数） | E18: … | G18: … | I18: … | K18: … | M18: … | O18: … | Q18: … | S18: …
B19: 全 国 | E19: 0 | G19: 0 | I19: 0 | K19: 0 | M19: 0 | O19: 0 | Q19: 0 | S19: 0
B20: 1 | C20: 北海道 | E20: -4818 | F20: 47 | G20: -564 | H20: 35 | I20: -2259 | J20: 44 | K20: -873 | L20: 43 | M20: -375 | N20: 46 | O20: -201 | P20: 44 | Q20: -118 | R20: 43 | S20: -160 | T20: 47
B21: 2 | C21: 青森県 | E21: -3536 | F21: 40 | G21: -986 | H21: 45 | I21: -1796 | J21: 39 | K21: -127 | L21: 12 | M21: -86 | N21: 25 | O21: -18 | P21: 20 | Q21: -117 | R21: 42 | S21: -86 | T21: 37
B22: 3 | C22: 岩手県 | E22: -3057 | F22: 36 | G22: -794 | H22: 43 | I22: -1511 | J22: 37 | K22: -271 | L22: 26 | M22: -111 | N22: 27 | O22: -86 | P22: 37 | Q22: 8 | R22: 11 | S22: -44 | T22: 23
B23: 4 | C23: 宮城県 | E23: -1286 | F23: 15 | G23: 19 | H23: 13 | I23: -608 | J23: 11 | K23: -449 | L23: 36 | M23: -111 | N23: 27 | O23: -53 | P23: 32 | Q23: -140 | R23: 44 | S23: -49 | T23: 27
B24: 5 | C24: 秋田県 | E24: -2398 | F24: 29 | G24: -749 | H24: 39 | I24: -1107 | J24: 25 | K24: -194 | L24: 17 | M24: -40 | N24: 18 | O24: -28 | P24: 23 | Q24: -32 | R24: 24 | S24: -101 | T24: 39
B25: 6 | C25: 山形県 | E25: -2631 | F25: 33 | G25: -525 | H25: 34 | I25: -1375 | J25: 30 | K25: -238 | L25: 23 | M25: -65 | N25: 21 | O25: -57 | P25: 33 | Q25: -69 | R25: 36 | S25: -69 | T25: 34
B26: 7 | C26: 福島県 | E26: -4016 | F26: 44 | G26: -778 | H26: 40 | I26: -2424 | J26: 46 | K26: -342 | L26: 30 | M26: -38 | N26: 17 | O26: -35 | P26: 26 | Q26: 55 | R26: 7 | S26: -68 | T26: 33
B27: 8 | C27: 茨城県 | E27: -2795 | F27: 35 | G27: -407 | H27: 31 | I27: -2330 | J27: 45 | K27: -666 | L27: 42 | M27: -117 | N27: 31 | O27: -5 | P27: 14 | Q27: 37 | R27: 8 | S27: -36 | T27: 18
B28: 9 | C28: 栃木県 | E28: -2347 | F28: 27 | G28: -380 | H28: 29 | I28: -1503 | J28: 36 | K28: -214 | L28: 19 | M28: -64 | N28: 20 | O28: -63 | P28: 34 | Q28: -64 | R28: 35 | S28: -43 | T28: 22
B29: 10 | C29: 群馬県 | E29: -2434 | F29: 31 | G29: -260 | H29: 26 | I29: -2000 | J29: 41 | K29: -507 | L29: 39 | M29: -94 | N29: 26 | O29: -14 | P29: 19 | Q29: -35 | R29: 25 | S29: -10 | T29: 11
B30: 11 | C30: 埼玉県 | E30: 10177 | F30: 3 | G30: 1332 | H30: 4 | I30: 2680 | J30: 4 | K30: 314 | L30: 7 | M30: 1179 | N30: 2 | O30: 537 | P30: 2 | Q30: 364 | R30: 2 | S30: 235 | T30: 5
B31: 12 | C31: 千葉県 | E31: 9260 | F31: 4 | G31: 1149 | H31: 6 | I31: 2620 | J31: 5 | K31: 404 | L31: 5 | M31: 747 | N31: 3 | O31: 647 | P31: 1 | Q31: 288 | R31: 3 | S31: 269 | T31: 3
B32: 13 | C32: 東京都 | E32: 48634 | F32: 1 | G32: 7533 | H32: 1 | I32: 32560 | J32: 1 | K32: 10747 | L32: 1 | M32: 1749 | N32: 1 | O32: 293 | P32: 4 | Q32: 684 | R32: 1 | S32: 877 | T32: 1
B33: 14 | C33: 神奈川県 | E33: 13854 | F33: 2 | G33: 2218 | H33: 2 | I33: 6520 | J33: 2 | K33: 1465 | L33: 2 | M33: 655 | N33: 4 | O33: 456 | P33: 3 | Q33: 201 | R33: 5 | S33: 442 | T33: 2
B34: 15 | C34: 新潟県 | E34: -4548 | F34: 46 | G34: -634 | H34: 36 | I34: -2656 | J34: 47 | K34: -501 | L34: 38 | M34: -232 | N34: 41 | O34: -66 | P34: 35 | Q34: -72 | R34: 37 | S34: -122 | T34: 44
B35: 16 | C35: 富山県 | E35: -1239 | F35: 14 | G35: -219 | H35: 20 | I35: -772 | J35: 16 | K35: -308 | L35: 27 | M35: 7 | N35: 11 | O35: -13 | P35: 18 | Q35: -10 | R35: 19 | S35: -21 | T35: 16
B36: 17 | C36: 石川県 | E36: -1370 | F36: 17 | G36: 69 | H36: 10 | I36: -904 | J36: 20 | K36: -181 | L36: 16 | M36: -76 | N36: 23 | O36: -52 | P36: 30 | Q36: -43 | R36: 33 | S36: -81 | T36: 36
B37: 18 | C37: 福井県 | E37: -1614 | F37: 21 | G37: -163 | H37: 16 | I37: -769 | J37: 15 | K37: -255 | L37: 25 | M37: -83 | N37: 24 | O37: -51 | P37: 29 | Q37: -52 | R37: 34 | S37: -45 | T37: 25
B38: 19 | C38: 山梨県 | E38: -1346 | F38: 16 | G38: 66 | H38: 11 | I38: -1173 | J38: 26 | K38: -170 | L38: 14 | M38: -69 | N38: 22 | O38: 24 | P38: 11 | Q38: -8 | R38: 17 | S38: -13 | T38: 13
B39: 20 | C39: 長野県 | E39: -2600 | F39: 32 | G39: -778 | H39: 40 | I39: -1969 | J39: 40 | K39: -378 | L39: 33 | M39: 47 | N39: 8 | O39: 148 | P39: 7 | Q39: 56 | R39: 6 | S39: 20 | T39: 9
B40: 21 | C40: 岐阜県 | E40: -3595 | F40: 41 | G40: -474 | H40: 33 | I40: -1735 | J40: 38 | K40: -989 | L40: 46 | M40: -233 | N40: 42 | O40: -11 | P40: 16 | Q40: -39 | R40: 31 | S40: -56 | T40: 30
B41: 22 | C41: 静岡県 | E41: -4461 | F41: 45 | G41: -990 | H41: 46 | I41: -2158 | J41: 43 | K41: -542 | L41: 40 | M41: -171 | N41: 36 | O41: -194 | P41: 43 | Q41: -168 | R41: 45 | S41: -89 | T41: 38
B42: 23 | C42: 愛知県 | E42: 190 | F42: 7 | G42: 265 | H42: 8 | I42: 1181 | J42: 6 | K42: 557 | L42: 4 | M42: -273 | N42: 44 | O42: -191 | P42: 42 | Q42: -190 | R42: 47 | S42: -103 | T42: 40
B43: 24 | C43: 三重県 | E43: -3633 | F43: 42 | G43: -388 | H43: 30 | I43: -1384 | J43: 31 | K43: -648 | L43: 41 | M43: -216 | N43: 38 | O43: -167 | P43: 41 | Q43: -171 | R43: 46 | S43: -146 | T43: 46
B44: 25 | C44: 滋賀県 | E44: -386 | F44: 9 | G44: -59 | H44: 14 | I44: -825 | J44: 18 | K44: -179 | L44: 15 | M44: 162 | N44: 6 | O44: 152 | P44: 6 | Q44: -25 | R44: 22 | S44: -6 | T44: 10
B45: 26 | C45: 京都府 | E45: -1484 | F45: 19 | G45: 889 | H45: 7 | I45: -368 | J45: 8 | K45: -1158 | L45: 47 | M45: -555 | N45: 47 | O45: -230 | P45: 47 | Q45: -36 | R45: 26 | S45: 55 | T45: 7
B46: 27 | C46: 大阪府 | E46: 7321 | F46: 5 | G46: 1613 | H46: 3 | I46: 5835 | J46: 3 | K46: 1409 | L46: 3 | M46: -219 | N46: 40 | O46: -214 | P46: 45 | Q46: -2 | R46: 14 | S46: 211 | T46: 6
B47: 28 | C47: 兵庫県 | E47: -3067 | F47: 37 | G47: 29 | H47: 12 | I47: -2000 | J47: 41 | K47: -890 | L47: 44 | M47: -273 | N47: 44 | O47: -222 | P47: 46 | Q47: -72 | R47: 37 | S47: -106 | T47: 41
B48: 29 | C48: 奈良県 | E48: -1864 | F48: 22 | G48: 181 | H48: 9 | I48: -1203 | J48: 27 | K48: -901 | L48: 45 | M48: -233 | N48: 42 | O48: -32 | P48: 25 | Q48: -12 | R48: 21 | S48: -15 | T48: 14
B49: 30 | C49: 和歌山県 | E49: -2107 | F49: 26 | G49: -255 | H49: 24 | I49: -1037 | J49: 22 | K49: -359 | L49: 32 | M49: -124 | N49: 35 | O49: -10 | P49: 15 | Q49: -36 | R49: 26 | S49: -53 | T49: 28
B50: 31 | C50: 鳥取県 | E50: -869 | F50: 10 | G50: -225 | H50: 21 | I50: -512 | J50: 9 | K50: -39 | L50: 8 | M50: -2 | N50: 12 | O50: -29 | P50: 24 | Q50: -29 | R50: 23 | S50: -15 | T50: 14
B51: 32 | C51: 島根県 | E51: -1023 | F51: 11 | G51: -246 | H51: 23 | I51: -625 | J51: 12 | K51: -92 | L51: 10 | M51: 73 | N51: 7 | O51: -12 | P51: 17 | Q51: 1 | R51: 13 | S51: -25 | T51: 17
B52: 33 | C52: 岡山県 | E52: -1953 | F52: 25 | G52: -82 | H52: 15 | I52: -952 | J52: 21 | K52: -474 | L52: 37 | M52: -210 | N52: 37 | O52: -40 | P52: 27 | Q52: -6 | R52: 15 | S52: -44 | T52: 23
B53: 34 | C53: 広島県 | E53: -3070 | F53: 38 | G53: -168 | H53: 17 | I53: -1463 | J53: 34 | K53: -415 | L53: 34 | M53: -218 | N53: 39 | O53: -119 | P53: 39 | Q53: -109 | R53: 41 | S53: -122 | T53: 44
B54: 35 | C54: 山口県 | E54: -2774 | F54: 34 | G54: -327 | H54: 27 | I54: -1479 | J54: 35 | K54: -236 | L54: 22 | M54: -121 | N54: 33 | O54: -96 | P54: 38 | Q54: -42 | R54: 32 | S54: -78 | T54: 35
B55: 36 | C55: 徳島県 | E55: -1542 | F55: 20 | G55: -228 | H55: 22 | I55: -687 | J55: 14 | K55: -227 | L55: 20 | M55: -114 | N55: 29 | O55: -20 | P55: 21 | Q55: -80 | R55: 40 | S55: -41 | T55: 20
B56: 37 | C56: 香川県 | E56: -1090 | F56: 13 | G56: -217 | H56: 19 | I56: -638 | J56: 13 | K56: -127 | L56: 12 | M56: 18 | N56: 10 | O56: -66 | P56: 35 | Q56: 22 | R56: 10 | S56: -42 | T56: 21
B57: 38 | C57: 愛媛県 | E57: -2407 | F57: 30 | G57: -443 | H57: 32 | I57: -1387 | J57: 32 | K57: -358 | L57: 31 | M57: -114 | N57: 29 | O57: 5 | P57: 13 | Q57: -7 | R57: 16 | S57: -63 | T57: 31
B58: 39 | C58: 高知県 | E58: -1460 | F58: 18 | G58: -214 | H58: 18 | I58: -801 | J58: 17 | K58: -118 | L58: 11 | M58: -25 | N58: 13 | O58: -52 | P58: 30 | Q58: -37 | R58: 29 | S58: -63 | T58: 31
B59: 40 | C59: 福岡県 | E59: 3517 | F59: 6 | G59: 1259 | H59: 5 | I59: 623 | J59: 7 | K59: -205 | L59: 18 | M59: 25 | N59: 9 | O59: 71 | P59: 9 | Q59: 234 | R59: 4 | S59: 254 | T59: 4
B60: 41 | C60: 佐賀県 | E60: -1058 | F60: 12 | G60: -335 | H60: 28 | I60: -868 | J60: 19 | K60: -251 | L60: 24 | M60: -26 | N60: 14 | O60: 107 | P60: 8 | Q60: -36 | R60: 26 | S60: -10 | T60: 11
B61: 42 | C61: 長崎県 | E61: -3674 | F61: 43 | G61: -915 | H61: 44 | I61: -1416 | J61: 33 | K61: -338 | L61: 29 | M61: -123 | N61: 34 | O61: -130 | P61: 40 | Q61: -77 | R61: 39 | S61: -111 | T61: 42
B62: 43 | C62: 熊本県 | E62: -2362 | F62: 28 | G62: -702 | H62: 37 | I62: -1299 | J62: 28 | K62: -445 | L62: 35 | M62: -27 | N62: 15 | O62: 27 | P62: 10 | Q62: -8 | R62: 17 | S62: -55 | T62: 29
B63: 44 | C63: 大分県 | E63: -1888 | F63: 24 | G63: -255 | H63: 24 | I63: -1057 | J63: 23 | K63: -232 | L63: 21 | M63: -117 | N63: 31 | O63: -46 | P63: 28 | Q63: 35 | R63: 9 | S63: -38 | T63: 19
B64: 45 | C64: 宮崎県 | E64: -1886 | F64: 23 | G64: -779 | H64: 42 | I64: -1062 | J64: 24 | K64: -50 | L64: 9 | M64: -34 | N64: 16 | O64: 17 | P64: 12 | Q64: 6 | R64: 12 | S64: -47 | T64: 26
B65: 46 | C65: 鹿児島県 | E65: -3249 | F65: 39 | G65: -1368 | H65: 47 | I65: -1362 | J65: 29 | K65: -325 | L65: 28 | M65: -63 | N65: 19 | O65: -25 | P65: 22 | Q65: -38 | R65: 30 | S65: -111 | T65: 42
B66: 47 | C66: 沖縄県 | E66: -16 | F66: 8 | G66: -715 | H66: 38 | I66: -545 | J66: 10 | K66: 376 | L66: 6 | M66: 390 | N66: 5 | O66: 164 | P66: 5 | Q66: -11 | R66: 20 | S66: 24 | T66: 8
B67: 資料等
B68: ○ 総務省「住民基本台帳人口移動報告」（令和元年）の日本人移動者の値。
B69: ○ 合計特殊出生率との相関係数、単純平均、標準偏差は都道府県別データから機械的に計算。変動係数は、標準偏差／単純平均で機械的に計算。

Sheet ３．（２）出生数の推移
B5: ■出生数の推移（1990年～2019年）
E7: 【実数値】 | AA7: ・・・上位10位を網掛け
AA8: ・・・下位10位を網掛け
E9: 出生数の推移
E10: 1990年 | G10: 1995年 | I10: 2000年 | K10: 2005年 | M10: 2010年 | O10: 2014年 | Q10: 2015年 | S10: 2016年 | U10: 2017年 | W10: 2018年 | Y10: 2019年 | AB10: 2014年から | AE10: 2014年から
AB11: 2019年への | AE11: 2019年への
AB12: 増加数 | AE12: 増加率
F13: （順位） | H13: （順位） | J13: （順位） | L13: （順位） | N13: （順位） | P13: （順位） | R13: （順位） | T13: （順位） | V13: （順位） | X13: （順位） | Z13: （順位） | AC13: （順位） | AF13: （順位）
E14: （人） | F14: （昇順） | G14: （人） | H14: （昇順） | I14: （人） | J14: （昇順） | K14: （人） | L14: （昇順） | M14: （人） | N14: （昇順） | O14: （人） | P14: （昇順） | Q14: （人） | R14: （昇順） | S14: （人） | T14: （昇順） | U14: （人） | V14: （昇順） | W14: （人） | X14: （昇順） | Y14: （人） | Z14: （昇順） | AB14: （人） | AC14: （昇順） | AE14: （％） | AF14: （昇順）
B15: （合計特殊出生率との相関係数） | E15: -0.5641641277 | G15: -0.5613476035 | I15: -0.5546575189 | K15: -0.5506423361 | M15: -0.538044746 | O15: -0.5338797537 | Q15: -0.5322903461 | S15: -0.5300948463 | U15: -0.5277955107 | W15: -0.5267564881 | Y15: -0.5251497727 | AB15: 0.5739420751 | AE15: 0.1254402591
B16: （単純平均） | E16: 25991.17021 | G16: 25251 | I16: 25326.31915 | K16: 22603.40426 | M16: 22791.06383 | O16: 21352 | Q16: 21397.19149 | S16: 20791 | U16: 20129.68085 | W16: 19539.59574 | Y16: 18408.76596 | AB16: -2943.234043 | AE16: -0.1526027506
B17: （標準偏差） | E17: 22825.37366 | G17: 22583.24909 | I17: 23236.90451 | K17: 21356.60715 | M17: 22606.17671 | O17: 21936.58028 | Q17: 22245.00723 | S17: 21797.31039 | U17: 21180.28037 | W17: 20765.15559 | Y17: 19711.60745 | AB17: 2369.48982 | AE17: 0.0291479317
B18: （変動係数） | E18: 0.8781972289 | G18: 0.8943506826 | I18: 0.9175002642 | K18: 0.9448402953 | M18: 0.9918877362 | O18: 1.027378245 | Q18: 1.039622758 | S18: 1.04840125 | U18: 1.052191564 | W18: 1.062721863 | Y18: 1.070772886 | AB18: -0.8050633372 | AE18: -0.1910052839
B19: 全 国 | E19: 1221585 | G19: 1187064 | I19: 1190547 | K19: 1062530 | M19: 1071305 | O19: 1003609 | Q19: 1005721 | S19: 977242 | U19: 946146 | W19: 918400 | Y19: 865239 | AB19: -138370 | AE19: -0.1378724184
B20: 1 | C20: 北海道 | E20: 54428 | F20: 6 | G20: 49950 | H20: 8 | I20: 46780 | J20: 9 | K20: 41420 | L20: 9 | M20: 40158 | N20: 9 | O20: 37058 | P20: 9 | Q20: 36696 | R20: 9 | S20: 35129 | T20: 9 | U20: 34058 | V20: 9 | W20: 32642 | X20: 9 | Y20: 31020 | Z20: 9 | AB20: -6038 | AC20: 41 | AE20: -0.1629337795 | AF20: 31
B21: 2 | C21: 青森県 | E21: 14635 | F21: 27 | G21: 13972 | H21: 27 | I21: 12920 | J21: 31 | K21: 10524 | L21: 32 | M21: 9712 | N21: 34 | O21: 8853 | P21: 34 | Q21: 8621 | R21: 35 | S21: 8626 | T21: 34 | U21: 8035 | V21: 35 | W21: 7803 | X21: 34 | Y21: 7170 | Z21: 34 | AB21: -1683 | AC21: 19 | AE21: -0.1901050491 | AF21: 43
B22: 3 | C22: 岩手県 | E22: 14254 | F22: 29 | G22: 13021 | H22: 32 | I22: 12410 | J22: 32 | K22: 10545 | L22: 31 | M22: 9745 | N22: 33 | O22: 8803 | P22: 35 | Q22: 8814 | R22: 34 | S22: 8342 | T22: 35 | U22: 8175 | V22: 34 | W22: 7615 | X22: 35 | Y22: 6974 | Z22: 35 | AB22: -1829 | AC22: 21 | AE22: -0.2077700784 | AF22: 46
B23: 4 | C23: 宮城県 | E23: 23324 | F23: 15 | G23: 22267 | H23: 15 | I23: 22154 | J23: 14 | K23: 19326 | L23: 14 | M23: 19126 | N23: 14 | O23: 18069 | P23: 14 | Q23: 18023 | R23: 14 | S23: 17399 | T23: 14 | U23: 16681 | V23: 14 | W23: 16211 | X23: 14 | Y23: 14947 | Z23: 14 | AB23: -3122 | AC23: 35 | AE23: -0.172782113 | AF23: 35
B24: 5 | C24: 秋田県 | E24: 10992 | F24: 37 | G24: 9995 | H24: 38 | I24: 9007 | J24: 40 | K24: 7697 | L24: 40 | M24: 6688 | N24: 42 | O24: 5998 | P24: 43 | Q24: 5861 | R24: 43 | S24: 5666 | T24: 43 | U24: 5396 | V24: 43 | W24: 5040 | X24: 43 | Y24: 4696 | Z24: 43 | AB24: -1302 | AC24: 12 | AE24: -0.2170723575 | AF24: 47
B25: 6 | C25: 山形県 | E25: 12555 | F25: 33 | G25: 11507 | H25: 34 | I25: 10919 | J25: 35 | K25: 9357 | L25: 36 | M25: 8651 | N25: 36 | O25: 7966 | P25: 36 | Q25: 7831 | R25: 36 | S25: 7547 | T25: 36 | U25: 7259 | V25: 37 | W25: 6973 | X25: 36 | Y25: 6401 | Z25: 38 | AB25: -1565 | AC25: 17 | AE25: -0.1964599548 | AF25: 44
B26: 7 | C26: 福島県 | E26: 22721 | F26: 16 | G26: 21306 | H26: 16 | I26: 20332 | J26: 17 | K26: 17538 | L26: 18 | M26: 16126 | N26: 22 | O26: 14518 | P26: 23 | Q26: 14195 | R26: 23 | S26: 13745 | T26: 22 | U26: 13219 | V26: 23 | W26: 12495 | X26: 25 | Y26: 11552 | Z26: 25 | AB26: -2966 | AC26: 34 | AE26: -0.2042981127 | AF26: 45
B27: 8 | C27: 茨城県 | E27: 28784 | F27: 12 | G27: 28234 | H27: 11 | I27: 28220 | J27: 11 | K27: 24244 | L27: 12 | M27: 23989 | N27: 12 | O27: 21932 | P27: 12 | Q27: 21700 | R27: 12 | S27: 20878 | T27: 12 | U27: 20431 | V27: 12 | W27: 19368 | X27: 12 | Y27: 18004 | Z27: 12 | AB27: -3928 | AC27: 37 | AE27: -0.1790990334 | AF27: 38
B28: 9 | C28: 栃木県 | E28: 19995 | F28: 19 | G28: 18662 | H28: 20 | I28: 18976 | J28: 21 | K28: 17363 | L28: 19 | M28: 16473 | N28: 20 | O28: 15442 | P28: 20 | Q28: 15306 | R28: 21 | S28: 14621 | T28: 21 | U28: 14029 | V28: 21 | W28: 13495 | X28: 21 | Y28: 12608 | Z28: 21 | AB28: -2834 | AC28: 32 | AE28: -0.1835254501 | AF28: 41
B29: 10 | C29: 群馬県 | E29: 19470 | F29: 20 | G29: 19431 | H29: 19 | I29: 19445 | J29: 19 | K29: 17134 | L29: 20 | M29: 16023 | N29: 23 | O29: 14522 | P29: 22 | Q29: 14256 | R29: 22 | S29: 13661 | T29: 24 | U29: 13280 | V29: 22 | W29: 12922 | X29: 23 | Y29: 11901 | Z29: 23 | AB29: -2621 | AC29: 31 | AE29: -0.1804847817 | AF29: 39
B30: 11 | C30: 埼玉県 | E30: 63299 | F30: 5 | G30: 67750 | H30: 5 | I30: 66376 | J30: 5 | K30: 59731 | L30: 5 | M30: 59437 | N30: 5 | O30: 55765 | P30: 5 | Q30: 56078 | R30: 5 | S30: 54452 | T30: 5 | U30: 53076 | V30: 5 | W30: 51241 | X30: 5 | Y30: 48298 | Z30: 5 | AB30: -7467 | AC30: 44 | AE30: -0.1339011925 | AF30: 12
B31: 12 | C31: 千葉県 | E31: 53356 | F31: 8 | G31: 54388 | H31: 6 | I31: 55318 | J31: 6 | K31: 50588 | L31: 6 | M31: 51633 | N31: 6 | O31: 46753 | P31: 6 | Q31: 47019 | R31: 6 | S31: 45389 | T31: 6 | U31: 44055 | V31: 6 | W31: 43404 | X31: 6 | Y31: 40799 | Z31: 6 | AB31: -5954 | AC31: 40 | AE31: -0.1273501166 | AF31: 8
B32: 13 | C32: 東京都 | E32: 103983 | F32: 1 | G32: 96823 | H32: 1 | I32: 100209 | J32: 1 | K32: 96542 | L32: 1 | M32: 108135 | N32: 1 | O32: 110629 | P32: 1 | Q32: 113194 | R32: 1 | S32: 111964 | T32: 1 | U32: 108990 | V32: 1 | W32: 107150 | X32: 1 | Y32: 101818 | Z32: 1 | AB32: -8811 | AC32: 46 | AE32: -0.07964457782 | AF32: 1
B33: 14 | C33: 神奈川県 | E33: 79437 | F33: 3 | G33: 80692 | H33: 3 | I33: 82906 | J33: 3 | K33: 76196 | L33: 2 | M33: 78077 | N33: 2 | O33: 72997 | P33: 2 | Q33: 73476 | R33: 2 | S33: 70649 | T33: 2 | U33: 68133 | V33: 2 | W33: 66564 | X33: 2 | Y33: 63035 | Z33: 2 | AB33: -9962 | AC33: 47 | AE33: -0.1364713618 | AF33: 15
B34: 15 | C34: 新潟県 | E34: 24061 | F34: 14 | G34: 22694 | H34: 14 | I34: 21886 | J34: 15 | K34: 18505 | L34: 16 | M34: 18083 | N34: 15 | O34: 16480 | P34: 15 | Q34: 16340 | R34: 16 | S34: 15737 | T34: 16 | U34: 14967 | V34: 16 | W34: 14509 | X34: 16 | Y34: 13640 | Z34: 17 | AB34: -2840 | AC34: 33 | AE34: -0.1723300971 | AF34: 34
B35: 16 | C35: 富山県 | E35: 10050 | F35: 39 | G35: 10049 | H35: 37 | I35: 10170 | J35: 37 | K35: 8973 | L35: 37 | M35: 8188 | N35: 38 | O35: 7556 | P35: 38 | Q35: 7567 | R35: 38 | S35: 7302 | T35: 38 | U35: 7178 | V35: 38 | W35: 6846 | X35: 38 | Y35: 6604 | Z35: 37 | AB35: -952 | AC35: 8 | AE35: -0.1259925887 | AF35: 7
B36: 17 | C36: 石川県 | E36: 11535 | F36: 36 | G36: 11093 | H36: 36 | I36: 11467 | J36: 33 | K36: 10049 | L36: 33 | M36: 9602 | N36: 35 | O36: 8961 | P36: 33 | Q36: 9072 | R36: 33 | S36: 8928 | T36: 33 | U36: 8696 | V36: 32 | W36: 8359 | X36: 32 | Y36: 7808 | Z36: 32 | AB36: -1153 | AC36: 10 | AE36: -0.1286686754 | AF36: 9
B37: 18 | C37: 福井県 | E37: 8668 | F37: 42 | G37: 8244 | H37: 43 | I37: 8036 | J37: 43 | K37: 7148 | L37: 43 | M37: 6874 | N37: 41 | O37: 6166 | P37: 41 | Q37: 6230 | R37: 41 | S37: 6114 | T37: 41 | U37: 5856 | V37: 41 | W37: 5826 | X37: 41 | Y37: 5307 | Z37: 41 | AB37: -859 | AC37: 4 | AE37: -0.1393123581 | AF37: 16
B38: 19 | C38: 山梨県 | E38: 8582 | F38: 43 | G38: 8833 | H38: 41 | I38: 8374 | J38: 42 | K38: 7149 | L38: 42 | M38: 6651 | N38: 43 | O38: 6063 | P38: 42 | Q38: 5988 | R38: 42 | S38: 5819 | T38: 42 | U38: 5705 | V38: 42 | W38: 5556 | X38: 42 | Y38: 5193 | Z38: 42 | AB38: -870 | AC38: 5 | AE38: -0.1434933201 | AF38: 20
B39: 20 | C39: 長野県 | E39: 21384 | F39: 17 | G39: 21187 | H39: 17 | I39: 21194 | J39: 16 | K39: 18517 | L39: 15 | M39: 17233 | N39: 16 | O39: 15848 | P39: 17 | Q39: 15639 | R39: 17 | S39: 15171 | T39: 18 | U39: 14525 | V39: 19 | W39: 14184 | X39: 19 | Y39: 13553 | Z39: 18 | AB39: -2295 | AC39: 28 | AE39: -0.1448132256 | AF39: 23
B40: 21 | C40: 岐阜県 | E40: 20292 | F40: 18 | G40: 20187 | H40: 18 | I40: 20276 | J40: 18 | K40: 17706 | L40: 17 | M40: 16887 | N40: 18 | O40: 15138 | P40: 21 | Q40: 15467 | R40: 20 | S40: 14831 | T40: 20 | U40: 14040 | V40: 20 | W40: 13720 | X40: 20 | Y40: 12776 | Z40: 20 | AB40: -2362 | AC40: 29 | AE40: -0.1560311798 | AF40: 28
B41: 22 | C41: 静岡県 | E41: 37045 | F41: 10 | G41: 35345 | H41: 10 | I41: 35794 | J41: 10 | K41: 31908 | L41: 10 | M41: 31896 | N41: 10 | O41: 28684 | P41: 10 | Q41: 28352 | R41: 10 | S41: 27654 | T41: 10 | U41: 26261 | V41: 10 | W41: 25192 | X41: 10 | Y41: 23457 | Z41: 10 | AB41: -5227 | AC41: 38 | AE41: -0.1822270255 | AF41: 40
B42: 23 | C42: 愛知県 | E42: 70942 | F42: 4 | G42: 71899 | H42: 4 | I42: 74736 | J42: 4 | K42: 67110 | L42: 4 | M42: 69872 | N42: 4 | O42: 65219 | P42: 4 | Q42: 65615 | R42: 4 | S42: 64231 | T42: 4 | U42: 62436 | V42: 4 | W42: 61230 | X42: 4 | Y42: 57145 | Z42: 4 | AB42: -8074 | AC42: 45 | AE42: -0.1237982796 | AF42: 6
B43: 24 | C43: 三重県 | E43: 17917 | F43: 24 | G43: 17500 | H43: 23 | I43: 17726 | J43: 22 | K43: 15345 | L43: 24 | M43: 15262 | N43: 24 | O43: 13727 | P43: 25 | Q43: 13950 | R43: 25 | S43: 13376 | T43: 25 | U43: 12663 | V43: 25 | W43: 12582 | X43: 24 | Y43: 11690 | Z43: 24 | AB43: -2037 | AC43: 23 | AE43: -0.1483936767 | AF43: 24
B44: 25 | C44: 滋賀県 | E44: 13607 | F44: 31 | G44: 13320 | H44: 30 | I44: 14087 | J44: 27 | K44: 12899 | L44: 26 | M44: 13363 | N44: 26 | O44: 12729 | P44: 26 | Q44: 12622 | R44: 26 | S44: 12073 | T44: 26 | U44: 11600 | V44: 26 | W44: 11350 | X44: 26 | Y44: 10627 | Z44: 26 | AB44: -2102 | AC44: 24 | AE44: -0.1651347317 | AF44: 32
B45: 26 | C45: 京都府 | E45: 24209 | F45: 13 | G45: 23219 | H45: 13 | I45: 23997 | J45: 13 | K45: 21560 | L45: 13 | M45: 21234 | N45: 13 | O45: 19583 | P45: 13 | Q45: 19663 | R45: 13 | S45: 19327 | T45: 13 | U45: 18521 | V45: 13 | W45: 17909 | X45: 13 | Y45: 16993 | Z45: 13 | AB45: -2590 | AC45: 30 | AE45: -0.1322575703 | AF45: 11
B46: 27 | C46: 大阪府 | E46: 86840 | F46: 2 | G46: 86076 | H46: 2 | I46: 88163 | J46: 2 | K46: 76111 | L46: 3 | M46: 75080 | N46: 3 | O46: 69968 | P46: 3 | Q46: 70596 | R46: 3 | S46: 68817 | T46: 3 | U46: 66605 | V46: 3 | W46: 65446 | X46: 3 | Y46: 62557 | Z46: 3 | AB46: -7411 | AC46: 43 | AE46: -0.1059198491 | AF46: 3
B47: 28 | C47: 兵庫県 | E47: 53916 | F47: 7 | G47: 51947 | H47: 7 | I47: 54455 | J47: 7 | K47: 47273 | L47: 7 | M47: 47834 | N47: 7 | O47: 44352 | P47: 8 | Q47: 44016 | R47: 8 | S47: 43379 | T47: 8 | U47: 41606 | V47: 8 | W47: 39713 | X47: 8 | Y47: 38043 | Z47: 8 | AB47: -6309 | AC47: 42 | AE47: -0.1422483766 | AF47: 18
B48: 29 | C48: 奈良県 | E48: 13315 | F48: 32 | G48: 13337 | H48: 29 | I48: 13270 | J48: 28 | K48: 11184 | L48: 30 | M48: 10694 | N48: 30 | O48: 9625 | P48: 30 | Q48: 9832 | R48: 30 | S48: 9430 | T48: 30 | U48: 8965 | V48: 30 | W48: 8947 | X48: 30 | Y48: 8323 | Z48: 30 | AB48: -1302 | AC48: 12 | AE48: -0.1352727273 | AF48: 14
B49: 30 | C49: 和歌山県 | E49: 10126 | F49: 38 | G49: 9879 | H49: 39 | I49: 9566 | J49: 39 | K49: 7835 | L49: 39 | M49: 7587 | N49: 40 | O49: 7140 | P49: 40 | Q49: 7030 | R49: 40 | S49: 6659 | T49: 40 | U49: 6465 | V49: 40 | W49: 6070 | X49: 40 | Y49: 5869 | Z49: 40 | AB49: -1271 | AC49: 11 | AE49: -0.1780112045 | AF49: 36
B50: 31 | C50: 鳥取県 | E50: 6412 | F50: 47 | G50: 5723 | H50: 47 | I50: 5645 | J50: 47 | K50: 5012 | L50: 47 | M50: 4790 | N50: 47 | O50: 4527 | P50: 47 | Q50: 4624 | R50: 47 | S50: 4436 | T50: 47 | U50: 4310 | V50: 47 | W50: 4190 | X50: 47 | Y50: 3988 | Z50: 47 | AB50: -539 | AC50: 1 | AE50: -0.1190633974 | AF50: 4
B51: 32 | C51: 島根県 | E51: 7510 | F51: 45 | G51: 6764 | H51: 46 | I51: 6522 | J51: 46 | K51: 5697 | L51: 46 | M51: 5756 | N51: 45 | O51: 5359 | P51: 45 | Q51: 5551 | R51: 45 | S51: 5300 | T51: 45 | U51: 5109 | V51: 45 | W51: 4887 | X51: 45 | Y51: 4594 | Z51: 44 | AB51: -765 | AC51: 3 | AE51: -0.1427505132 | AF51: 19
B52: 33 | C52: 岡山県 | E52: 19117 | F52: 21 | G52: 18622 | H52: 21 | I52: 19059 | J52: 20 | K52: 16688 | L52: 21 | M52: 16759 | N52: 19 | O52: 15837 | P52: 18 | Q52: 15599 | R52: 18 | S52: 15477 | T52: 17 | U52: 14910 | V52: 17 | W52: 14485 | X52: 17 | Y52: 13695 | Z52: 16 | AB52: -2142 | AC52: 25 | AE52: -0.1352528888 | AF52: 13
B53: 34 | C53: 広島県 | E53: 28857 | F53: 11 | G53: 27609 | H53: 12 | I53: 27384 | J53: 12 | K53: 24740 | L53: 11 | M53: 25546 | N53: 11 | O53: 23776 | P53: 11 | Q53: 23679 | R53: 11 | S53: 22736 | T53: 11 | U53: 22150 | V53: 11 | W53: 21363 | X53: 11 | Y53: 20034 | Z53: 11 | AB53: -3742 | AC53: 36 | AE53: -0.1573855989 | AF53: 29
B54: 35 | C54: 山口県 | E54: 13729 | F54: 30 | G54: 13240 | H54: 31 | I54: 13121 | J54: 30 | K54: 11514 | L54: 29 | M54: 11551 | N54: 28 | O54: 10197 | P54: 29 | Q54: 10360 | R54: 28 | S54: 9844 | T54: 29 | U54: 9455 | V54: 29 | W54: 8987 | X54: 29 | Y54: 8771 | Z54: 28 | AB54: -1426 | AC54: 14 | AE54: -0.1398450525 | AF54: 17
B55: 36 | C55: 徳島県 | E55: 7943 | F55: 44 | G55: 7472 | H55: 44 | I55: 7224 | J55: 44 | K55: 5913 | L55: 45 | M55: 5904 | N55: 44 | O55: 5502 | P55: 44 | Q55: 5586 | R55: 44 | S55: 5346 | T55: 44 | U55: 5182 | V55: 44 | W55: 4998 | X55: 44 | Y55: 4554 | Z55: 45 | AB55: -948 | AC55: 7 | AE55: -0.1723009815 | AF55: 33
B56: 37 | C56: 香川県 | E56: 9555 | F56: 40 | G56: 9301 | H56: 40 | I56: 9808 | J56: 38 | K56: 8686 | L56: 38 | M56: 8397 | N56: 37 | O56: 7745 | P56: 37 | Q56: 7719 | R56: 37 | S56: 7510 | T56: 37 | U56: 7387 | V56: 36 | W56: 6899 | X56: 37 | Y56: 6631 | Z56: 36 | AB56: -1114 | AC56: 9 | AE56: -0.1438347321 | AF56: 21
B57: 38 | C57: 愛媛県 | E57: 14612 | F57: 28 | G57: 13849 | H57: 28 | I57: 13207 | J57: 29 | K57: 11528 | L57: 28 | M57: 11427 | N57: 29 | O57: 10399 | P57: 28 | Q57: 10146 | R57: 29 | S57: 9911 | T57: 28 | U57: 9569 | V57: 28 | W57: 9330 | X57: 28 | Y57: 8446 | Z57: 29 | AB57: -1953 | AC57: 22 | AE57: -0.1878065199 | AF57: 42
B58: 39 | C58: 高知県 | E58: 7182 | F58: 46 | G58: 6939 | H58: 45 | I58: 6811 | J58: 45 | K58: 5916 | L58: 44 | M58: 5518 | N58: 46 | O58: 5015 | P58: 46 | Q58: 5052 | R58: 46 | S58: 4779 | T58: 46 | U58: 4837 | V58: 46 | W58: 4559 | X58: 46 | Y58: 4270 | Z58: 46 | AB58: -745 | AC58: 2 | AE58: -0.148554337 | AF58: 25
B59: 40 | C59: 福岡県 | E59: 48164 | F59: 9 | G59: 46849 | H59: 9 | I59: 47290 | J59: 8 | K59: 43421 | L59: 8 | M59: 46818 | N59: 8 | O59: 45203 | P59: 7 | Q59: 45236 | R59: 7 | S59: 44036 | T59: 7 | U59: 43440 | V59: 7 | W59: 42008 | X59: 7 | Y59: 39754 | Z59: 7 | AB59: -5449 | AC59: 39 | AE59: -0.1205450966 | AF59: 5
B60: 41 | C60: 佐賀県 | E60: 9555 | F60: 40 | G60: 8729 | H60: 42 | I60: 8745 | J60: 41 | K60: 7508 | L60: 41 | M60: 7640 | N60: 39 | O60: 7159 | P60: 39 | Q60: 7064 | R60: 39 | S60: 6811 | T60: 39 | U60: 6743 | V60: 39 | W60: 6535 | X60: 39 | Y60: 6231 | Z60: 39 | AB60: -928 | AC60: 6 | AE60: -0.1296270429 | AF60: 10
B61: 42 | C61: 長崎県 | E61: 16517 | F61: 26 | G61: 14780 | H61: 26 | I61: 14098 | J61: 26 | K61: 12148 | L61: 27 | M61: 12004 | N61: 27 | O61: 11323 | P61: 27 | Q61: 11020 | R61: 27 | S61: 10886 | T61: 27 | U61: 10558 | V61: 27 | W61: 10135 | X61: 27 | Y61: 9585 | Z61: 27 | AB61: -1738 | AC61: 20 | AE61: -0.1534928906 | AF61: 26
B62: 43 | C62: 熊本県 | E62: 18992 | F62: 22 | G62: 17895 | H62: 22 | I62: 17262 | J62: 23 | K62: 15645 | L62: 23 | M62: 16246 | N62: 21 | O62: 15558 | P62: 19 | Q62: 15577 | R62: 19 | S62: 14896 | T62: 19 | U62: 14657 | V62: 18 | W62: 14301 | X62: 18 | Y62: 13305 | Z62: 19 | AB62: -2253 | AC62: 26 | AE62: -0.144812958 | AF62: 22
B63: 44 | C63: 大分県 | E63: 11631 | F63: 35 | G63: 11125 | H63: 35 | I63: 10910 | J63: 36 | K63: 9780 | L63: 34 | M63: 10072 | N63: 32 | O63: 9280 | P63: 32 | Q63: 9113 | R63: 32 | S63: 9059 | T63: 31 | U63: 8658 | V63: 33 | W63: 8200 | X63: 33 | Y63: 7624 | Z63: 33 | AB63: -1656 | AC63: 18 | AE63: -0.1784482759 | AF63: 37
B64: 45 | C64: 宮崎県 | E64: 12107 | F64: 34 | G64: 11693 | H64: 33 | I64: 11037 | J64: 34 | K64: 9738 | L64: 35 | M64: 10217 | N64: 31 | O64: 9509 | P64: 31 | Q64: 9226 | R64: 31 | S64: 8929 | T64: 32 | U64: 8797 | V64: 31 | W64: 8434 | X64: 31 | Y64: 8043 | Z64: 31 | AB64: -1466 | AC64: 15 | AE64: -0.1541697339 | AF64: 27
B65: 46 | C65: 鹿児島県 | E65: 18892 | F65: 23 | G65: 16649 | H65: 25 | I65: 16272 | J65: 25 | K65: 14834 | L65: 25 | M65: 15124 | N65: 25 | O65: 14236 | P65: 24 | Q65: 14125 | R65: 24 | S65: 13688 | T65: 23 | U65: 13209 | V65: 24 | W65: 12956 | X65: 22 | Y65: 11977 | Z65: 22 | AB65: -2259 | AC65: 27 | AE65: -0.1586822141 | AF65: 30
B66: 47 | C66: 沖縄県 | E66: 17088 | F66: 25 | G66: 16751 | H66: 24 | I66: 16773 | J66: 24 | K66: 16115 | L66: 22 | M66: 17098 | N66: 17 | O66: 16375 | P66: 16 | Q66: 16942 | R66: 15 | S66: 16617 | T66: 15 | U66: 16218 | V66: 15 | W66: 15732 | X66: 15 | Y66: 14902 | Z66: 15 | AB66: -1473 | AC66: 16 | AE66: -0.08995419847 | AF66: 2
B67: 資料等
B68: ○ 厚生労働省「人口動態統計（確定数）」より作成。
B69: ○ 合計特殊出生率との相関係数、単純平均、標準偏差は都道府県別データから機械的に計算。変動係数は、標準偏差／単純平均で機械的に計算。

Sheet ３．（２）就業者の割合（男性）
B5: ■男女別・配偶関係別・年齢階級別 就業者の割合（25～49歳） 男性
W7: ・・・上位10位を網掛け
W8: ・・・下位10位を網掛け
E9: 就業者の割合（H27）
E10: 未婚 | O10: 有配偶
E11: 25～29歳 | G11: 30～34歳 | I11: 35～39歳 | K11: 40～44歳 | M11: 45～49歳 | O11: 25～29歳 | Q11: 30～34歳 | S11: 35～39歳 | U11: 40～44歳 | W11: 45～49歳
F12: （順位） | H12: （順位） | J12: （順位） | L12: （順位） | N12: （順位） | P12: （順位） | R12: （順位） | T12: （順位） | V12: （順位） | X12: （順位）
E13: （％） | F13: （降順） | G13: （％） | H13: （降順） | I13: （％） | J13: （降順） | K13: （％） | L13: （降順） | M13: （％） | N13: （降順） | O13: （％） | P13: （降順） | Q13: （％） | R13: （降順） | S13: （％） | T13: （降順） | U13: （％） | V13: （降順） | W13: （％） | X13: （降順）
B14: （合計特殊出生率との相関係数） | E14: 0.07918037032 | G14: -0.04383186562 | I14: -0.1102616356 | K14: -0.1850246741 | M14: -0.2762719188 | O14: 0.09361753612 | Q14: -0.09024369146 | S14: -0.2104294009 | U14: -0.1912454485 | W14: -0.2213333859
B15: （単純平均） | E15: 84.81249504 | G15: 84.05369981 | I15: 82.20128854 | K15: 80.41693226 | M15: 77.46429582 | O15: 97.62561823 | Q15: 98.10597454 | S15: 98.28155421 | U15: 98.14254593 | W15: 97.7156132
B16: （標準偏差） | E16: 2.214398459 | G16: 2.110129708 | I16: 2.302181745 | K16: 2.692523109 | M16: 3.305090154 | O16: 0.547051467 | Q16: 0.3995678946 | S16: 0.3865181635 | U16: 0.4022942142 | W16: 0.4984496427
B17: （変動係数） | E17: 0.02610934223 | G17: 0.02510454285 | I17: 0.02800663817 | K17: 0.03348204207 | M17: 0.04266598074 | O17: 0.005603564689 | Q17: 0.004072819178 | S17: 0.003932764053 | U17: 0.004099080683 | W17: 0.005101023536
B18: 全 国 | E18: 85.04399655 | G18: 84.51829646 | I18: 82.68577381 | K18: 81.14623184 | M18: 78.61450931 | O18: 97.61124006 | Q18: 98.16270532 | S18: 98.34162107 | U18: 98.20043866 | W18: 97.78735697
B19: 1 | C19: 北海道 | E19: 82.86894258 | F19: 39 | G19: 81.62064909 | H19: 41 | I19: 79.78525905 | J19: 39 | K19: 78.47324687 | L19: 33 | M19: 75.12839325 | N19: 33 | O19: 97.82355873 | P19: 22 | Q19: 97.99072158 | R19: 31 | S19: 98.1018872 | T19: 35 | U19: 97.99215425 | V19: 32 | W19: 97.48491042 | X19: 39
B20: 2 | C20: 青森県 | E20: 83.44467191 | F20: 36 | G20: 81.74146529 | H20: 40 | I20: 79.82043299 | J20: 38 | K20: 77.29758469 | L20: 40 | M20: 73.54492371 | N20: 40 | O20: 97.92151163 | P20: 16 | Q20: 97.67675415 | R20: 40 | S20: 98.13053613 | T20: 33 | U20: 97.69963597 | V20: 42 | W20: 97.36100235 | X20: 41
B21: 3 | C21: 岩手県 | E21: 85.43726443 | F21: 17 | G21: 84.88325282 | H21: 17 | I21: 83.08791369 | J21: 17 | K21: 81.31102869 | L21: 20 | M21: 79.74497752 | N21: 17 | O21: 98.03468208 | P21: 11 | Q21: 98.59660164 | R21: 3 | S21: 98.47599353 | T21: 19 | U21: 98.37453952 | V21: 15 | W21: 97.95556272 | X21: 17
B22: 4 | C22: 宮城県 | E22: 82.44109654 | F22: 40 | G22: 82.79082639 | H22: 34 | I22: 81.84655291 | J22: 26 | K22: 80.21350763 | L22: 26 | M22: 77.54641386 | N22: 25 | O22: 97.153457 | P22: 39 | Q22: 97.99048123 | R22: 32 | S22: 98.22158672 | T22: 28 | U22: 98.08054551 | V22: 27 | W22: 97.69085278 | X22: 27
B23: 5 | C23: 秋田県 | E23: 83.79467681 | F23: 34 | G23: 83.48535345 | H23: 28 | I23: 81.52629573 | J23: 28 | K23: 79.70810811 | L23: 30 | M23: 75.91459445 | N23: 29 | O23: 97.6696226 | P23: 26 | Q23: 98.19114471 | R23: 24 | S23: 98.43554069 | T23: 20 | U23: 98.18040837 | V23: 25 | W23: 97.9398815 | X23: 18
B24: 6 | C24: 山形県 | E24: 86.20939938 | F24: 11 | G24: 85.90635141 | H24: 11 | I24: 84.40625568 | J24: 9 | K24: 81.93165541 | L24: 17 | M24: 80.37125298 | N24: 13 | O24: 98.35283919 | P24: 2 | Q24: 98.29258298 | R24: 18 | S24: 98.66161374 | T24: 7 | U24: 98.58632576 | V24: 5 | W24: 98.0385747 | X24: 12
B25: 7 | C25: 福島県 | E25: 85.95942263 | F25: 13 | G25: 83.81402611 | H25: 25 | I25: 83.03655573 | J25: 18 | K25: 81.48672752 | L25: 18 | M25: 79.33954832 | N25: 18 | O25: 97.51685578 | P25: 33 | Q25: 97.95570698 | R25: 36 | S25: 98.29412119 | T25: 24 | U25: 98.06603051 | V25: 28 | W25: 97.54029527 | X25: 35
B26: 8 | C26: 茨城県 | E26: 85.20949504 | F26: 23 | G26: 84.7810926 | H26: 19 | I26: 82.75308935 | J26: 23 | K26: 81.40441746 | L26: 19 | M26: 78.54078958 | N26: 23 | O26: 97.48683987 | P26: 36 | Q26: 97.98168955 | R26: 34 | S26: 98.29819939 | T26: 23 | U26: 98.23142269 | V26: 21 | W26: 97.81655934 | X26: 21
B27: 9 | C27: 栃木県 | E27: 85.21674482 | F27: 21 | G27: 84.08762371 | H27: 24 | I27: 82.35966956 | J27: 25 | K27: 81.24668903 | L27: 21 | M27: 79.03302447 | N27: 19 | O27: 97.7461913 | P27: 24 | Q27: 97.83086513 | R27: 38 | S27: 98.21433213 | T27: 29 | U27: 98.16971017 | V27: 26 | W27: 97.73530318 | X27: 25
B28: 10 | C28: 群馬県 | E28: 86.84734113 | F28: 9 | G28: 84.34491925 | H28: 23 | I28: 83.31100991 | J28: 15 | K28: 82.47901016 | L28: 14 | M28: 78.88794977 | N28: 21 | O28: 97.53877276 | P28: 32 | Q28: 98.12615882 | R28: 25 | S28: 98.30331576 | T28: 22 | U28: 98.34899723 | V28: 16 | W28: 97.81151285 | X28: 23
B29: 11 | C29: 埼玉県 | E29: 85.00500071 | F29: 24 | G29: 84.64946985 | H29: 20 | I29: 83.09932578 | J29: 16 | K29: 82.18533148 | L29: 15 | M29: 80.68699867 | N29: 11 | O29: 97.780391 | P29: 23 | Q29: 98.36962119 | R29: 15 | S29: 98.51802262 | T29: 17 | U29: 98.42763055 | V29: 13 | W29: 97.9933985 | X29: 14
B30: 12 | C30: 千葉県 | E30: 85.49828245 | F30: 16 | G30: 84.92322188 | H30: 16 | I30: 82.94665075 | J30: 20 | K30: 82.14717673 | L30: 16 | M30: 79.94179172 | N30: 16 | O30: 97.88646977 | P30: 18 | Q30: 98.36351152 | R30: 16 | S30: 98.57652181 | T30: 11 | U30: 98.3795114 | V30: 14 | W30: 97.98736153 | X30: 15
B31: 13 | C31: 東京都 | E31: 85.21118882 | F31: 22 | G31: 86.76877209 | H31: 5 | I31: 85.43144208 | J31: 5 | K31: 83.76429513 | L31: 6 | M31: 81.77302054 | N31: 2 | O31: 97.50646191 | P31: 34 | Q31: 98.30055944 | R31: 17 | S31: 98.50314805 | T31: 18 | U31: 98.32354307 | V31: 19 | W31: 97.97520248 | X31: 16
B32: 14 | C32: 神奈川県 | E32: 85.96347566 | F32: 12 | G32: 85.89449745 | H32: 12 | I32: 84.14614272 | J32: 12 | K32: 82.94487501 | L32: 11 | M32: 81.30291767 | N32: 7 | O32: 98.13520841 | P32: 6 | Q32: 98.55660842 | R32: 6 | S32: 98.70300339 | T32: 4 | U32: 98.56769435 | V32: 7 | W32: 98.19629379 | X32: 7
B33: 15 | C33: 新潟県 | E33: 85.337435 | F33: 18 | G33: 85.34802492 | H33: 15 | I33: 84.11085826 | J33: 13 | K33: 82.7280099 | L33: 13 | M33: 79.98653338 | N33: 15 | O33: 98.07121662 | P33: 8 | Q33: 98.38138594 | R33: 13 | S33: 98.64896235 | T33: 8 | U33: 98.49689318 | V33: 10 | W33: 98.28010871 | X33: 4
B34: 16 | C34: 富山県 | E34: 88.59421044 | F34: 3 | G34: 87.3446416 | H34: 3 | I34: 85.89862528 | J34: 3 | K34: 84.15799712 | L34: 4 | M34: 81.23569794 | N34: 8 | O34: 98.3974359 | P34: 1 | Q34: 98.78167277 | R34: 1 | S34: 98.87274549 | T34: 1 | U34: 98.85225064 | V34: 1 | W34: 98.44793202 | X34: 2
B35: 17 | C35: 石川県 | E35: 85.69208569 | F35: 15 | G35: 85.98550496 | H35: 10 | I35: 84.63922089 | J35: 8 | K35: 83.725264 | L35: 7 | M35: 81.04164046 | N35: 9 | O35: 97.97171833 | P35: 14 | Q35: 98.48119419 | R35: 7 | S35: 98.71652034 | T35: 3 | U35: 98.7609529 | V35: 2 | W35: 98.46630706 | X35: 1
B36: 18 | C36: 福井県 | E36: 88.22534778 | F36: 4 | G36: 87.71054965 | H36: 2 | I36: 86.28270839 | J36: 1 | K36: 84.46043165 | L36: 2 | M36: 81.76100629 | N36: 3 | O36: 98.26960051 | P36: 4 | Q36: 98.44684546 | R36: 9 | S36: 98.62941832 | T36: 10 | U36: 98.60232768 | V36: 4 | W36: 98.27278142 | X36: 5
B37: 19 | C37: 山梨県 | E37: 85.31400966 | F37: 20 | G37: 85.43807876 | H37: 14 | I37: 82.91891892 | J37: 21 | K37: 81.02935932 | L37: 22 | M37: 79.02178618 | N37: 20 | O37: 97.60297882 | P37: 29 | Q37: 98.07458452 | R37: 27 | S37: 98.04541939 | T37: 38 | U37: 97.94852667 | V37: 36 | W37: 97.46279842 | X37: 40
B38: 20 | C38: 長野県 | E38: 87.38653382 | F38: 7 | G38: 86.48325851 | H38: 7 | I38: 84.96584174 | J38: 7 | K38: 84.21993742 | L38: 3 | M38: 81.5022487 | N38: 5 | O38: 97.72209567 | P38: 25 | Q38: 98.56324035 | R38: 5 | S38: 98.42521675 | T38: 21 | U38: 98.3364771 | V38: 17 | W38: 98.14082449 | X38: 9
B39: 21 | C39: 岐阜県 | E39: 87.9796874 | F39: 5 | G39: 86.71274632 | H39: 6 | I39: 85.09503826 | J39: 6 | K39: 82.74050728 | L39: 12 | M39: 80.20861927 | N39: 14 | O39: 98.11411992 | P39: 7 | Q39: 98.40687174 | R39: 11 | S39: 98.69236063 | T39: 6 | U39: 98.57671053 | V39: 6 | W39: 98.23604452 | X39: 6
B40: 22 | C40: 静岡県 | E40: 88.60587721 | F40: 2 | G40: 87.09209572 | H40: 4 | I40: 85.51183853 | J40: 4 | K40: 83.65134328 | L40: 8 | M40: 81.4931106 | N40: 6 | O40: 97.97094188 | P40: 15 | Q40: 98.46089455 | R40: 8 | S40: 98.53539125 | T40: 16 | U40: 98.53012957 | V40: 8 | W40: 98.06848428 | X40: 10
B41: 23 | C41: 愛知県 | E41: 89.43501183 | F41: 1 | G41: 88.51569228 | H41: 1 | I41: 86.15517179 | J41: 2 | K41: 84.61909184 | L41: 1 | M41: 82.11952268 | N41: 1 | O41: 98.32005046 | P41: 3 | Q41: 98.72022069 | R41: 2 | S41: 98.81436162 | T41: 2 | U41: 98.60309655 | V41: 3 | W41: 98.28384122 | X41: 3
B42: 24 | C42: 三重県 | E42: 87.81243545 | F42: 6 | G42: 86.32013602 | H42: 9 | I42: 84.26509337 | J42: 11 | K42: 83.51027397 | L42: 9 | M42: 81.03989586 | N42: 10 | O42: 97.98933473 | P42: 13 | Q42: 98.3727142 | R42: 14 | S42: 98.57192819 | T42: 12 | U42: 98.48737256 | V42: 11 | W42: 98.01134962 | X42: 13
B43: 25 | C43: 滋賀県 | E43: 86.95256197 | F43: 8 | G43: 86.43257116 | H43: 8 | I43: 84.33042213 | J43: 10 | K43: 83.78399022 | L43: 5 | M43: 81.55701754 | N43: 4 | O43: 97.87008583 | P43: 19 | Q43: 98.4402978 | R43: 10 | S43: 98.70082524 | T43: 5 | U43: 98.51297138 | V43: 9 | W43: 98.17142506 | X43: 8
B44: 26 | C44: 京都府 | E44: 80.91404215 | F44: 44 | G44: 82.57560518 | H44: 35 | I44: 81.18769637 | J44: 31 | K44: 79.89827766 | L44: 28 | M44: 77.2434231 | N44: 26 | O44: 96.34183596 | P44: 46 | Q44: 97.67571466 | R44: 41 | S44: 98.05242956 | T44: 37 | U44: 97.72035708 | V44: 41 | W44: 97.28670041 | X44: 42
B45: 27 | C45: 大阪府 | E45: 82.10520629 | F45: 41 | G45: 81.50938896 | H45: 42 | I45: 79.05502557 | J45: 43 | K45: 77.17807103 | L45: 41 | M45: 74.50663264 | N45: 37 | O45: 96.69818243 | P45: 43 | Q45: 97.54586229 | R45: 43 | S45: 97.79594528 | T45: 42 | U45: 97.59305174 | V45: 43 | W45: 97.0877193 | X45: 43
B46: 28 | C46: 兵庫県 | E46: 83.53615404 | F46: 35 | G46: 82.0015991 | H46: 37 | I46: 79.76945245 | J46: 40 | K46: 77.92970649 | L46: 35 | M46: 75.26547864 | N46: 32 | O46: 97.11746647 | P46: 40 | Q46: 98.01496675 | R46: 30 | S46: 98.14171675 | T46: 31 | U46: 97.99312881 | V46: 31 | W46: 97.54410692 | X46: 34
B47: 29 | C47: 奈良県 | E47: 80.20929667 | F47: 47 | G47: 80.10558488 | H47: 47 | I47: 77.39968691 | J47: 47 | K47: 75.95302927 | L47: 45 | M47: 72.58158849 | N47: 45 | O47: 96.36811327 | P47: 45 | Q47: 97.44542196 | R47: 44 | S47: 97.77546507 | T47: 43 | U47: 97.87193676 | V47: 39 | W47: 97.4940534 | X47: 38
B48: 30 | C48: 和歌山県 | E48: 84.64826487 | F48: 28 | G48: 83.48633007 | H48: 27 | I48: 80.7079646 | J48: 34 | K48: 77.84759511 | L48: 36 | M48: 73.80476556 | N48: 39 | O48: 97.01125176 | P48: 41 | Q48: 97.97163884 | R48: 35 | S48: 98.25727182 | T48: 27 | U48: 97.92995888 | V48: 37 | W48: 97.60553849 | X48: 29
B49: 31 | C49: 鳥取県 | E49: 84.76011289 | F49: 26 | G49: 84.62441315 | H49: 21 | I49: 82.94899849 | J49: 19 | K49: 80.56338028 | L49: 24 | M49: 78.54688267 | N49: 22 | O49: 98.21016166 | P49: 5 | Q49: 98.24298556 | R49: 21 | S49: 98.25783972 | T49: 26 | U49: 98.27456864 | V49: 20 | W49: 97.8160807 | X49: 22
B50: 32 | C50: 島根県 | E50: 84.63874346 | F50: 29 | G50: 85.78846679 | H50: 13 | I50: 83.84479197 | J50: 14 | K50: 83.07741523 | L50: 10 | M50: 80.51206094 | N50: 12 | O50: 97.57589488 | P50: 30 | Q50: 98.1948649 | R50: 23 | S50: 98.54091947 | T50: 15 | U50: 98.46647149 | V50: 12 | W50: 98.06415929 | X50: 11
B51: 33 | C51: 岡山県 | E51: 84.68913908 | F51: 27 | G51: 83.28648449 | H51: 30 | I51: 81.50673898 | J51: 29 | K51: 79.72024195 | L51: 29 | M51: 76.65339865 | N51: 28 | O51: 97.57009346 | P51: 31 | Q51: 98.02269802 | R51: 29 | S51: 98.2687273 | T51: 25 | U51: 98.22418304 | V51: 23 | W51: 97.56701248 | X51: 31
B52: 34 | C52: 広島県 | E52: 86.57908992 | F52: 10 | G52: 84.82102548 | H52: 18 | I52: 82.81255764 | J52: 22 | K52: 80.87362171 | L52: 23 | M52: 77.92805895 | N52: 24 | O52: 98.04887963 | P52: 10 | Q52: 98.58041419 | R52: 4 | S52: 98.55775414 | T52: 14 | U52: 98.32521711 | V52: 18 | W52: 97.93962226 | X52: 19
B53: 35 | C53: 山口県 | E53: 85.31820066 | F53: 19 | G53: 83.03522665 | H53: 31 | I53: 81.54318618 | J53: 27 | K53: 79.94238933 | L53: 27 | M53: 75.5265069 | N53: 31 | O53: 98.02026868 | P53: 12 | Q53: 98.40197403 | R53: 12 | S53: 98.6368388 | T53: 9 | U53: 98.21085846 | V53: 24 | W53: 97.87093516 | X53: 20
B54: 36 | C54: 徳島県 | E54: 81.05357143 | F54: 43 | G54: 80.29595902 | H54: 46 | I54: 78.37763771 | J54: 45 | K54: 75.33492111 | L54: 46 | M54: 70.2821693 | N54: 46 | O54: 96.81665869 | P54: 42 | Q54: 97.67261443 | R54: 42 | S54: 97.73706897 | T54: 44 | U54: 97.49017619 | V54: 45 | W54: 96.85579029 | X54: 45
B55: 37 | C55: 香川県 | E55: 85.92119276 | F55: 14 | G55: 83.64785809 | H55: 26 | I55: 81.45144302 | J55: 30 | K55: 79.64124574 | L55: 32 | M55: 75.57554505 | N55: 30 | O55: 97.65586847 | P55: 27 | Q55: 98.19747966 | R55: 22 | S55: 98.20279565 | T55: 30 | U55: 98.01689796 | V55: 30 | W55: 97.52070393 | X55: 36
B56: 38 | C56: 愛媛県 | E56: 84.45593094 | F56: 30 | G56: 82.91015625 | H56: 33 | I56: 80.54480731 | J56: 36 | K56: 77.74294671 | L56: 38 | M56: 74.91058279 | N56: 35 | O56: 97.49335798 | P56: 35 | Q56: 98.02587177 | R56: 28 | S56: 97.98919446 | T56: 41 | U56: 97.92232752 | V56: 38 | W56: 97.55206152 | X56: 32
B57: 39 | C57: 高知県 | E57: 81.22666063 | F57: 42 | G57: 80.91501529 | H57: 43 | I57: 79.82683983 | J57: 37 | K57: 76.62914692 | L57: 43 | M57: 73.47236705 | N57: 42 | O57: 97.30215827 | P57: 38 | Q57: 97.30271064 | R57: 46 | S57: 97.56318507 | T57: 46 | U57: 97.34378402 | V57: 46 | W57: 96.8452381 | X57: 46
B58: 40 | C58: 福岡県 | E58: 80.80714103 | F58: 46 | G58: 80.75669901 | H58: 45 | I58: 78.81933389 | J58: 44 | K58: 77.01344152 | L58: 42 | M58: 74.17254152 | N58: 38 | O58: 96.56416591 | P58: 44 | Q58: 97.36302162 | R58: 45 | S58: 97.62360733 | T58: 45 | U58: 97.54520577 | V58: 44 | W58: 96.98646672 | X58: 44
B59: 41 | C59: 佐賀県 | E59: 84.80888598 | F59: 25 | G59: 84.38872817 | H59: 22 | I59: 82.67092652 | J59: 24 | K59: 80.53836188 | L59: 25 | M59: 77.1942318 | N59: 27 | O59: 98.06394316 | P59: 9 | Q59: 98.27348066 | R59: 19 | S59: 98.56698223 | T59: 13 | U59: 98.22993442 | V59: 22 | W59: 97.74892882 | X59: 24
B60: 42 | C60: 長崎県 | E60: 84.34990694 | F60: 31 | G60: 82.32150492 | H60: 36 | I60: 79.69521896 | J60: 41 | K60: 77.7701189 | L60: 37 | M60: 72.93778679 | N60: 44 | O60: 97.91964777 | P60: 17 | Q60: 98.25840196 | R60: 20 | S60: 98.11904258 | T60: 34 | U60: 97.98445761 | V60: 34 | W60: 97.69333588 | X60: 26
B61: 43 | C61: 熊本県 | E61: 83.20846906 | F61: 38 | G61: 81.98619225 | H61: 38 | I61: 80.5990603 | J61: 35 | K61: 77.55235128 | L61: 39 | M61: 75.0978073 | N61: 34 | O61: 97.62125685 | P61: 28 | Q61: 97.83175404 | R61: 37 | S61: 98.09691298 | T61: 36 | U61: 98.02602189 | V61: 29 | W61: 97.49635919 | X61: 37
B62: 44 | C62: 大分県 | E62: 84.22545197 | F62: 32 | G62: 83.03011535 | H62: 32 | I62: 81.15691029 | J62: 32 | K62: 79.67687913 | L62: 31 | M62: 74.6873766 | N62: 36 | O62: 97.41961096 | P62: 37 | Q62: 97.74858048 | R62: 39 | S62: 98.01144358 | T62: 40 | U62: 97.97196299 | V62: 35 | W62: 97.54424984 | X62: 33
B63: 45 | C63: 宮崎県 | E63: 84.2005814 | F63: 33 | G63: 83.33012697 | H63: 29 | I63: 80.73910645 | J63: 33 | K63: 77.95610101 | L63: 34 | M63: 73.49955211 | N63: 41 | O63: 97.82457119 | P63: 21 | Q63: 97.98376364 | R63: 33 | S63: 98.13525609 | T63: 32 | U63: 97.98615481 | V63: 33 | W63: 97.61793796 | X63: 28
B64: 46 | C64: 鹿児島県 | E64: 83.22612325 | F64: 37 | G64: 81.76394293 | H64: 39 | I64: 79.19147603 | J64: 42 | K64: 76.42737896 | L64: 44 | M64: 73.42540895 | N64: 43 | O64: 97.86349026 | P64: 20 | Q64: 98.09664562 | R64: 26 | S64: 98.03486639 | T64: 39 | U64: 97.73744088 | V64: 40 | W64: 97.58092346 | X64: 30
B65: 47 | C65: 沖縄県 | E65: 80.86290249 | F65: 45 | G65: 80.8686467 | H65: 44 | I65: 77.88136837 | J65: 46 | K65: 75.10933494 | L65: 47 | M65: 70.2740623 | N65: 47 | O65: 96.04473818 | P65: 47 | Q65: 96.77700795 | R65: 47 | S65: 96.77681254 | T65: 47 | U65: 96.6997044 | V65: 47 | W65: 95.54728804 | X65: 47
B66: 資料等
B67: ○ 総務省「国勢調査」（平成27年）より作成。就業者の割合とは人口に占める就業者の割合であり、労働力状態不詳や年齢・国籍不詳は除いて算出した。
B68: ○ 合計特殊出生率との相関係数、単純平均、標準偏差は都道府県別データから機械的に計算。変動係数は、標準偏差／単純平均で機械的に計算。

Sheet ３．（２）就業者の割合（女性）
B5: ■男女別・配偶関係別・年齢階級別 就業者の割合（25～49歳） 女性
W7: ・・・上位10位を網掛け
W8: ・・・下位10位を網掛け
E9: 就業者の割合（H27）
E10: 未婚 | O10: 有配偶
E11: 25～29歳 | G11: 30～34歳 | I11: 35～39歳 | K11: 40～44歳 | M11: 45～49歳 | O11: 25～29歳 | Q11: 30～34歳 | S11: 35～39歳 | U11: 40～44歳 | W11: 45～49歳
F12: （順位） | H12: （順位） | J12: （順位） | L12: （順位） | N12: （順位） | P12: （順位） | R12: （順位） | T12: （順位） | V12: （順位） | X12: （順位）
E13: （％） | F13: （降順） | G13: （％） | H13: （降順） | I13: （％） | J13: （降順） | K13: （％） | L13: （降順） | M13: （％） | N13: （降順） | O13: （％） | P13: （降順） | Q13: （％） | R13: （降順） | S13: （％） | T13: （降順） | U13: （％） | V13: （降順） | W13: （％） | X13: （降順）
B14: （合計特殊出生率との相関係数） | E14: 0.1642550885 | G14: 0.1223976532 | I14: 0.07633106766 | K14: 0.1398316178 | M14: -0.07932301578 | O14: 0.2792094414 | Q14: 0.3912756589 | S14: 0.4874482301 | U14: 0.5297350347 | W14: 0.5121678102
B15: （単純平均） | E15: 86.13935654 | G15: 84.56608626 | I15: 82.76645855 | K15: 80.692113 | M15: 78.03214273 | O15: 62.63215957 | Q15: 64.09233907 | S15: 68.4523482 | U15: 73.80649557 | W15: 76.47424139
B16: （標準偏差） | E16: 1.590898943 | G16: 1.438278315 | I16: 1.476215435 | K16: 1.747881145 | M16: 1.971887881 | O16: 5.787739238 | Q16: 6.669620018 | S16: 6.86835807 | U16: 5.834308557 | W16: 4.852278743
B17: （変動係数） | E17: 0.01846889745 | G17: 0.01700774363 | I17: 0.01783591398 | K17: 0.02166111507 | M17: 0.02527020036 | O17: 0.09240842529 | Q17: 0.1040626714 | S17: 0.1003378007 | U17: 0.07904871397 | W17: 0.06344984475
B18: 全 国 | E18: 86.24522226 | G18: 84.93159556 | I18: 83.16888648 | K18: 81.22412455 | M18: 78.92670219 | O18: 60.52861697 | Q18: 60.67685708 | S18: 63.95109126 | U18: 69.65173895 | W18: 73.1428424
B19: 1 | C19: 北海道 | E19: 84.44886977 | F19: 41 | G19: 83.10079486 | H19: 39 | I19: 81.71768497 | J19: 35 | K19: 80.41444348 | L19: 27 | M19: 78.15234093 | N19: 24 | O19: 55.6241375 | P19: 44 | Q19: 57.16153745 | R19: 40 | S19: 62.21996821 | T19: 39 | U19: 68.41751449 | V19: 39 | W19: 71.45521239 | X19: 39
B20: 2 | C20: 青森県 | E20: 82.93233083 | F20: 46 | G20: 80.95238095 | H20: 47 | I20: 79.37112393 | J20: 47 | K20: 77.1218587 | L20: 46 | M20: 74.51680048 | N20: 45 | O20: 67.96126724 | P20: 11 | Q20: 71.26372708 | R20: 10 | S20: 74.0531897 | T20: 12 | U20: 76.36286949 | V20: 16 | W20: 76.74046227 | X20: 26
B21: 3 | C21: 岩手県 | E21: 85.90320765 | F21: 26 | G21: 84.29023956 | H21: 28 | I21: 82.52925722 | J21: 26 | K21: 80.43388713 | L21: 26 | M21: 78.0873753 | N21: 25 | O21: 68.70243714 | P21: 10 | Q21: 71.12114772 | R21: 11 | S21: 74.99090799 | T21: 10 | U21: 78.43949159 | V21: 11 | W21: 79.875298 | X21: 12
B22: 4 | C22: 宮城県 | E22: 84.67942613 | F22: 35 | G22: 84.36617232 | H22: 27 | I22: 82.6459189 | J22: 25 | K22: 79.86143808 | L22: 37 | M22: 76.39476903 | N22: 38 | O22: 58.9925469 | P22: 31 | Q22: 60.65711879 | R22: 30 | S22: 64.62943094 | T22: 33 | U22: 69.44726302 | V22: 36 | W22: 72.57008329 | X22: 36
B23: 5 | C23: 秋田県 | E23: 85.16705069 | F23: 34 | G23: 83.32474227 | H23: 37 | I23: 81.60180122 | J23: 37 | K23: 78.00706451 | L23: 44 | M23: 75.13039355 | N23: 43 | O23: 73.9738251 | P23: 3 | Q23: 75.57141772 | R23: 3 | S23: 77.80045108 | T23: 8 | U23: 79.96925514 | V23: 9 | W23: 80.36553525 | X23: 10
B24: 6 | C24: 山形県 | E24: 88.03032624 | F24: 7 | G24: 85.18254251 | H24: 17 | I24: 82.83653846 | J24: 23 | K24: 80.64146621 | L24: 24 | M24: 79.02751803 | N24: 14 | O24: 74.68052848 | P24: 2 | Q24: 76.70623145 | R24: 2 | S24: 80.04573037 | T24: 3 | U24: 83.20091252 | V24: 3 | W24: 84.64323489 | X24: 2
B25: 7 | C25: 福島県 | E25: 84.37426901 | F25: 43 | G25: 82.70080673 | H25: 43 | I25: 81.37943454 | J25: 42 | K25: 77.99200082 | L25: 45 | M25: 75.80645161 | N25: 39 | O25: 63.84877595 | P25: 18 | Q25: 66.10363584 | R25: 17 | S25: 71.32736971 | T25: 16 | U25: 75.69966202 | V25: 17 | W25: 77.58762629 | X25: 19
B26: 8 | C26: 茨城県 | E26: 84.46356547 | F26: 40 | G26: 83.00940954 | H26: 42 | I26: 80.70612444 | J26: 43 | K26: 78.44036697 | L26: 42 | M26: 74.92872416 | N26: 44 | O26: 59.89717224 | P26: 28 | Q26: 60.76672283 | R26: 29 | S26: 65.20914116 | T26: 32 | U26: 70.59925851 | V26: 34 | W26: 74.34258018 | X26: 33
B27: 9 | C27: 栃木県 | E27: 84.53833618 | F27: 38 | G27: 82.28174725 | H27: 46 | I27: 80.67916633 | J27: 44 | K27: 78.73783808 | L27: 41 | M27: 75.80186239 | N27: 40 | O27: 59.93914214 | P27: 27 | Q27: 61.38564842 | R27: 26 | S27: 66.12408861 | T27: 28 | U27: 71.80198799 | V27: 31 | W27: 74.89757914 | X27: 32
B28: 10 | C28: 群馬県 | E28: 85.73363431 | F28: 30 | G28: 83.40363911 | H28: 36 | I28: 81.43327584 | J28: 40 | K28: 80.34846708 | L28: 29 | M28: 77.46714456 | N28: 33 | O28: 60.56607382 | P28: 24 | Q28: 62.65092212 | R28: 23 | S28: 68.71071446 | T28: 22 | U28: 74.39321326 | V28: 21 | W28: 76.83997011 | X28: 23
B29: 11 | C29: 埼玉県 | E29: 86.33416314 | F29: 21 | G29: 84.78412573 | H29: 21 | I29: 82.74956048 | J29: 24 | K29: 80.62719248 | L29: 25 | M29: 77.75023412 | N29: 30 | O29: 58.21340914 | P29: 37 | Q29: 56.34696101 | R29: 43 | S29: 59.16773815 | T29: 43 | U29: 66.47865869 | V29: 41 | W29: 71.27230037 | X29: 41
B30: 12 | C30: 千葉県 | E30: 86.69384122 | F30: 18 | G30: 84.92306043 | H30: 19 | I30: 83.10154576 | J30: 19 | K30: 80.86412438 | L30: 19 | M30: 78.92890552 | N30: 16 | O30: 58.24932759 | P30: 36 | Q30: 57.0757493 | R30: 41 | S30: 59.34926816 | T30: 42 | U30: 65.94536535 | V30: 42 | W30: 71.02663656 | X30: 42
B31: 13 | C31: 東京都 | E31: 87.46062762 | F31: 10 | G31: 87.94853791 | H31: 1 | I31: 86.69922091 | J31: 1 | K31: 85.04486634 | L31: 1 | M31: 83.15264375 | N31: 1 | O31: 66.14915474 | P31: 13 | Q31: 63.42524431 | R31: 21 | S31: 61.22437146 | T31: 41 | U31: 64.34612589 | V31: 44 | W31: 67.93511884 | X31: 44
B32: 14 | C32: 神奈川県 | E32: 87.10820558 | F32: 15 | G32: 85.60922944 | H32: 12 | I32: 83.77122291 | J32: 10 | K32: 81.79386534 | L32: 14 | M32: 80.09330266 | N32: 7 | O32: 59.63364886 | P32: 29 | Q32: 56.69441444 | R32: 42 | S32: 56.67916057 | T32: 46 | U32: 62.59154297 | V32: 47 | W32: 67.73107036 | X32: 45
B33: 15 | C33: 新潟県 | E33: 86.33100973 | F33: 22 | G33: 85.14588859 | H33: 18 | I33: 83.52505619 | J33: 13 | K33: 81.16324683 | L33: 16 | M33: 78.82516372 | N33: 17 | O33: 70.8908268 | P33: 5 | Q33: 72.97181162 | R33: 7 | S33: 77.98323575 | T33: 6 | U33: 81.92401961 | V33: 6 | W33: 83.39068904 | X33: 5
B34: 16 | C34: 富山県 | E34: 88.78274268 | F34: 3 | G34: 86.6464524 | H34: 4 | I34: 84.55369078 | J34: 6 | K34: 82.46711582 | L34: 8 | M34: 80.56768559 | N34: 4 | O34: 70.61249242 | P34: 6 | Q34: 74.16964902 | R34: 6 | S34: 78.48837209 | T34: 4 | U34: 82.97119929 | V34: 4 | W34: 84.58555312 | X34: 3
B35: 17 | C35: 石川県 | E35: 87.42798354 | F35: 12 | G35: 86.48678293 | H35: 5 | I35: 85.30037214 | J35: 4 | K35: 83.69030391 | L35: 3 | M35: 81.01212882 | N35: 2 | O35: 69.76793473 | P35: 9 | Q35: 72.58510168 | R35: 9 | S35: 77.1855782 | T35: 9 | U35: 81.28827542 | V35: 7 | W35: 82.83543746 | X35: 6
B36: 18 | C36: 福井県 | E36: 89.00179319 | F36: 2 | G36: 87.40432612 | H36: 2 | I36: 85.59651935 | J36: 3 | K36: 82.71276596 | L36: 5 | M36: 78.66004963 | N36: 18 | O36: 70.492303 | P36: 7 | Q36: 74.58816111 | R36: 5 | S36: 80.29542097 | T36: 2 | U36: 83.93723952 | V36: 2 | W36: 84.47095325 | X36: 4
B37: 19 | C37: 山梨県 | E37: 86.14631336 | F37: 24 | G37: 83.97305342 | H37: 30 | I37: 81.40122028 | J37: 41 | K37: 80.29523597 | L37: 31 | M37: 76.5140325 | N37: 37 | O37: 60.69219194 | P37: 23 | Q37: 63.99361827 | R37: 20 | S37: 70.66854414 | T37: 17 | U37: 75.5308642 | V37: 18 | W37: 77.66512308 | X37: 17
B38: 20 | C38: 長野県 | E38: 87.77096434 | F38: 9 | G38: 86.01814201 | H38: 7 | I38: 84.02908068 | J38: 7 | K38: 82.65236636 | L38: 6 | M38: 80.08582695 | N38: 8 | O38: 59.02186929 | P38: 30 | Q38: 61.33054817 | R38: 27 | S38: 70.06506137 | T38: 18 | U38: 78.41475298 | V38: 12 | W38: 81.5764576 | X38: 8
B39: 21 | C39: 岐阜県 | E39: 88.20977318 | F39: 6 | G39: 85.32818533 | H39: 15 | I39: 83.11809686 | J39: 17 | K39: 81.89869914 | L39: 11 | M39: 79.59344262 | N39: 10 | O39: 57.89174113 | P39: 38 | Q39: 59.66822654 | R39: 33 | S39: 68.67589602 | T39: 23 | U39: 77.13187388 | V39: 15 | W39: 79.80321077 | X39: 13
B40: 22 | C40: 静岡県 | E40: 87.95226934 | F40: 8 | G40: 85.85041971 | H40: 10 | I40: 83.95225464 | J40: 9 | K40: 81.89135714 | L40: 12 | M40: 79.46439013 | N40: 12 | O40: 58.9704199 | P40: 32 | Q40: 59.63343835 | R40: 34 | S40: 65.54270396 | T40: 29 | U40: 73.63250566 | V40: 24 | W40: 77.79131828 | X40: 16
B41: 23 | C41: 愛知県 | E41: 88.24052983 | F41: 5 | G41: 85.93222007 | H41: 9 | I41: 83.76477148 | J41: 11 | K41: 81.94219705 | L41: 10 | M41: 80.13257696 | N41: 5 | O41: 57.28532769 | P41: 39 | Q41: 56.1365569 | R41: 44 | S41: 61.38874641 | T41: 40 | U41: 69.44651034 | V41: 37 | W41: 73.24896543 | X41: 34
B42: 24 | C42: 三重県 | E42: 88.27091775 | F42: 4 | G42: 85.63637704 | H42: 11 | I42: 83.44533838 | J42: 15 | K42: 80.84843493 | L42: 20 | M42: 77.89550073 | N42: 27 | O42: 58.93716747 | P42: 33 | Q42: 60.81161241 | R42: 28 | S42: 67.10833377 | T42: 26 | U42: 73.55020344 | V42: 25 | W42: 77.20004549 | X42: 20
B43: 25 | C43: 滋賀県 | E43: 87.43490248 | F43: 11 | G43: 85.98155468 | H43: 8 | I43: 84.9909788 | J43: 5 | K43: 82.25806452 | L43: 9 | M43: 79.79466119 | N43: 9 | O43: 57.00897779 | P43: 41 | Q43: 57.24444095 | R43: 39 | S43: 62.34595135 | T43: 38 | U43: 71.12457478 | V43: 33 | W43: 75.95298782 | X43: 29
B44: 26 | C44: 京都府 | E44: 84.53996983 | F44: 37 | G44: 84.87534626 | H44: 20 | I44: 83.35029316 | J44: 16 | K44: 81.10707525 | L44: 17 | M44: 79.4820442 | N44: 11 | O44: 60.28235813 | P44: 26 | Q44: 60.58881676 | R44: 31 | S44: 62.86979662 | T44: 36 | U44: 68.38341586 | V44: 40 | W44: 71.32500386 | X44: 40
B45: 27 | C45: 大阪府 | E45: 84.54124562 | F45: 36 | G45: 83.62995853 | H45: 35 | I45: 81.89140151 | J45: 33 | K45: 80.0045983 | L45: 35 | M45: 77.92870232 | N45: 26 | O45: 56.21602256 | P45: 43 | Q45: 55.84645669 | R45: 45 | S45: 57.50330465 | T45: 44 | U45: 63.0970161 | V45: 45 | W45: 66.76146392 | X45: 47
B46: 28 | C46: 兵庫県 | E46: 85.53898809 | F46: 32 | G46: 84.16947385 | H46: 29 | I46: 82.04501099 | J46: 31 | K46: 80.27891505 | L46: 32 | M46: 77.83617747 | N46: 28 | O46: 55.05664114 | P46: 45 | Q46: 54.13023167 | R46: 46 | S46: 57.45313816 | T46: 45 | U46: 65.03845127 | V46: 43 | W46: 69.56168159 | X46: 43
B47: 29 | C47: 奈良県 | E47: 84.41545509 | F47: 42 | G47: 82.41922774 | H47: 44 | I47: 80.54908317 | J47: 45 | K47: 78.16795533 | L47: 43 | M47: 75.34551939 | N47: 42 | O47: 54.77764086 | P47: 46 | Q47: 53.24176402 | R47: 47 | S47: 56.1221829 | T47: 47 | U47: 62.99937666 | V47: 46 | W47: 67.06639887 | X47: 46
B48: 30 | C48: 和歌山県 | E48: 85.81548322 | F48: 28 | G48: 83.86192842 | H48: 33 | I48: 81.54605263 | J48: 39 | K48: 78.866846 | L48: 39 | M48: 75.48976926 | N48: 41 | O48: 53.60866622 | P48: 47 | Q48: 58.12702623 | R48: 38 | S48: 63.72158294 | T48: 35 | U48: 70.35894316 | V48: 35 | W48: 72.85596482 | X48: 35
B49: 31 | C49: 鳥取県 | E49: 87.25885402 | F49: 14 | G49: 86.39004149 | H49: 6 | I49: 83.97185301 | J49: 8 | K49: 82.55305868 | L49: 7 | M49: 80.11363636 | N49: 6 | O49: 72.87581699 | P49: 4 | Q49: 75.11261261 | R49: 4 | S49: 78.4373636 | T49: 5 | U49: 82.30293663 | V49: 5 | W49: 82.78539995 | X49: 7
B50: 32 | C50: 島根県 | E50: 89.19421213 | F50: 1 | G50: 86.69086509 | H50: 3 | I50: 85.6809943 | J50: 2 | K50: 84.57711443 | L50: 2 | M50: 80.94660194 | N50: 3 | O50: 75.3549518 | P50: 1 | Q50: 76.79446526 | R50: 1 | S50: 81.29319955 | T50: 1 | U50: 84.41708349 | V50: 1 | W50: 85.23778782 | X50: 1
B51: 33 | C51: 岡山県 | E51: 86.47531484 | F51: 19 | G51: 84.61209268 | H51: 23 | I51: 82.96418473 | J51: 22 | K51: 80.80922977 | L51: 21 | M51: 78.46153846 | N51: 20 | O51: 61.36350314 | P51: 21 | Q51: 61.84594437 | R51: 25 | S51: 66.76064924 | T51: 27 | U51: 73.68572901 | V51: 23 | W51: 76.89889366 | X51: 22
B52: 34 | C52: 広島県 | E52: 87.05256191 | F52: 17 | G52: 85.27404799 | H52: 16 | I52: 83.02650957 | J52: 20 | K52: 80.67335013 | L52: 23 | M52: 79.27835805 | N52: 13 | O52: 58.33862266 | P52: 35 | Q52: 59.05416242 | R52: 35 | S52: 64.31742232 | T52: 34 | U52: 71.53700699 | V52: 32 | W52: 75.29966686 | X52: 31
B53: 35 | C53: 山口県 | E53: 85.86332812 | F53: 27 | G53: 83.95256185 | H53: 31 | I53: 81.70264052 | J53: 36 | K53: 80.31674208 | L53: 30 | M53: 78.34859537 | N53: 22 | O53: 56.82021868 | P53: 42 | Q53: 58.36833523 | R53: 36 | S53: 65.46873822 | T53: 30 | U53: 72.6559387 | V53: 28 | W53: 76.29969419 | X53: 28
B54: 36 | C54: 徳島県 | E54: 83.31903025 | F54: 45 | G54: 82.36501421 | H54: 45 | I54: 80.50813815 | J54: 46 | K54: 76.8869936 | L54: 47 | M54: 73.49678926 | N54: 47 | O54: 64.54254183 | P54: 17 | Q54: 66.86179457 | R54: 16 | S54: 71.64634146 | T54: 15 | U54: 75.06781193 | V54: 19 | W54: 76.62733156 | X54: 27
B55: 37 | C55: 香川県 | E55: 87.08133971 | F55: 16 | G55: 83.87096774 | H55: 32 | I55: 81.93316677 | J55: 32 | K55: 79.88064791 | L55: 36 | M55: 77.07764823 | N55: 36 | O55: 63.21350341 | P55: 19 | Q55: 63.99838829 | R55: 19 | S55: 69.22505203 | T55: 20 | U55: 74.66715674 | V55: 20 | W55: 77.63662512 | X55: 18
B56: 38 | C56: 愛媛県 | E56: 85.6457004 | F56: 31 | G56: 83.30608538 | H56: 38 | I56: 81.74331551 | J56: 34 | K56: 78.80700991 | L56: 40 | M56: 77.73938085 | N56: 31 | O56: 58.75786303 | P56: 34 | Q56: 60.43110453 | R56: 32 | S56: 65.41599294 | T56: 31 | U56: 71.82864016 | V56: 30 | W56: 75.40437515 | X56: 30
B57: 39 | C57: 高知県 | E57: 84.188199 | F57: 44 | G57: 83.06576903 | H57: 40 | I57: 83.11057108 | J57: 18 | K57: 80.05756579 | L57: 34 | M57: 78.54821235 | N57: 19 | O57: 70.32213845 | P57: 8 | Q57: 72.63709318 | R57: 8 | S57: 77.98051519 | T57: 7 | U57: 81.02150538 | V57: 8 | W57: 81.37314801 | X57: 9
B58: 40 | C58: 福岡県 | E58: 84.52154281 | F58: 39 | G58: 83.75144204 | H58: 34 | I58: 82.4675164 | J58: 28 | K58: 80.74537571 | L58: 22 | M58: 78.44101891 | N58: 21 | O58: 57.12812707 | P58: 40 | Q58: 58.30861634 | R58: 37 | S58: 62.42034565 | T58: 37 | U58: 68.61698127 | V58: 38 | W58: 72.04334453 | X58: 37
B59: 41 | C59: 佐賀県 | E59: 87.26565264 | F59: 13 | G59: 85.4871041 | H59: 13 | I59: 83.67382881 | J59: 12 | K59: 82.90402991 | L59: 4 | M59: 78.2199516 | N59: 23 | O59: 65.3692752 | P59: 15 | Q59: 70.04057543 | R59: 13 | S59: 73.00869361 | T59: 14 | U59: 77.7135517 | V59: 13 | W59: 80.04738534 | X59: 11
B60: 42 | C60: 長崎県 | E60: 86.23222749 | F60: 23 | G60: 85.43424529 | H60: 14 | I60: 82.98049849 | J60: 21 | K60: 80.37640326 | L60: 28 | M60: 77.27584786 | N60: 35 | O60: 62.97502714 | P60: 20 | Q60: 65.42384461 | R60: 18 | S60: 69.11639102 | T60: 21 | U60: 73.83053105 | V60: 22 | W60: 76.94498782 | X60: 21
B61: 43 | C61: 熊本県 | E61: 85.80865402 | F61: 29 | G61: 84.55553394 | H61: 24 | I61: 83.51740295 | J61: 14 | K61: 81.81988743 | L61: 13 | M61: 79.02213804 | N61: 15 | O61: 65.38585728 | P61: 14 | Q61: 68.76850102 | R61: 14 | S61: 73.20465757 | T61: 13 | U61: 77.16247618 | V61: 14 | W61: 79.48864409 | X61: 14
B62: 44 | C62: 大分県 | E62: 85.98793899 | F62: 25 | G62: 84.49706537 | H62: 25 | I62: 82.49489735 | J62: 27 | K62: 80.10657194 | L62: 33 | M62: 77.70003588 | N62: 32 | O62: 61.2450634 | P62: 22 | Q62: 62.25250996 | R62: 24 | S62: 67.69743102 | T62: 25 | U62: 73.48413209 | V62: 27 | W62: 76.82172513 | X62: 24
B63: 45 | C63: 宮崎県 | E63: 85.19158291 | F63: 33 | G63: 84.4098513 | H63: 26 | I63: 82.09581705 | J63: 30 | K63: 81.08064254 | L63: 18 | M63: 77.36228388 | N63: 34 | O63: 66.95978552 | P63: 12 | Q63: 70.34424379 | R63: 12 | S63: 74.50657142 | T63: 11 | U63: 78.62130253 | V63: 10 | W63: 79.48243137 | X63: 15
B64: 46 | C64: 鹿児島県 | E64: 86.44265888 | F64: 20 | G64: 84.64695062 | H64: 22 | I64: 82.30429989 | J64: 29 | K64: 81.46828225 | L64: 15 | M64: 77.75847089 | N64: 29 | O64: 60.41408471 | P64: 25 | Q64: 62.82909755 | R64: 22 | S64: 67.90030919 | T64: 24 | U64: 73.53036509 | V64: 26 | W64: 76.81132993 | X64: 25
B65: 47 | C65: 沖縄県 | E65: 82.73276401 | F65: 47 | G65: 83.05965019 | H65: 41 | I65: 81.56682028 | J65: 38 | K65: 78.89234875 | L65: 38 | M65: 73.85406254 | N65: 46 | O65: 64.70109138 | P65: 16 | Q65: 67.27070842 | R65: 15 | S65: 69.91131143 | T65: 19 | U65: 72.23979962 | V65: 29 | W65: 71.71261238 | X65: 38
B66: 資料等
B67: ○ 総務省「国勢調査」（平成27年）より作成。就業者の割合とは人口に占める就業者の割合であり、労働力状態不詳や年齢・国籍不詳は除いて算出した。
B68: ○ 合計特殊出生率との相関係数、単純平均、標準偏差は都道府県別データから機械的に計算。変動係数は、標準偏差／単純平均で機械的に計算。

Sheet ３．（２）失業者の割合（男性）
B5: ■男女別・配偶関係別・年齢階級別 完全失業者の割合（25～49歳） 男性
W7: ・・・上位10位を網掛け
W8: ・・・下位10位を網掛け
E9: 完全失業者の割合（H27）
E10: 未婚 | O10: 有配偶
E11: 25～29歳 | G11: 30～34歳 | I11: 35～39歳 | K11: 40～44歳 | M11: 45～49歳 | O11: 25～29歳 | Q11: 30～34歳 | S11: 35～39歳 | U11: 40～44歳 | W11: 45～49歳
F12: （順位） | H12: （順位） | J12: （順位） | L12: （順位） | N12: （順位） | P12: （順位） | R12: （順位） | T12: （順位） | V12: （順位） | X12: （順位）
E13: （％） | F13: （昇順） | G13: （％） | H13: （昇順） | I13: （％） | J13: （昇順） | K13: （％） | L13: （昇順） | M13: （％） | N13: （昇順） | O13: （％） | P13: （昇順） | Q13: （％） | R13: （昇順） | S13: （％） | T13: （昇順） | U13: （％） | V13: （昇順） | W13: （％） | X13: （昇順）
B14: （合計特殊出生率との相関係数） | E14: -0.04086729514 | G14: -0.02087566129 | I14: -0.01394193581 | K14: 0.05360449815 | M14: 0.09723190165 | O14: -0.0137028324 | Q14: 0.03546548473 | S14: 0.1640521087 | U14: 0.1608669248 | W14: 0.2099060622
B15: （単純平均） | E15: 8.16890296 | G15: 9.452319936 | I15: 10.12506095 | K15: 10.48446835 | M15: 11.26464825 | O15: 1.514250807 | Q15: 1.241861379 | S15: 1.123423052 | U15: 1.176065698 | W15: 1.353149987
B16: （標準偏差） | E16: 1.260245941 | G16: 1.370639583 | I16: 1.396791495 | K16: 1.426119849 | M16: 1.485494475 | O16: 0.3712760014 | Q16: 0.2837931468 | S16: 0.2632202234 | U16: 0.2621444478 | W16: 0.3073393795
B17: （変動係数） | E17: 0.1542735845 | G17: 0.1450056275 | I17: 0.1379538851 | K17: 0.1360221427 | M17: 0.1318722468 | O17: 0.2451879171 | Q17: 0.2285224033 | S17: 0.2343019602 | U17: 0.2228994929 | W17: 0.2271288346
B18: 全 国 | E18: 7.869560847 | G18: 9.212506908 | I18: 9.960668131 | K18: 10.23510388 | M18: 10.90091774 | O18: 1.495188302 | Q18: 1.193832819 | S18: 1.066444838 | U18: 1.120392485 | W18: 1.29669748
B19: 1 | C19: 北海道 | E19: 9.093834643 | F19: 36 | G19: 10.29686527 | H19: 35 | I19: 10.65283546 | J19: 32 | K19: 10.83132717 | L19: 29 | M19: 11.71351228 | N19: 27 | O19: 1.375643795 | P19: 20 | Q19: 1.236599586 | R19: 25 | S19: 1.132322461 | T19: 24 | U19: 1.143587678 | V19: 24 | W19: 1.391407817 | X19: 27
B20: 2 | C20: 青森県 | E20: 9.901950221 | F20: 42 | G20: 11.50747986 | H20: 43 | I20: 11.70805879 | J20: 42 | K20: 12.22087194 | L20: 41 | M20: 14.15520814 | N20: 46 | O20: 1.380813953 | P20: 21 | Q20: 1.58677022 | R20: 42 | S20: 1.282051282 | T20: 35 | U20: 1.537448687 | V20: 43 | W20: 1.660140955 | X20: 42
B21: 3 | C21: 岩手県 | E21: 8.024253018 | F21: 20 | G21: 8.903650027 | H21: 16 | I21: 9.520338242 | J21: 16 | K21: 10.1127848 | L21: 20 | M21: 10.65039905 | N21: 21 | O21: 1.22029544 | P21: 13 | Q21: 1.063561989 | R21: 15 | S21: 0.9980219385 | T21: 17 | U21: 1.131745851 | V21: 22 | W21: 1.241985564 | X21: 18
B22: 4 | C22: 宮城県 | E22: 9.762275402 | F22: 41 | G22: 10.92393372 | H22: 40 | I22: 11.11336279 | J22: 36 | K22: 11.52505447 | L22: 34 | M22: 12.35257604 | N22: 34 | O22: 1.767284992 | P22: 37 | Q22: 1.374933897 | R22: 33 | S22: 1.30699971 | T22: 37 | U22: 1.295961423 | V22: 33 | W22: 1.454908237 | X22: 34
B23: 5 | C23: 秋田県 | E23: 9.551330798 | F23: 39 | G23: 9.787756534 | H23: 30 | I23: 10.70884146 | J23: 33 | K23: 10.38918919 | L23: 24 | M23: 12.15987502 | N23: 33 | O23: 1.505465044 | P23: 27 | Q23: 1.169906407 | R23: 21 | S23: 1.021078402 | T23: 19 | U23: 1.194107004 | V23: 26 | W23: 1.163233136 | X23: 16
B24: 6 | C24: 山形県 | E24: 7.379181032 | F24: 14 | G24: 8.15948076 | H24: 12 | I24: 8.728859793 | J24: 10 | K24: 9.699201964 | L24: 14 | M24: 10.47284585 | N24: 14 | O24: 1.228146222 | P24: 14 | Q24: 1.215680918 | R24: 24 | S24: 0.8922575074 | T24: 12 | U24: 0.9162703434 | V24: 7 | W24: 1.134824639 | X24: 13
B25: 7 | C25: 福島県 | E25: 8.455300966 | F25: 33 | G25: 10.02732359 | H25: 34 | I25: 9.98958385 | J25: 21 | K25: 10.26649879 | L25: 22 | M25: 10.56328782 | N25: 18 | O25: 1.858246999 | P25: 39 | Q25: 1.54984003 | R25: 40 | S25: 1.209459053 | T25: 31 | U25: 1.311425218 | V25: 34 | W25: 1.546796695 | X25: 38
B26: 8 | C26: 茨城県 | E26: 8.277184015 | F26: 26 | G26: 9.642257523 | H26: 23 | I26: 10.42359791 | J26: 26 | K26: 10.74894326 | L26: 28 | M26: 11.91913575 | N26: 30 | O26: 1.607516839 | P26: 31 | Q26: 1.349875156 | R26: 31 | S26: 1.129044064 | T26: 23 | U26: 1.188715897 | V26: 25 | W26: 1.348037277 | X26: 25
B27: 9 | C27: 栃木県 | E27: 8.229440695 | F27: 25 | G27: 9.196041366 | H27: 19 | I27: 9.997881805 | J27: 22 | K27: 10.03884867 | L27: 19 | M27: 10.5428843 | N27: 16 | O27: 1.468509502 | P27: 24 | Q27: 1.426872771 | R27: 36 | S27: 1.190445247 | T27: 29 | U27: 1.137125147 | V27: 23 | W27: 1.27819014 | X27: 21
B28: 10 | C28: 群馬県 | E28: 7.813818883 | F28: 17 | G28: 9.766804946 | H28: 29 | I28: 9.768729351 | J28: 19 | K28: 9.911621741 | L28: 17 | M28: 11.14465105 | N28: 23 | O28: 1.719487525 | P28: 36 | Q28: 1.353110576 | R28: 32 | S28: 1.20159499 | T28: 30 | U28: 1.057313082 | V28: 17 | W28: 1.340817672 | X28: 24
B29: 11 | C29: 埼玉県 | E29: 8.028131003 | F29: 21 | G29: 9.367515957 | H29: 21 | I29: 10.07390932 | J29: 23 | K29: 9.961567204 | L29: 18 | M29: 10.43914825 | N29: 13 | O29: 1.347444755 | P29: 18 | Q29: 1.090695615 | R29: 16 | S29: 0.9485218985 | T29: 16 | U29: 0.9925076461 | V29: 12 | W29: 1.210469427 | X29: 17
B30: 12 | C30: 千葉県 | E30: 7.757921958 | F30: 16 | G30: 8.985459268 | H30: 17 | I30: 9.921896351 | J30: 20 | K30: 9.730243936 | L30: 15 | M30: 10.58481128 | N30: 20 | O30: 1.276608648 | P30: 17 | Q30: 1.117694929 | R30: 18 | S30: 0.8943822981 | T30: 13 | U30: 0.998958589 | V30: 13 | W30: 1.139981945 | X30: 14
B31: 13 | C31: 東京都 | E31: 6.612431927 | F31: 5 | G31: 7.523262244 | H31: 5 | I31: 8.296574987 | J31: 5 | K31: 8.790480601 | L31: 8 | M31: 9.28941234 | N31: 7 | O31: 1.214670654 | P31: 11 | Q31: 0.9860108163 | R31: 13 | S31: 0.8524164152 | T31: 8 | U31: 0.9380217879 | V31: 9 | W31: 1.120959333 | X31: 11
B32: 14 | C32: 神奈川県 | E32: 7.07090401 | F32: 12 | G32: 8.127676208 | H32: 10 | I32: 9.074334372 | J32: 14 | K32: 9.211875997 | L32: 10 | M32: 9.653133201 | N32: 9 | O32: 1.088897216 | P32: 5 | Q32: 0.8603339409 | R32: 4 | S32: 0.7627010836 | T32: 4 | U32: 0.8441651448 | V32: 5 | W32: 0.9937517801 | X32: 5
B33: 15 | C33: 新潟県 | E33: 8.224212561 | F33: 24 | G33: 8.807749091 | H33: 15 | I33: 8.952373212 | J33: 12 | K33: 9.32525287 | L33: 11 | M33: 9.975656498 | N33: 11 | O33: 1.231454006 | P33: 15 | Q33: 0.9610520991 | R33: 8 | S33: 0.8681925809 | T33: 11 | U33: 1.000098629 | V33: 14 | W33: 1.044674707 | X33: 7
B34: 16 | C34: 富山県 | E34: 6.211359565 | F34: 2 | G34: 7.371218635 | H34: 3 | I34: 7.936240196 | J34: 3 | K34: 8.551129155 | L34: 5 | M34: 9.201493436 | N34: 5 | O34: 0.9278002699 | P34: 1 | Q34: 0.8072352194 | R34: 1 | S34: 0.7565130261 | T34: 3 | U34: 0.7215492747 | V34: 2 | W34: 0.9928032602 | X34: 4
B35: 17 | C35: 石川県 | E35: 6.687756688 | F35: 8 | G35: 7.995903576 | H35: 9 | I35: 8.632138114 | J35: 9 | K35: 8.856154051 | L35: 9 | M35: 9.749654045 | N35: 10 | O35: 1.085559206 | P35: 4 | Q35: 0.8799947852 | R35: 6 | S35: 0.7798921521 | T35: 5 | U35: 0.8111993428 | V35: 3 | W35: 0.9057241768 | X35: 1
B36: 18 | C36: 福井県 | E36: 6.248558912 | F36: 3 | G36: 7.380319149 | H36: 4 | I36: 7.634205557 | J36: 2 | K36: 8.54676259 | L36: 4 | M36: 9.5759789 | N36: 8 | O36: 1.217688528 | P36: 12 | Q36: 0.9839861084 | R36: 12 | S36: 1.016460096 | T36: 18 | U36: 0.9300100973 | V36: 8 | W36: 1.095890411 | X36: 9
B37: 19 | C37: 山梨県 | E37: 8.316610925 | F37: 30 | G37: 9.219497303 | H37: 20 | I37: 10.16216216 | J37: 25 | K37: 10.61452514 | L37: 27 | M37: 11.2826432 | N37: 24 | O37: 1.535955318 | P37: 28 | Q37: 1.327523308 | R37: 29 | S37: 1.392111369 | T37: 41 | U37: 1.390739063 | V37: 38 | W37: 1.643293009 | X37: 41
B38: 20 | C38: 長野県 | E38: 6.754485162 | F38: 10 | G38: 7.652073638 | H38: 6 | I38: 8.45586572 | J38: 7 | K38: 8.632096558 | L38: 6 | M38: 9.25179604 | N38: 6 | O38: 1.59453303 | P38: 30 | Q38: 0.9705769966 | R38: 10 | S38: 1.021207755 | T38: 20 | U38: 1.091624192 | V38: 19 | W38: 1.098310622 | X38: 10
B39: 21 | C39: 岐阜県 | E39: 6.586389345 | F39: 4 | G39: 7.946593397 | H39: 8 | I39: 8.580597383 | J39: 8 | K39: 9.405172845 | L39: 12 | M39: 10.20450178 | N39: 12 | O39: 1.233075435 | P39: 16 | Q39: 1.03883709 | R39: 14 | S39: 0.8386225179 | T39: 6 | U39: 0.9800023854 | V39: 11 | W39: 1.068930629 | X39: 8
B40: 22 | C40: 静岡県 | E40: 6.733528825 | F40: 9 | G40: 8.209273557 | H40: 13 | I40: 8.829620019 | J40: 11 | K40: 9.44238806 | L40: 13 | M40: 10.52310694 | N40: 15 | O40: 1.473780895 | P40: 25 | Q40: 1.111047695 | R40: 17 | S40: 1.041407352 | T40: 21 | U40: 1.022807952 | V40: 16 | W40: 1.257703283 | X40: 19
B41: 23 | C41: 愛知県 | E41: 5.582077573 | F41: 1 | G41: 6.923831841 | H41: 2 | I41: 8.051068581 | J41: 4 | K41: 8.484478037 | L41: 3 | M41: 9.17267049 | N41: 4 | O41: 1.037784531 | P41: 3 | Q41: 0.8293249295 | R41: 2 | S41: 0.7509257768 | T41: 2 | U41: 0.8188394018 | V41: 4 | W41: 0.9394705408 | X41: 2
B42: 24 | C42: 三重県 | E42: 6.627418577 | F42: 6 | G42: 7.714355113 | H42: 7 | I42: 8.454576698 | J42: 6 | K42: 8.025114155 | L42: 2 | M42: 8.867447737 | N42: 2 | O42: 1.171431069 | P42: 8 | Q42: 0.9697965893 | R42: 9 | S42: 0.8655863838 | T42: 10 | U42: 0.8640412252 | V42: 6 | W42: 1.125092524 | X42: 12
B43: 25 | C43: 滋賀県 | E43: 6.917716005 | F43: 11 | G43: 8.142790481 | H43: 11 | I43: 9.010189229 | J43: 13 | K43: 8.761075466 | L43: 7 | M43: 9.002192982 | N43: 3 | O43: 1.366959839 | P43: 19 | Q43: 0.9754028838 | R43: 11 | S43: 0.8484406589 | T43: 7 | U43: 0.9574752608 | V43: 10 | W43: 0.9957282031 | X43: 6
B44: 26 | C44: 京都府 | E44: 8.368458442 | F44: 31 | G44: 9.984577215 | H44: 33 | I44: 10.57755712 | J44: 29 | K44: 10.89662081 | L44: 30 | M44: 11.08973692 | N44: 22 | O44: 1.962731022 | P44: 42 | Q44: 1.383425125 | R44: 35 | S44: 1.112274274 | T44: 22 | U44: 1.348284384 | V44: 37 | W44: 1.514956282 | X44: 37
B45: 27 | C45: 大阪府 | E45: 9.568277587 | F45: 40 | G45: 11.5226159 | H45: 44 | I45: 12.72052112 | J45: 45 | K45: 12.82170262 | L45: 45 | M45: 13.22521293 | N45: 43 | O45: 2.249428733 | P45: 45 | Q45: 1.7178964 | R45: 44 | S45: 1.542772375 | T45: 44 | U45: 1.567991482 | V45: 44 | W45: 1.826656193 | X45: 45
B46: 28 | C46: 兵庫県 | E46: 8.827796228 | F46: 34 | G46: 10.85858156 | H46: 39 | I46: 11.66053861 | J46: 41 | K46: 11.96779025 | L46: 37 | M46: 12.56294518 | N46: 37 | O46: 1.8904508 | P46: 40 | Q46: 1.308513236 | R46: 28 | S46: 1.227111205 | T46: 32 | U46: 1.245591997 | V46: 29 | W46: 1.435677235 | X46: 32
B47: 29 | C47: 奈良県 | E47: 10.37722073 | F47: 45 | G47: 11.94081689 | H47: 47 | I47: 12.98508692 | J47: 47 | K47: 12.99353302 | L47: 47 | M47: 13.3231957 | N47: 44 | O47: 2.231455833 | P47: 44 | Q47: 1.798631476 | R47: 46 | S47: 1.465677984 | T47: 42 | U47: 1.416600791 | V47: 39 | W47: 1.59469329 | X47: 40
B48: 30 | C48: 和歌山県 | E48: 8.954575092 | F48: 35 | G48: 10.50688485 | H48: 36 | I48: 11.59882006 | J48: 40 | K48: 11.66457215 | L48: 35 | M48: 12.92851653 | N48: 41 | O48: 2.303094233 | P48: 46 | Q48: 1.55268354 | R48: 41 | S48: 1.297642929 | T48: 36 | U48: 1.427288624 | V48: 40 | W48: 1.473114362 | X48: 35
B49: 31 | C49: 鳥取県 | E49: 8.196142992 | F49: 23 | G49: 9.125586854 | H49: 18 | I49: 9.628008753 | J49: 17 | K49: 10.25352113 | L49: 21 | M49: 10.55473736 | N49: 17 | O49: 1.096997691 | P49: 6 | Q49: 1.184963225 | R49: 22 | S49: 1.180797522 | T49: 27 | U49: 1.116945903 | V49: 21 | W49: 1.282930173 | X49: 22
B50: 32 | C50: 島根県 | E50: 6.64921466 | F50: 7 | G50: 6.627493851 | H50: 1 | I50: 7.391560932 | J50: 1 | K50: 7.341650672 | L50: 1 | M50: 8.294540838 | N50: 1 | O50: 0.9741730856 | P50: 2 | Q50: 0.8633254849 | R50: 5 | S50: 0.6847081839 | T50: 1 | U50: 0.6761466611 | V50: 1 | W50: 0.9876738306 | X50: 3
B51: 33 | C51: 岡山県 | E51: 8.088063341 | F51: 22 | G51: 9.755310815 | H51: 28 | I51: 10.63201418 | J51: 31 | K51: 10.89868222 | L51: 31 | M51: 11.57379057 | N51: 26 | O51: 1.666666667 | P51: 33 | Q51: 1.251901252 | R51: 26 | S51: 1.185147651 | T51: 28 | U51: 1.197179976 | V51: 27 | W51: 1.495602717 | X51: 36
B52: 34 | C52: 広島県 | E52: 7.152853016 | F52: 13 | G52: 8.726217349 | H52: 14 | I52: 9.447744125 | J52: 15 | K52: 9.881255301 | L52: 16 | M52: 10.56815978 | N52: 19 | O52: 1.17880189 | P52: 9 | Q52: 0.835342963 | R52: 3 | S52: 0.8598357493 | T52: 9 | U52: 1.001401673 | V52: 15 | W52: 1.1485439 | X52: 15
B53: 35 | C53: 山口県 | E53: 7.882462687 | F53: 18 | G53: 9.728290552 | H53: 26 | I53: 10.12667946 | J53: 24 | K53: 10.51394785 | L53: 25 | M53: 11.75433136 | N53: 28 | O53: 1.190195616 | P53: 10 | Q53: 0.898889607 | R53: 7 | S53: 0.8990173531 | T53: 14 | U53: 1.096255815 | V53: 20 | W53: 1.258790163 | X53: 20
B54: 36 | C54: 徳島県 | E54: 9.991071429 | F54: 43 | G54: 11.43995447 | H54: 42 | I54: 12.16771718 | J54: 43 | K54: 12.63768979 | L54: 43 | M54: 13.76826096 | N54: 45 | O54: 1.962661561 | P54: 41 | Q54: 1.751080572 | R54: 45 | S54: 1.608682266 | T54: 46 | U54: 1.571808848 | V54: 45 | W54: 1.787606868 | X54: 44
B55: 37 | C55: 香川県 | E55: 7.468938587 | F55: 15 | G55: 9.501792791 | H55: 22 | I55: 10.52243522 | J55: 28 | K55: 10.34444811 | L55: 23 | M55: 11.7700869 | N55: 29 | O55: 1.644147811 | P55: 32 | Q55: 1.132557027 | R55: 19 | S55: 1.175948525 | T55: 26 | U55: 1.234513855 | V55: 28 | W55: 1.392339545 | X55: 28
B56: 38 | C56: 愛媛県 | E56: 8.307577534 | F56: 29 | G56: 9.647042411 | H56: 24 | I56: 11.14378579 | J56: 37 | K56: 12.06896552 | L56: 40 | M56: 12.0450242 | N56: 32 | O56: 1.767355897 | P56: 38 | Q56: 1.349831271 | R56: 30 | S56: 1.348661494 | T56: 39 | U56: 1.279077474 | V56: 32 | W56: 1.431453916 | X56: 30
B57: 39 | C57: 高知県 | E57: 10.85209913 | F57: 47 | G57: 10.81260806 | H57: 38 | I57: 11.32756133 | J57: 39 | K57: 12.36670616 | L57: 42 | M57: 12.63816475 | N57: 39 | O57: 1.708633094 | P57: 35 | Q57: 1.495526773 | R57: 38 | S57: 1.549053356 | T57: 45 | U57: 1.574860295 | V57: 46 | W57: 1.879251701 | X57: 46
B58: 40 | C58: 福岡県 | E58: 10.08319512 | F58: 44 | G58: 11.75643194 | H58: 46 | I58: 12.26941773 | J58: 44 | K58: 12.67247721 | L58: 44 | M58: 13.06010276 | N58: 42 | O58: 2.06735145 | P58: 43 | Q58: 1.671772049 | R58: 43 | S58: 1.525716039 | T58: 43 | U58: 1.50417628 | V58: 42 | W58: 1.722603545 | X58: 43
B59: 41 | C59: 佐賀県 | E59: 7.954916694 | F59: 19 | G59: 9.750348227 | H59: 27 | I59: 9.635782748 | J59: 18 | K59: 10.9831582 | L59: 33 | M59: 11.46519494 | N59: 25 | O59: 1.438721137 | P59: 22 | Q59: 1.199930939 | R59: 23 | S59: 0.9013098171 | T59: 15 | U59: 1.073646335 | V59: 18 | W59: 1.349363689 | X59: 26
B60: 42 | C60: 長崎県 | E60: 8.285030577 | F60: 28 | G60: 9.940145361 | H60: 31 | I60: 10.48312819 | J60: 27 | K60: 10.95123212 | L60: 32 | M60: 11.96243731 | N60: 31 | O60: 1.166758393 | P60: 7 | Q60: 1.146227465 | R60: 20 | S60: 1.160771023 | T60: 25 | U60: 1.270359462 | V60: 31 | W60: 1.340462097 | X60: 23
B61: 43 | C61: 熊本県 | E61: 9.527687296 | F61: 38 | G61: 10.9559214 | H61: 41 | I61: 11.11328635 | J61: 35 | K61: 11.97014709 | L61: 38 | M61: 12.39195706 | N61: 35 | O61: 1.687051877 | P61: 34 | Q61: 1.506186122 | R61: 39 | S61: 1.271865088 | T61: 34 | U61: 1.315054724 | V61: 35 | W61: 1.558578378 | X61: 39
B62: 44 | C62: 大分県 | E62: 8.442632636 | F62: 32 | G62: 9.979097314 | H62: 32 | I62: 10.62521649 | J62: 30 | K62: 10.60979214 | L62: 26 | M62: 12.51809925 | N62: 36 | O62: 1.587931719 | P62: 29 | Q62: 1.47233593 | R62: 37 | S62: 1.350717569 | T62: 40 | U62: 1.333171737 | V62: 36 | W62: 1.441015661 | X62: 33
B63: 45 | C63: 宮崎県 | E63: 8.284883721 | F63: 27 | G63: 9.696036937 | H63: 25 | I63: 11.06453392 | J63: 34 | K63: 12.0014161 | L63: 39 | M63: 12.64556584 | N63: 40 | O63: 1.492121043 | P63: 26 | Q63: 1.3774288 | R63: 34 | S63: 1.253107907 | T63: 33 | U63: 1.263148431 | V63: 30 | W63: 1.408523639 | X63: 29
B64: 46 | C64: 鹿児島県 | E64: 9.373925853 | F64: 37 | G64: 10.67444877 | H64: 37 | I64: 11.18771545 | J64: 38 | K64: 11.96160267 | L64: 36 | M64: 12.56734254 | N64: 38 | O64: 1.446398185 | P64: 23 | Q64: 1.271888575 | R64: 27 | S64: 1.323952449 | T64: 38 | U64: 1.444458648 | V64: 41 | W64: 1.435571813 | X64: 31
B65: 47 | C65: 沖縄県 | E65: 10.45334306 | F65: 46 | G65: 11.74972039 | H65: 45 | I65: 12.89091176 | J65: 46 | K65: 12.88644247 | L65: 46 | M65: 14.28304181 | N65: 47 | O65: 2.521606507 | P65: 47 | Q65: 1.960482422 | R65: 47 | S65: 1.875456686 | T65: 47 | U65: 2.041384107 | V65: 47 | W65: 2.639514392 | X65: 47
B66: 資料等
B67: ○ 総務省「国勢調査」（平成27年）より作成。完全失業者の割合とは人口に占める完全失業者の割合であり、労働力状態不詳や年齢・国籍不詳は除いて算出した。
B68: ○ 合計特殊出生率との相関係数、単純平均、標準偏差は都道府県別データから機械的に計算。変動係数は、標準偏差／単純平均で機械的に計算。

Sheet ３．（２）失業者の割合（女性）
B5: ■男女別・配偶関係別・年齢階級別 完全失業者の割合（25～49歳） 女性
W7: ・・・上位10位を網掛け
W8: ・・・下位10位を網掛け
E9: 完全失業者の割合（H27）
E10: 未婚 | O10: 有配偶
E11: 25～29歳 | G11: 30～34歳 | I11: 35～39歳 | K11: 40～44歳 | M11: 45～49歳 | O11: 25～29歳 | Q11: 30～34歳 | S11: 35～39歳 | U11: 40～44歳 | W11: 45～49歳
F12: （順位） | H12: （順位） | J12: （順位） | L12: （順位） | N12: （順位） | P12: （順位） | R12: （順位） | T12: （順位） | V12: （順位） | X12: （順位）
E13: （％） | F13: （昇順） | G13: （％） | H13: （昇順） | I13: （％） | J13: （昇順） | K13: （％） | L13: （昇順） | M13: （％） | N13: （昇順） | O13: （％） | P13: （昇順） | Q13: （％） | R13: （昇順） | S13: （％） | T13: （昇順） | U13: （％） | V13: （昇順） | W13: （％） | X13: （昇順）
B14: （合計特殊出生率との相関係数） | E14: -0.079204318 | G14: -0.1466660173 | I14: -0.2379435175 | K14: -0.2733478681 | M14: -0.2991607834 | O14: 0.1203643107 | Q14: 0.276904078 | S14: 0.2221436719 | U14: 0.2581819491 | W14: 0.2569410956
B15: （単純平均） | E15: 5.804952527 | G15: 6.0813617 | I15: 6.102894477 | K15: 6.079799825 | M15: 5.927751341 | O15: 1.758267888 | Q15: 1.370070737 | S15: 1.24325966 | U15: 1.278949989 | W15: 1.282131986
B16: （標準偏差） | E16: 0.8386539048 | G16: 0.7312845227 | I16: 0.6819159488 | K16: 0.6690531109 | M16: 0.6671068143 | O16: 0.2719199841 | Q16: 0.1895019468 | S16: 0.1562515797 | U16: 0.1509720951 | W16: 0.1831372373
B17: （変動係数） | E17: 0.1444721384 | G17: 0.120250128 | I17: 0.1117364803 | K17: 0.1100452532 | M17: 0.1125396084 | O17: 0.1546521926 | Q17: 0.1383154473 | S17: 0.1256789589 | U17: 0.1180437831 | W17: 0.1428380536
B18: 全 国 | E18: 5.707716925 | G18: 6.032056684 | I18: 6.140730635 | K18: 6.126667496 | M18: 6.044904734 | O18: 1.707808309 | Q18: 1.291599752 | S18: 1.182554643 | U18: 1.217311916 | W18: 1.240306079
B19: 1 | C19: 北海道 | E19: 6.720581305 | F19: 41 | G19: 6.77743954 | H19: 41 | I19: 6.709629446 | J19: 38 | K19: 6.596351905 | L19: 37 | M19: 6.381510866 | N19: 35 | O19: 1.638439343 | P19: 22 | Q19: 1.419891692 | R19: 30 | S19: 1.237650317 | T19: 25 | U19: 1.29530493 | V19: 25 | W19: 1.363464431 | X19: 35
B20: 2 | C20: 青森県 | E20: 7.846889952 | F20: 47 | G20: 7.727891156 | H20: 47 | I20: 7.768469155 | J20: 47 | K20: 7.408724514 | L20: 47 | M20: 7.136485281 | N20: 45 | O20: 2.757604463 | P20: 47 | Q20: 1.984503038 | R20: 47 | S20: 1.565393031 | T20: 46 | U20: 1.715229693 | V20: 47 | W20: 1.785714286 | X20: 46
B21: 3 | C21: 岩手県 | E21: 5.521947102 | F21: 20 | G21: 6.048307266 | H21: 24 | I21: 5.779794602 | J21: 14 | K21: 6.316078539 | L21: 26 | M21: 5.555555556 | N21: 14 | O21: 1.859165784 | P21: 35 | Q21: 1.562167906 | R21: 42 | S21: 1.519376086 | T21: 45 | U21: 1.368235336 | V21: 32 | W21: 1.3167064 | X21: 30
B22: 4 | C22: 宮城県 | E22: 6.801634358 | F22: 43 | G22: 7.009180791 | H22: 44 | I22: 6.687105918 | J22: 37 | K22: 7.257684805 | L22: 46 | M22: 7.404271333 | N22: 47 | O22: 1.870984323 | P22: 36 | Q22: 1.419018534 | R22: 29 | S22: 1.311820556 | T22: 32 | U22: 1.415220294 | V22: 39 | W22: 1.477832512 | X22: 41
B23: 5 | C23: 秋田県 | E23: 6.528417819 | F23: 37 | G23: 6.610824742 | H23: 34 | I23: 5.87005468 | J23: 16 | K23: 6.469604016 | L23: 34 | M23: 6.638217165 | N23: 39 | O23: 2.60261749 | P23: 46 | Q23: 1.700964386 | R23: 44 | S23: 1.428418 | T23: 40 | U23: 1.374202264 | V23: 35 | W23: 1.40517446 | X23: 38
B24: 6 | C24: 山形県 | E24: 5.138612345 | F24: 12 | G24: 5.601141634 | H24: 12 | I24: 6.105769231 | J24: 26 | K24: 5.517373043 | L24: 11 | M24: 5.770772108 | N24: 19 | O24: 2.02512454 | P24: 41 | Q24: 1.472266606 | R24: 38 | S24: 1.415882508 | T24: 38 | U24: 1.364852108 | V24: 31 | W24: 1.326173623 | X24: 32
B25: 7 | C25: 福島県 | E25: 6.732163743 | F25: 42 | G25: 6.713433883 | H25: 37 | I25: 6.203853773 | J25: 30 | K25: 6.583940109 | L25: 36 | M25: 5.877528704 | N25: 26 | O25: 1.741555624 | P25: 26 | Q25: 1.513741769 | R25: 39 | S25: 1.425158351 | T25: 39 | U25: 1.371361879 | V25: 33 | W25: 1.27229637 | X25: 27
B26: 8 | C26: 茨城県 | E26: 6.356547459 | F26: 33 | G26: 6.730492665 | H26: 39 | I26: 6.833811664 | J26: 42 | K26: 6.582866675 | L26: 35 | M26: 6.682109765 | N26: 42 | O26: 1.559554413 | P26: 11 | Q26: 1.26255443 | R26: 16 | S26: 1.133569837 | T26: 14 | U26: 1.216043141 | V26: 18 | W26: 1.274326375 | X26: 28
B27: 9 | C27: 栃木県 | E27: 6.546365118 | F27: 38 | G27: 6.598267494 | H27: 32 | I27: 6.791663314 | J27: 40 | K27: 6.41792377 | L27: 32 | M27: 6.272633213 | N27: 33 | O27: 1.837439288 | P27: 34 | Q27: 1.364606863 | R27: 25 | S27: 1.20048298 | T27: 21 | U27: 1.271528393 | V27: 23 | W27: 1.264103407 | X27: 25
B28: 10 | C28: 群馬県 | E28: 6.222039811 | F28: 31 | G28: 6.604545741 | H28: 33 | I28: 6.719460561 | J28: 39 | K28: 6.399731948 | L28: 29 | M28: 5.830346476 | N28: 22 | O28: 1.682922165 | P28: 23 | Q28: 1.462783601 | R28: 37 | S28: 1.230747085 | T28: 24 | U28: 1.354641725 | V28: 29 | W28: 1.319525996 | X28: 31
B29: 11 | C29: 埼玉県 | E29: 5.638858334 | F29: 21 | G29: 6.181922995 | H29: 26 | I29: 6.143621646 | J29: 27 | K29: 6.337458078 | L29: 27 | M29: 6.492039883 | N29: 37 | O29: 1.576819169 | P29: 12 | Q29: 1.217792266 | R29: 10 | S29: 1.098530715 | T29: 10 | U29: 1.128545684 | V29: 10 | W29: 1.193193039 | X29: 18
B30: 12 | C30: 千葉県 | E30: 5.443109143 | F30: 19 | G30: 5.949636302 | H30: 21 | I30: 6.075874333 | J30: 25 | K30: 6.050766715 | L30: 21 | M30: 5.869971936 | N30: 24 | O30: 1.543810544 | P30: 8 | Q30: 1.090840304 | R30: 2 | S30: 1.061979592 | T30: 6 | U30: 1.084969134 | V30: 6 | W30: 1.134397739 | X30: 10
B31: 13 | C31: 東京都 | E31: 4.781070151 | F31: 6 | G31: 4.920934451 | H31: 3 | I31: 5.178525274 | J31: 3 | K31: 5.344661421 | L31: 7 | M31: 5.472090469 | N31: 10 | O31: 1.597755258 | P31: 13 | Q31: 1.198348167 | R31: 8 | S31: 1.075393512 | T31: 8 | U31: 1.116535139 | V31: 9 | W31: 1.182390981 | X31: 16
B32: 14 | C32: 神奈川県 | E32: 5.28180911 | F32: 15 | G32: 5.749892035 | H32: 16 | I32: 6.049604882 | J32: 22 | K32: 6.038112121 | L32: 20 | M32: 5.879345603 | N32: 27 | O32: 1.439574113 | P32: 3 | Q32: 1.059075216 | R32: 1 | S32: 1.017796197 | T32: 3 | U32: 1.091500884 | V32: 7 | W32: 1.093072126 | X32: 8
B33: 15 | C33: 新潟県 | E33: 5.859617641 | F33: 25 | G33: 5.681697613 | H33: 14 | I33: 5.533518445 | J33: 10 | K33: 5.733252867 | L33: 15 | M33: 5.139908712 | N33: 4 | O33: 1.771718733 | P33: 28 | Q33: 1.541193996 | R33: 41 | S33: 1.335242829 | T33: 34 | U33: 1.371467705 | V33: 34 | W33: 1.192869848 | X33: 17
B34: 16 | C34: 富山県 | E34: 4.429892142 | F34: 2 | G34: 4.936325045 | H34: 4 | I34: 5.168572702 | J34: 2 | K34: 5.213346166 | L34: 3 | M34: 4.706453178 | N34: 2 | O34: 1.904184354 | P34: 38 | Q34: 1.318515728 | R34: 21 | S34: 1.149373882 | T34: 18 | U34: 1.237716345 | V34: 20 | W34: 1.04982764 | X34: 4
B35: 17 | C35: 石川県 | E35: 4.75994513 | F35: 5 | G35: 5.100361961 | H35: 5 | I35: 5.409356725 | J35: 8 | K35: 5.369030391 | L35: 9 | M35: 5.248849854 | N35: 5 | O35: 1.610681361 | P35: 15 | Q35: 1.398099027 | R35: 27 | S35: 1.33445878 | T35: 33 | U35: 1.339044899 | V35: 28 | W35: 1.225778039 | X35: 20
B36: 18 | C36: 福井県 | E36: 4.562661885 | F36: 3 | G36: 4.825291181 | H36: 2 | I36: 5.335470575 | J36: 7 | K36: 5.425531915 | L36: 10 | M36: 5.541770058 | N36: 13 | O36: 1.554641061 | P36: 10 | Q36: 1.426657208 | R36: 32 | S36: 1.276218612 | T36: 29 | U36: 1.201274822 | V36: 17 | W36: 1.150101637 | X36: 11
B37: 19 | C37: 山梨県 | E37: 6.173195084 | F37: 30 | G37: 6.720977597 | H37: 38 | I37: 7.027140753 | J37: 45 | K37: 6.620442854 | L37: 40 | M37: 6.58788774 | N37: 38 | O37: 1.772278883 | P37: 29 | Q37: 1.452682845 | R37: 36 | S37: 1.432594588 | T37: 41 | U37: 1.422222222 | V37: 41 | W37: 1.413599805 | X37: 39
B38: 20 | C38: 長野県 | E38: 4.890051947 | F38: 8 | G38: 5.530184548 | H38: 10 | I38: 5.331457161 | J38: 6 | K38: 5.005107252 | L38: 2 | M38: 5.404778474 | N38: 8 | O38: 1.689040146 | P38: 24 | Q38: 1.386251424 | R38: 26 | S38: 1.350414738 | T38: 37 | U38: 1.288863557 | V38: 24 | W38: 1.226002286 | X38: 21
B39: 21 | C39: 岐阜県 | E39: 4.917034556 | F39: 9 | G39: 5.686800602 | H39: 15 | I39: 5.760407816 | J39: 13 | K39: 5.360273088 | L39: 8 | M39: 5.560655738 | N39: 15 | O39: 1.605099892 | P39: 14 | Q39: 1.277897768 | R39: 18 | S39: 1.169854784 | T39: 19 | U39: 1.142413687 | V39: 13 | W39: 1.009839461 | X39: 1
B40: 22 | C40: 静岡県 | E40: 5.382484551 | F40: 18 | G40: 5.813953488 | H40: 18 | I40: 6.189213086 | J40: 29 | K40: 6.097670654 | L40: 22 | M40: 6.373523564 | N40: 34 | O40: 1.719983132 | P40: 25 | Q40: 1.245861788 | R40: 14 | S40: 1.115689146 | T40: 12 | U40: 1.174178279 | V40: 15 | W40: 1.245726279 | X40: 24
B41: 23 | C41: 愛知県 | E41: 4.724077867 | F41: 4 | G41: 5.36563761 | H41: 7 | I41: 5.833529929 | J41: 15 | K41: 5.652193456 | L41: 14 | M41: 5.529351775 | N41: 12 | O41: 1.629188016 | P41: 20 | Q41: 1.198574905 | R41: 9 | S41: 1.111757892 | T41: 11 | U41: 1.058988068 | V41: 3 | W41: 1.032705914 | X41: 2
B42: 24 | C42: 三重県 | E42: 4.858173398 | F42: 7 | G42: 5.313582431 | H42: 6 | I42: 5.584477047 | J42: 11 | K42: 5.220345964 | L42: 4 | M42: 5.370101597 | N42: 7 | O42: 1.539143653 | P42: 7 | Q42: 1.113088384 | R42: 4 | S42: 1.057926671 | T42: 5 | U42: 1.04393572 | V42: 2 | W42: 1.073581258 | X42: 5
B43: 25 | C43: 滋賀県 | E43: 5.059736547 | F43: 10 | G43: 5.375494071 | H43: 9 | I43: 5.187189896 | J43: 4 | K43: 5.285985362 | L43: 5 | M43: 4.928131417 | N43: 3 | O43: 1.614427469 | P43: 16 | Q43: 1.107880883 | R43: 3 | S43: 0.9823818348 | T43: 1 | U43: 1.11489087 | V43: 8 | W43: 1.079014444 | X43: 6
B44: 26 | C44: 京都府 | E44: 5.827742237 | F44: 23 | G44: 5.983379501 | H44: 23 | I44: 6.173377913 | J44: 28 | K44: 6.369263826 | L44: 28 | M44: 5.849447514 | N44: 23 | O44: 1.792312359 | P44: 31 | Q44: 1.287702706 | R44: 19 | S44: 1.14411142 | T44: 16 | U44: 1.141082029 | V44: 12 | W44: 1.167155124 | X44: 13
B45: 27 | C45: 大阪府 | E45: 6.588832079 | F45: 40 | G45: 6.874365467 | H45: 42 | I45: 6.993553717 | J45: 43 | K45: 6.973602908 | L45: 44 | M45: 6.882285153 | N45: 44 | O45: 1.824072776 | P45: 32 | Q45: 1.311811024 | R45: 20 | S45: 1.248811484 | T45: 28 | U45: 1.338787153 | V45: 27 | W45: 1.336442418 | X45: 33
B46: 28 | C46: 兵庫県 | E46: 6.034597119 | F46: 29 | G46: 6.304138595 | H46: 28 | I46: 6.65530275 | J46: 34 | K46: 6.443193449 | L46: 33 | M46: 6.484641638 | N46: 36 | O46: 1.768073235 | P46: 27 | Q46: 1.13317841 | R46: 5 | S46: 1.050442291 | T46: 4 | U46: 1.135390916 | V46: 11 | W46: 1.171660279 | X46: 14
B47: 29 | C47: 奈良県 | E47: 6.383190599 | F47: 34 | G47: 6.776989756 | H47: 40 | I47: 6.655860602 | J47: 35 | K47: 6.400343643 | L47: 30 | M47: 6.672611086 | N47: 40 | O47: 1.478660244 | P47: 4 | Q47: 1.157772866 | R47: 6 | S47: 1.136151984 | T47: 15 | U47: 1.164503882 | V47: 14 | W47: 1.157844991 | X47: 12
B48: 30 | C48: 和歌山県 | E48: 5.953786473 | F48: 27 | G48: 5.859126226 | H48: 20 | I48: 6.217105263 | J48: 31 | K48: 6.405514459 | L48: 31 | M48: 6.029603831 | N48: 31 | O48: 1.489505755 | P48: 5 | Q48: 1.348364279 | R48: 22 | S48: 1.218074656 | T48: 22 | U48: 1.077698592 | V48: 5 | W48: 1.03994869 | X48: 3
B49: 31 | C49: 鳥取県 | E49: 5.096458393 | F49: 11 | G49: 5.373443983 | H49: 8 | I49: 5.26452958 | J49: 5 | K49: 5.337078652 | L49: 6 | M49: 5.332167832 | N49: 6 | O49: 1.873638344 | P49: 37 | Q49: 1.351351351 | R49: 23 | S49: 1.178524662 | T49: 20 | U49: 1.375579598 | V49: 36 | W49: 1.182155492 | X49: 15
B50: 32 | C50: 島根県 | E50: 3.902827559 | F50: 1 | G50: 3.95240976 | H50: 1 | I50: 3.987571207 | J50: 1 | K50: 3.89230319 | L50: 1 | M50: 3.843042071 | N50: 1 | O50: 1.630148992 | P50: 21 | Q50: 1.41251081 | R50: 28 | S50: 1.062801932 | T50: 7 | U50: 1.064511992 | V50: 4 | W50: 1.083136073 | X50: 7
B51: 33 | C51: 岡山県 | E51: 5.304025342 | F51: 16 | G51: 5.820138167 | H51: 19 | I51: 5.984919887 | J51: 20 | K51: 5.801104972 | L51: 17 | M51: 5.793269231 | N51: 20 | O51: 1.623776306 | P51: 18 | Q51: 1.225442521 | R51: 11 | S51: 1.287815286 | T51: 30 | U51: 1.182895415 | V51: 16 | W51: 1.267129041 | X51: 26
B52: 34 | C52: 広島県 | E52: 5.333406872 | F52: 17 | G52: 5.586616773 | H52: 11 | I52: 5.8910162 | J52: 17 | K52: 5.854286174 | L52: 18 | M52: 5.463443138 | N52: 9 | O52: 1.626467788 | P52: 19 | Q52: 1.270075208 | R52: 17 | S52: 1.240294612 | T52: 26 | U52: 1.22306114 | V52: 19 | W52: 1.282729848 | X52: 29
B53: 35 | C53: 山口県 | E53: 5.25560772 | F53: 14 | G53: 5.614750301 | H53: 13 | I53: 5.587816369 | J53: 12 | K53: 5.560847821 | L53: 13 | M53: 5.478814217 | N53: 11 | O53: 1.783473741 | P53: 30 | Q53: 1.225478085 | R53: 12 | S53: 1.010634286 | T53: 2 | U53: 1.042145594 | V53: 1 | W53: 1.124702684 | X53: 9
B54: 36 | C54: 徳島県 | E54: 6.479296288 | F54: 35 | G54: 7.183454373 | H54: 45 | I54: 7.364033347 | J54: 46 | K54: 6.823027719 | L54: 43 | M54: 6.071220082 | N54: 32 | O54: 1.423994304 | P54: 2 | Q54: 1.234793744 | R54: 13 | S54: 1.468957871 | T54: 43 | U54: 1.356238698 | V54: 30 | W54: 1.364040096 | X54: 36
B55: 37 | C55: 香川県 | E55: 5.24606972 | F55: 13 | G55: 6.674534487 | H55: 35 | I55: 5.93379138 | J55: 19 | K55: 6.257459506 | L55: 25 | M55: 5.879434384 | N55: 28 | O55: 1.546192501 | P55: 9 | Q55: 1.262507555 | R55: 15 | S55: 1.09008027 | T55: 9 | U55: 1.249693703 | V55: 22 | W55: 1.222435283 | X55: 19
B56: 38 | C56: 愛媛県 | E56: 5.834092981 | F56: 24 | G56: 6.303360581 | H56: 27 | I56: 6.673796791 | J56: 36 | K56: 6.748666594 | L56: 41 | M56: 5.874730022 | N56: 25 | O56: 1.621334278 | P56: 17 | Q56: 1.357357931 | R56: 24 | S56: 1.128178745 | T56: 13 | U56: 1.246029053 | V56: 21 | W56: 1.232872008 | X56: 22
B57: 39 | C57: 高知県 | E57: 7.031752153 | F57: 45 | G57: 6.128085621 | H57: 25 | I57: 5.994329688 | J57: 21 | K57: 6.25 | L57: 24 | M57: 5.82340195 | N57: 21 | O57: 1.53072881 | P57: 6 | Q57: 1.64957646 | R57: 43 | S57: 1.345772787 | T57: 35 | U57: 1.512096774 | V57: 45 | W57: 1.244844967 | X57: 23
B58: 40 | C58: 福岡県 | E58: 6.83957132 | F58: 44 | G58: 6.929589582 | H58: 43 | I58: 6.808563297 | J58: 41 | K58: 6.605741259 | L58: 38 | M58: 6.679785722 | N58: 41 | O58: 1.973829573 | P58: 40 | Q58: 1.45088734 | R58: 35 | S58: 1.349944111 | T58: 36 | U58: 1.419702021 | V58: 40 | W58: 1.585913029 | X58: 44
B59: 41 | C59: 佐賀県 | E59: 5.916165547 | F59: 26 | G59: 5.9601764 | H59: 22 | I59: 5.459668897 | J59: 9 | K59: 5.525550478 | L59: 12 | M59: 5.700457112 | N59: 18 | O59: 1.334066841 | P59: 1 | Q59: 1.180376245 | R59: 7 | S59: 1.145441729 | T59: 17 | U59: 1.396917148 | V59: 38 | W59: 1.404636994 | X59: 37
B60: 42 | C60: 長崎県 | E60: 5.764218009 | F60: 22 | G60: 5.812665133 | H60: 17 | I60: 5.913025342 | J60: 18 | K60: 5.877173674 | L60: 19 | M60: 5.657009474 | N60: 16 | O60: 2.180600796 | P60: 45 | Q60: 1.425015861 | R60: 31 | S60: 1.242332479 | T60: 27 | U60: 1.325120693 | V60: 26 | W60: 1.359003398 | X60: 34
B61: 43 | C61: 熊本県 | E61: 6.583614116 | F61: 39 | G61: 6.354146405 | H61: 29 | I61: 6.065930388 | J61: 23 | K61: 5.750469043 | L61: 16 | M61: 5.942938321 | N61: 30 | O61: 2.066515983 | P61: 43 | Q61: 1.437283783 | R61: 33 | S61: 1.302053459 | T61: 31 | U61: 1.443826532 | V61: 42 | W61: 1.45246838 | X61: 40
B62: 44 | C62: 大分県 | E62: 6.009223129 | F62: 28 | G62: 6.699048776 | H62: 36 | I62: 6.075159083 | J62: 24 | K62: 6.74955595 | L62: 42 | M62: 6.709723717 | N62: 43 | O62: 1.922677198 | P62: 39 | Q62: 1.441471759 | R62: 34 | S62: 1.21961768 | T62: 23 | U62: 1.380640769 | V62: 37 | W62: 1.516692086 | X62: 43
B63: 45 | C63: 宮崎県 | E63: 6.50910804 | F63: 36 | G63: 6.482342007 | H63: 31 | I63: 6.238239977 | J63: 32 | K63: 6.620152523 | L63: 39 | M63: 5.689585846 | N63: 17 | O63: 2.123324397 | P63: 44 | Q63: 1.755079007 | R63: 46 | S63: 1.474561524 | T63: 44 | U63: 1.451483221 | V63: 43 | W63: 1.620295357 | X63: 45
B64: 46 | C64: 鹿児島県 | E64: 6.242999757 | F64: 32 | G64: 6.374699307 | H64: 30 | I64: 6.606027196 | J64: 33 | K64: 6.150086549 | L64: 23 | M64: 5.895494601 | N64: 29 | O64: 1.8371364 | P64: 33 | Q64: 1.525642977 | R64: 40 | S64: 1.436646991 | T64: 42 | U64: 1.464478298 | V64: 44 | W64: 1.501337223 | X64: 42
B65: 47 | C65: 沖縄県 | E65: 7.519266819 | F65: 46 | G65: 7.202321851 | H65: 46 | I65: 7.01484895 | J65: 44 | K65: 7.050711744 | L65: 45 | M65: 7.196915608 | N65: 46 | O65: 2.04430689 | P65: 42 | Q65: 1.754385965 | R65: 45 | S65: 1.613841233 | T65: 47 | U65: 1.555599499 | V65: 46 | W65: 1.835341515 | X65: 47
B66: 資料等
B67: ○ 総務省「国勢調査」（平成27年）より作成。完全失業者の割合とは人口に占める完全失業者の割合であり、労働力状態不詳や年齢・国籍不詳は除いて算出した。
B68: ○ 合計特殊出生率との相関係数、単純平均、標準偏差は都道府県別データから機械的に計算。変動係数は、標準偏差／単純平均で機械的に計算。

Sheet ３．（２）不安定雇用の割合（男性）
B5: ■男女別・配偶関係別・年齢階級別 就業者に占める労働者派遣事業所の派遣社員とパート・アルバイト・その他の割合（25～49歳） 男性
W7: ・・・上位10位を網掛け
W8: ・・・下位10位を網掛け
E9: 就業者に占める労働者派遣事業所の派遣社員とパート・アルバイト・その他の割合（H27）
E10: 未婚 | O10: 有配偶
E11: 25～29歳 | G11: 30～34歳 | I11: 35～39歳 | K11: 40～44歳 | M11: 45～49歳 | O11: 25～29歳 | Q11: 30～34歳 | S11: 35～39歳 | U11: 40～44歳 | W11: 45～49歳
F12: （順位） | H12: （順位） | J12: （順位） | L12: （順位） | N12: （順位） | P12: （順位） | R12: （順位） | T12: （順位） | V12: （順位） | X12: （順位）
E13: （％） | F13: （昇順） | G13: （％） | H13: （昇順） | I13: （％） | J13: （昇順） | K13: （％） | L13: （昇順） | M13: （％） | N13: （昇順） | O13: （％） | P13: （昇順） | Q13: （％） | R13: （昇順） | S13: （％） | T13: （昇順） | U13: （％） | V13: （昇順） | W13: （％） | X13: （昇順）
B14: （合計特殊出生率との相関係数） | E14: -0.04760896913 | G14: -0.1201527275 | I14: -0.1718821918 | K14: -0.1067444718 | M14: -0.01844360721 | O14: 0.3491210734 | Q14: 0.2712761603 | S14: 0.2674788627 | U14: 0.2184855907 | W14: 0.2262533795
B15: （単純平均） | E15: 19.41730677 | G15: 19.21876652 | I15: 17.75023042 | K15: 16.46023558 | M15: 16.57921909 | O15: 5.392135869 | Q15: 3.968239938 | S15: 3.012881136 | U15: 2.703859826 | W15: 2.988820472
B16: （標準偏差） | E16: 3.169457404 | G16: 2.645251714 | I16: 2.413133015 | K16: 2.231207966 | M16: 1.921708556 | O16: 1.551344019 | Q16: 1.081401962 | S16: 0.886034379 | U16: 0.7839088592 | W16: 0.7382551294
B17: （変動係数） | E17: 0.1632284766 | G17: 0.1376389952 | I17: 0.135949391 | K17: 0.1355513993 | M17: 0.1159106798 | O17: 0.28770492 | Q17: 0.2725142579 | S17: 0.2940820892 | U17: 0.2899221519 | W17: 0.2470055115
B18: 全 国 | E18: 19.95466878 | G18: 19.87059102 | I18: 18.61737265 | K18: 17.28672137 | M18: 17.0656414 | O18: 5.260930597 | Q18: 3.842523669 | S18: 2.946742706 | U18: 2.649764127 | W18: 2.907558527
B19: 1 | C19: 北海道 | E19: 22.98536855 | F19: 42 | G19: 23.14034487 | H19: 46 | I19: 21.2793868 | J19: 44 | K19: 19.26732148 | L19: 43 | M19: 19.60373129 | N19: 44 | O19: 4.837955469 | P19: 17 | Q19: 4.145391024 | R19: 35 | S19: 3.213988536 | T19: 37 | U19: 3.002972509 | V19: 39 | W19: 3.229142376 | X19: 39
B20: 2 | C20: 青森県 | E20: 19.86025971 | F20: 30 | G20: 20.19230769 | H20: 31 | I20: 17.18604217 | J20: 23 | K20: 14.75741922 | L20: 9 | M20: 15.45861887 | N20: 13 | O20: 5.350917084 | P20: 29 | Q20: 4.486282195 | R20: 42 | S20: 3.696535707 | T20: 44 | U20: 3.230868271 | V20: 44 | W20: 3.305683815 | X20: 41
B21: 3 | C21: 岩手県 | E21: 19.66389801 | F21: 29 | G21: 19.90910541 | H21: 30 | I21: 17.68406131 | J21: 26 | K21: 15.80827068 | L21: 22 | M21: 16.05253981 | N21: 21 | O21: 6.201242893 | P21: 40 | Q21: 5.168756027 | R21: 45 | S21: 3.806419028 | T21: 45 | U21: 3.593768212 | V21: 46 | W21: 3.946388682 | X21: 46
B22: 4 | C22: 宮城県 | E22: 21.27839615 | F22: 37 | G22: 21.31432693 | H22: 39 | I22: 19.45842561 | J22: 37 | K22: 16.33693544 | L22: 28 | M22: 16.38761298 | N22: 26 | O22: 4.945480127 | P22: 21 | Q22: 4.021937843 | R22: 30 | S22: 3.097751262 | T22: 29 | U22: 2.716025517 | V22: 28 | W22: 2.958072537 | X22: 22
B23: 5 | C23: 秋田県 | E23: 19.57919882 | F23: 24 | G23: 20.77094616 | H23: 35 | I23: 17.0665406 | J23: 19 | K23: 15.94982079 | L23: 24 | M23: 15.97282703 | N23: 19 | O23: 5.26652452 | P23: 26 | Q23: 3.993713599 | R23: 25 | S23: 3.213170941 | T23: 36 | U23: 2.841059954 | V23: 36 | W23: 3.170786266 | X23: 37
B24: 6 | C24: 山形県 | E24: 17.36467236 | F24: 11 | G24: 17.96538779 | H24: 15 | I24: 16.69962646 | J24: 15 | K24: 14.96355033 | L24: 10 | M24: 14.8657289 | N24: 8 | O24: 4.933671188 | P24: 20 | Q24: 3.77876293 | R24: 18 | S24: 2.764139827 | T24: 17 | U24: 2.662140432 | V24: 25 | W24: 3.046732559 | X24: 28
B25: 7 | C25: 福島県 | E25: 17.63923592 | F25: 12 | G25: 18.31511597 | H25: 17 | I25: 16.17129086 | J25: 13 | K25: 15.67881458 | L25: 20 | M25: 15.81159918 | N25: 16 | O25: 4.716732543 | P25: 13 | Q25: 4.151141893 | R25: 36 | S25: 2.93775725 | T25: 21 | U25: 2.823792177 | V25: 35 | W25: 3.163196016 | X25: 36
B26: 8 | C26: 茨城県 | E26: 19.63959747 | F26: 28 | G26: 18.91491441 | H26: 23 | I26: 17.23881153 | J26: 24 | K26: 15.15543057 | L26: 13 | M26: 14.67971999 | N26: 6 | O26: 7.138096104 | P26: 45 | Q26: 4.793465706 | R26: 44 | S26: 3.140050455 | T26: 32 | U26: 2.586870838 | V26: 20 | W26: 2.966815255 | X26: 23
B27: 9 | C27: 栃木県 | E27: 18.90581717 | F27: 20 | G27: 18.80330187 | H27: 22 | I27: 17.10350718 | J27: 21 | K27: 16.19583568 | L27: 27 | M27: 15.97341673 | N27: 20 | O27: 5.296521812 | P27: 27 | Q27: 3.996802558 | R27: 27 | S27: 3.033594959 | T27: 24 | U27: 2.643037534 | V27: 24 | W27: 3.093548307 | X27: 29
B28: 10 | C28: 群馬県 | E28: 19.63597809 | F28: 27 | G28: 19.78968891 | H28: 28 | I28: 18.08008777 | J28: 30 | K28: 16.06083901 | L28: 26 | M28: 17.02798581 | N28: 32 | O28: 6.90512115 | P28: 44 | Q28: 4.393082534 | R28: 41 | S28: 3.337197748 | T28: 43 | U28: 3.037564767 | V28: 41 | W28: 3.644818111 | X28: 45
B29: 11 | C29: 埼玉県 | E29: 21.48359543 | F29: 39 | G29: 21.50946949 | H29: 41 | I29: 19.86347611 | J29: 40 | K29: 17.98428109 | L29: 38 | M29: 17.37540628 | N29: 35 | O29: 4.721215727 | P29: 14 | Q29: 3.479540968 | R29: 14 | S29: 2.666316264 | T29: 14 | U29: 2.40099123 | V29: 13 | W29: 2.882144508 | X29: 19
B30: 12 | C30: 千葉県 | E30: 20.58536126 | F30: 33 | G30: 20.99079572 | H30: 37 | I30: 19.92538672 | J30: 41 | K30: 17.60204082 | L30: 35 | M30: 16.75696409 | N30: 31 | O30: 4.735295068 | P30: 15 | Q30: 3.376265933 | R30: 10 | S30: 2.727264432 | T30: 16 | U30: 2.534053935 | V30: 18 | W30: 2.720502965 | X30: 15
B31: 13 | C31: 東京都 | E31: 21.43564782 | F31: 38 | G31: 20.70534525 | H31: 34 | I31: 19.69691373 | J31: 39 | K31: 19.0065374 | L31: 41 | M31: 18.17150924 | N31: 37 | O31: 4.953232543 | P31: 22 | Q31: 3.848094071 | R31: 21 | S31: 3.082403206 | T31: 26 | U31: 2.728437871 | V31: 30 | W31: 2.897975543 | X31: 20
B32: 14 | C32: 神奈川県 | E32: 20.61202168 | F32: 34 | G32: 20.43120028 | H32: 33 | I32: 19.30436338 | J32: 36 | K32: 17.79578254 | L32: 36 | M32: 16.40862103 | N32: 27 | O32: 4.632768362 | P32: 10 | Q32: 3.265086305 | R32: 8 | S32: 2.617150819 | T32: 11 | U32: 2.404326201 | V32: 14 | W32: 2.494381605 | X32: 10
B33: 15 | C33: 新潟県 | E33: 16.31074872 | F33: 8 | G33: 16.20509303 | H33: 6 | I33: 14.83284169 | J33: 4 | K33: 13.7164187 | L33: 5 | M33: 13.02968203 | N33: 1 | O33: 3.131460072 | P33: 1 | Q33: 2.755374018 | R33: 3 | S33: 2.086787626 | T33: 3 | U33: 1.900175308 | V33: 3 | W33: 2.10924589 | X33: 2
B34: 16 | C34: 富山県 | E34: 13.61277183 | F34: 2 | G34: 13.47370324 | H34: 1 | I34: 13.00466224 | J34: 1 | K34: 12.6822306 | L34: 1 | M34: 13.99698341 | N34: 3 | O34: 3.620928621 | P34: 3 | Q34: 2.707237093 | R34: 2 | S34: 1.977977162 | T34: 1 | U34: 1.635105331 | V34: 1 | W34: 1.965819534 | X34: 1
B35: 17 | C35: 石川県 | E35: 15.59394384 | F35: 4 | G35: 16.22538396 | H35: 7 | I35: 16.0249516 | J35: 12 | K35: 15.21525886 | L35: 15 | M35: 15.37227214 | N35: 12 | O35: 3.962524958 | P35: 5 | Q35: 2.84609008 | R35: 4 | S35: 2.160321015 | T35: 5 | U35: 2.018368219 | V35: 4 | W35: 2.317327766 | X35: 6
B36: 18 | C36: 福井県 | E36: 13.549753 | F36: 1 | G36: 14.20687885 | H36: 2 | I36: 13.01925832 | J36: 2 | K36: 12.91442458 | L36: 2 | M36: 13.16122501 | N36: 2 | O36: 4.462116192 | P36: 7 | Q36: 3.228369922 | R36: 7 | S36: 2.293301147 | T36: 7 | U36: 2.049692818 | V36: 6 | W36: 2.118307796 | X36: 3
B37: 19 | C37: 山梨県 | E37: 19.62475547 | F37: 26 | G37: 17.88923974 | H37: 14 | I37: 15.60787798 | J37: 7 | K37: 15.14560192 | L37: 12 | M37: 15.84546473 | N37: 17 | O37: 5.636896047 | P37: 33 | Q37: 4.367597293 | R37: 40 | S37: 3.317777454 | T37: 42 | U37: 3.131547028 | V37: 43 | W37: 3.631611145 | X37: 44
B38: 20 | C38: 長野県 | E38: 17.8157045 | F38: 14 | G38: 17.47629185 | H38: 12 | I38: 15.688292 | J38: 9 | K38: 15.03897791 | L38: 11 | M38: 14.96777973 | N38: 9 | O38: 6.440291305 | P38: 42 | Q38: 3.980666457 | R38: 24 | S38: 3.230745277 | T38: 38 | U38: 2.786530738 | V38: 31 | W38: 3.100295897 | X38: 30
B39: 21 | C39: 岐阜県 | E39: 15.26030407 | F39: 3 | G39: 15.34976072 | H39: 3 | I39: 14.25242022 | J39: 3 | K39: 13.61282675 | L39: 4 | M39: 14.15944847 | N39: 4 | O39: 5.572046476 | P39: 32 | Q39: 3.597810694 | R39: 17 | S39: 2.6421158 | T39: 13 | U39: 2.320190375 | V39: 12 | W39: 2.591782819 | X39: 13
B40: 22 | C40: 静岡県 | E40: 16.72188728 | F40: 9 | G40: 16.27168213 | H40: 8 | I40: 15.91999276 | J40: 11 | K40: 14.75080505 | L40: 8 | M40: 15.35694949 | N40: 11 | O40: 5.702548699 | P40: 34 | Q40: 4.119484965 | R40: 34 | S40: 3.11652144 | T40: 31 | U40: 2.593471606 | V40: 21 | W40: 3.009846337 | X40: 25
B41: 23 | C41: 愛知県 | E41: 16.29550252 | F41: 7 | G41: 17.13252611 | H41: 9 | I41: 17.07715618 | J41: 20 | K41: 15.87373531 | L41: 23 | M41: 16.17288753 | N41: 23 | O41: 4.872036395 | P41: 18 | Q41: 3.410183388 | R41: 12 | S41: 2.68557253 | T41: 15 | U41: 2.288774879 | V41: 11 | W41: 2.472628577 | X41: 8
B42: 24 | C42: 三重県 | E42: 17.91182365 | F42: 15 | G42: 18.3621684 | H42: 20 | I42: 17.50261597 | J42: 25 | K42: 15.70948312 | L42: 21 | M42: 16.66991426 | N42: 29 | O42: 6.319533102 | P42: 41 | Q42: 3.993888205 | R42: 26 | S42: 3.069873312 | T42: 25 | U42: 2.533348535 | V42: 17 | W42: 3.013963425 | X42: 26
B43: 25 | C43: 滋賀県 | E43: 18.25844005 | F43: 18 | G43: 19.06770869 | H43: 24 | I43: 19.21610357 | J43: 34 | K43: 19.05610809 | L43: 42 | M43: 18.76311739 | N43: 42 | O43: 5.712380529 | P43: 35 | Q43: 4.019756467 | R43: 29 | S43: 3.115691444 | T43: 30 | U43: 2.724239667 | V43: 29 | W43: 3.129657228 | X43: 32
B44: 26 | C44: 京都府 | E44: 23.2136644 | F44: 44 | G44: 21.98853616 | H44: 43 | I44: 21.93312381 | J44: 46 | K44: 20.69647598 | L44: 46 | M44: 19.63329666 | N44: 45 | O44: 5.179805757 | P44: 25 | Q44: 4.554513915 | R44: 43 | S44: 3.265776582 | T44: 40 | U44: 3.010406569 | V44: 40 | W44: 3.137364614 | X44: 34
B45: 27 | C45: 大阪府 | E45: 23.05912344 | F45: 43 | G45: 22.73956939 | H45: 44 | I45: 21.73161612 | J45: 45 | K45: 20.68423001 | L45: 45 | M45: 20.26512362 | N45: 46 | O45: 5.793420706 | P45: 37 | Q45: 4.082553879 | R45: 32 | S45: 3.170109776 | T45: 34 | U45: 3.08915655 | V45: 42 | W45: 3.317532864 | X45: 42
B46: 28 | C46: 兵庫県 | E46: 20.25383629 | F46: 31 | G46: 21.53301887 | H46: 42 | I46: 20.44020277 | J46: 42 | K46: 19.50718152 | L46: 44 | M46: 18.92685048 | N46: 43 | O46: 4.8 | P46: 16 | Q46: 3.533873726 | R46: 16 | S46: 2.956227488 | T46: 22 | U46: 2.7888384 | V46: 32 | W46: 2.983287476 | X46: 24
B47: 29 | C47: 奈良県 | E47: 21.78695007 | F47: 41 | G47: 21.43362206 | H47: 40 | I47: 19.55337691 | J47: 38 | K47: 18.71977895 | L47: 39 | M47: 18.31173147 | N47: 40 | O47: 4.918032787 | P47: 19 | Q47: 3.496217542 | R47: 15 | S47: 2.635721675 | T47: 12 | U47: 2.551370422 | V47: 19 | W47: 2.668890742 | X47: 14
B48: 30 | C48: 和歌山県 | E48: 20.46778541 | F48: 32 | G48: 18.32256492 | H48: 18 | I48: 17.95716639 | J48: 28 | K48: 16.57134256 | L48: 29 | M48: 17.93876671 | N48: 36 | O48: 4.707190511 | P48: 11 | Q48: 3.79393714 | R48: 19 | S48: 2.85290131 | T48: 19 | U48: 2.631578947 | V48: 22 | W48: 3.278600269 | X48: 40
B49: 31 | C49: 鳥取県 | E49: 21.05561862 | F49: 35 | G49: 20.42839441 | H49: 32 | I49: 16.98191644 | J49: 18 | K49: 15.9760479 | L49: 25 | M49: 17.09677419 | N49: 33 | O49: 6.731059463 | P49: 43 | Q49: 4.044689577 | R49: 31 | S49: 2.936769553 | T49: 20 | U49: 2.494623656 | V49: 15 | W49: 3.15629742 | X49: 35
B50: 32 | C50: 島根県 | E50: 17.64410398 | F50: 13 | G50: 18.35278859 | H50: 19 | I50: 16.45751165 | J50: 14 | K50: 15.55511965 | L50: 19 | M50: 16.27593641 | N50: 25 | O50: 6.110847939 | P50: 39 | Q50: 4.197016996 | R50: 37 | S50: 3.185456971 | T50: 35 | U50: 2.674102674 | V50: 26 | W50: 2.925164541 | X50: 21
B51: 33 | C51: 岡山県 | E51: 17.11420385 | F51: 10 | G51: 17.4421957 | H51: 11 | I51: 16.96760855 | J51: 17 | K51: 15.51883112 | L51: 18 | M51: 15.4806885 | N51: 14 | O51: 3.890063425 | P51: 4 | Q51: 3.153078203 | R51: 6 | S51: 2.254122672 | T51: 6 | U51: 2.122071402 | V51: 7 | W51: 2.557219163 | X51: 12
B52: 34 | C52: 広島県 | E52: 18.47621607 | F52: 19 | G52: 17.99189519 | H52: 16 | I52: 17.10811184 | J52: 22 | K52: 15.42115263 | L52: 17 | M52: 16.08757427 | N52: 22 | O52: 5.170053701 | P52: 24 | Q52: 3.447044115 | R52: 13 | S52: 2.3302176 | T52: 8 | U52: 2.146107216 | V52: 8 | W52: 2.491158191 | X52: 9
B53: 35 | C53: 山口県 | E53: 15.78030727 | F53: 6 | G53: 16.10738255 | H53: 4 | I53: 15.16314779 | J53: 5 | K53: 13.53398058 | L53: 3 | M53: 15.35427525 | N53: 10 | O53: 3.592006865 | P53: 2 | Q53: 2.89433848 | R53: 5 | S53: 2.070828331 | T53: 2 | U53: 1.885152751 | V53: 2 | W53: 2.24642614 | X53: 4
B54: 36 | C54: 徳島県 | E54: 19.60762332 | F54: 25 | G54: 18.69824205 | H54: 21 | I54: 16.86036117 | J54: 16 | K54: 15.40178571 | L54: 16 | M54: 16.23779947 | N54: 24 | O54: 5.764411028 | P54: 36 | Q54: 4.112754159 | R54: 33 | S54: 3.14349704 | T54: 33 | U54: 2.910000658 | V54: 38 | W54: 3.122462538 | X54: 31
B55: 37 | C55: 香川県 | E55: 15.68726356 | F55: 5 | G55: 16.13051471 | H55: 5 | I55: 15.53410894 | J55: 6 | K55: 14.06537427 | L55: 6 | M55: 14.26495017 | N55: 5 | O55: 4.101429544 | P55: 6 | Q55: 2.696424127 | R55: 1 | S55: 2.11227184 | T55: 4 | U55: 2.040261153 | V55: 5 | W55: 2.294393278 | X55: 5
B56: 38 | C56: 愛媛県 | E56: 17.98219585 | F56: 16 | G56: 17.2889754 | H56: 10 | I56: 15.66301703 | J56: 8 | K56: 15.16562599 | L56: 14 | M56: 14.8159101 | N56: 7 | O56: 4.578253297 | P56: 8 | Q56: 3.396406614 | R56: 11 | S56: 2.495612345 | T56: 9 | U56: 2.239949836 | V56: 10 | W56: 2.55128564 | X56: 11
B57: 39 | C57: 高知県 | E57: 23.43526722 | F57: 45 | G57: 20.88522383 | H57: 36 | I57: 18.39272457 | J57: 32 | K57: 16.57359394 | L57: 30 | M57: 16.75007359 | N57: 30 | O57: 7.303906002 | P57: 46 | Q57: 5.502392344 | R57: 46 | S57: 3.925286811 | T57: 46 | U57: 3.433867659 | V57: 45 | W57: 3.467691483 | X57: 43
B58: 40 | C58: 福岡県 | E58: 23.86588113 | F58: 46 | G58: 22.91857483 | H58: 45 | I58: 20.70688639 | J58: 43 | K58: 18.73354118 | L58: 40 | M58: 18.60396581 | N58: 41 | O58: 6.055612048 | P58: 38 | Q58: 4.212245401 | R58: 38 | S58: 3.091655877 | T58: 28 | U58: 2.715889221 | V58: 27 | W58: 2.851007349 | X58: 17
B59: 41 | C59: 佐賀県 | E59: 19.40966011 | F59: 23 | G59: 19.45284756 | H59: 25 | I59: 17.7727784 | J59: 27 | K59: 17.39534884 | L59: 34 | M59: 16.51882043 | N59: 28 | O59: 4.712923134 | P59: 12 | Q59: 3.941421081 | R59: 23 | S59: 2.773487341 | T59: 18 | U59: 2.634744947 | V59: 23 | W59: 2.742545986 | X59: 16
B60: 42 | C60: 長崎県 | E60: 19.24669946 | F60: 22 | G60: 19.62667145 | H60: 27 | I60: 18.09264305 | J60: 31 | K60: 16.97810386 | L60: 31 | M60: 15.88600879 | N60: 18 | O60: 5.132641292 | P60: 23 | Q60: 3.84749506 | R60: 20 | S60: 3.300722722 | T60: 41 | U60: 2.804770318 | V60: 33 | W60: 3.044859071 | X60: 27
B61: 43 | C61: 熊本県 | E61: 21.61338661 | F61: 40 | G61: 21.30357261 | H61: 38 | I61: 19.24765929 | J61: 35 | K61: 17.83597782 | L61: 37 | M61: 18.31107814 | N61: 39 | O61: 5.396853301 | P61: 30 | Q61: 4.336427712 | R61: 39 | S61: 3.252848265 | T61: 39 | U61: 2.896341463 | V61: 37 | W61: 3.134213562 | X61: 33
B62: 44 | C62: 大分県 | E62: 18.05771942 | F62: 17 | G62: 17.86561265 | H62: 13 | I62: 15.79959285 | J62: 10 | K62: 14.25959781 | L62: 7 | M62: 15.61220692 | N62: 15 | O62: 4.618904619 | P62: 9 | Q62: 3.290637605 | R62: 9 | S62: 2.542120912 | T62: 10 | U62: 2.234186875 | V62: 9 | W62: 2.362511569 | X62: 7
B63: 45 | C63: 宮崎県 | E63: 19.21892867 | F63: 21 | G63: 19.79252623 | H63: 29 | I63: 18.06775408 | J63: 29 | K63: 17.26328839 | L63: 33 | M63: 17.17129822 | N63: 34 | O63: 5.30225783 | P63: 28 | Q63: 4.003318814 | R63: 28 | S63: 3.083089255 | T63: 27 | U63: 2.501740543 | V63: 16 | W63: 2.854383518 | X63: 18
B64: 46 | C64: 鹿児島県 | E64: 21.10327516 | F64: 36 | G64: 19.55154057 | H64: 26 | I64: 18.55701312 | J64: 33 | K64: 17.09439857 | L64: 32 | M64: 18.20157566 | N64: 38 | O64: 5.521832779 | P64: 31 | Q64: 3.933413262 | R64: 22 | S64: 2.987841837 | T64: 23 | U64: 2.812026109 | V64: 34 | W64: 3.196639613 | X64: 38
B65: 47 | C65: 沖縄県 | E65: 32.9090251 | F65: 47 | G65: 29.01506952 | H65: 47 | I65: 26.36841563 | J65: 47 | K65: 24.4015444 | L65: 47 | M65: 23.43658679 | N65: 47 | O65: 13.98134285 | P65: 47 | Q65: 10.11229518 | R65: 47 | S65: 8.208422555 | T65: 47 | U65: 7.27687049 | V65: 47 | W65: 7.109952195 | X65: 47
B66: 資料等
B67: ○ 総務省「国勢調査」（平成27年）より作成。従業上の地位不詳、労働力状態不詳、年齢・国籍不詳は除いて算出した。
B68: ○ 合計特殊出生率との相関係数、単純平均、標準偏差は都道府県別データから機械的に計算。変動係数は、標準偏差／単純平均で機械的に計算。

Sheet ３．（２）不安定雇用の割合（女性）
B5: ■男女別・配偶関係別・年齢階級別 就業者に占める労働者派遣事業所の派遣社員とパート・アルバイト・その他の割合（25～49歳） 女性
W7: ・・・上位10位を網掛け
W8: ・・・下位10位を網掛け
E9: 就業者に占める労働者派遣事業所の派遣社員とパート・アルバイト・その他の割合（H27）
E10: 未婚 | O10: 有配偶
E11: 25～29歳 | G11: 30～34歳 | I11: 35～39歳 | K11: 40～44歳 | M11: 45～49歳 | O11: 25～29歳 | Q11: 30～34歳 | S11: 35～39歳 | U11: 40～44歳 | W11: 45～49歳
F12: （順位） | H12: （順位） | J12: （順位） | L12: （順位） | N12: （順位） | P12: （順位） | R12: （順位） | T12: （順位） | V12: （順位） | X12: （順位）
E13: （％） | F13: （昇順） | G13: （％） | H13: （昇順） | I13: （％） | J13: （昇順） | K13: （％） | L13: （昇順） | M13: （％） | N13: （昇順） | O13: （％） | P13: （昇順） | Q13: （％） | R13: （昇順） | S13: （％） | T13: （昇順） | U13: （％） | V13: （昇順） | W13: （％） | X13: （昇順）
B14: （合計特殊出生率との相関係数） | E14: -0.1105578148 | G14: -0.3612471768 | I14: -0.4872179399 | K14: -0.4554023838 | M14: -0.3676992489 | O14: 0.4042369183 | Q14: 0.2642263921 | S14: -0.1184910532 | U14: -0.3536902144 | W14: -0.4530236168
B15: （単純平均） | E15: 28.91131274 | G15: 31.78298775 | I15: 32.02092098 | K15: 31.30201727 | M15: 30.29467831 | O15: 42.24212498 | Q15: 45.54874448 | S15: 50.14611845 | U15: 53.73942034 | W15: 53.98556055
B16: （標準偏差） | E16: 3.00711947 | G16: 2.58221188 | I16: 2.81550136 | K16: 2.965218578 | M16: 2.866207878 | O16: 3.660222822 | Q16: 3.890843855 | S16: 5.163898431 | U16: 6.51198554 | W16: 7.159111428
B17: （変動係数） | E17: 0.104011862 | G17: 0.08124509567 | I17: 0.08792693257 | K17: 0.09472931256 | M17: 0.09461093627 | O17: 0.08664864335 | Q17: 0.08542153906 | S17: 0.1029770317 | U17: 0.1211770707 | W17: 0.1326115975
B18: 全 国 | E18: 28.96517194 | G18: 32.19047953 | I18: 33.12773073 | K18: 32.79636869 | M18: 31.26781146 | O18: 41.44287073 | Q18: 44.68176328 | S18: 51.26167934 | U18: 56.98629477 | W18: 58.31685014
B19: 1 | C19: 北海道 | E19: 33.38769628 | F19: 46 | G19: 35.76567869 | H19: 46 | I19: 34.92954154 | J19: 38 | K19: 33.75598396 | L19: 35 | M19: 32.43164022 | N19: 34 | O19: 47.44925149 | P19: 45 | Q19: 49.99027427 | R19: 42 | S19: 54.85511839 | T19: 39 | U19: 59.06692311 | V19: 35 | W19: 60.44638024 | X19: 38
B20: 2 | C20: 青森県 | E20: 32.35540654 | F20: 45 | G20: 33.15391663 | H20: 33 | I20: 31.43859649 | J20: 23 | K20: 31.79962312 | L20: 29 | M20: 32.47285392 | N20: 35 | O20: 42.68467037 | P20: 26 | Q20: 43.23091695 | R20: 13 | S20: 43.1362349 | T20: 5 | U20: 46.09207209 | V20: 7 | W20: 47.79932004 | X20: 12
B21: 3 | C21: 岩手県 | E21: 31.47751606 | F21: 42 | G21: 35.21759697 | H21: 44 | I21: 32.09248219 | J21: 28 | K21: 29.934663 | L21: 17 | M21: 31.05438402 | N21: 27 | O21: 42.33328614 | P21: 23 | Q21: 43.09878214 | R21: 12 | S21: 44.67981363 | T21: 11 | U21: 47.32662296 | V21: 11 | W21: 47.64760148 | X21: 11
B22: 4 | C22: 宮城県 | E22: 32.11494 | F22: 43 | G22: 35.39949271 | H22: 45 | I22: 34.91019658 | J22: 37 | K22: 34.04201038 | L22: 37 | M22: 33.58236832 | N22: 42 | O22: 41.99982349 | P22: 20 | Q22: 45.18391863 | R22: 19 | S22: 49.66684561 | T22: 20 | U22: 53.58920787 | V22: 21 | W22: 55.81726946 | X22: 26
B23: 5 | C23: 秋田県 | E23: 30.17319964 | F23: 36 | G23: 32.859375 | H23: 31 | I23: 31.28858793 | J23: 22 | K23: 29.82073643 | L23: 16 | M23: 27.99363057 | N23: 13 | O23: 36.71890902 | P23: 4 | Q23: 40.44214583 | R23: 5 | S23: 41.64984337 | T23: 4 | U23: 44.17512765 | V23: 3 | W23: 45.28279468 | X23: 7
B24: 6 | C24: 山形県 | E24: 27.04297288 | F24: 11 | G24: 30.35157358 | H24: 16 | I24: 29.8857368 | J24: 10 | K24: 28.84985563 | L24: 13 | M24: 25.3535702 | N24: 2 | O24: 34.79734709 | P24: 2 | Q24: 37.4453984 | R24: 2 | S24: 38.11425402 | T24: 1 | U24: 39.88560534 | V24: 1 | W24: 39.46068939 | X24: 1
B25: 7 | C25: 福島県 | E25: 29.41709624 | F25: 26 | G25: 32.39043129 | H25: 28 | I25: 31.60104391 | J25: 24 | K25: 30.18536057 | L25: 19 | M25: 29.66338107 | N25: 22 | O25: 40.91230909 | P25: 14 | Q25: 43.3743664 | R25: 14 | S25: 44.63116717 | T25: 10 | U25: 46.63351436 | V25: 10 | W25: 47.47567109 | X25: 10
B26: 8 | C26: 茨城県 | E26: 31.01797577 | F26: 40 | G26: 35.17870722 | H26: 43 | I26: 36.76197038 | J26: 46 | K26: 35.82800062 | L26: 44 | M26: 35.31784841 | N26: 46 | O26: 44.42944969 | P26: 33 | Q26: 48.92418988 | R26: 38 | S26: 53.50822565 | T26: 31 | U26: 57.4299694 | V26: 30 | W26: 58.21916426 | X26: 33
B27: 9 | C27: 栃木県 | E27: 31.06198943 | F27: 41 | G27: 35.02487562 | H27: 42 | I27: 36.24936127 | J27: 43 | K27: 33.88054488 | L27: 36 | M27: 32.61667541 | N27: 36 | O27: 44.49555351 | P27: 35 | Q27: 49.12774046 | R27: 40 | S27: 54.25000898 | T27: 34 | U27: 56.6877914 | V27: 28 | W27: 57.40652819 | X27: 31
B28: 10 | C28: 群馬県 | E28: 29.22830674 | F28: 25 | G28: 31.96112939 | H28: 25 | I28: 32.89847965 | J28: 30 | K28: 30.33755724 | L28: 21 | M28: 31.72532998 | N28: 30 | O28: 43.11429191 | P28: 28 | Q28: 50.35598706 | R28: 45 | S28: 55.79394583 | T28: 44 | U28: 58.57825129 | V28: 34 | W28: 58.29244357 | X28: 34
B29: 11 | C29: 埼玉県 | E29: 29.42493961 | F29: 27 | G29: 34.0839709 | H29: 39 | I29: 36.49186612 | J29: 45 | K29: 36.15181601 | L29: 46 | M29: 34.53463568 | N29: 45 | O29: 40.74295389 | P29: 13 | Q29: 45.36388746 | R29: 20 | S29: 55.70394547 | T29: 43 | U29: 63.25675087 | V29: 46 | W29: 66.06498195 | X29: 47
B30: 12 | C30: 千葉県 | E30: 29.9080908 | F30: 30 | G30: 34.32377718 | H30: 40 | I30: 36.48399102 | J30: 44 | K30: 36.12138483 | L30: 45 | M30: 34.37842578 | N30: 44 | O30: 40.65367198 | P30: 12 | Q30: 44.69856057 | R30: 16 | S30: 53.96136488 | T30: 32 | U30: 62.16168274 | V30: 45 | W30: 64.6131141 | X30: 45
B31: 13 | C31: 東京都 | E31: 27.10949384 | F31: 12 | G31: 29.2802505 | H31: 8 | I31: 31.09783216 | J31: 20 | K31: 31.54464327 | L31: 28 | M31: 29.49624261 | N31: 19 | O31: 31.66846378 | P31: 1 | Q31: 32.44851301 | R31: 1 | S31: 40.89456197 | T31: 3 | U31: 51.70570265 | V31: 18 | W31: 57.12858926 | X31: 30
B32: 14 | C32: 神奈川県 | E32: 28.16409605 | F32: 18 | G32: 32.25835429 | H32: 26 | I32: 34.74695906 | J32: 35 | K32: 34.67696742 | L32: 40 | M32: 31.79568947 | N32: 31 | O32: 37.1679933 | P32: 6 | Q32: 39.92674948 | R32: 4 | S32: 50.6411208 | T32: 23 | U32: 61.219195 | V32: 40 | W32: 65.05701043 | X32: 46
B33: 15 | C33: 新潟県 | E33: 28.43710908 | F33: 20 | G33: 31.10970996 | H33: 20 | I33: 30.58209554 | J33: 16 | K33: 28.45168582 | L33: 10 | M33: 29.34200459 | N33: 17 | O33: 40.44819695 | P33: 11 | Q33: 44.93718543 | R33: 17 | S33: 47.57616975 | T33: 15 | U33: 48.47243746 | V33: 14 | W33: 48.61713539 | X33: 13
B34: 16 | C34: 富山県 | E34: 21.81770561 | F34: 1 | G34: 25.75010565 | H34: 2 | I34: 26.35027448 | J34: 2 | K34: 26.2007874 | L34: 2 | M34: 25.73865367 | N34: 3 | O34: 35.60763889 | P34: 3 | Q34: 41.19352089 | R34: 7 | S34: 44.43679743 | T34: 9 | U34: 46.14687963 | V34: 9 | W34: 44.68540581 | X34: 5
B35: 17 | C35: 石川県 | E35: 24.85197632 | F35: 3 | G35: 28.85836465 | H35: 5 | I35: 28.7059199 | J35: 7 | K35: 27.7905945 | L35: 6 | M35: 27.30393451 | N35: 10 | O35: 38.69403588 | P35: 8 | Q35: 42.29424849 | R35: 10 | S35: 45.88897828 | T35: 13 | U35: 47.88372464 | V35: 12 | W35: 46.82539683 | X35: 9
B36: 18 | C36: 福井県 | E36: 22.02259887 | F36: 2 | G36: 25.47770701 | H36: 1 | I36: 26.17815309 | J36: 1 | K36: 25.86544742 | L36: 1 | M36: 26.06837607 | N36: 4 | O36: 38.87174967 | P36: 9 | Q36: 41.85026738 | R36: 9 | S36: 45.36810044 | T36: 12 | U36: 46.11853334 | V36: 8 | W36: 43.29109087 | X36: 4
B37: 19 | C37: 山梨県 | E37: 30.62125156 | F37: 37 | G37: 32.34680326 | H37: 27 | I37: 33.61388743 | J37: 33 | K37: 33.52240499 | L37: 33 | M37: 32.66588143 | N37: 38 | O37: 45.86765124 | P37: 42 | Q37: 49.79191838 | R37: 41 | S37: 54.28646795 | T37: 35 | U37: 56.38953296 | V37: 27 | W37: 55.47514759 | X37: 24
B38: 20 | C38: 長野県 | E38: 27.42560866 | F38: 16 | G38: 31.09064112 | H38: 19 | I38: 30.46182846 | J38: 15 | K38: 30.37815126 | L38: 22 | M38: 29.58099734 | N38: 21 | O38: 43.43379393 | P38: 31 | Q38: 48.45863479 | R38: 36 | S38: 54.86055135 | T38: 40 | U38: 57.46275715 | V38: 31 | W38: 56.44545034 | X38: 27
B39: 21 | C39: 岐阜県 | E39: 25.25017556 | F39: 4 | G39: 29.73521831 | H39: 13 | I39: 31.27619447 | J39: 21 | K39: 31.53090699 | L39: 27 | M39: 30.84159247 | N39: 26 | O39: 42.63303599 | P39: 24 | Q39: 50.9962833 | R39: 46 | S39: 59.14241652 | T39: 47 | U39: 61.65747695 | V39: 43 | W39: 60.50122651 | X39: 39
B40: 22 | C40: 静岡県 | E40: 27.90605881 | F40: 17 | G40: 32.42624826 | H40: 29 | I40: 33.57542501 | J40: 32 | K40: 33.10325477 | L40: 32 | M40: 32.62384771 | N40: 37 | O40: 42.06031492 | P40: 21 | Q40: 48.04231046 | R40: 32 | S40: 55.01923411 | T40: 41 | U40: 59.33552103 | V40: 37 | W40: 59.60169442 | X40: 35
B41: 23 | C41: 愛知県 | E41: 26.35030391 | F41: 7 | G41: 31.51250543 | H41: 22 | I41: 33.06864958 | J41: 31 | K41: 33.60115837 | L41: 34 | M41: 31.32182724 | N41: 28 | O41: 41.01549867 | P41: 15 | Q41: 47.0178406 | R41: 28 | S41: 57.6541555 | T41: 46 | U41: 63.83943843 | V41: 47 | W41: 64.30724004 | X41: 44
B42: 24 | C42: 三重県 | E42: 28.95490336 | F42: 24 | G42: 32.58721693 | H42: 30 | I42: 32.33256351 | J42: 29 | K42: 32.42648011 | L42: 30 | M42: 31.42857143 | N42: 29 | O42: 46.81413008 | P42: 43 | Q42: 51.29295282 | R42: 47 | S42: 56.52547671 | T42: 45 | U42: 60.60007896 | V42: 38 | W42: 59.82416016 | X42: 36
B43: 25 | C43: 滋賀県 | E43: 30.16146266 | F43: 35 | G43: 33.80823627 | H43: 37 | I43: 34.55773126 | J43: 34 | K43: 32.88409704 | L43: 31 | M43: 32.7445294 | N43: 39 | O43: 41.74024494 | P43: 19 | Q43: 46.40775335 | R43: 24 | S43: 54.71000576 | T43: 37 | U43: 61.57710404 | V43: 42 | W43: 63.68609696 | X43: 43
B44: 26 | C44: 京都府 | E44: 30.08271516 | F44: 32 | G44: 33.51394343 | H44: 35 | I44: 35.39079395 | J44: 42 | K44: 35.53289342 | L44: 43 | M44: 33.56932696 | N44: 41 | O44: 42.67469629 | P44: 25 | Q44: 45.69037247 | R44: 23 | S44: 53.20877877 | T44: 29 | U44: 59.31267552 | V44: 36 | W44: 60.20880503 | X44: 37
B45: 27 | C45: 大阪府 | E45: 30.77036643 | F45: 38 | G45: 33.30206521 | H45: 34 | I45: 34.83786806 | J45: 36 | K45: 35.34415512 | L45: 42 | M45: 33.08432768 | N45: 40 | O45: 42.75006299 | P45: 27 | Q45: 44.99334921 | R45: 18 | S45: 53.98126969 | T45: 33 | U45: 62.02073932 | V45: 44 | W45: 63.67833394 | X45: 42
B46: 28 | C46: 兵庫県 | E46: 30.01012786 | F46: 31 | G46: 33.71530493 | H46: 36 | I46: 35.1460284 | J46: 40 | K46: 34.74870585 | L46: 41 | M46: 32.19734585 | N46: 33 | O46: 43.16598178 | P46: 29 | Q46: 46.57965089 | R46: 25 | S46: 54.80192819 | T46: 38 | U46: 61.36962434 | V46: 41 | W46: 63.16455834 | X46: 41
B47: 29 | C47: 奈良県 | E47: 29.84574913 | F47: 29 | G47: 32.91016571 | H47: 32 | I47: 34.96940337 | J47: 39 | K47: 34.26172148 | L47: 39 | M47: 31.94555645 | N47: 32 | O47: 41.70347003 | P47: 18 | Q47: 44.66411136 | R47: 15 | S47: 52.60427195 | T47: 27 | U47: 61.00731851 | V47: 39 | W47: 63.02148056 | X47: 40
B48: 30 | C48: 和歌山県 | E48: 32.13326703 | F48: 44 | G48: 34.65040901 | H48: 41 | I48: 35.25061627 | J48: 41 | K48: 34.07118056 | L48: 38 | M48: 33.67556468 | N48: 43 | O48: 46.86774942 | P48: 44 | Q48: 50.05789271 | R48: 43 | S48: 55.50805949 | T48: 42 | U48: 57.76711133 | V48: 32 | W48: 56.87357197 | X48: 29
B49: 31 | C49: 鳥取県 | E49: 29.61099933 | F49: 28 | G49: 30.88378906 | H49: 18 | I49: 31.02027883 | J49: 19 | K49: 29.58830319 | L49: 14 | M49: 29.54292085 | N49: 20 | O49: 41.23806591 | P49: 16 | Q49: 41.71384851 | R49: 8 | S49: 44.16403785 | T49: 7 | U49: 44.94061758 | V49: 6 | W49: 45.50253378 | X49: 8
B50: 32 | C50: 島根県 | E50: 26.88253012 | F50: 10 | G50: 29.27174169 | H50: 7 | I50: 30.23112481 | J50: 14 | K50: 28.32572833 | L50: 9 | M50: 27.07379135 | N50: 8 | O50: 40.42704626 | P50: 10 | Q50: 43.0020284 | R50: 11 | S50: 44.18711939 | T50: 8 | U50: 44.69894285 | V50: 4 | W50: 44.95163754 | X50: 6
B51: 33 | C51: 岡山県 | E51: 28.83710198 | F51: 23 | G51: 31.46243292 | H51: 21 | I51: 31.72111165 | J51: 25 | K51: 31.18647583 | L51: 26 | M51: 30.03164557 | N51: 24 | O51: 42.14876033 | P51: 22 | Q51: 45.52505638 | R51: 21 | S51: 50.23579344 | T51: 21 | U51: 54.41805703 | V51: 23 | W51: 53.24621514 | X51: 21
B52: 34 | C52: 広島県 | E52: 28.33052822 | F52: 19 | G52: 31.92275222 | H52: 24 | I52: 31.88190452 | J52: 26 | K52: 30.91984499 | L52: 24 | M52: 29.44234405 | N52: 18 | O52: 44.57723128 | P52: 36 | Q52: 48.95156801 | R52: 39 | S52: 54.32777488 | T52: 36 | U52: 57.88242397 | V52: 33 | W52: 56.66375219 | X52: 28
B53: 35 | C53: 山口県 | E53: 25.5665668 | F53: 5 | G53: 29.77107761 | H53: 14 | I53: 29.91976064 | J53: 11 | K53: 27.5494901 | L53: 5 | M53: 25.20586463 | N53: 1 | O53: 44.48387097 | P53: 34 | Q53: 48.20168646 | R53: 33 | S53: 53.34341202 | T53: 30 | U53: 56.22500213 | V53: 26 | W53: 54.42811043 | X53: 23
B54: 36 | C54: 徳島県 | E54: 30.10385172 | F54: 33 | G54: 30.77375122 | H54: 17 | I54: 30.09095503 | J54: 13 | K54: 30.31507238 | L54: 20 | M54: 26.88391039 | N54: 5 | O54: 37.59165257 | P54: 7 | Q54: 41.1756512 | R54: 6 | S54: 44.01373896 | T54: 6 | U54: 44.74565946 | V54: 5 | W54: 42.47802428 | X54: 3
B55: 37 | C55: 香川県 | E55: 26.64813344 | F55: 8 | G55: 29.60139749 | H55: 11 | I55: 30.62645012 | J55: 17 | K55: 30.02389746 | L55: 18 | M55: 28.2480315 | N55: 14 | O55: 41.47667852 | P55: 17 | Q55: 45.60351291 | R55: 22 | S55: 50.46912503 | T55: 22 | U55: 52.79454938 | V55: 20 | W55: 50.75383172 | X55: 18
B56: 38 | C56: 愛媛県 | E56: 27.26673985 | F56: 13 | G56: 30.28661702 | H56: 15 | I56: 29.94565217 | J56: 12 | K56: 29.62433938 | L56: 15 | M56: 28.27954936 | N56: 15 | O56: 44.1016624 | P56: 32 | Q56: 48.46217105 | R56: 37 | S56: 52.28629383 | T56: 25 | U56: 55.16907362 | V56: 25 | W56: 54.03255814 | X56: 22
B57: 39 | C57: 高知県 | E57: 30.85785459 | F57: 39 | G57: 33.81447676 | H57: 38 | I57: 30.96307385 | J57: 18 | K57: 28.7289916 | L57: 12 | M57: 27.07162921 | N57: 7 | O57: 37.0994941 | P57: 5 | Q57: 38.28517588 | R57: 3 | S57: 39.48021137 | T57: 2 | U57: 40.67710537 | V57: 2 | W57: 40.32273465 | X57: 2
B58: 40 | C58: 福岡県 | E58: 30.11063886 | F58: 34 | G58: 31.77970178 | H58: 23 | I58: 32.07576319 | J58: 27 | K58: 31.11025443 | L58: 25 | M58: 30.43353705 | N58: 25 | O58: 45.66366882 | P58: 41 | Q58: 48.29427601 | R58: 34 | S58: 52.7856141 | T58: 28 | U58: 57.1045877 | V58: 29 | W58: 57.9999468 | X58: 32
B59: 41 | C59: 佐賀県 | E59: 26.85300207 | F59: 9 | G59: 29.59053103 | H59: 10 | I59: 29.61604832 | J59: 9 | K59: 30.79896907 | L59: 23 | M59: 29.83386356 | N59: 23 | O59: 43.1753658 | P59: 30 | Q59: 46.61475233 | R59: 26 | S59: 48.4433885 | T59: 18 | U59: 50.06294587 | V59: 17 | W59: 49.22298261 | X59: 16
B60: 42 | C60: 長崎県 | E60: 26.32465436 | F60: 6 | G60: 29.43806524 | H60: 9 | I60: 28.63176757 | J60: 6 | K60: 28.6333147 | L60: 11 | M60: 27.05392689 | N60: 6 | O60: 45.07125891 | P60: 39 | Q60: 47.03000612 | R60: 29 | S60: 49.42607504 | T60: 19 | U60: 52.17570539 | V60: 19 | W60: 50.8762421 | X60: 19
B61: 43 | C61: 熊本県 | E61: 28.47240456 | F61: 21 | G61: 29.71753171 | H61: 12 | I61: 29.21234267 | J61: 8 | K61: 28.25378347 | L61: 8 | M61: 28.41530055 | N61: 16 | O61: 45.04622186 | P61: 38 | Q61: 46.72169935 | R61: 27 | S61: 48.03202664 | T61: 16 | U61: 49.27388014 | V61: 15 | W61: 48.9187791 | X61: 15
B62: 44 | C62: 大分県 | E62: 27.33298898 | F62: 14 | G62: 28.82352941 | H62: 4 | I62: 28.33054838 | J62: 4 | K62: 26.81673166 | L62: 3 | M62: 27.61724301 | N62: 12 | O62: 44.66931695 | P62: 37 | Q62: 48.36274417 | R62: 35 | S62: 50.96889006 | T62: 24 | U62: 54.1444907 | V62: 22 | W62: 52.54161044 | X62: 20
B63: 45 | C63: 宮崎県 | E63: 28.58343449 | F63: 22 | G63: 28.81687387 | H63: 3 | I63: 27.75985663 | J63: 3 | K63: 27.86918546 | L63: 7 | M63: 27.19390436 | N63: 9 | O63: 45.44859201 | P63: 40 | Q63: 47.33404099 | R63: 30 | S63: 48.25313938 | T63: 17 | U63: 49.39581973 | V63: 16 | W63: 48.81736879 | X63: 14
B64: 46 | C64: 鹿児島県 | E64: 27.34672966 | F64: 15 | G64: 28.98000506 | H64: 6 | I64: 28.45013019 | J64: 5 | K64: 27.10942441 | L64: 4 | M64: 27.40836847 | N64: 11 | O64: 48.47557243 | P64: 46 | Q64: 50.09183299 | R64: 44 | S64: 52.51888585 | T64: 26 | U64: 54.89935052 | V64: 24 | W64: 55.58382698 | X64: 25
B65: 47 | C65: 沖縄県 | E65: 41.17843991 | F65: 47 | G65: 38.82237488 | H65: 47 | I65: 37.33243968 | J65: 47 | K65: 37.6982329 | L65: 47 | M65: 37.56503642 | N65: 47 | O65: 51.16918845 | P65: 47 | Q65: 47.5412166 | R65: 31 | S65: 46.87292818 | T65: 14 | U65: 48.375174 | V65: 13 | W65: 50.0628381 | X65: 17
B66: 資料等
B67: ○ 総務省「国勢調査」（平成27年）より作成。従業上の地位不詳、労働力状態不詳、年齢・国籍不詳は除いて算出した。
B68: ○ 合計特殊出生率との相関係数、単純平均、標準偏差は都道府県別データから機械的に計算。変動係数は、標準偏差／単純平均で機械的に計算。

Sheet ３．（２）所得（200万円未満）
B5: ■男女別・配偶関係別・年齢階級別 所得が200万円未満の割合（20～39歳）
Y7: ・・・上位10位を網掛け
Y8: ・・・下位10位を網掛け
E9: 所得が200万円未満の者の割合（H29）
E10: 男性 | Q10: 女性
E11: 20～29歳 | K11: 30～39歳 | Q11: 20～29歳 | W11: 30～39歳
E12: 総数 | G12: 未婚 | I12: 有配偶 | K12: 総数 | M12: 未婚 | O12: 有配偶 | Q12: 総数 | S12: 未婚 | U12: 有配偶 | W12: 総数 | Y12: 未婚 | AA12: 有配偶
F13: （順位） | H13: （順位） | J13: （順位） | L13: （順位） | N13: （順位） | P13: （順位） | R13: （順位） | T13: （順位） | V13: （順位） | X13: （順位） | Z13: （順位） | AB13: （順位）
E14: （％） | F14: （昇順） | G14: （％） | H14: （昇順） | I14: （％） | J14: （昇順） | K14: （％） | L14: （昇順） | M14: （％） | N14: （昇順） | O14: （％） | P14: （昇順） | Q14: （％） | R14: （昇順） | S14: （％） | T14: （昇順） | U14: （％） | V14: （昇順） | W14: （％） | X14: （昇順） | Y14: （％） | Z14: （昇順） | AA14: （％） | AB14: （昇順）
B15: （合計特殊出生率との相関係数） | E15: -0.1033193863 | G15: -0.02999434214 | I15: 0.2161092761 | K15: 0.4063208463 | M15: 0.4282425626 | O15: 0.4742952734 | Q15: 0.2497985473 | S15: 0.1870744178 | U15: 0.2504206175 | W15: 0.2640855074 | Y15: 0.3429600981 | AA15: 0.03539779393
B16: （単純平均） | E16: 0.4147855651 | G16: 0.4751686346 | I16: 0.1153110358 | K16: 0.1693991835 | M16: 0.3217416236 | O16: 0.06955675193 | Q16: 0.5908892432 | S16: 0.5632084487 | U16: 0.6822185573 | W16: 0.6165694852 | Y16: 0.4566480143 | AA16: 0.6793373187
B17: （標準偏差） | E17: 0.0596237505 | G17: 0.06517252443 | I17: 0.05739065392 | K17: 0.04110733476 | M17: 0.06951113907 | O17: 0.02850577561 | Q17: 0.05412074246 | S17: 0.05796574881 | U17: 0.06292794142 | W17: 0.04319108762 | Y17: 0.06837744452 | AA17: 0.04932891732
B18: （変動係数） | E18: 0.143745963 | G18: 0.1371566212 | I18: 0.4977030474 | K18: 0.2426654835 | M18: 0.2160464608 | O18: 0.4098203959 | Q18: 0.09159202521 | S18: 0.1029205953 | U18: 0.09224014907 | W18: 0.07005064094 | Y18: 0.1497377463 | AA18: 0.07261328939
B19: 全 国 | E19: 0.4169202845 | G19: 0.4717708181 | I19: 0.1113263406 | K19: 0.1532310581 | M19: 0.2866463299 | O19: 0.06011698173 | Q19: 0.5574645149 | S19: 0.5306332091 | U19: 0.6573484624 | W19: 0.5961367283 | Y19: 0.3906554985 | AA19: 0.6818365487
B20: 1 | C20: 北海道 | E20: 0.4890399156 | F20: 42 | G20: 0.5629624418 | H20: 43 | I20: 0.1312826784 | J20: 33 | K20: 0.204100738 | L20: 40 | M20: 0.424084188 | N20: 44 | O20: 0.07448996956 | P20: 29 | Q20: 0.6038461064 | R20: 28 | S20: 0.561239933 | T20: 24 | U20: 0.7384407187 | V20: 39 | W20: 0.6754137185 | X20: 45 | Y20: 0.5020844895 | Z20: 37 | AA20: 0.7454014728 | AB20: 47
B21: 2 | C21: 青森県 | E21: 0.4950649351 | F21: 43 | G21: 0.573066869 | H21: 44 | I21: 0.1541666667 | J21: 36 | K21: 0.2366207961 | L21: 46 | M21: 0.4256235828 | N21: 45 | O21: 0.1052799733 | P21: 44 | Q21: 0.699751969 | R21: 46 | S21: 0.6852941176 | T21: 46 | U21: 0.7394228075 | V21: 40 | W21: 0.6435829527 | X21: 35 | Y21: 0.624594068 | Z21: 47 | AA21: 0.6511047215 | AB21: 13
B22: 3 | C22: 岩手県 | E22: 0.4203826332 | F22: 27 | G22: 0.4894500173 | H22: 32 | I22: 0.1118230174 | J22: 28 | K22: 0.1935802469 | L22: 35 | M22: 0.3268101761 | N22: 25 | O22: 0.09148994884 | P22: 40 | Q22: 0.6616114092 | R22: 44 | S22: 0.6366790901 | T22: 43 | U22: 0.7264752791 | V22: 36 | W22: 0.6024016352 | X22: 13 | Y22: 0.5268336964 | Z22: 42 | AA22: 0.6315177957 | AB22: 9
B23: 4 | C23: 宮城県 | E23: 0.4292067086 | F23: 30 | G23: 0.4793798007 | H23: 28 | I23: 0.1297619048 | J23: 32 | K23: 0.1679586115 | L23: 24 | M23: 0.3045373022 | N23: 23 | O23: 0.06405313586 | P23: 25 | Q23: 0.5990273799 | R23: 26 | S23: 0.598659364 | T23: 34 | U23: 0.6003951149 | V23: 4 | W23: 0.6179124851 | X23: 21 | Y23: 0.4977420532 | Z23: 35 | AA23: 0.6731892011 | AB23: 19
B24: 5 | C24: 秋田県 | E24: 0.4634737732 | F24: 37 | G24: 0.5293105229 | H24: 38 | I24: 0.1546783626 | J24: 37 | K24: 0.2019800656 | L24: 37 | M24: 0.369569378 | N24: 36 | O24: 0.08167731549 | P24: 30 | Q24: 0.6519719169 | R24: 42 | S24: 0.642422507 | T24: 44 | U24: 0.6794871795 | V24: 20 | W24: 0.6190789474 | X24: 22 | Y24: 0.5566288336 | Z24: 45 | AA24: 0.6407337128 | AB24: 11
B25: 6 | C25: 山形県 | E25: 0.3831859192 | F25: 15 | G25: 0.4396397903 | H25: 14 | I25: 0.08823529412 | J25: 19 | K25: 0.1615902369 | L25: 22 | M25: 0.3288492112 | N25: 27 | O25: 0.06679061785 | P25: 28 | Q25: 0.6166656458 | R25: 33 | S25: 0.6019788401 | T25: 35 | U25: 0.657918552 | V25: 14 | W25: 0.5830917947 | X25: 8 | Y25: 0.5221329107 | Z25: 41 | AA25: 0.6034917779 | AB25: 6
B26: 7 | C26: 福島県 | E26: 0.3611461288 | F26: 10 | G26: 0.4289952725 | H26: 11 | I26: 0.09523809524 | J26: 22 | K26: 0.1762314271 | L26: 29 | M26: 0.3274770407 | N26: 26 | O26: 0.05939784699 | P26: 20 | Q26: 0.6021485807 | R26: 27 | S26: 0.581995709 | T26: 28 | U26: 0.6470588235 | V26: 10 | W26: 0.6240015374 | X26: 25 | Y26: 0.544290567 | Z26: 44 | AA26: 0.6545942321 | AB26: 14
B27: 8 | C27: 茨城県 | E27: 0.3891103471 | F27: 17 | G27: 0.433001235 | H27: 12 | I27: 0.1072809278 | J27: 26 | K27: 0.1397143727 | L27: 14 | M27: 0.2536438264 | N27: 9 | O27: 0.05420075783 | P27: 17 | Q27: 0.6116912127 | R27: 30 | S27: 0.5823303851 | T27: 29 | U27: 0.706568216 | V27: 31 | W27: 0.6213478633 | X27: 24 | Y27: 0.4575788291 | Z27: 24 | AA27: 0.6812983271 | AB27: 21
B28: 9 | C28: 栃木県 | E28: 0.3616637803 | F28: 11 | G28: 0.420306278 | H28: 10 | I28: 0.05526061776 | J28: 6 | K28: 0.1545986457 | L28: 20 | M28: 0.275663361 | N28: 16 | O28: 0.06236610177 | P28: 24 | Q28: 0.5775901557 | R28: 20 | S28: 0.5383230082 | T28: 19 | U28: 0.7 | V28: 26 | W28: 0.6367618854 | X28: 33 | Y28: 0.4846541457 | Z28: 30 | AA28: 0.6917924668 | AB28: 23
B29: 10 | C29: 群馬県 | E29: 0.3530049196 | F29: 7 | G29: 0.4117577618 | H29: 7 | I29: 0.03502380258 | J29: 2 | K29: 0.1319665753 | L29: 11 | M29: 0.2611143789 | N29: 13 | O29: 0.03865331839 | P29: 3 | Q29: 0.5795414609 | R29: 21 | S29: 0.5444444444 | T29: 21 | U29: 0.7006973002 | V29: 27 | W29: 0.6575402929 | X29: 40 | Y29: 0.454540283 | Z29: 23 | AA29: 0.7342005082 | AB29: 42
B30: 11 | C30: 埼玉県 | E30: 0.4189191091 | F30: 26 | G30: 0.4793724208 | H30: 27 | I30: 0.0702919863 | J30: 11 | K30: 0.1325354716 | L30: 12 | M30: 0.2505336228 | N30: 7 | O30: 0.04335281966 | P30: 7 | Q30: 0.5460945728 | R30: 11 | S30: 0.5205518214 | T30: 13 | U30: 0.6563151564 | V30: 12 | W30: 0.606586936 | X30: 16 | Y30: 0.3494834748 | Z30: 4 | AA30: 0.7068141286 | AB30: 31
B31: 12 | C31: 千葉県 | E31: 0.4251641525 | F31: 28 | G31: 0.473719473 | H31: 25 | I31: 0.1293805999 | J31: 31 | K31: 0.1436623562 | L31: 15 | M31: 0.2988725481 | N31: 19 | O31: 0.03185379116 | P31: 2 | Q31: 0.5136236224 | R31: 4 | S31: 0.4806101426 | T31: 3 | U31: 0.6510811729 | V31: 11 | W31: 0.5831981254 | X31: 9 | Y31: 0.4071821861 | Z31: 8 | AA31: 0.6599688298 | AB31: 16
B32: 13 | C32: 東京都 | E32: 0.4187787585 | F32: 25 | G32: 0.4645743365 | H32: 21 | I32: 0.09178064739 | J32: 21 | K32: 0.1270044047 | L32: 7 | M32: 0.2198898467 | N32: 3 | O32: 0.04570044582 | P32: 10 | Q32: 0.4551522075 | R32: 1 | S32: 0.4594551315 | T32: 1 | U32: 0.4326671261 | V32: 1 | W32: 0.4503183165 | X32: 1 | Y32: 0.2275361915 | Z32: 1 | AA32: 0.5751598388 | AB32: 3
B33: 14 | C33: 神奈川県 | E33: 0.4365968684 | F33: 32 | G33: 0.4866404757 | H33: 30 | I33: 0.07605574324 | J33: 13 | K33: 0.1130338761 | L33: 1 | M33: 0.217820195 | N33: 1 | O33: 0.03895014488 | P33: 4 | Q33: 0.5419285022 | R33: 8 | S33: 0.5189070386 | T33: 11 | U33: 0.641271765 | V33: 9 | W33: 0.5846282128 | X33: 10 | Y33: 0.3424438726 | Z33: 3 | AA33: 0.6773163439 | AB33: 20
B34: 15 | C34: 新潟県 | E34: 0.4001619258 | F34: 22 | G34: 0.4708627316 | H34: 23 | I34: 0.08095479939 | J34: 16 | K34: 0.1756425193 | L34: 28 | M34: 0.3472575447 | N34: 32 | O34: 0.06619847628 | P34: 26 | Q34: 0.62166214 | R34: 35 | S34: 0.6163342655 | T34: 41 | U34: 0.6368756484 | V34: 8 | W34: 0.6074522203 | X34: 17 | Y34: 0.491954023 | Z34: 32 | AA34: 0.6488705391 | AB34: 12
B35: 16 | C35: 富山県 | E35: 0.3174012025 | F35: 1 | G35: 0.3547190038 | H35: 1 | I35: 0.1029411765 | J35: 25 | K35: 0.1353891789 | L35: 13 | M35: 0.2433612858 | N35: 5 | O35: 0.05702234882 | P35: 18 | Q35: 0.4941528441 | R35: 2 | S35: 0.4846323529 | T35: 4 | U35: 0.5294117647 | V35: 2 | W35: 0.527640401 | X35: 2 | Y35: 0.4295302013 | Z35: 15 | AA35: 0.5654071882 | AB35: 1
B36: 17 | C36: 石川県 | E36: 0.4093737535 | F36: 23 | G36: 0.4623150393 | H36: 20 | I36: 0.05405405405 | J36: 5 | K36: 0.1275691296 | L36: 9 | M36: 0.2569995591 | N36: 10 | O36: 0.04414152347 | P36: 9 | Q36: 0.5452867186 | R36: 10 | S36: 0.5319729478 | T36: 18 | U36: 0.5925087467 | V36: 3 | W36: 0.5670133136 | X36: 6 | Y36: 0.4149933066 | Z36: 12 | AA36: 0.6219569288 | AB36: 7
B37: 18 | C37: 福井県 | E37: 0.3216901408 | F37: 3 | G37: 0.3719713435 | H37: 4 | I37: 0.02040816327 | J37: 1 | K37: 0.126698854 | L37: 6 | M37: 0.2533112583 | N37: 8 | O37: 0.0460967433 | P37: 11 | Q37: 0.5388134818 | R37: 7 | S37: 0.5198943512 | T37: 12 | U37: 0.600982801 | V37: 5 | W37: 0.5429047603 | X37: 3 | Y37: 0.44 | Z37: 20 | AA37: 0.5709422658 | AB37: 2
B38: 19 | C38: 山梨県 | E38: 0.438670555 | F38: 33 | G38: 0.488751926 | H38: 31 | I38: 0.1020408163 | J38: 24 | K38: 0.1486731104 | L38: 18 | M38: 0.2839639884 | N38: 17 | O38: 0.0486557377 | P38: 13 | Q38: 0.6162782985 | R38: 32 | S38: 0.5832121409 | T38: 30 | U38: 0.7486956522 | V38: 42 | W38: 0.6289435668 | X38: 29 | Y38: 0.452764977 | Z38: 22 | AA38: 0.6960629443 | AB38: 26
B39: 20 | C39: 長野県 | E39: 0.3360717658 | F39: 6 | G39: 0.3906841856 | H39: 5 | I39: 0.05180995475 | J39: 4 | K39: 0.1689946084 | L39: 25 | M39: 0.3438499884 | N39: 31 | O39: 0.05014848434 | P39: 15 | Q39: 0.5553003477 | R39: 14 | S39: 0.5166659315 | T39: 10 | U39: 0.6831804281 | V39: 21 | W39: 0.6358682732 | X39: 32 | Y39: 0.4299320681 | Z39: 16 | AA39: 0.7034534789 | AB39: 29
B40: 21 | C40: 岐阜県 | E40: 0.3908587258 | F40: 18 | G40: 0.4413811383 | H40: 15 | I40: 0.08713178295 | J40: 17 | K40: 0.1200844148 | L40: 2 | M40: 0.2320379136 | N40: 4 | O40: 0.04327576645 | P40: 6 | Q40: 0.5567394578 | R40: 15 | S40: 0.5013236518 | T40: 6 | U40: 0.7764725911 | V40: 47 | W40: 0.6649862397 | X40: 44 | Y40: 0.4330337246 | Z40: 18 | AA40: 0.7386867649 | AB40: 45
B41: 22 | C41: 静岡県 | E41: 0.3545278736 | F41: 8 | G41: 0.4120221484 | H41: 8 | I41: 0.04365079365 | J41: 3 | K41: 0.1207195054 | L41: 4 | M41: 0.2607356023 | N41: 12 | O41: 0.0273652445 | P41: 1 | Q41: 0.5304886048 | R41: 5 | S41: 0.4868530822 | T41: 5 | U41: 0.6707457862 | V41: 18 | W41: 0.6543445703 | X41: 38 | Y41: 0.4323953882 | Z41: 17 | AA41: 0.7223305199 | AB41: 37
B42: 23 | C42: 愛知県 | E42: 0.3218571146 | F42: 4 | G42: 0.3619276471 | H42: 2 | I42: 0.09090405718 | J42: 20 | K42: 0.1200939968 | L42: 3 | M42: 0.2195839189 | N42: 2 | O42: 0.0434117051 | P42: 8 | Q42: 0.5120097467 | R42: 3 | S42: 0.4639607976 | T42: 2 | U42: 0.6856726768 | V42: 22 | W42: 0.6249459174 | X42: 27 | Y42: 0.3588391727 | Z42: 5 | AA42: 0.7203799326 | AB42: 36
B43: 24 | C43: 三重県 | E43: 0.3197884523 | F43: 2 | G43: 0.3660554562 | H43: 3 | I43: 0.06997455471 | J43: 10 | K43: 0.1275670973 | L43: 8 | M43: 0.2499853308 | N43: 6 | O43: 0.04882330766 | P43: 14 | Q43: 0.5378695278 | R43: 6 | S43: 0.5016576736 | T43: 7 | U43: 0.6565934066 | V43: 13 | W43: 0.664300065 | X43: 42 | Y43: 0.4705958549 | Z43: 25 | AA43: 0.7280016787 | AB43: 40
B44: 25 | C44: 滋賀県 | E44: 0.4174681921 | F44: 24 | G44: 0.4777515659 | H44: 26 | I44: 0.08058842341 | J44: 15 | K44: 0.1287303414 | L44: 10 | M44: 0.2630310717 | N44: 14 | O44: 0.04715083799 | P44: 12 | Q44: 0.5774589312 | R44: 19 | S44: 0.5421122995 | T44: 20 | U44: 0.6949685535 | V44: 25 | W44: 0.6027528932 | X44: 15 | Y44: 0.4137360466 | Z44: 11 | AA44: 0.6669492124 | AB44: 17
B45: 26 | C45: 京都府 | E45: 0.5366620545 | F45: 46 | G45: 0.5827497392 | H45: 45 | I45: 0.2039239814 | J45: 46 | K45: 0.1695050157 | L45: 26 | M45: 0.2896732598 | N45: 18 | O45: 0.08503861725 | P45: 33 | Q45: 0.6687355355 | R45: 45 | S45: 0.6545744015 | T45: 45 | U45: 0.7362402243 | V45: 38 | W45: 0.6027302254 | X45: 14 | Y45: 0.4212404594 | Z45: 13 | AA45: 0.6977259475 | AB45: 27
B46: 27 | C46: 大阪府 | E46: 0.4451254114 | F46: 35 | G46: 0.4898886463 | H46: 33 | I46: 0.1802875682 | J46: 40 | K46: 0.1715866598 | L46: 27 | M46: 0.3005082183 | N46: 21 | O46: 0.08536084997 | P46: 34 | Q46: 0.5600002521 | R46: 16 | S46: 0.5279719484 | T46: 16 | U46: 0.6929045863 | V46: 24 | W46: 0.5902835088 | X46: 12 | Y46: 0.338922416 | Z46: 2 | AA46: 0.7151495425 | AB46: 33
B47: 28 | C47: 兵庫県 | E47: 0.4275236884 | F47: 29 | G47: 0.4835815706 | H47: 29 | I47: 0.06874362895 | J47: 9 | K47: 0.1556827518 | L47: 21 | M47: 0.3002959651 | N47: 20 | O47: 0.06150964095 | P47: 21 | Q47: 0.5524280269 | R47: 13 | S47: 0.5286124332 | T47: 17 | U47: 0.6649003715 | V47: 17 | W47: 0.6137191553 | X47: 19 | Y47: 0.3848021715 | Z47: 6 | AA47: 0.7163863109 | AB47: 34
B48: 29 | C48: 奈良県 | E48: 0.503371463 | F48: 44 | G48: 0.5589816674 | H48: 42 | I48: 0.1750841751 | J48: 39 | K48: 0.1801295885 | L48: 31 | M48: 0.3869715272 | N48: 38 | O48: 0.06183832871 | P48: 22 | Q48: 0.608441671 | R48: 29 | S48: 0.5864942171 | T48: 32 | U48: 0.7015789474 | V48: 28 | W48: 0.6533982461 | X48: 37 | Y48: 0.4881152339 | Z48: 31 | AA48: 0.7291740939 | AB48: 41
B49: 30 | C49: 和歌山県 | E49: 0.4466272633 | F49: 36 | G49: 0.502750275 | H49: 35 | I49: 0.2032193159 | J49: 45 | K49: 0.189308021 | L49: 34 | M49: 0.3635577905 | N49: 34 | O49: 0.08243021346 | P49: 31 | Q49: 0.5743243243 | R49: 18 | S49: 0.5233632567 | T49: 14 | U49: 0.7332112332 | V49: 37 | W49: 0.6605249745 | X49: 41 | Y49: 0.4758709981 | Z49: 26 | AA49: 0.7416267943 | AB49: 46
B50: 31 | C50: 鳥取県 | E50: 0.4447882896 | F50: 34 | G50: 0.4947768281 | H50: 34 | I50: 0.2005259698 | J50: 44 | K50: 0.2228147195 | L50: 44 | M50: 0.3982330955 | N50: 40 | O50: 0.09188218868 | P50: 41 | Q50: 0.5890787233 | R50: 23 | S50: 0.5804754128 | T50: 27 | U50: 0.619047619 | V50: 6 | W50: 0.6126159555 | X50: 18 | Y50: 0.5399829497 | Z50: 43 | AA50: 0.6402874032 | AB50: 10
B51: 32 | C51: 島根県 | E51: 0.3964837618 | F51: 20 | G51: 0.465437788 | H51: 22 | I51: 0.06666666667 | J51: 8 | K51: 0.1779616087 | L51: 30 | M51: 0.3362237762 | N51: 30 | O51: 0.08860084175 | P51: 37 | Q51: 0.5487203078 | R51: 12 | S51: 0.5045770202 | T51: 8 | U51: 0.6617647059 | V51: 15 | W51: 0.5592003264 | X51: 4 | Y51: 0.4365834005 | Z51: 19 | AA51: 0.598746995 | AB51: 5
B52: 33 | C52: 岡山県 | E52: 0.3781580156 | F52: 14 | G52: 0.4493313751 | H52: 17 | I52: 0.06451051386 | J52: 7 | K52: 0.1515248799 | L52: 19 | M52: 0.3048154815 | N52: 24 | O52: 0.05740507027 | P52: 19 | Q52: 0.5443663994 | R52: 9 | S52: 0.5237632938 | T52: 15 | U52: 0.620116749 | V52: 7 | W52: 0.6163696878 | X52: 20 | Y52: 0.42625 | Z52: 14 | AA52: 0.6946157495 | AB52: 25
B53: 34 | C53: 広島県 | E53: 0.3917519505 | F53: 19 | G53: 0.460484801 | H53: 19 | I53: 0.08738550538 | J53: 18 | K53: 0.1237905374 | L53: 5 | M53: 0.2591193889 | N53: 11 | O53: 0.05063291139 | P53: 16 | Q53: 0.5943264303 | R53: 25 | S53: 0.5532680782 | T53: 23 | U53: 0.7030935675 | V53: 30 | W53: 0.6248742887 | X53: 26 | Y53: 0.4105018278 | Z53: 9 | AA53: 0.7033505714 | AB53: 28
B54: 35 | C54: 山口県 | E54: 0.3971600688 | F54: 21 | G54: 0.4733579695 | H54: 24 | I54: 0.09537750385 | J54: 23 | K54: 0.146702052 | L54: 17 | M54: 0.3019052561 | N54: 22 | O54: 0.04083220919 | P54: 5 | Q54: 0.6357888398 | R54: 39 | S54: 0.606645547 | T54: 39 | U54: 0.7125705077 | V54: 32 | W54: 0.6570283772 | X54: 39 | Y54: 0.4947140324 | Z54: 33 | AA54: 0.7190356222 | AB54: 35
B55: 36 | C55: 徳島県 | E55: 0.4675920463 | F55: 38 | G55: 0.5208482462 | H55: 37 | I55: 0.2 | J55: 43 | K55: 0.205976643 | L55: 41 | M55: 0.3610571318 | N55: 33 | O55: 0.09956709957 | P55: 43 | Q55: 0.6337146197 | R55: 38 | S55: 0.6049582947 | T55: 38 | U55: 0.7518830306 | V55: 43 | W55: 0.5806345261 | X55: 7 | Y55: 0.4763832659 | Z55: 27 | AA55: 0.6256331786 | AB55: 8
B56: 37 | C56: 香川県 | E56: 0.3347665848 | F56: 5 | G56: 0.4007843137 | H56: 6 | I56: 0.07407407407 | J56: 12 | K56: 0.145093633 | L56: 16 | M56: 0.2730097087 | N56: 15 | O56: 0.06675422139 | P56: 27 | Q56: 0.5624320547 | R56: 17 | S56: 0.5135912091 | T56: 9 | U56: 0.7016393443 | V56: 29 | W56: 0.62002442 | X56: 23 | Y56: 0.4428571429 | Z56: 21 | AA56: 0.6875 | AB56: 22
B57: 38 | C57: 愛媛県 | E57: 0.3769391159 | F57: 13 | G57: 0.456206931 | H57: 18 | I57: 0.0796460177 | J57: 14 | K57: 0.1659460716 | L57: 23 | M57: 0.3354118805 | N57: 29 | O57: 0.06191989828 | P57: 23 | Q57: 0.6526196758 | R57: 43 | S57: 0.6045017873 | T57: 36 | U57: 0.771399653 | V57: 46 | W57: 0.6643205881 | X57: 43 | Y57: 0.4958227041 | Z57: 34 | AA57: 0.7277433195 | AB57: 39
B58: 39 | C58: 高知県 | E58: 0.5168350168 | F58: 45 | G58: 0.6035353535 | H58: 46 | I58: 0.1253333333 | J58: 30 | K58: 0.2345833333 | L58: 45 | M58: 0.4044180573 | N58: 41 | O58: 0.1132126123 | P58: 45 | Q58: 0.651525637 | R58: 41 | S58: 0.630387931 | T58: 42 | U58: 0.7173091459 | V58: 33 | W58: 0.5619319332 | X58: 5 | Y58: 0.5119787045 | Z58: 40 | AA58: 0.5861943181 | AB58: 4
B59: 40 | C59: 福岡県 | E59: 0.4809458669 | F59: 41 | G59: 0.5566480685 | H59: 41 | I59: 0.1468015778 | J59: 35 | K59: 0.2037071497 | L59: 39 | M59: 0.4063742473 | N59: 42 | O59: 0.08862539908 | P59: 38 | Q59: 0.6119359143 | R59: 31 | S59: 0.5788384368 | T59: 26 | U59: 0.7183680714 | V59: 34 | W59: 0.6350052449 | X59: 31 | Y59: 0.4129990507 | Z59: 10 | AA59: 0.7352970449 | AB59: 43
B60: 41 | C60: 佐賀県 | E60: 0.3832644951 | F60: 16 | G60: 0.4470431894 | H60: 16 | I60: 0.1102551757 | J60: 27 | K60: 0.1888261285 | L60: 33 | M60: 0.332498957 | N60: 28 | O60: 0.08804197247 | P60: 36 | Q60: 0.6184253646 | R60: 34 | S60: 0.6046931408 | T60: 37 | U60: 0.6644238856 | V60: 16 | W60: 0.5852659246 | X60: 11 | Y60: 0.4014492754 | Z60: 7 | AA60: 0.6595837897 | AB60: 15
B61: 42 | C61: 長崎県 | E61: 0.3761854584 | F61: 12 | G61: 0.434692715 | H61: 13 | I61: 0.1379241317 | J61: 34 | K61: 0.2023407034 | L61: 38 | M61: 0.4146248813 | N61: 43 | O61: 0.08548987364 | P61: 35 | Q61: 0.5897568228 | R61: 24 | S61: 0.5621073915 | T61: 25 | U61: 0.6876513317 | V61: 23 | W61: 0.6408556603 | X61: 34 | Y61: 0.4805176655 | Z61: 29 | AA61: 0.707226649 | AB61: 32
B62: 43 | C62: 熊本県 | E62: 0.4735552116 | F62: 40 | G62: 0.5518181818 | H62: 40 | I62: 0.1621621622 | J62: 38 | K62: 0.1965076242 | L62: 36 | M62: 0.3669229253 | N62: 35 | O62: 0.09798810146 | P62: 42 | Q62: 0.6278619299 | R62: 36 | S62: 0.5848005098 | T62: 31 | U62: 0.7546728075 | V62: 44 | W62: 0.6259602174 | X62: 28 | Y62: 0.5007966012 | Z62: 36 | AA62: 0.6731034483 | AB62: 18
B63: 44 | C63: 大分県 | E63: 0.3588518279 | F63: 9 | G63: 0.4152699229 | H63: 9 | I63: 0.1197802198 | J63: 29 | K63: 0.2108756209 | L63: 42 | M63: 0.3819001262 | N63: 37 | O63: 0.09057606008 | P63: 39 | Q63: 0.5839269248 | R63: 22 | S63: 0.5509503639 | T63: 22 | U63: 0.6762813862 | V63: 19 | W63: 0.634919701 | X63: 30 | Y63: 0.4783299866 | Z63: 28 | AA63: 0.6926149889 | AB63: 24
B64: 45 | C64: 宮崎県 | E64: 0.4725428038 | F64: 39 | G64: 0.5500053711 | H64: 39 | I64: 0.1860465116 | J64: 41 | K64: 0.2206527886 | L64: 43 | M64: 0.4271791352 | N64: 46 | O64: 0.1177417048 | P64: 46 | Q64: 0.6314638027 | R64: 37 | S64: 0.597359736 | T64: 33 | U64: 0.723326572 | V64: 35 | W64: 0.6524126006 | X64: 36 | Y64: 0.5082981716 | Z64: 39 | AA64: 0.7040104922 | AB64: 30
B65: 46 | C65: 鹿児島県 | E65: 0.4330881978 | F65: 31 | G65: 0.5054448288 | H65: 36 | I65: 0.1928571429 | J65: 42 | K65: 0.182956246 | L65: 32 | M65: 0.3925116099 | N65: 39 | O65: 0.08348623853 | P65: 32 | Q65: 0.640907633 | R65: 40 | S65: 0.6081384036 | T65: 40 | U65: 0.7405554421 | V65: 41 | W65: 0.6764669199 | X65: 46 | Y65: 0.5075415859 | Z65: 38 | AA65: 0.7373783258 | AB65: 44
B66: 47 | C66: 沖縄県 | E66: 0.5800953177 | F66: 47 | G66: 0.6586691634 | H66: 47 | I66: 0.3242945874 | J66: 47 | K66: 0.3305492662 | L66: 47 | M66: 0.5460377699 | N66: 47 | O66: 0.1896869245 | P66: 47 | Q66: 0.7443087016 | R66: 47 | S66: 0.7392132505 | T66: 47 | U66: 0.7574257426 | V66: 45 | W66: 0.6832063972 | X66: 47 | Y66: 0.5629986668 | Z66: 46 | AA66: 0.726844584 | AB66: 38
B67: 資料等
B68: ○ 総務省「就業構造基本調査」（平成29年）より作成。無業者と有業者を含めて算出した値であり、有業者のうち所得が把握できていない者は按分して含めた。なお、有配偶は、総数から未婚を除いて算出した。
B69: ○ 合計特殊出生率との相関係数、単純平均、標準偏差は都道府県別データから機械的に計算。変動係数は、標準偏差／単純平均で機械的に計算。

Sheet ３．（２）所得（500万円以上）
B5: ■男女別・配偶関係別・年齢階級別 所得が500万円以上の割合（20～39歳）
Y7: ・・・上位10位を網掛け
Y8: ・・・下位10位を網掛け
E9: 所得が500万円以上の者の割合（H29）
E10: 男性 | Q10: 女性
E11: 20～29歳 | K11: 30～39歳 | Q11: 20～29歳 | W11: 30～39歳
E12: 総数 | G12: 未婚 | I12: 有配偶 | K12: 総数 | M12: 未婚 | O12: 有配偶 | Q12: 総数 | S12: 未婚 | U12: 有配偶 | W12: 総数 | Y12: 未婚 | AA12: 有配偶
F13: （順位） | H13: （順位） | J13: （順位） | L13: （順位） | N13: （順位） | P13: （順位） | R13: （順位） | T13: （順位） | V13: （順位） | X13: （順位） | Z13: （順位） | AB13: （順位）
E14: （％） | F14: （昇順） | G14: （％） | H14: （昇順） | I14: （％） | J14: （昇順） | K14: （％） | L14: （昇順） | M14: （％） | N14: （昇順） | O14: （％） | P14: （昇順） | Q14: （％） | R14: （昇順） | S14: （％） | T14: （昇順） | U14: （％） | V14: （昇順） | W14: （％） | X14: （昇順） | Y14: （％） | Z14: （昇順） | AA14: （％） | AB14: （昇順）
B15: （合計特殊出生率との相関係数） | E15: -0.4784028599 | G15: -0.5072749562 | I15: -0.4581453051 | K15: -0.5498607074 | M15: -0.5404975733 | O15: -0.5617594302 | Q15: -0.469617769 | S15: -0.4908225345 | U15: -0.3557178125 | W15: -0.5918984673 | Y15: -0.5137837262 | AA15: -0.6060632216
B16: （単純平均） | E16: 0.0326489674 | G16: 0.01844053705 | I16: 0.1082876063 | K16: 0.2303283927 | M16: 0.09603783107 | O16: 0.3196397246 | Q16: 0.007228115875 | S16: 0.006481006686 | U16: 0.009975759568 | W16: 0.03535936998 | Y16: 0.04443676869 | AA16: 0.03156942396
B17: （標準偏差） | E17: 0.01651338775 | G17: 0.01187394452 | I17: 0.06237843518 | K17: 0.08326152585 | M17: 0.05070374042 | O17: 0.1123489924 | Q17: 0.007098443015 | S17: 0.006372744767 | U17: 0.01395727404 | W17: 0.02099471261 | Y17: 0.0315209853 | AA17: 0.01690747721
B18: （変動係数） | E18: 0.5057859117 | G18: 0.6439044854 | I18: 0.5760440861 | K18: 0.3614905001 | M18: 0.5279559092 | O18: 0.3514863257 | Q18: 0.9820599362 | S18: 0.9832955088 | U18: 1.399118928 | W18: 0.5937524514 | Y18: 0.7093446764 | AA18: 0.5355649578
B19: 全 国 | E19: 0.0479331385 | G19: 0.02957796327 | I19: 0.1503438887 | K19: 0.3058460397 | M19: 0.1482459643 | O19: 0.4154312572 | Q19: 0.01389918926 | S19: 0.01224250926 | U19: 0.02010011329 | W19: 0.05565121556 | Y19: 0.08015089875 | AA19: 0.0454378594
B20: 1 | C20: 北海道 | E20: 0.02407665319 | F20: 33 | G20: 0.01832216643 | H20: 19 | I20: 0.05186372069 | J20: 39 | K20: 0.2092973014 | L20: 26 | M20: 0.07235123266 | N20: 31 | O20: 0.2896806868 | P20: 28 | Q20: 0 | R20: 42 | S20: 0 | T20: 37 | U20: 0 | V20: 30 | W20: 0.02458986981 | X20: 36 | Y20: 0.02313054939 | Z20: 37 | AA20: 0.02521266968 | AB20: 33
B21: 2 | C21: 青森県 | E21: 0.02077922078 | F21: 36 | G21: 0.02057509065 | H21: 17 | I21: 0.02196969697 | J21: 46 | K21: 0.1392228466 | L21: 42 | M21: 0.03854875283 | N21: 43 | O21: 0.208504077 | P21: 39 | Q21: 0.002175710369 | R21: 39 | S21: 0 | T21: 37 | U21: 0.008405715887 | V21: 22 | W21: 0.02041154897 | X21: 40 | Y21: 0.02208270188 | Z21: 39 | AA21: 0.01974878935 | AB21: 38
B22: 3 | C22: 岩手県 | E22: 0.01224543733 | F22: 45 | G22: 0.009961950882 | H22: 38 | I22: 0.02248549323 | J22: 44 | K22: 0.1493934514 | L22: 39 | M22: 0.08064253098 | N22: 26 | O22: 0.2021906642 | P22: 42 | Q22: 0.004338315267 | R22: 31 | S22: 0.006005304296 | T22: 20 | U22: 0 | V22: 30 | W22: 0.02376085846 | X22: 37 | Y22: 0.01710239651 | Z22: 42 | AA22: 0.02632015745 | AB22: 29
B23: 4 | C23: 宮城県 | E23: 0.02849895178 | F23: 27 | G23: 0.01520058976 | H23: 25 | I23: 0.1080687831 | J23: 22 | K23: 0.2130140325 | L23: 25 | M23: 0.09085617193 | N23: 23 | O23: 0.3061037523 | P23: 24 | Q23: 0.006928252615 | R23: 18 | S23: 0.008584826438 | T23: 13 | U23: 0 | V23: 30 | W23: 0.05177139992 | X23: 5 | Y23: 0.06712202976 | Z23: 5 | AA23: 0.04471027217 | AB23: 8
B24: 5 | C24: 秋田県 | E24: 0.02712773057 | F24: 29 | G24: 0.01459502255 | H24: 27 | I24: 0.08625730994 | J24: 28 | K24: 0.1267687917 | L24: 46 | M24: 0.04002734108 | N24: 42 | O24: 0.1886476833 | P24: 43 | Q24: 0 | R24: 42 | S24: 0 | T24: 37 | U24: 0 | V24: 30 | W24: 0.03174342105 | X24: 22 | Y24: 0.03284230862 | Z24: 31 | AA24: 0.03136451713 | AB24: 19
B25: 6 | C25: 山形県 | E25: 0.03072254042 | F25: 23 | G25: 0.02534292405 | H25: 12 | I25: 0.05882352941 | J25: 37 | K25: 0.1511886458 | L25: 38 | M25: 0.03835147365 | N25: 44 | O25: 0.2145308924 | P25: 37 | Q25: 0.004946249732 | R25: 26 | S25: 0 | T25: 37 | U25: 0.01900452489 | V25: 8 | W25: 0.02672488496 | X25: 31 | Y25: 0.02852937847 | Z25: 35 | AA25: 0.02611730804 | AB25: 30
B26: 7 | C26: 福島県 | E26: 0.02433729033 | F26: 31 | G26: 0.009185062641 | H26: 41 | I26: 0.08333333333 | J26: 29 | K26: 0.1634001042 | L26: 35 | M26: 0.07846101192 | N26: 27 | O26: 0.2283345806 | P26: 35 | Q26: 0.002811670808 | R26: 37 | S26: 0.002039045322 | T26: 34 | U26: 0.004524886878 | V26: 28 | W26: 0.02859706617 | X26: 28 | Y26: 0.03797578608 | Z26: 23 | AA26: 0.02498680023 | AB26: 34
B27: 8 | C27: 茨城県 | E27: 0.04878379827 | F27: 6 | G27: 0.02684017822 | H27: 8 | I27: 0.1916881443 | J27: 5 | K27: 0.281462375 | L27: 13 | M27: 0.1395962473 | N27: 7 | O27: 0.3871512642 | P27: 13 | Q27: 0.005042971264 | R27: 25 | S27: 0.005481228542 | T27: 24 | U27: 0.003622614617 | V27: 29 | W27: 0.0394833852 | X27: 13 | Y27: 0.06026901898 | Z27: 8 | AA27: 0.03187016729 | AB27: 18
B28: 9 | C28: 栃木県 | E28: 0.04599610722 | F28: 9 | G28: 0.03205679569 | H28: 4 | I28: 0.1189671815 | J28: 21 | K28: 0.2385744235 | L28: 18 | M28: 0.1136592066 | N28: 16 | O28: 0.3335109654 | P28: 18 | Q28: 0.009766701603 | R28: 11 | S28: 0.006457020864 | T28: 17 | U28: 0.02 | V28: 7 | W28: 0.03293846883 | X28: 19 | Y28: 0.0480989464 | Z28: 17 | AA28: 0.02745168311 | AB28: 27
B29: 10 | C29: 群馬県 | E29: 0.03947766592 | F29: 14 | G29: 0.01817967182 | H29: 20 | I29: 0.1549596813 | J29: 10 | K29: 0.224037885 | L29: 21 | M29: 0.09967372014 | N29: 18 | O29: 0.3136861737 | P29: 22 | Q29: 0.001233016244 | R29: 41 | S29: 0.001587301587 | T29: 36 | U29: 0 | V29: 30 | W29: 0.02474419849 | X29: 34 | Y29: 0.03973547607 | Z29: 21 | AA29: 0.01908304043 | AB29: 40
B30: 11 | C30: 埼玉県 | E30: 0.05091814059 | F30: 4 | G30: 0.02582120635 | H30: 10 | I30: 0.1956368818 | J30: 4 | K30: 0.3351008995 | L30: 5 | M30: 0.1739925408 | N30: 4 | O30: 0.4567598218 | P30: 6 | Q30: 0.007697972116 | R30: 15 | S30: 0.00474701167 | T30: 29 | U30: 0.02030205827 | V30: 5 | W30: 0.0499496635 | X30: 8 | Y30: 0.05265277358 | Z30: 15 | AA30: 0.04886431189 | AB30: 4
B31: 12 | C31: 千葉県 | E31: 0.05309601025 | F31: 3 | G31: 0.0315027076 | H31: 5 | I31: 0.1839968835 | J31: 6 | K31: 0.360084495 | L31: 4 | M31: 0.1513870802 | N31: 5 | O31: 0.5097923585 | P31: 4 | Q31: 0.02263001201 | R31: 2 | S31: 0.02389444865 | T31: 2 | U31: 0.01735914563 | V31: 11 | W31: 0.07007184898 | X31: 2 | Y31: 0.08350839175 | Z31: 4 | AA31: 0.06423257053 | AB31: 2
B32: 13 | C32: 東京都 | E32: 0.1055927523 | F32: 1 | G32: 0.07424079509 | H32: 1 | I32: 0.331121639 | J32: 1 | K32: 0.4713459338 | L32: 1 | M32: 0.2842195635 | N32: 1 | O32: 0.6350796329 | P32: 1 | Q32: 0.04085768015 | R32: 1 | S32: 0.03259709485 | T32: 1 | U32: 0.08226326671 | V32: 1 | W32: 0.1478749056 | X32: 1 | Y32: 0.2102769872 | Z32: 1 | AA32: 0.1128991519 | AB32: 1
B33: 14 | C33: 神奈川県 | E33: 0.05084512815 | F33: 5 | G33: 0.03068151336 | H33: 6 | I33: 0.1970650338 | J33: 3 | K33: 0.4227900478 | L33: 2 | M33: 0.2085535297 | N33: 2 | O33: 0.5735297522 | P33: 2 | Q33: 0.0200180013 | R33: 3 | S33: 0.01599273605 | T33: 3 | U33: 0.0374621258 | V33: 2 | W33: 0.06704311195 | X33: 3 | Y33: 0.09117934156 | Z33: 3 | AA33: 0.05783228095 | AB33: 3
B34: 15 | C34: 新潟県 | E34: 0.02010039402 | F34: 37 | G34: 0.01287438609 | H34: 30 | I34: 0.0530218385 | J34: 38 | K34: 0.1585302847 | L34: 36 | M34: 0.06737986635 | N34: 33 | O34: 0.2162068869 | P34: 36 | Q34: 0.004477371124 | R34: 28 | S34: 0.006041980071 | T34: 19 | U34: 0 | V34: 30 | W34: 0.02914110155 | X34: 27 | Y34: 0.01302681992 | Z34: 45 | AA34: 0.03488041002 | AB34: 15
B35: 16 | C35: 富山県 | E35: 0.03292277158 | F35: 21 | G35: 0.02581123985 | H35: 11 | I35: 0.07352941176 | J35: 31 | K35: 0.1917483676 | L35: 30 | M35: 0.06201956674 | N35: 35 | O35: 0.2862072743 | P35: 29 | Q35: 0.007475573733 | R35: 17 | S35: 0.006323529412 | T35: 18 | U35: 0.01176470588 | V35: 16 | W35: 0.02800550982 | X35: 29 | Y35: 0.02013422819 | Z35: 41 | AA35: 0.0310423437 | AB35: 20
B36: 17 | C36: 石川県 | E36: 0.03878739529 | F36: 15 | G36: 0.02434799822 | H36: 13 | I36: 0.1351351351 | J36: 13 | K36: 0.2331769781 | L36: 19 | M36: 0.09338256908 | N36: 20 | O36: 0.3229603572 | P36: 20 | Q36: 0.003988712994 | R36: 33 | S36: 0 | T36: 37 | U36: 0.01811072237 | V36: 9 | W36: 0.03921388858 | X36: 14 | Y36: 0.04310575636 | Z36: 19 | AA36: 0.03780430712 | AB36: 9
B37: 18 | C37: 福井県 | E37: 0.04311291478 | F37: 10 | G37: 0.02338404572 | H37: 15 | I37: 0.1632653061 | J37: 9 | K37: 0.1953746499 | L37: 29 | M37: 0.1214128035 | N37: 13 | O37: 0.2423221983 | P37: 32 | Q37: 0.003202684154 | R37: 36 | S37: 0.004174831729 | T37: 32 | U37: 0 | V37: 30 | W37: 0.02933231485 | X37: 26 | Y37: 0.03428571429 | Z37: 30 | AA37: 0.02798202614 | AB37: 24
B38: 19 | C38: 山梨県 | E38: 0.02383002361 | F38: 34 | G38: 0.01217257319 | H38: 31 | I38: 0.1020408163 | J38: 25 | K38: 0.2040370231 | L38: 28 | M38: 0.0777093346 | N38: 29 | O38: 0.2967868852 | P38: 26 | Q38: 0.008655376724 | R38: 13 | S38: 0.01077899636 | T38: 10 | U38: 0 | V38: 30 | W38: 0.01766935396 | X38: 45 | Y38: 0.03648233487 | Z38: 26 | AA38: 0.01048058813 | AB38: 45
B39: 20 | C39: 長野県 | E39: 0.0300148388 | F39: 25 | G39: 0.01001223169 | H39: 37 | I39: 0.1343891403 | J39: 15 | K39: 0.2216014378 | L39: 22 | M39: 0.06764433109 | N39: 32 | O39: 0.3257503595 | P39: 19 | Q39: 0.003923820461 | R39: 34 | S39: 0.005105641569 | T39: 27 | U39: 0 | V39: 30 | W39: 0.02478383481 | X39: 33 | Y39: 0.0154072414 | Z39: 43 | AA39: 0.02788044215 | AB39: 25
B40: 21 | C40: 岐阜県 | E40: 0.03948137889 | F40: 13 | G40: 0.02365915179 | H40: 14 | I40: 0.1349457364 | J40: 14 | K40: 0.2753792716 | L40: 14 | M40: 0.1329606 | N40: 9 | O40: 0.372405687 | P40: 16 | Q40: 0.005741716867 | R40: 24 | S40: 0.007185538159 | T40: 16 | U40: 0 | V40: 30 | W40: 0.02992918319 | X40: 24 | Y40: 0.03593448225 | Z40: 27 | AA40: 0.02804337157 | AB40: 23
B41: 22 | C41: 静岡県 | E41: 0.0412003485 | F41: 11 | G41: 0.02076088253 | H41: 16 | I41: 0.1507936508 | J41: 11 | K41: 0.2855662174 | L41: 12 | M41: 0.1131888073 | N41: 17 | O41: 0.4001742029 | P41: 11 | Q41: 0.01151759555 | R41: 9 | S41: 0.01331696153 | T41: 4 | U41: 0.00572616024 | V41: 25 | W41: 0.03229481387 | X41: 20 | Y41: 0.03655029697 | Z41: 25 | AA41: 0.03099873056 | AB41: 21
B42: 23 | C42: 愛知県 | E42: 0.06177602997 | F42: 2 | G42: 0.03676473224 | H42: 2 | I42: 0.2063978657 | J42: 2 | K42: 0.4001423967 | L42: 3 | M42: 0.1963929958 | N42: 3 | O42: 0.5568093012 | P42: 3 | Q42: 0.01593544189 | R42: 4 | S42: 0.01268336843 | T42: 7 | U42: 0.02759361997 | V42: 3 | W42: 0.04327547107 | X42: 11 | Y42: 0.06471211537 | Z42: 6 | AA42: 0.03560475062 | AB42: 13
B43: 24 | C43: 三重県 | E43: 0.04623978321 | F43: 8 | G43: 0.03025644414 | H43: 7 | I43: 0.1328607779 | J43: 16 | K43: 0.3064495436 | L43: 8 | M43: 0.1228692973 | N43: 11 | O43: 0.4240185255 | P43: 8 | Q43: 0.006564353298 | R43: 21 | S43: 0.005137549757 | T43: 26 | U43: 0.01125923257 | V43: 18 | W43: 0.02466804635 | X43: 35 | Y43: 0.03471502591 | Z43: 29 | AA43: 0.02136112471 | AB43: 37
B44: 25 | C44: 滋賀県 | E44: 0.03597583612 | F44: 18 | G44: 0.01952330595 | H44: 18 | I44: 0.1287176207 | J44: 18 | K44: 0.3163960278 | L44: 7 | M44: 0.1228281547 | N44: 12 | O44: 0.4329413851 | P44: 7 | Q44: 0.004401469467 | R44: 29 | S44: 0.003815730838 | T44: 33 | U44: 0.006354821803 | V44: 24 | W44: 0.05086700757 | X44: 7 | Y44: 0.05719648326 | Z44: 11 | AA44: 0.04873913965 | AB44: 5
B45: 26 | C45: 京都府 | E45: 0.03135369556 | F45: 22 | G45: 0.01817567424 | H45: 21 | I45: 0.1278370249 | J45: 19 | K45: 0.3001615234 | L45: 10 | M45: 0.1490809208 | N45: 6 | O45: 0.4059681202 | P45: 10 | Q45: 0.01268672417 | R45: 7 | S45: 0.01279354068 | T45: 6 | U45: 0.01217352811 | V45: 15 | W45: 0.04957265819 | X45: 9 | Y45: 0.05206833237 | Z45: 16 | AA45: 0.04827988338 | AB45: 7
B46: 27 | C46: 大阪府 | E46: 0.04106911002 | F46: 12 | G46: 0.02606031701 | H46: 9 | I46: 0.1299917103 | J46: 17 | K46: 0.2938244281 | L46: 11 | M46: 0.1206536074 | N46: 14 | O46: 0.4094257432 | P46: 9 | Q46: 0.009522867147 | R46: 12 | S46: 0.01049549259 | T46: 11 | U46: 0.005503502037 | V46: 26 | W46: 0.05660685204 | X46: 4 | Y46: 0.09485789957 | Z46: 2 | AA46: 0.03758851398 | AB46: 10
B47: 28 | C47: 兵庫県 | E47: 0.03783958563 | F47: 16 | G47: 0.01507791035 | H47: 26 | I47: 0.182658002 | J47: 7 | K47: 0.3334074505 | L47: 6 | M47: 0.1394244202 | N47: 8 | O47: 0.4589656818 | P47: 5 | Q47: 0.0116961317 | R47: 8 | S47: 0.01228063801 | T47: 8 | U47: 0.008935990092 | V47: 19 | W47: 0.05170169873 | X47: 6 | Y47: 0.05853958576 | Z47: 9 | AA47: 0.04861948956 | AB47: 6
B48: 29 | C48: 奈良県 | E48: 0.02891330524 | F48: 26 | G48: 0.01787912159 | H48: 23 | I48: 0.09427609428 | J48: 27 | K48: 0.2712468464 | L48: 15 | M48: 0.09301121657 | N48: 21 | O48: 0.3728591258 | P48: 15 | Q48: 0.006392789045 | R48: 22 | S48: 0.005907225469 | T48: 22 | U48: 0.008526315789 | V48: 21 | W48: 0.03723820497 | X48: 15 | Y48: 0.04076958314 | Z48: 20 | AA48: 0.03569023569 | AB48: 12
B49: 30 | C49: 和歌山県 | E49: 0.02739468993 | F49: 28 | G49: 0.01007938632 | H49: 36 | I49: 0.103286385 | J49: 24 | K49: 0.2149901381 | L49: 23 | M49: 0.06482281763 | N49: 34 | O49: 0.3070607553 | P49: 23 | Q49: 0.01112877583 | R49: 10 | S49: 0.01099930946 | T49: 9 | U49: 0.0115995116 | V49: 17 | W49: 0.03306574924 | X49: 18 | Y49: 0.02871939736 | Z49: 34 | AA49: 0.0350877193 | AB49: 14
B50: 31 | C50: 鳥取県 | E50: 0.01311523725 | F50: 44 | G50: 0.005318138651 | H50: 43 | I50: 0.04996712689 | J50: 40 | K50: 0.1361734893 | L50: 43 | M50: 0.07815154604 | N50: 28 | O50: 0.1793098863 | P50: 46 | Q50: 0 | R50: 42 | S50: 0 | T50: 37 | U50: 0 | V50: 30 | W50: 0.02003710575 | X50: 41 | Y50: 0.01210571185 | Z50: 46 | AA50: 0.0230584998 | AB50: 35
B51: 32 | C51: 島根県 | E51: 0.03055778421 | F51: 24 | G51: 0.03225806452 | H51: 3 | I51: 0.02222222222 | J51: 45 | K51: 0.1678209865 | L51: 34 | M51: 0.09482517483 | N51: 19 | O51: 0.208954929 | P51: 38 | Q51: 0.008280361325 | R51: 14 | S51: 0.005760732323 | T51: 23 | U51: 0.01470588235 | V51: 13 | W51: 0.02978376173 | X51: 25 | Y51: 0.03674456084 | Z51: 24 | AA51: 0.02753697093 | AB51: 26
B52: 33 | C52: 岡山県 | E52: 0.021819017 | F52: 35 | G52: 0.01205843704 | H52: 33 | I52: 0.06471939841 | J52: 34 | K52: 0.2607698764 | L52: 17 | M52: 0.1154365437 | N52: 15 | O52: 0.3497482019 | P52: 17 | Q52: 0.006603385516 | R52: 20 | S52: 0.004177514967 | T52: 31 | U52: 0.01582846879 | V52: 12 | W52: 0.04415182622 | X52: 10 | Y52: 0.06039473684 | Z52: 7 | AA52: 0.03747897619 | AB52: 11
B53: 34 | C53: 広島県 | E53: 0.03677436817 | F53: 17 | G53: 0.01804398659 | H53: 22 | I53: 0.119556484 | J53: 20 | K53: 0.3041182203 | L53: 9 | M53: 0.1264483735 | N53: 10 | O53: 0.3998849252 | P53: 12 | Q53: 0.01493759268 | R53: 5 | S53: 0.01298010427 | T53: 5 | U53: 0.02017810706 | V53: 6 | W53: 0.03351638657 | X53: 17 | Y53: 0.05534064473 | Z53: 13 | AA53: 0.02552769564 | AB53: 32
B54: 35 | C54: 山口県 | E54: 0.04759262614 | F54: 7 | G54: 0.01542466198 | H54: 24 | I54: 0.1756548536 | J54: 8 | K54: 0.2662976818 | L54: 16 | M54: 0.09213433168 | N54: 22 | O54: 0.384628688 | P54: 14 | Q54: 0.007667603372 | R54: 16 | S54: 0.007919888316 | T54: 15 | U54: 0.007010475423 | V54: 23 | W54: 0.03224519531 | X54: 21 | Y54: 0.05850679624 | Z54: 10 | AA54: 0.02223459105 | AB54: 36
B55: 36 | C55: 徳島県 | E55: 0.02678782157 | F55: 30 | G55: 0.01207945598 | H55: 32 | I55: 0.1 | J55: 26 | K55: 0.1776104877 | L55: 33 | M55: 0.0599008939 | N55: 38 | O55: 0.2554112554 | P55: 31 | Q55: 0.006846455707 | R55: 19 | S55: 0.004247760272 | T55: 30 | U55: 0.01772264067 | V55: 10 | W55: 0.02110014963 | X55: 39 | Y55: 0.008726945569 | Z55: 47 | AA55: 0.02647038131 | AB55: 28
B56: 37 | C56: 香川県 | E56: 0.03501228501 | F56: 19 | G56: 0.009411764706 | H56: 40 | I56: 0.1358024691 | J56: 12 | K56: 0.2137265918 | L56: 24 | M56: 0.06058252427 | N56: 37 | O56: 0.3060318949 | P56: 25 | Q56: 0 | R56: 42 | S56: 0 | T56: 37 | U56: 0 | V56: 30 | W56: 0.03958078958 | X56: 12 | Y56: 0.05714285714 | Z56: 12 | AA56: 0.03289473684 | AB56: 17
B57: 38 | C57: 愛媛県 | E57: 0.03347789825 | F57: 20 | G57: 0.0141244953 | H57: 28 | I57: 0.1061946903 | J57: 23 | K57: 0.1888423989 | L57: 31 | M57: 0.07595292794 | N57: 30 | O57: 0.2575121848 | P57: 30 | Q57: 0.005789672069 | R57: 23 | S57: 0.008126675603 | T57: 14 | U57: 0 | V57: 30 | W57: 0.01849081506 | X57: 44 | Y57: 0.04677933673 | Z57: 18 | AA57: 0.007834724619 | AB57: 47
B58: 39 | C58: 高知県 | E58: 0.003834642724 | F58: 47 | G58: 0.004664289958 | H58: 45 | I58: 0 | J58: 47 | K58: 0.1275694444 | L58: 45 | M58: 0.02102053915 | N58: 47 | O58: 0.2031188989 | P58: 40 | Q58: 0.004005452448 | R58: 32 | S58: 0.005280172414 | T58: 25 | U58: 0 | V58: 30 | W58: 0.03504544535 | X58: 16 | Y58: 0.03549245785 | Z58: 28 | AA58: 0.03484679427 | AB58: 16
B59: 40 | C59: 福岡県 | E59: 0.02409612034 | F59: 32 | G59: 0.01403625111 | H59: 29 | I59: 0.06859886812 | J59: 33 | K59: 0.2307362955 | L59: 20 | M59: 0.08268026915 | N59: 24 | O59: 0.3148865288 | P59: 21 | Q59: 0.004610662405 | R59: 27 | S59: 0.002015127097 | T59: 35 | U59: 0.01294859442 | V59: 14 | W59: 0.03003939135 | X59: 23 | Y59: 0.05392941584 | Z59: 14 | AA59: 0.01924259071 | AB59: 39
B60: 41 | C60: 佐賀県 | E60: 0.01482537272 | F60: 43 | G60: 0.003637873754 | H60: 46 | I60: 0.06355320173 | J60: 35 | K60: 0.1450143234 | L60: 40 | M60: 0.06118759561 | N60: 36 | O60: 0.2030830902 | P60: 41 | Q60: 0 | R60: 42 | S60: 0 | T60: 37 | U60: 0 | V60: 30 | W60: 0.02690166976 | X60: 30 | Y60: 0.0233201581 | Z60: 36 | AA60: 0.02836801752 | AB60: 22
B61: 42 | C61: 長崎県 | E61: 0.01949420443 | F61: 39 | G61: 0.009704846094 | H61: 39 | I61: 0.05945350816 | J61: 36 | K61: 0.2065234201 | L61: 27 | M61: 0.05090218424 | N61: 40 | O61: 0.2917171542 | P61: 27 | Q61: 0.003816215602 | R61: 35 | S61: 0.004892654844 | T61: 28 | U61: 0 | V61: 30 | W61: 0.01158530128 | X61: 47 | Y61: 0.01484235242 | Z61: 44 | AA61: 0.01023683046 | AB61: 46
B62: 43 | C62: 熊本県 | E62: 0.01914344685 | F62: 40 | G62: 0.01202020202 | H62: 34 | I62: 0.0472972973 | J62: 41 | K62: 0.1820825937 | L62: 32 | M62: 0.08168736448 | N62: 25 | O62: 0.2396489177 | P62: 34 | Q62: 0.01324334769 | R62: 6 | S62: 0.008871783978 | T62: 12 | U62: 0.0260986375 | V62: 4 | W62: 0.02493598551 | X62: 32 | Y62: 0.02269106358 | Z62: 38 | AA62: 0.0258076225 | AB62: 31
B63: 44 | C63: 大分県 | E63: 0.01898136036 | F63: 41 | G63: 0.005244215938 | H63: 44 | I63: 0.07606837607 | J63: 30 | K63: 0.1565338748 | L63: 37 | M63: 0.03520822066 | N63: 45 | O63: 0.2417803828 | P63: 33 | Q63: 0.004356786128 | R63: 30 | S63: 0.005908547844 | T63: 21 | U63: 0 | V63: 30 | W63: 0.01964557663 | X63: 42 | Y63: 0.03032965194 | Z63: 33 | AA63: 0.01570580349 | AB63: 42
B64: 45 | C64: 宮崎県 | E64: 0.01990404514 | F64: 38 | G64: 0.006337952519 | H64: 42 | I64: 0.06976744186 | J64: 32 | K64: 0.1340620203 | L64: 44 | M64: 0.04282772821 | N64: 41 | O64: 0.1796696224 | P64: 45 | Q64: 0.002408733316 | R64: 38 | S64: 0 | T64: 37 | U64: 0.00892494929 | V64: 20 | W64: 0.01874245781 | X64: 43 | Y64: 0.0323488045 | Z64: 32 | AA64: 0.01387450818 | AB64: 44
B65: 46 | C65: 鹿児島県 | E65: 0.009945821091 | F65: 46 | G65: 0.002159629569 | H65: 47 | I65: 0.03571428571 | J65: 42 | K65: 0.1406188063 | L65: 41 | M65: 0.05659829721 | N65: 39 | O65: 0.1804442298 | P65: 44 | Q65: 0 | R65: 42 | S65: 0 | T65: 37 | U65: 0 | V65: 30 | W65: 0.02141856628 | X65: 38 | Y65: 0.03820798041 | Z65: 22 | AA65: 0.01535799265 | AB65: 43
B66: 47 | C66: 沖縄県 | E66: 0.01662988841 | F66: 42 | G66: 0.01083589957 | H66: 35 | I66: 0.03556344277 | J66: 43 | K66: 0.09922012579 | L66: 47 | M66: 0.02313183338 | N66: 46 | O66: 0.148871472 | P66: 47 | Q66: 0.00139722021 | R66: 40 | S66: 0 | T66: 37 | U66: 0.00495049505 | V66: 27 | W66: 0.0175996446 | X66: 46 | Y66: 0.02061327043 | Z66: 40 | AA66: 0.01650939328 | AB66: 41
B67: 資料等
B68: ○ 総務省「就業構造基本調査」（平成29年）より作成。無業者と有業者を含めて算出した値であり、有業者のうち所得が把握できていない者は按分して含めた。なお、有配偶は、総数から未婚を除いて算出した。
B69: ○ 合計特殊出生率との相関係数、単純平均、標準偏差は都道府県別データから機械的に計算。変動係数は、標準偏差／単純平均で機械的に計算。

Sheet ３．（２）一日の行動当たり時間（夫）
B5: ■夫婦と子供の世帯で６歳未満の子供がおり、夫妻ともに有業の場合の、一日の行動当たり時間（平日） 夫
E7: 【実数値】 | S7: ・・・上位10位を網掛け
S8: ・・・下位10位を網掛け
E9: 一日当たりの時間（H28）
E10: 夫
E11: 通勤・通学 | G11: 仕事 | I11: 家事 | K11: 介護・看護 | M11: 育児 | O11: ボランティア活動・ | Q11: 通勤・通学と | S11: 通勤・通学と
O12: 社会参加活動 | Q12: 仕事の合計 | S12: 仕事と家事と
F13: （順位） | H13: （順位） | J13: （順位） | L13: （順位） | N13: （順位） | P13: （順位） | R13: （順位） | S13: 育児の合計 | T13: （順位）
E14: （分） | F14: （昇順） | G14: （分） | H14: （昇順） | I14: （分） | J14: （降順） | K14: （分） | L14: （降順） | M14: （分） | N14: （降順） | O14: （分） | P14: （降順） | Q14: （分） | R14: （昇順） | S14: （分） | T14: （降順）
B15: （合計特殊出生率との相関係数） | E15: -0.4052177444 | G15: -0.1910931233 | I15: 0.1382289175 | K15: 0.2408350993 | M15: -0.1960463659 | O15: 0.20066035 | Q15: -0.3050493404 | S15: -0.3663259234
B16: （単純平均） | E16: 60.95744681 | G16: 563.106383 | I16: 18.21276596 | K16: 1.14893617 | M16: 30.31914894 | O16: 0.7446808511 | Q16: 624.0638298 | S16: 672.5957447
B17: （標準偏差） | E17: 17.46967883 | G17: 43.65056313 | I17: 10.52238985 | K17: 3.248428251 | M17: 15.19813312 | O17: 2.392079885 | Q17: 50.55033483 | S17: 46.25767772
B18: （変動係数） | E18: 0.2865880996 | G18: 0.07751743622 | I18: 0.5777480407 | K18: 2.8273357 | M18: 0.5012717591 | O18: 3.212221559 | Q18: 0.08100186618 | S18: 0.06877485932
B19: 全 国 | E19: 70 | G19: 569 | I19: 18 | K19: 1 | M19: 32 | O19: 0 | Q19: 639 | S19: 689
B20: 1 | C20: 北海道 | E20: 52 | F20: 14 | G20: 539 | H20: 11 | I20: 9 | J20: 38 | K20: 0 | L20: 12 | M20: 23 | N20: 28 | O20: 1 | P20: 7 | Q20: 591 | R20: 11 | S20: 623 | T20: 40
B21: 2 | C21: 青森県 | E21: 44 | F21: 6 | G21: 543 | H21: 13 | I21: 19 | J21: 18 | K21: 0 | L21: 12 | M21: 20 | N21: 30 | O21: 0 | P21: 10 | Q21: 587 | R21: 10 | S21: 626 | T21: 38
B22: 3 | C22: 岩手県 | E22: 53 | F22: 16 | G22: 485 | H22: 3 | I22: 41 | J22: 3 | K22: 0 | L22: 12 | M22: 39 | N22: 14 | O22: 0 | P22: 10 | Q22: 538 | R22: 2 | S22: 618 | T22: 42
B23: 4 | C23: 宮城県 | E23: 57 | F23: 24 | G23: 502 | H23: 5 | I23: 22 | J23: 16 | K23: 0 | L23: 12 | M23: 63 | N23: 2 | O23: 0 | P23: 10 | Q23: 559 | R23: 7 | S23: 644 | T23: 34
B24: 5 | C24: 秋田県 | E24: 41 | F24: 5 | G24: 553 | H24: 20 | I24: 13 | J24: 29 | K24: 0 | L24: 12 | M24: 49 | N24: 7 | O24: 0 | P24: 10 | Q24: 594 | R24: 13 | S24: 656 | T24: 31
B25: 6 | C25: 山形県 | E25: 46 | F25: 7 | G25: 549 | H25: 18 | I25: 23 | J25: 14 | K25: 0 | L25: 12 | M25: 39 | N25: 14 | O25: 0 | P25: 10 | Q25: 595 | R25: 14 | S25: 657 | T25: 30
B26: 7 | C26: 福島県 | E26: 50 | F26: 11 | G26: 568 | H26: 25 | I26: 11 | J26: 33 | K26: 0 | L26: 12 | M26: 12 | N26: 44 | O26: 0 | P26: 10 | Q26: 618 | R26: 23 | S26: 641 | T26: 37
B27: 8 | C27: 茨城県 | E27: 57 | F27: 24 | G27: 596 | H27: 35 | I27: 8 | J27: 39 | K27: 0 | L27: 12 | M27: 12 | N27: 44 | O27: 0 | P27: 10 | Q27: 653 | R27: 34 | S27: 673 | T27: 23
B28: 9 | C28: 栃木県 | E28: 87 | F28: 42 | G28: 597 | H28: 36 | I28: 3 | J28: 46 | K28: 0 | L28: 12 | M28: 32 | N28: 17 | O28: 0 | P28: 10 | Q28: 684 | R28: 42 | S28: 719 | T28: 9
B29: 10 | C29: 群馬県 | E29: 61 | F29: 31 | G29: 541 | H29: 12 | I29: 19 | J29: 18 | K29: 0 | L29: 12 | M29: 39 | N29: 14 | O29: 0 | P29: 10 | Q29: 602 | R29: 17 | S29: 660 | T29: 29
B30: 11 | C30: 埼玉県 | E30: 96 | F30: 45 | G30: 605 | H30: 39 | I30: 16 | J30: 25 | K30: 1 | L30: 9 | M30: 42 | N30: 11 | O30: 0 | P30: 10 | Q30: 701 | R30: 44 | S30: 759 | T30: 2
B31: 12 | C31: 千葉県 | E31: 103 | F31: 46 | G31: 604 | H31: 38 | I31: 18 | J31: 21 | K31: 0 | L31: 12 | M31: 29 | N31: 21 | O31: 0 | P31: 10 | Q31: 707 | R31: 46 | S31: 754 | T31: 3
B32: 13 | C32: 東京都 | E32: 89 | F32: 44 | G32: 522 | H32: 9 | I32: 24 | J32: 9 | K32: 0 | L32: 12 | M32: 59 | N32: 3 | O32: 0 | P32: 10 | Q32: 611 | R32: 20 | S32: 694 | T32: 14
B33: 14 | C33: 神奈川県 | E33: 110 | F33: 47 | G33: 632 | H33: 44 | I33: 11 | J33: 33 | K33: 0 | L33: 12 | M33: 13 | N33: 43 | O33: 0 | P33: 10 | Q33: 742 | R33: 47 | S33: 766 | T33: 1
B34: 15 | C34: 新潟県 | E34: 51 | F34: 13 | G34: 548 | H34: 16 | I34: 14 | J34: 28 | K34: 0 | L34: 12 | M34: 31 | N34: 19 | O34: 0 | P34: 10 | Q34: 599 | R34: 15 | S34: 644 | T34: 34
B35: 16 | C35: 富山県 | E35: 55 | F35: 18 | G35: 576 | H35: 29 | I35: 23 | J35: 14 | K35: 2 | L35: 7 | M35: 16 | N35: 39 | O35: 5 | P35: 2 | Q35: 631 | R35: 27 | S35: 670 | T35: 26
B36: 17 | C36: 石川県 | E36: 59 | F36: 28 | G36: 618 | H36: 43 | I36: 24 | J36: 9 | K36: 0 | L36: 12 | M36: 21 | N36: 29 | O36: 0 | P36: 10 | Q36: 677 | R36: 39 | S36: 722 | T36: 8
B37: 18 | C37: 福井県 | E37: 62 | F37: 33 | G37: 551 | H37: 19 | I37: 36 | J37: 4 | K37: 0 | L37: 12 | M37: 24 | N37: 27 | O37: 1 | P37: 7 | Q37: 613 | R37: 21 | S37: 673 | T37: 23
B38: 19 | C38: 山梨県 | E38: 55 | F38: 18 | G38: 573 | H38: 27 | I38: 17 | J38: 23 | K38: 3 | L38: 6 | M38: 28 | N38: 23 | O38: 0 | P38: 10 | Q38: 628 | R38: 25 | S38: 673 | T38: 23
B39: 20 | C39: 長野県 | E39: 59 | F39: 28 | G39: 487 | H39: 4 | I39: 21 | J39: 17 | K39: 4 | L39: 5 | M39: 29 | N39: 21 | O39: 0 | P39: 10 | Q39: 546 | R39: 5 | S39: 596 | T39: 45
B40: 21 | C40: 岐阜県 | E40: 60 | F40: 30 | G40: 548 | H40: 16 | I40: 25 | J40: 8 | K40: 0 | L40: 12 | M40: 31 | N40: 19 | O40: 0 | P40: 10 | Q40: 608 | R40: 19 | S40: 664 | T40: 28
B41: 22 | C41: 静岡県 | E41: 62 | F41: 33 | G41: 640 | H41: 47 | I41: 13 | J41: 29 | K41: 6 | L41: 3 | M41: 20 | N41: 30 | O41: 5 | P41: 2 | Q41: 702 | R41: 45 | S41: 735 | T41: 5
B42: 23 | C42: 愛知県 | E42: 81 | F42: 40 | G42: 567 | H42: 24 | I42: 24 | J42: 9 | K42: 5 | L42: 4 | M42: 19 | N42: 35 | O42: 0 | P42: 10 | Q42: 648 | R42: 32 | S42: 691 | T42: 17
B43: 24 | C43: 三重県 | E43: 58 | F43: 26 | G43: 480 | H43: 2 | I43: 5 | J43: 45 | K43: 0 | L43: 12 | M43: 53 | N43: 5 | O43: 0 | P43: 10 | Q43: 538 | R43: 2 | S43: 596 | T43: 45
B44: 25 | C44: 滋賀県 | E44: 67 | F44: 35 | G44: 524 | H44: 10 | I44: 13 | J44: 29 | K44: 0 | L44: 12 | M44: 41 | N44: 13 | O44: 0 | P44: 10 | Q44: 591 | R44: 11 | S44: 645 | T44: 32
B45: 26 | C45: 京都府 | E45: 50 | F45: 11 | G45: 607 | H45: 40 | I45: 10 | J45: 36 | K45: 0 | L45: 12 | M45: 25 | N45: 24 | O45: 0 | P45: 10 | Q45: 657 | R45: 35 | S45: 692 | T45: 15
B46: 27 | C46: 大阪府 | E46: 85 | F46: 41 | G46: 594 | H46: 34 | I46: 10 | J46: 36 | K46: 1 | L46: 9 | M46: 16 | N46: 39 | O46: 0 | P46: 10 | Q46: 679 | R46: 40 | S46: 705 | T46: 11
B47: 28 | C47: 兵庫県 | E47: 72 | F47: 36 | G47: 577 | H47: 30 | I47: 33 | J47: 5 | K47: 0 | L47: 12 | M47: 42 | N47: 11 | O47: 0 | P47: 10 | Q47: 649 | R47: 33 | S47: 724 | T47: 7
B48: 29 | C48: 奈良県 | E48: 76 | F48: 38 | G48: 599 | H48: 37 | I48: 18 | J48: 21 | K48: 0 | L48: 12 | M48: 49 | N48: 7 | O48: 0 | P48: 10 | Q48: 675 | R48: 38 | S48: 742 | T48: 4
B49: 30 | C49: 和歌山県 | E49: 56 | F49: 21 | G49: 613 | H49: 42 | I49: 3 | J49: 46 | K49: 0 | L49: 12 | M49: 20 | N49: 30 | O49: 0 | P49: 10 | Q49: 669 | R49: 37 | S49: 692 | T49: 15
B50: 31 | C50: 鳥取県 | E50: 61 | F50: 31 | G50: 577 | H50: 30 | I50: 24 | J50: 9 | K50: 0 | L50: 12 | M50: 20 | N50: 30 | O50: 0 | P50: 10 | Q50: 638 | R50: 29 | S50: 682 | T50: 21
B51: 32 | C51: 島根県 | E51: 56 | F51: 21 | G51: 544 | H51: 14 | I51: 11 | J51: 33 | K51: 0 | L51: 12 | M51: 14 | N51: 42 | O51: 0 | P51: 10 | Q51: 600 | R51: 16 | S51: 625 | T51: 39
B52: 33 | C52: 岡山県 | E52: 88 | F52: 43 | G52: 553 | H52: 20 | I52: 8 | J52: 39 | K52: 0 | L52: 12 | M52: 18 | N52: 37 | O52: 0 | P52: 10 | Q52: 641 | R52: 31 | S52: 667 | T52: 27
B53: 34 | C53: 広島県 | E53: 56 | F53: 21 | G53: 584 | H53: 32 | I53: 24 | J53: 9 | K53: 0 | L53: 12 | M53: 19 | N53: 35 | O53: 0 | P53: 10 | Q53: 640 | R53: 30 | S53: 683 | T53: 20
B54: 35 | C54: 山口県 | E54: 46 | F54: 7 | G54: 590 | H54: 33 | I54: 7 | J54: 42 | K54: 2 | L54: 7 | M54: 56 | N54: 4 | O54: 0 | P54: 10 | Q54: 636 | R54: 28 | S54: 699 | T54: 12
B55: 36 | C55: 徳島県 | E55: 73 | F55: 37 | G55: 556 | H55: 22 | I55: 15 | J55: 27 | K55: 0 | L55: 12 | M55: 46 | N55: 9 | O55: 1 | P55: 7 | Q55: 629 | R55: 26 | S55: 690 | T55: 19
B56: 37 | C56: 香川県 | E56: 30 | F56: 1 | G56: 545 | H56: 15 | I56: 17 | J56: 23 | K56: 19 | L56: 1 | M56: 51 | N56: 6 | O56: 15 | P56: 1 | Q56: 575 | R56: 9 | S56: 643 | T56: 36
B57: 38 | C57: 愛媛県 | E57: 40 | F57: 4 | G57: 516 | H57: 8 | I57: 33 | J57: 5 | K57: 0 | L57: 12 | M57: 20 | N57: 30 | O57: 3 | P57: 4 | Q57: 556 | R57: 6 | S57: 609 | T57: 44
B58: 39 | C58: 高知県 | E58: 55 | F58: 18 | G58: 638 | H58: 46 | I58: 16 | J58: 25 | K58: 0 | L58: 12 | M58: 25 | N58: 24 | O58: 0 | P58: 10 | Q58: 693 | R58: 43 | S58: 734 | T58: 6
B59: 40 | C59: 福岡県 | E59: 46 | F59: 7 | G59: 634 | H59: 45 | I59: 7 | J59: 42 | K59: 0 | L59: 12 | M59: 11 | N59: 46 | O59: 0 | P59: 10 | Q59: 680 | R59: 41 | S59: 698 | T59: 13
B60: 41 | C60: 佐賀県 | E60: 37 | F60: 3 | G60: 503 | H60: 6 | I60: 50 | J60: 1 | K60: 10 | L60: 2 | M60: 32 | N60: 17 | O60: 0 | P60: 10 | Q60: 540 | R60: 4 | S60: 622 | T60: 41
B61: 42 | C61: 長崎県 | E61: 76 | F61: 38 | G61: 455 | H61: 1 | I61: 6 | J61: 44 | K61: 0 | L61: 12 | M61: 17 | N61: 38 | O61: 0 | P61: 10 | Q61: 531 | R61: 1 | S61: 554 | T61: 47
B62: 43 | C62: 熊本県 | E62: 58 | F62: 26 | G62: 609 | H62: 41 | I62: 8 | J62: 39 | K62: 0 | L62: 12 | M62: 16 | N62: 39 | O62: 0 | P62: 10 | Q62: 667 | R62: 36 | S62: 691 | T62: 17
B63: 44 | C63: 大分県 | E63: 35 | F63: 2 | G63: 571 | H63: 26 | I63: 44 | J63: 2 | K63: 0 | L63: 12 | M63: 67 | N63: 1 | O63: 0 | P63: 10 | Q63: 606 | R63: 18 | S63: 717 | T63: 10
B64: 45 | C64: 宮崎県 | E64: 49 | F64: 10 | G64: 515 | H64: 7 | I64: 28 | J64: 7 | K64: 0 | L64: 12 | M64: 25 | N64: 24 | O64: 2 | P64: 5 | Q64: 564 | R64: 8 | S64: 617 | T64: 43
B65: 46 | C65: 鹿児島県 | E65: 53 | F65: 16 | G65: 573 | H65: 27 | I65: 13 | J65: 29 | K65: 0 | L65: 12 | M65: 6 | N65: 47 | O65: 2 | P65: 5 | Q65: 626 | R65: 24 | S65: 645 | T65: 32
B66: 47 | C66: 沖縄県 | E66: 52 | F66: 14 | G66: 565 | H66: 23 | I66: 19 | J66: 18 | K66: 1 | L66: 9 | M66: 46 | N66: 9 | O66: 0 | P66: 10 | Q66: 617 | R66: 22 | S66: 682 | T66: 21
B67: 資料等
B68: ○ 総務省「社会生活基本調査」（平成28年）より作成。
B69: ○ 合計特殊出生率との相関係数、単純平均、標準偏差は都道府県別データから機械的に計算。変動係数は、標準偏差／単純平均で機械的に計算。

Sheet ３．（２）一日の行動当たり時間（妻）
B5: ■夫婦と子供の世帯で６歳未満の子供がおり、夫妻ともに有業の場合の、一日の行動当たり時間（平日） 妻
E7: 【実数値】 | S7: ・・・上位10位を網掛け
S8: ・・・下位10位を網掛け
E9: 一日当たりの時間（H28）
E10: 妻
E11: 通勤・通学 | G11: 仕事 | I11: 家事 | K11: 介護・看護 | M11: 育児 | O11: ボランティア活動・ | Q11: 通勤・通学と | S11: 通勤・通学と
O12: 社会参加活動 | Q12: 仕事の合計 | S12: 仕事と家事と
F13: （順位） | H13: （順位） | J13: （順位） | L13: （順位） | N13: （順位） | P13: （順位） | R13: （順位） | S13: 育児の合計 | T13: （順位）
E14: （分） | F14: （昇順） | G14: （分） | H14: （昇順） | I14: （分） | J14: （降順） | K14: （分） | L14: （降順） | M14: （分） | N14: （降順） | O14: （分） | P14: （降順） | Q14: （分） | R14: （昇順） | S14: （分） | T14: （降順）
B15: （合計特殊出生率との相関係数） | E15: -0.3609894611 | G15: 0.07905140257 | I15: 0.05993264821 | K15: 0.08066888503 | M15: -0.1628267129 | O15: 0.01681560335 | Q15: 0.01246855287 | S15: -0.1202026205
B16: （単純平均） | E16: 38.14893617 | G16: 287.2978723 | I16: 162.5106383 | K16: 9.382978723 | M16: 150.4255319 | O16: 1.021276596 | Q16: 325.4468085 | S16: 638.3829787
B17: （標準偏差） | E17: 10.46977153 | G17: 57.78717921 | I17: 25.65057532 | K17: 23.37807046 | M17: 43.1261113 | O17: 2.320027161 | Q17: 63.25356218 | S17: 39.06816367
B18: （変動係数） | E18: 0.2744446525 | G18: 0.2011402964 | I18: 0.1578393611 | K18: 2.491540389 | M18: 0.2866940921 | O18: 2.271693262 | Q18: 0.1943591411 | S18: 0.06119862993
B19: 全 国 | E19: 42 | G19: 273 | I19: 164 | K19: 7 | M19: 164 | O19: 1 | Q19: 315 | S19: 643
B20: 1 | C20: 北海道 | E20: 37 | F20: 24 | G20: 238 | H20: 8 | I20: 197 | J20: 5 | K20: 4 | L20: 20 | M20: 149 | N20: 26 | O20: 0 | P20: 17 | Q20: 275 | R20: 11 | S20: 621 | T20: 30
B21: 2 | C21: 青森県 | E21: 30 | F21: 10 | G21: 371 | H21: 43 | I21: 154 | J21: 31 | K21: 6 | L21: 13 | M21: 99 | N21: 40 | O21: 0 | P21: 17 | Q21: 401 | R21: 42 | S21: 654 | T21: 14
B22: 3 | C22: 岩手県 | E22: 52 | F22: 43 | G22: 376 | H22: 45 | I22: 171 | J22: 18 | K22: 6 | L22: 13 | M22: 112 | N22: 38 | O22: 0 | P22: 17 | Q22: 428 | R22: 45 | S22: 711 | T22: 2
B23: 4 | C23: 宮城県 | E23: 48 | F23: 36 | G23: 339 | H23: 39 | I23: 129 | J23: 42 | K23: 3 | L23: 23 | M23: 124 | N23: 36 | O23: 0 | P23: 17 | Q23: 387 | R23: 39 | S23: 640 | T23: 26
B24: 5 | C24: 秋田県 | E24: 48 | F24: 36 | G24: 410 | H24: 46 | I24: 122 | J24: 46 | K24: 0 | L24: 43 | M24: 126 | N24: 35 | O24: 0 | P24: 17 | Q24: 458 | R24: 46 | S24: 706 | T24: 3
B25: 6 | C25: 山形県 | E25: 30 | F25: 10 | G25: 290 | H25: 27 | I25: 174 | J25: 15 | K25: 3 | L25: 23 | M25: 155 | N25: 24 | O25: 0 | P25: 17 | Q25: 320 | R25: 24 | S25: 649 | T25: 18
B26: 7 | C26: 福島県 | E26: 63 | F26: 47 | G26: 430 | H26: 47 | I26: 137 | J26: 39 | K26: 1 | L26: 36 | M26: 83 | N26: 45 | O26: 13 | P26: 1 | Q26: 493 | R26: 47 | S26: 713 | T26: 1
B27: 8 | C27: 茨城県 | E27: 50 | F27: 41 | G27: 328 | H27: 35 | I27: 162 | J27: 24 | K27: 0 | L27: 43 | M27: 107 | N27: 39 | O27: 0 | P27: 17 | Q27: 378 | R27: 37 | S27: 647 | T27: 21
B28: 9 | C28: 栃木県 | E28: 32 | F28: 16 | G28: 242 | H28: 11 | I28: 135 | J28: 41 | K28: 5 | L28: 17 | M28: 190 | N28: 5 | O28: 0 | P28: 17 | Q28: 274 | R28: 10 | S28: 599 | T28: 40
B29: 10 | C29: 群馬県 | E29: 17 | F29: 1 | G29: 182 | H29: 2 | I29: 171 | J29: 18 | K29: 1 | L29: 36 | M29: 180 | N29: 10 | O29: 4 | P29: 4 | Q29: 199 | R29: 1 | S29: 550 | T29: 47
B30: 11 | C30: 埼玉県 | E30: 56 | F30: 44 | G30: 192 | H30: 3 | I30: 202 | J30: 3 | K30: 8 | L30: 8 | M30: 196 | N30: 3 | O30: 0 | P30: 17 | Q30: 248 | R30: 5 | S30: 646 | T30: 23
B31: 12 | C31: 千葉県 | E31: 35 | F31: 20 | G31: 214 | H31: 5 | I31: 186 | J31: 9 | K31: 13 | L31: 7 | M31: 208 | N31: 2 | O31: 6 | P31: 3 | Q31: 249 | R31: 6 | S31: 643 | T31: 24
B32: 13 | C32: 東京都 | E32: 48 | F32: 36 | G32: 273 | H32: 20 | I32: 136 | J32: 40 | K32: 3 | L32: 23 | M32: 185 | N32: 8 | O32: 0 | P32: 17 | Q32: 321 | R32: 25 | S32: 642 | T32: 25
B33: 14 | C33: 神奈川県 | E33: 56 | F33: 44 | G33: 289 | H33: 26 | I33: 150 | J33: 32 | K33: 8 | L33: 8 | M33: 180 | N33: 10 | O33: 1 | P33: 10 | Q33: 345 | R33: 29 | S33: 675 | T33: 11
B34: 15 | C34: 新潟県 | E34: 49 | F34: 39 | G34: 353 | H34: 41 | I34: 180 | J34: 11 | K34: 2 | L34: 32 | M34: 66 | N34: 47 | O34: 0 | P34: 17 | Q34: 402 | R34: 43 | S34: 648 | T34: 20
